Workbook

Sheet Übersicht Monat
G1: Trendmonitor | O1: =VALUE(RIGHT(Q2,10)) -> 2024-02-29
I2: E 20-59 J. | Q2: ='Data E2059 '!D2 -> 01.02.2024 - 29.02.2024
A3: =MID(Q2,7,4)&" Seven.One Entertainment Group "&TEXT((N16+N19+N26+N35+N38+N41+N44)*100,"0,0")&"% - Ad Alliance "&TEXT((N22+N32+N75+N50+N53+N56)*100,"0,0")&"% - RTL Gruppe "&TEXT((N22+N29+N32+N75+N50+N53+N56)*100,"0,0")&"% - El Cartel "&TEXT(N29*100,"0,0")&"% - Öffentlich-Rechtliche "&TEXT((N79+N82)*100,"0,0")&"%" -> 2024 Seven.One Entertainment Group 20,4% - Ad Alliance 24,6% - RTL Gruppe 28,0% - El Cartel 3,4% - Öffentlich-Rechtliche 18,3%
A4: =RIGHT(Q2,4)-1&" Seven.One Entertainment Group "&TEXT((O16+O19+O26+O35+O38+O41+O44)*100,"0,0")&"% - Ad Alliance "&TEXT((O22+O32+O75+O50+O53+O56)*100,"0,0")&"% - RTL Gruppe "&TEXT((O22+O29+O32+O75+O50+O53+O56)*100,"0,0")&"% - El Cartel "&TEXT(O29*100,"0,0")&"% - Öffentlich-Rechtliche "&TEXT((O79+O82)*100,"0,0")&"%" -> 2023 Seven.One Entertainment Group 21,5% - Ad Alliance 23,1% - RTL Gruppe 26,6% - El Cartel 3,4% - Öffentlich-Rechtliche 19,2%
B6: RW Zeitschiene in Mio | E6: Seher in % | H6: Verweildauer in Min. | K6: Ø Sehdauer in Min.
B7: =RIGHT(Q2,4) -> 2024 | C7: =B7-1 -> 2023 | D7: Diff in % | E7: =$B$7 -> 2024 | F7: =$C$7 -> 2023 | G7: Diff in % | H7: =$B$7 -> 2024 | I7: =$C$7 -> 2023 | J7: Diff in % | K7: =$B$7 -> 2024 | L7: =$C$7 -> 2023 | M7: Diff in %
A8: TV-Gesamt | D8: *Reichweiten der Zeitschienen
A9: 03:00-03:00 | B9: =LOOKUP(2,1/('Data E2059 '!$A$6:$A$457&"*"&'Data E2059 '!$C$6:$C$457=$A8&"*"&TRIM($A9)),'Data E2059 '!$D$6:$D$457) -> 4.156859827 | C9: =LOOKUP(2,1/('Data E2059 '!$A$6:$A$457&"*"&'Data E2059 '!$C$6:$C$457=$A8&"*"&TRIM($A9)),'Data E2059 '!$L$6:$L$457) -> 4.532916227 | D9: =IF(C9="k V","k V",(B9-C9)/C9) -> -0.08296125082 | E9: =LOOKUP(2,1/('Data E2059 '!$A$6:$A$457&"*"&'Data E2059 '!$C$6:$C$457=$A8&"*"&TRIM($A9)),'Data E2059 '!$I$6:$I$457) -> 58.50976592 | F9: =LOOKUP(2,1/('Data E2059 '!$A$6:$A$457&"*"&'Data E2059 '!$C$6:$C$457=$A8&"*"&TRIM($A9)),'Data E2059 '!$Q$6:$Q$457) -> 59.42992596 | G9: =IF(F9="k V","k V",(E9-F9)/F9) -> -0.0154831092 | H9: =LOOKUP(2,1/('Data E2059 '!$A$6:$A$457&"*"&'Data E2059 '!$C$6:$C$457=$A8&"*"&TRIM($A9)),'Data E2059 '!$J$6:$J$457) -> 230.7523914 | I9: =LOOKUP(2,1/('Data E2059 '!$A$6:$A$457&"*"&'Data E2059 '!$C$6:$C$457=$A8&"*"&TRIM($A9)),'Data E2059 '!$R$6:$R$457) -> 245.9975638 | J9: =IF(I9="k V","k V",(H9-I9)/I9) -> -0.06197285918 | K9: =LOOKUP(2,1/('Data E2059 '!$A$6:$A$457&"*"&'Data E2059 '!$C$6:$C$457=$A8&"*"&TRIM($A9)),'Data E2059 '!$K$6:$K$457) -> 141.7014173 | L9: =LOOKUP(2,1/('Data E2059 '!$A$6:$A$457&"*"&'Data E2059 '!$C$6:$C$457=$A8&"*"&TRIM($A9)),'Data E2059 '!$S$6:$S$457) -> 152.4490574 | M9: =IF(L9="k V","k V",(K9-L9)/L9) -> -0.07049987871
A10: 20:00-23:00 | B10: =LOOKUP(2,1/('Data E2059 '!$A$6:$A$457&"*"&'Data E2059 '!$C$6:$C$457=$A8&"*"&TRIM($A10)),'Data E2059 '!$D$6:$D$457) -> 10.46003217 | C10: =LOOKUP(2,1/('Data E2059 '!$A$6:$A$457&"*"&'Data E2059 '!$C$6:$C$457=$A8&"*"&TRIM($A10)),'Data E2059 '!$L$6:$L$457) -> 11.3836728 | D10: =IF(C10="k V","k V",(B10-C10)/C10) -> -0.08113731304 | E10: =LOOKUP(2,1/('Data E2059 '!$A$6:$A$457&"*"&'Data E2059 '!$C$6:$C$457=$A8&"*"&TRIM($A10)),'Data E2059 '!$I$6:$I$457) -> 45.29558415 | F10: =LOOKUP(2,1/('Data E2059 '!$A$6:$A$457&"*"&'Data E2059 '!$C$6:$C$457=$A8&"*"&TRIM($A10)),'Data E2059 '!$Q$6:$Q$457) -> 46.86368787 | G10: =IF(F10="k V","k V",(E10-F10)/F10) -> -0.03346095447 | H10: =LOOKUP(2,1/('Data E2059 '!$A$6:$A$457&"*"&'Data E2059 '!$C$6:$C$457=$A8&"*"&TRIM($A10)),'Data E2059 '!$J$6:$J$457) -> 93.61584406 | I10: =LOOKUP(2,1/('Data E2059 '!$A$6:$A$457&"*"&'Data E2059 '!$C$6:$C$457=$A8&"*"&TRIM($A10)),'Data E2059 '!$R$6:$R$457) -> 97.86779597 | J10: =IF(I10="k V","k V",(H10-I10)/I10) -> -0.0434458738 | K10: =LOOKUP(2,1/('Data E2059 '!$A$6:$A$457&"*"&'Data E2059 '!$C$6:$C$457=$A8&"*"&TRIM($A10)),'Data E2059 '!$K$6:$K$457) -> 44.57094555 | L10: =LOOKUP(2,1/('Data E2059 '!$A$6:$A$457&"*"&'Data E2059 '!$C$6:$C$457=$A8&"*"&TRIM($A10)),'Data E2059 '!$S$6:$S$457) -> 47.85633851 | M10: =IF(L10="k V","k V",(K10-L10)/L10) -> -0.06865115596
B12: RW Werbung in Mio | E12: CpG Werbung in Euro | H12: TKP Werbung in Euro | K12: Tarif Werbung in Euro | N12: Marktanteile
B13: =RIGHT(Q2,4) -> 2024 | C13: =B13-1 -> 2023 | D13: Diff in % | E13: =$B$7 -> 2024 | F13: =$C$7 -> 2023 | G13: Diff in % | H13: =$B$7 -> 2024 | I13: =$C$7 -> 2023 | J13: Diff in % | K13: =$B$7 -> 2024 | L13: =$C$7 -> 2023 | M13: Diff in % | N13: =$B$7 -> 2024 | O13: =$C$7 -> 2023 | P13: Diff | Q13: Diff in %
B15: SAT.1
A16: 03:00-03:00 | B16: =LOOKUP(2,1/('Data E2059 '!$A$6:$A$457&"*"&'Data E2059 '!$C$6:$C$457=$B15&"*"&TRIM($A16)),'Data E2059 '!$D$6:$D$457) -> 0.2138713711 | C16: =LOOKUP(2,1/('Data E2059 '!$A$6:$A$457&"*"&'Data E2059 '!$C$6:$C$457=$B15&"*"&TRIM($A16)),'Data E2059 '!$L$6:$L$457) -> 0.2723370468 | D16: =IF(C16="k V","k V",(B16-C16)/C16) -> -0.2146813164 | E16: =(LOOKUP(2,1/('Data E2059 '!$A$6:$A$457&"*"&'Data E2059 '!$C$6:$C$457=$B15&"*"&TRIM($A16)),'Data E2059 '!$I$6:$I$457))/(LOOKUP(2,1/('Data E2059 '!$A$6:$A$457&"*"&'Data E2059 '!$C$6:$C$457=$B15&"*"&TRIM($A16)),'Data E2059 '!$G$6:$G$457)) -> 16746.41731 | F16: =(LOOKUP(2,1/('Data E2059 '!$A$6:$A$457&"*"&'Data E2059 '!$C$6:$C$457=$B15&"*"&TRIM($A16)),'Data E2059 '!$Q$6:$Q$457))/(LOOKUP(2,1/('Data E2059 '!$A$6:$A$457&"*"&'Data E2059 '!$C$6:$C$457=$B15&"*"&TRIM($A16)),'Data E2059 '!$O$6:$O$457)) -> 12530.10685 | G16: =IF(F16="k V","k V",(E16-F16)/F16) -> 0.336494374 | H16: =LOOKUP(2,1/('Data E2059 '!$A$6:$A$457&"*"&'Data E2059 '!$C$6:$C$457=$B15&"*"&TRIM($A16)),'Data E2059 '!$H$6:$H$457) -> 39.64315691 | I16: =LOOKUP(2,1/('Data E2059 '!$A$6:$A$457&"*"&'Data E2059 '!$C$6:$C$457=$B15&"*"&TRIM($A16)),'Data E2059 '!$P$6:$P$457) -> 29.26438036 | J16: =IF(I16="k V","k V",(H16-I16)/I16) -> 0.3546556063 | K16: =LOOKUP(2,1/('Data E2059 '!$A$6:$A$457&"*"&'Data E2059 '!$C$6:$C$457=$B15&"*"&TRIM($A16)),'Data E2059 '!$I$6:$I$457) -> 8478.536323 | L16: =LOOKUP(2,1/('Data E2059 '!$A$6:$A$457&"*"&'Data E2059 '!$C$6:$C$457=$B15&"*"&TRIM($A16)),'Data E2059 '!$Q$6:$Q$457) -> 7969.774922 | M16: =IF(L16="k V","k V",(K16-L16)/L16) -> 0.06383635752 | N16: =LOOKUP(2,1/('Data E2059 '!$A$6:$A$457&"*"&'Data E2059 '!$C$6:$C$457=$B15&"*"&TRIM($A16)),'Data E2059 '!$K$6:$K$457)/100 -> 0.05404315699 | O16: =LOOKUP(2,1/('Data E2059 '!$A$6:$A$457&"*"&'Data E2059 '!$C$6:$C$457=$B15&"*"&TRIM($A16)),'Data E2059 '!$S$6:$S$457)/100 -> 0.06009114084 | P16: =(N16-O16)*100 -> -0.6047983848 | Q16: =P16/O16/100 -> -0.1006468468
A17: 20:00-23:00 | B17: =LOOKUP(2,1/('Data E2059 '!$A$6:$A$457&"*"&'Data E2059 '!$C$6:$C$457=$B15&"*"&TRIM($A17)),'Data E2059 '!$D$6:$D$457) -> 0.4843969441 | C17: =LOOKUP(2,1/('Data E2059 '!$A$6:$A$457&"*"&'Data E2059 '!$C$6:$C$457=$B15&"*"&TRIM($A17)),'Data E2059 '!$L$6:$L$457) -> 0.5005423265 | D17: =IF(C17="k V","k V",(B17-C17)/C17) -> -0.03225577854 | E17: =(LOOKUP(2,1/('Data E2059 '!$A$6:$A$457&"*"&'Data E2059 '!$C$6:$C$457=$B15&"*"&TRIM($A17)),'Data E2059 '!$I$6:$I$457))/(LOOKUP(2,1/('Data E2059 '!$A$6:$A$457&"*"&'Data E2059 '!$C$6:$C$457=$B15&"*"&TRIM($A17)),'Data E2059 '!$G$6:$G$457)) -> 23383.80544 | F17: =(LOOKUP(2,1/('Data E2059 '!$A$6:$A$457&"*"&'Data E2059 '!$C$6:$C$457=$B15&"*"&TRIM($A17)),'Data E2059 '!$Q$6:$Q$457))/(LOOKUP(2,1/('Data E2059 '!$A$6:$A$457&"*"&'Data E2059 '!$C$6:$C$457=$B15&"*"&TRIM($A17)),'Data E2059 '!$O$6:$O$457)) -> 20745.65916 | G17: =IF(F17="k V","k V",(E17-F17)/F17) -> 0.1271661825 | H17: =LOOKUP(2,1/('Data E2059 '!$A$6:$A$457&"*"&'Data E2059 '!$C$6:$C$457=$B15&"*"&TRIM($A17)),'Data E2059 '!$H$6:$H$457) -> 55.35559345 | I17: =LOOKUP(2,1/('Data E2059 '!$A$6:$A$457&"*"&'Data E2059 '!$C$6:$C$457=$B15&"*"&TRIM($A17)),'Data E2059 '!$P$6:$P$457) -> 48.45200985 | J17: =IF(I17="k V","k V",(H17-I17)/I17) -> 0.142482915 | K17: =LOOKUP(2,1/('Data E2059 '!$A$6:$A$457&"*"&'Data E2059 '!$C$6:$C$457=$B15&"*"&TRIM($A17)),'Data E2059 '!$I$6:$I$457) -> 26814.0803 | L17: =LOOKUP(2,1/('Data E2059 '!$A$6:$A$457&"*"&'Data E2059 '!$C$6:$C$457=$B15&"*"&TRIM($A17)),'Data E2059 '!$Q$6:$Q$457) -> 24252.28173 | M17: =IF(L17="k V","k V",(K17-L17)/L17) -> 0.1056312391 | N17: =LOOKUP(2,1/('Data E2059 '!$A$6:$A$457&"*"&'Data E2059 '!$C$6:$C$457=$B15&"*"&TRIM($A17)),'Data E2059 '!$K$6:$K$457)/100 -> 0.05839334181 | O17: =LOOKUP(2,1/('Data E2059 '!$A$6:$A$457&"*"&'Data E2059 '!$C$6:$C$457=$B15&"*"&TRIM($A17)),'Data E2059 '!$S$6:$S$457)/100 -> 0.05580543696 | P17: =(N17-O17)*100 -> 0.2587904844 | Q17: =P17/O17/100 -> 0.04637370452
B18: ProSieben
A19: 03:00-03:00 | B19: =LOOKUP(2,1/('Data E2059 '!$A$6:$A$457&"*"&'Data E2059 '!$C$6:$C$457=$B18&"*"&TRIM($A19)),'Data E2059 '!$D$6:$D$457) -> 0.192236329 | C19: =LOOKUP(2,1/('Data E2059 '!$A$6:$A$457&"*"&'Data E2059 '!$C$6:$C$457=$B18&"*"&TRIM($A19)),'Data E2059 '!$L$6:$L$457) -> 0.2386610853 | D19: =IF(C19="k V","k V",(B19-C19)/C19) -> -0.1945216842 | E19: =(LOOKUP(2,1/('Data E2059 '!$A$6:$A$457&"*"&'Data E2059 '!$C$6:$C$457=$B18&"*"&TRIM($A19)),'Data E2059 '!$I$6:$I$457))/(LOOKUP(2,1/('Data E2059 '!$A$6:$A$457&"*"&'Data E2059 '!$C$6:$C$457=$B18&"*"&TRIM($A19)),'Data E2059 '!$G$6:$G$457)) -> 21059.23939 | F19: =(LOOKUP(2,1/('Data E2059 '!$A$6:$A$457&"*"&'Data E2059 '!$C$6:$C$457=$B18&"*"&TRIM($A19)),'Data E2059 '!$Q$6:$Q$457))/(LOOKUP(2,1/('Data E2059 '!$A$6:$A$457&"*"&'Data E2059 '!$C$6:$C$457=$B18&"*"&TRIM($A19)),'Data E2059 '!$O$6:$O$457)) -> 16939.27306 | G19: =IF(F19="k V","k V",(E19-F19)/F19) -> 0.2432197836 | H19: =LOOKUP(2,1/('Data E2059 '!$A$6:$A$457&"*"&'Data E2059 '!$C$6:$C$457=$B18&"*"&TRIM($A19)),'Data E2059 '!$H$6:$H$457) -> 49.85273663 | I19: =LOOKUP(2,1/('Data E2059 '!$A$6:$A$457&"*"&'Data E2059 '!$C$6:$C$457=$B18&"*"&TRIM($A19)),'Data E2059 '!$P$6:$P$457) -> 39.56209917 | J19: =IF(I19="k V","k V",(H19-I19)/I19) -> 0.2601135347 | K19: =LOOKUP(2,1/('Data E2059 '!$A$6:$A$457&"*"&'Data E2059 '!$C$6:$C$457=$B18&"*"&TRIM($A19)),'Data E2059 '!$I$6:$I$457) -> 9583.507082 | L19: =LOOKUP(2,1/('Data E2059 '!$A$6:$A$457&"*"&'Data E2059 '!$C$6:$C$457=$B18&"*"&TRIM($A19)),'Data E2059 '!$Q$6:$Q$457) -> 9441.933526 | M19: =IF(L19="k V","k V",(K19-L19)/L19) -> 0.01499412761 | N19: =LOOKUP(2,1/('Data E2059 '!$A$6:$A$457&"*"&'Data E2059 '!$C$6:$C$457=$B18&"*"&TRIM($A19)),'Data E2059 '!$K$6:$K$457)/100 -> 0.05177520125 | O19: =LOOKUP(2,1/('Data E2059 '!$A$6:$A$457&"*"&'Data E2059 '!$C$6:$C$457=$B18&"*"&TRIM($A19)),'Data E2059 '!$S$6:$S$457)/100 -> 0.0558806858 | P19: =(N19-O19)*100 -> -0.410548455 | Q19: =P19/O19/100 -> -0.07346875742
A20: 20:00-23:00 | B20: =LOOKUP(2,1/('Data E2059 '!$A$6:$A$457&"*"&'Data E2059 '!$C$6:$C$457=$B18&"*"&TRIM($A20)),'Data E2059 '!$D$6:$D$457) -> 0.55274588 | C20: =LOOKUP(2,1/('Data E2059 '!$A$6:$A$457&"*"&'Data E2059 '!$C$6:$C$457=$B18&"*"&TRIM($A20)),'Data E2059 '!$L$6:$L$457) -> 0.5339353753 | D20: =IF(C20="k V","k V",(B20-C20)/C20) -> 0.03522992779 | E20: =(LOOKUP(2,1/('Data E2059 '!$A$6:$A$457&"*"&'Data E2059 '!$C$6:$C$457=$B18&"*"&TRIM($A20)),'Data E2059 '!$I$6:$I$457))/(LOOKUP(2,1/('Data E2059 '!$A$6:$A$457&"*"&'Data E2059 '!$C$6:$C$457=$B18&"*"&TRIM($A20)),'Data E2059 '!$G$6:$G$457)) -> 24333.15596 | F20: =(LOOKUP(2,1/('Data E2059 '!$A$6:$A$457&"*"&'Data E2059 '!$C$6:$C$457=$B18&"*"&TRIM($A20)),'Data E2059 '!$Q$6:$Q$457))/(LOOKUP(2,1/('Data E2059 '!$A$6:$A$457&"*"&'Data E2059 '!$C$6:$C$457=$B18&"*"&TRIM($A20)),'Data E2059 '!$O$6:$O$457)) -> 23203.98876 | G20: =IF(F20="k V","k V",(E20-F20)/F20) -> 0.04866263315 | H20: =LOOKUP(2,1/('Data E2059 '!$A$6:$A$457&"*"&'Data E2059 '!$C$6:$C$457=$B18&"*"&TRIM($A20)),'Data E2059 '!$H$6:$H$457) -> 57.60295483 | I20: =LOOKUP(2,1/('Data E2059 '!$A$6:$A$457&"*"&'Data E2059 '!$C$6:$C$457=$B18&"*"&TRIM($A20)),'Data E2059 '!$P$6:$P$457) -> 54.1935006 | J20: =IF(I20="k V","k V",(H20-I20)/I20) -> 0.06291260383 | K20: =LOOKUP(2,1/('Data E2059 '!$A$6:$A$457&"*"&'Data E2059 '!$C$6:$C$457=$B18&"*"&TRIM($A20)),'Data E2059 '!$I$6:$I$457) -> 31839.79596 | L20: =LOOKUP(2,1/('Data E2059 '!$A$6:$A$457&"*"&'Data E2059 '!$C$6:$C$457=$B18&"*"&TRIM($A20)),'Data E2059 '!$Q$6:$Q$457) -> 28935.82708 | M20: =IF(L20="k V","k V",(K20-L20)/L20) -> 0.1003589381 | N20: =LOOKUP(2,1/('Data E2059 '!$A$6:$A$457&"*"&'Data E2059 '!$C$6:$C$457=$B18&"*"&TRIM($A20)),'Data E2059 '!$K$6:$K$457)/100 -> 0.07251839217 | O20: =LOOKUP(2,1/('Data E2059 '!$A$6:$A$457&"*"&'Data E2059 '!$C$6:$C$457=$B18&"*"&TRIM($A20)),'Data E2059 '!$S$6:$S$457)/100 -> 0.06377212995 | P20: =(N20-O20)*100 -> 0.8746262225 | Q20: =P20/O20/100 -> 0.1371486609
A21: RTL | B21: RTL
A22: 03:00-03:00 | B22: =LOOKUP(2,1/('Data E2059 '!$A$6:$A$457&"*"&'Data E2059 '!$C$6:$C$457=$B21&"*"&TRIM($A22)),'Data E2059 '!$D$6:$D$457) -> 0.3858996089 | C22: =LOOKUP(2,1/('Data E2059 '!$A$6:$A$457&"*"&'Data E2059 '!$C$6:$C$457=$B21&"*"&TRIM($A22)),'Data E2059 '!$L$6:$L$457) -> 0.392919554 | D22: =IF(C22="k V","k V",(B22-C22)/C22) -> -0.01786611273 | E22: =(LOOKUP(2,1/('Data E2059 '!$A$6:$A$457&"*"&'Data E2059 '!$C$6:$C$457=$B21&"*"&TRIM($A22)),'Data E2059 '!$I$6:$I$457))/(LOOKUP(2,1/('Data E2059 '!$A$6:$A$457&"*"&'Data E2059 '!$C$6:$C$457=$B21&"*"&TRIM($A22)),'Data E2059 '!$G$6:$G$457)) -> 18039.33197 | F22: =(LOOKUP(2,1/('Data E2059 '!$A$6:$A$457&"*"&'Data E2059 '!$C$6:$C$457=$B21&"*"&TRIM($A22)),'Data E2059 '!$Q$6:$Q$457))/(LOOKUP(2,1/('Data E2059 '!$A$6:$A$457&"*"&'Data E2059 '!$C$6:$C$457=$B21&"*"&TRIM($A22)),'Data E2059 '!$O$6:$O$457)) -> 17706.06656 | G22: =IF(F22="k V","k V",(E22-F22)/F22) -> 0.01882210342 | H22: =LOOKUP(2,1/('Data E2059 '!$A$6:$A$457&"*"&'Data E2059 '!$C$6:$C$457=$B21&"*"&TRIM($A22)),'Data E2059 '!$H$6:$H$457) -> 42.70382463 | I22: =LOOKUP(2,1/('Data E2059 '!$A$6:$A$457&"*"&'Data E2059 '!$C$6:$C$457=$B21&"*"&TRIM($A22)),'Data E2059 '!$P$6:$P$457) -> 41.35296471 | J22: =IF(I22="k V","k V",(H22-I22)/I22) -> 0.03266657985 | K22: =LOOKUP(2,1/('Data E2059 '!$A$6:$A$457&"*"&'Data E2059 '!$C$6:$C$457=$B21&"*"&TRIM($A22)),'Data E2059 '!$I$6:$I$457) -> 16479.38923 | L22: =LOOKUP(2,1/('Data E2059 '!$A$6:$A$457&"*"&'Data E2059 '!$C$6:$C$457=$B21&"*"&TRIM($A22)),'Data E2059 '!$Q$6:$Q$457) -> 16248.38845 | M22: =IF(L22="k V","k V",(K22-L22)/L22) -> 0.01421684232 | N22: =LOOKUP(2,1/('Data E2059 '!$A$6:$A$457&"*"&'Data E2059 '!$C$6:$C$457=$B21&"*"&TRIM($A22)),'Data E2059 '!$K$6:$K$457)/100 -> 0.1065187768 | O22: =LOOKUP(2,1/('Data E2059 '!$A$6:$A$457&"*"&'Data E2059 '!$C$6:$C$457=$B21&"*"&TRIM($A22)),'Data E2059 '!$S$6:$S$457)/100 -> 0.09496528169 | P22: =(N22-O22)*100 -> 1.155349512 | Q22: =P22/O22/100 -> 0.1216601995
A23: 20:00-23:00 | B23: =LOOKUP(2,1/('Data E2059 '!$A$6:$A$457&"*"&'Data E2059 '!$C$6:$C$457=$B21&"*"&TRIM($A23)),'Data E2059 '!$D$6:$D$457) -> 0.8902817005 | C23: =LOOKUP(2,1/('Data E2059 '!$A$6:$A$457&"*"&'Data E2059 '!$C$6:$C$457=$B21&"*"&TRIM($A23)),'Data E2059 '!$L$6:$L$457) -> 0.9934855636 | D23: =IF(C23="k V","k V",(B23-C23)/C23) -> -0.1038805865 | E23: =(LOOKUP(2,1/('Data E2059 '!$A$6:$A$457&"*"&'Data E2059 '!$C$6:$C$457=$B21&"*"&TRIM($A23)),'Data E2059 '!$I$6:$I$457))/(LOOKUP(2,1/('Data E2059 '!$A$6:$A$457&"*"&'Data E2059 '!$C$6:$C$457=$B21&"*"&TRIM($A23)),'Data E2059 '!$G$6:$G$457)) -> 26866.41331 | F23: =(LOOKUP(2,1/('Data E2059 '!$A$6:$A$457&"*"&'Data E2059 '!$C$6:$C$457=$B21&"*"&TRIM($A23)),'Data E2059 '!$Q$6:$Q$457))/(LOOKUP(2,1/('Data E2059 '!$A$6:$A$457&"*"&'Data E2059 '!$C$6:$C$457=$B21&"*"&TRIM($A23)),'Data E2059 '!$O$6:$O$457)) -> 25137.86849 | G23: =IF(F23="k V","k V",(E23-F23)/F23) -> 0.06876258489 | H23: =LOOKUP(2,1/('Data E2059 '!$A$6:$A$457&"*"&'Data E2059 '!$C$6:$C$457=$B21&"*"&TRIM($A23)),'Data E2059 '!$H$6:$H$457) -> 63.59983863 | I23: =LOOKUP(2,1/('Data E2059 '!$A$6:$A$457&"*"&'Data E2059 '!$C$6:$C$457=$B21&"*"&TRIM($A23)),'Data E2059 '!$P$6:$P$457) -> 58.71012544 | J23: =IF(I23="k V","k V",(H23-I23)/I23) -> 0.08328568796 | K23: =LOOKUP(2,1/('Data E2059 '!$A$6:$A$457&"*"&'Data E2059 '!$C$6:$C$457=$B21&"*"&TRIM($A23)),'Data E2059 '!$I$6:$I$457) -> 56621.77249 | L23: =LOOKUP(2,1/('Data E2059 '!$A$6:$A$457&"*"&'Data E2059 '!$C$6:$C$457=$B21&"*"&TRIM($A23)),'Data E2059 '!$Q$6:$Q$457) -> 58327.66206 | M23: =IF(L23="k V","k V",(K23-L23)/L23) -> -0.02924666468 | N23: =LOOKUP(2,1/('Data E2059 '!$A$6:$A$457&"*"&'Data E2059 '!$C$6:$C$457=$B21&"*"&TRIM($A23)),'Data E2059 '!$K$6:$K$457)/100 -> 0.1063696782 | O23: =LOOKUP(2,1/('Data E2059 '!$A$6:$A$457&"*"&'Data E2059 '!$C$6:$C$457=$B21&"*"&TRIM($A23)),'Data E2059 '!$S$6:$S$457)/100 -> 0.1069451368 | P23: =(N23-O23)*100 -> -0.05754585365 | Q23: =P23/O23/100 -> -0.005380876157
B25: Kabel Eins
A26: 03:00-03:00 | B26: =LOOKUP(2,1/('Data E2059 '!$A$6:$A$457&"*"&'Data E2059 '!$C$6:$C$457=$B25&"*"&TRIM($A26)),'Data E2059 '!$D$6:$D$457) -> 0.163480466 | C26: =LOOKUP(2,1/('Data E2059 '!$A$6:$A$457&"*"&'Data E2059 '!$C$6:$C$457=$B25&"*"&TRIM($A26)),'Data E2059 '!$L$6:$L$457) -> 0.1891992881 | D26: =IF(C26="k V","k V",(B26-C26)/C26) -> -0.1359350892 | E26: =(LOOKUP(2,1/('Data E2059 '!$A$6:$A$457&"*"&'Data E2059 '!$C$6:$C$457=$B25&"*"&TRIM($A26)),'Data E2059 '!$I$6:$I$457))/(LOOKUP(2,1/('Data E2059 '!$A$6:$A$457&"*"&'Data E2059 '!$C$6:$C$457=$B25&"*"&TRIM($A26)),'Data E2059 '!$G$6:$G$457)) -> 12110.66103 | F26: =(LOOKUP(2,1/('Data E2059 '!$A$6:$A$457&"*"&'Data E2059 '!$C$6:$C$457=$B25&"*"&TRIM($A26)),'Data E2059 '!$Q$6:$Q$457))/(LOOKUP(2,1/('Data E2059 '!$A$6:$A$457&"*"&'Data E2059 '!$C$6:$C$457=$B25&"*"&TRIM($A26)),'Data E2059 '!$O$6:$O$457)) -> 9741.949004 | G26: =IF(F26="k V","k V",(E26-F26)/F26) -> 0.2431455987 | H26: =LOOKUP(2,1/('Data E2059 '!$A$6:$A$457&"*"&'Data E2059 '!$C$6:$C$457=$B25&"*"&TRIM($A26)),'Data E2059 '!$H$6:$H$457) -> 28.66910734 | I26: =LOOKUP(2,1/('Data E2059 '!$A$6:$A$457&"*"&'Data E2059 '!$C$6:$C$457=$B25&"*"&TRIM($A26)),'Data E2059 '!$P$6:$P$457) -> 22.75256744 | J26: =IF(I26="k V","k V",(H26-I26)/I26) -> 0.2600383417 | K26: =LOOKUP(2,1/('Data E2059 '!$A$6:$A$457&"*"&'Data E2059 '!$C$6:$C$457=$B25&"*"&TRIM($A26)),'Data E2059 '!$I$6:$I$457) -> 4686.839028 | L26: =LOOKUP(2,1/('Data E2059 '!$A$6:$A$457&"*"&'Data E2059 '!$C$6:$C$457=$B25&"*"&TRIM($A26)),'Data E2059 '!$Q$6:$Q$457) -> 4304.769561 | M26: =IF(L26="k V","k V",(K26-L26)/L26) -> 0.08875491737 | N26: =LOOKUP(2,1/('Data E2059 '!$A$6:$A$457&"*"&'Data E2059 '!$C$6:$C$457=$B25&"*"&TRIM($A26)),'Data E2059 '!$K$6:$K$457)/100 -> 0.04124351645 | O26: =LOOKUP(2,1/('Data E2059 '!$A$6:$A$457&"*"&'Data E2059 '!$C$6:$C$457=$B25&"*"&TRIM($A26)),'Data E2059 '!$S$6:$S$457)/100 -> 0.04264504323 | P26: =(N26-O26)*100 -> -0.1401526781 | Q26: =P26/O26/100 -> -0.03286493985
A27: 20:00-23:00 | B27: =LOOKUP(2,1/('Data E2059 '!$A$6:$A$457&"*"&'Data E2059 '!$C$6:$C$457=$B25&"*"&TRIM($A27)),'Data E2059 '!$D$6:$D$457) -> 0.3026729068 | C27: =LOOKUP(2,1/('Data E2059 '!$A$6:$A$457&"*"&'Data E2059 '!$C$6:$C$457=$B25&"*"&TRIM($A27)),'Data E2059 '!$L$6:$L$457) -> 0.3586776117 | D27: =IF(C27="k V","k V",(B27-C27)/C27) -> -0.1561421817 | E27: =(LOOKUP(2,1/('Data E2059 '!$A$6:$A$457&"*"&'Data E2059 '!$C$6:$C$457=$B25&"*"&TRIM($A27)),'Data E2059 '!$I$6:$I$457))/(LOOKUP(2,1/('Data E2059 '!$A$6:$A$457&"*"&'Data E2059 '!$C$6:$C$457=$B25&"*"&TRIM($A27)),'Data E2059 '!$G$6:$G$457)) -> 19405.37261 | F27: =(LOOKUP(2,1/('Data E2059 '!$A$6:$A$457&"*"&'Data E2059 '!$C$6:$C$457=$B25&"*"&TRIM($A27)),'Data E2059 '!$Q$6:$Q$457))/(LOOKUP(2,1/('Data E2059 '!$A$6:$A$457&"*"&'Data E2059 '!$C$6:$C$457=$B25&"*"&TRIM($A27)),'Data E2059 '!$O$6:$O$457)) -> 16102.69435 | G27: =IF(F27="k V","k V",(E27-F27)/F27) -> 0.2051009718 | H27: =LOOKUP(2,1/('Data E2059 '!$A$6:$A$457&"*"&'Data E2059 '!$C$6:$C$457=$B25&"*"&TRIM($A27)),'Data E2059 '!$H$6:$H$457) -> 45.9376007 | I27: =LOOKUP(2,1/('Data E2059 '!$A$6:$A$457&"*"&'Data E2059 '!$C$6:$C$457=$B25&"*"&TRIM($A27)),'Data E2059 '!$P$6:$P$457) -> 37.60824852 | J27: =IF(I27="k V","k V",(H27-I27)/I27) -> 0.2214767375 | K27: =LOOKUP(2,1/('Data E2059 '!$A$6:$A$457&"*"&'Data E2059 '!$C$6:$C$457=$B25&"*"&TRIM($A27)),'Data E2059 '!$I$6:$I$457) -> 13904.06714 | L27: =LOOKUP(2,1/('Data E2059 '!$A$6:$A$457&"*"&'Data E2059 '!$C$6:$C$457=$B25&"*"&TRIM($A27)),'Data E2059 '!$Q$6:$Q$457) -> 13489.23676 | M27: =IF(L27="k V","k V",(K27-L27)/L27) -> 0.03075269479 | N27: =LOOKUP(2,1/('Data E2059 '!$A$6:$A$457&"*"&'Data E2059 '!$C$6:$C$457=$B25&"*"&TRIM($A27)),'Data E2059 '!$K$6:$K$457)/100 -> 0.03827173517 | O27: =LOOKUP(2,1/('Data E2059 '!$A$6:$A$457&"*"&'Data E2059 '!$C$6:$C$457=$B25&"*"&TRIM($A27)),'Data E2059 '!$S$6:$S$457)/100 -> 0.03977658878 | P27: =(N27-O27)*100 -> -0.1504853615 | Q27: =P27/O27/100 -> -0.03783264631
A28: RTL ZWEI | B28: RTL ZWEI
A29: 03:00-03:00 | B29: =LOOKUP(2,1/('Data E2059 '!$A$6:$A$457&"*"&'Data E2059 '!$C$6:$C$457=$B28&"*"&TRIM($A29)),'Data E2059 '!$D$6:$D$457) -> 0.1377834347 | C29: =LOOKUP(2,1/('Data E2059 '!$A$6:$A$457&"*"&'Data E2059 '!$C$6:$C$457=$B28&"*"&TRIM($A29)),'Data E2059 '!$L$6:$L$457) -> 0.1581792786 | D29: =IF(C29="k V","k V",(B29-C29)/C29) -> -0.1289413131 | E29: =(LOOKUP(2,1/('Data E2059 '!$A$6:$A$457&"*"&'Data E2059 '!$C$6:$C$457=$B28&"*"&TRIM($A29)),'Data E2059 '!$I$6:$I$457))/(LOOKUP(2,1/('Data E2059 '!$A$6:$A$457&"*"&'Data E2059 '!$C$6:$C$457=$B28&"*"&TRIM($A29)),'Data E2059 '!$G$6:$G$457)) -> 14501.81862 | F29: =(LOOKUP(2,1/('Data E2059 '!$A$6:$A$457&"*"&'Data E2059 '!$C$6:$C$457=$B28&"*"&TRIM($A29)),'Data E2059 '!$Q$6:$Q$457))/(LOOKUP(2,1/('Data E2059 '!$A$6:$A$457&"*"&'Data E2059 '!$C$6:$C$457=$B28&"*"&TRIM($A29)),'Data E2059 '!$O$6:$O$457)) -> 13057.48837 | G29: =IF(F29="k V","k V",(E29-F29)/F29) -> 0.1106131754 | H29: =LOOKUP(2,1/('Data E2059 '!$A$6:$A$457&"*"&'Data E2059 '!$C$6:$C$457=$B28&"*"&TRIM($A29)),'Data E2059 '!$H$6:$H$457) -> 34.32960379 | I29: =LOOKUP(2,1/('Data E2059 '!$A$6:$A$457&"*"&'Data E2059 '!$C$6:$C$457=$B28&"*"&TRIM($A29)),'Data E2059 '!$P$6:$P$457) -> 30.4960932 | J29: =IF(I29="k V","k V",(H29-I29)/I29) -> 0.1257049739 | K29: =LOOKUP(2,1/('Data E2059 '!$A$6:$A$457&"*"&'Data E2059 '!$C$6:$C$457=$B28&"*"&TRIM($A29)),'Data E2059 '!$I$6:$I$457) -> 4730.050724 | L29: =LOOKUP(2,1/('Data E2059 '!$A$6:$A$457&"*"&'Data E2059 '!$C$6:$C$457=$B28&"*"&TRIM($A29)),'Data E2059 '!$Q$6:$Q$457) -> 4823.850023 | M29: =IF(L29="k V","k V",(K29-L29)/L29) -> -0.01944490361 | N29: =LOOKUP(2,1/('Data E2059 '!$A$6:$A$457&"*"&'Data E2059 '!$C$6:$C$457=$B28&"*"&TRIM($A29)),'Data E2059 '!$K$6:$K$457)/100 -> 0.03420800049 | O29: =LOOKUP(2,1/('Data E2059 '!$A$6:$A$457&"*"&'Data E2059 '!$C$6:$C$457=$B28&"*"&TRIM($A29)),'Data E2059 '!$S$6:$S$457)/100 -> 0.03414525965 | P29: =(N29-O29)*100 -> 0.006274084387 | Q29: =P29/O29/100 -> 0.001837468642
A30: 20:00-23:00 | B30: =LOOKUP(2,1/('Data E2059 '!$A$6:$A$457&"*"&'Data E2059 '!$C$6:$C$457=$B28&"*"&TRIM($A30)),'Data E2059 '!$D$6:$D$457) -> 0.2690515223 | C30: =LOOKUP(2,1/('Data E2059 '!$A$6:$A$457&"*"&'Data E2059 '!$C$6:$C$457=$B28&"*"&TRIM($A30)),'Data E2059 '!$L$6:$L$457) -> 0.3111912965 | D30: =IF(C30="k V","k V",(B30-C30)/C30) -> -0.1354143728 | E30: =(LOOKUP(2,1/('Data E2059 '!$A$6:$A$457&"*"&'Data E2059 '!$C$6:$C$457=$B28&"*"&TRIM($A30)),'Data E2059 '!$I$6:$I$457))/(LOOKUP(2,1/('Data E2059 '!$A$6:$A$457&"*"&'Data E2059 '!$C$6:$C$457=$B28&"*"&TRIM($A30)),'Data E2059 '!$G$6:$G$457)) -> 22782.99815 | F30: =(LOOKUP(2,1/('Data E2059 '!$A$6:$A$457&"*"&'Data E2059 '!$C$6:$C$457=$B28&"*"&TRIM($A30)),'Data E2059 '!$Q$6:$Q$457))/(LOOKUP(2,1/('Data E2059 '!$A$6:$A$457&"*"&'Data E2059 '!$C$6:$C$457=$B28&"*"&TRIM($A30)),'Data E2059 '!$O$6:$O$457)) -> 19722.09388 | G30: =IF(F30="k V","k V",(E30-F30)/F30) -> 0.1552017896 | H30: =LOOKUP(2,1/('Data E2059 '!$A$6:$A$457&"*"&'Data E2059 '!$C$6:$C$457=$B28&"*"&TRIM($A30)),'Data E2059 '!$H$6:$H$457) -> 53.9333252 | I30: =LOOKUP(2,1/('Data E2059 '!$A$6:$A$457&"*"&'Data E2059 '!$C$6:$C$457=$B28&"*"&TRIM($A30)),'Data E2059 '!$P$6:$P$457) -> 46.06144735 | J30: =IF(I30="k V","k V",(H30-I30)/I30) -> 0.1708994898 | K30: =LOOKUP(2,1/('Data E2059 '!$A$6:$A$457&"*"&'Data E2059 '!$C$6:$C$457=$B28&"*"&TRIM($A30)),'Data E2059 '!$I$6:$I$457) -> 14510.84325 | L30: =LOOKUP(2,1/('Data E2059 '!$A$6:$A$457&"*"&'Data E2059 '!$C$6:$C$457=$B28&"*"&TRIM($A30)),'Data E2059 '!$Q$6:$Q$457) -> 14333.92152 | M30: =IF(L30="k V","k V",(K30-L30)/L30) -> 0.01234286977 | N30: =LOOKUP(2,1/('Data E2059 '!$A$6:$A$457&"*"&'Data E2059 '!$C$6:$C$457=$B28&"*"&TRIM($A30)),'Data E2059 '!$K$6:$K$457)/100 -> 0.03308652146 | O30: =LOOKUP(2,1/('Data E2059 '!$A$6:$A$457&"*"&'Data E2059 '!$C$6:$C$457=$B28&"*"&TRIM($A30)),'Data E2059 '!$S$6:$S$457)/100 -> 0.03398470447 | P30: =(N30-O30)*100 -> -0.08981830061 | Q30: =P30/O30/100 -> -0.02642903683
A31: VOX | B31: VOX
A32: 03:00-03:00 | B32: =LOOKUP(2,1/('Data E2059 '!$A$6:$A$457&"*"&'Data E2059 '!$C$6:$C$457=$B31&"*"&TRIM($A32)),'Data E2059 '!$D$6:$D$457) -> 0.2605500689 | C32: =LOOKUP(2,1/('Data E2059 '!$A$6:$A$457&"*"&'Data E2059 '!$C$6:$C$457=$B31&"*"&TRIM($A32)),'Data E2059 '!$L$6:$L$457) -> 0.2781643301 | D32: =IF(C32="k V","k V",(B32-C32)/C32) -> -0.06332322045 | E32: =(LOOKUP(2,1/('Data E2059 '!$A$6:$A$457&"*"&'Data E2059 '!$C$6:$C$457=$B31&"*"&TRIM($A32)),'Data E2059 '!$I$6:$I$457))/(LOOKUP(2,1/('Data E2059 '!$A$6:$A$457&"*"&'Data E2059 '!$C$6:$C$457=$B31&"*"&TRIM($A32)),'Data E2059 '!$G$6:$G$457)) -> 15134.68536 | F32: =(LOOKUP(2,1/('Data E2059 '!$A$6:$A$457&"*"&'Data E2059 '!$C$6:$C$457=$B31&"*"&TRIM($A32)),'Data E2059 '!$Q$6:$Q$457))/(LOOKUP(2,1/('Data E2059 '!$A$6:$A$457&"*"&'Data E2059 '!$C$6:$C$457=$B31&"*"&TRIM($A32)),'Data E2059 '!$O$6:$O$457)) -> 14430.04059 | G32: =IF(F32="k V","k V",(E32-F32)/F32) -> 0.0488317945 | H32: =LOOKUP(2,1/('Data E2059 '!$A$6:$A$457&"*"&'Data E2059 '!$C$6:$C$457=$B31&"*"&TRIM($A32)),'Data E2059 '!$H$6:$H$457) -> 35.82776516 | I32: =LOOKUP(2,1/('Data E2059 '!$A$6:$A$457&"*"&'Data E2059 '!$C$6:$C$457=$B31&"*"&TRIM($A32)),'Data E2059 '!$P$6:$P$457) -> 33.70172349 | J32: =IF(I32="k V","k V",(H32-I32)/I32) -> 0.06308406386 | K32: =LOOKUP(2,1/('Data E2059 '!$A$6:$A$457&"*"&'Data E2059 '!$C$6:$C$457=$B31&"*"&TRIM($A32)),'Data E2059 '!$I$6:$I$457) -> 9334.926682 | L32: =LOOKUP(2,1/('Data E2059 '!$A$6:$A$457&"*"&'Data E2059 '!$C$6:$C$457=$B31&"*"&TRIM($A32)),'Data E2059 '!$Q$6:$Q$457) -> 9374.617337 | M32: =IF(L32="k V","k V",(K32-L32)/L32) -> -0.004233842664 | N32: =LOOKUP(2,1/('Data E2059 '!$A$6:$A$457&"*"&'Data E2059 '!$C$6:$C$457=$B31&"*"&TRIM($A32)),'Data E2059 '!$K$6:$K$457)/100 -> 0.06744576399 | O32: =LOOKUP(2,1/('Data E2059 '!$A$6:$A$457&"*"&'Data E2059 '!$C$6:$C$457=$B31&"*"&TRIM($A32)),'Data E2059 '!$S$6:$S$457)/100 -> 0.06771299567 | P32: =(N32-O32)*100 -> -0.0267231673 | Q32: =P32/O32/100 -> -0.003946534492
A33: 20:00-23:00 | B33: =LOOKUP(2,1/('Data E2059 '!$A$6:$A$457&"*"&'Data E2059 '!$C$6:$C$457=$B31&"*"&TRIM($A33)),'Data E2059 '!$D$6:$D$457) -> 0.4864686729 | C33: =LOOKUP(2,1/('Data E2059 '!$A$6:$A$457&"*"&'Data E2059 '!$C$6:$C$457=$B31&"*"&TRIM($A33)),'Data E2059 '!$L$6:$L$457) -> 0.5194422523 | D33: =IF(C33="k V","k V",(B33-C33)/C33) -> -0.06347881655 | E33: =(LOOKUP(2,1/('Data E2059 '!$A$6:$A$457&"*"&'Data E2059 '!$C$6:$C$457=$B31&"*"&TRIM($A33)),'Data E2059 '!$I$6:$I$457))/(LOOKUP(2,1/('Data E2059 '!$A$6:$A$457&"*"&'Data E2059 '!$C$6:$C$457=$B31&"*"&TRIM($A33)),'Data E2059 '!$G$6:$G$457)) -> 22703.2579 | F33: =(LOOKUP(2,1/('Data E2059 '!$A$6:$A$457&"*"&'Data E2059 '!$C$6:$C$457=$B31&"*"&TRIM($A33)),'Data E2059 '!$Q$6:$Q$457))/(LOOKUP(2,1/('Data E2059 '!$A$6:$A$457&"*"&'Data E2059 '!$C$6:$C$457=$B31&"*"&TRIM($A33)),'Data E2059 '!$O$6:$O$457)) -> 21244.53674 | G33: =IF(F33="k V","k V",(E33-F33)/F33) -> 0.06866335487 | H33: =LOOKUP(2,1/('Data E2059 '!$A$6:$A$457&"*"&'Data E2059 '!$C$6:$C$457=$B31&"*"&TRIM($A33)),'Data E2059 '!$H$6:$H$457) -> 53.74455914 | I33: =LOOKUP(2,1/('Data E2059 '!$A$6:$A$457&"*"&'Data E2059 '!$C$6:$C$457=$B31&"*"&TRIM($A33)),'Data E2059 '!$P$6:$P$457) -> 49.617151 | J33: =IF(I33="k V","k V",(H33-I33)/I33) -> 0.08318510953 | K33: =LOOKUP(2,1/('Data E2059 '!$A$6:$A$457&"*"&'Data E2059 '!$C$6:$C$457=$B31&"*"&TRIM($A33)),'Data E2059 '!$I$6:$I$457) -> 26145.04436 | L33: =LOOKUP(2,1/('Data E2059 '!$A$6:$A$457&"*"&'Data E2059 '!$C$6:$C$457=$B31&"*"&TRIM($A33)),'Data E2059 '!$Q$6:$Q$457) -> 25773.24467 | M33: =IF(L33="k V","k V",(K33-L33)/L33) -> 0.01442580067 | N33: =LOOKUP(2,1/('Data E2059 '!$A$6:$A$457&"*"&'Data E2059 '!$C$6:$C$457=$B31&"*"&TRIM($A33)),'Data E2059 '!$K$6:$K$457)/100 -> 0.05844896065 | O33: =LOOKUP(2,1/('Data E2059 '!$A$6:$A$457&"*"&'Data E2059 '!$C$6:$C$457=$B31&"*"&TRIM($A33)),'Data E2059 '!$S$6:$S$457)/100 -> 0.06021946632 | P33: =(N33-O33)*100 -> -0.1770505672 | Q33: =P33/O33/100 -> -0.02940088612
B34: sixx
A35: 03:00-03:00 | B35: =LOOKUP(2,1/('Data E2059 '!$A$6:$A$457&"*"&'Data E2059 '!$C$6:$C$457=$B34&"*"&TRIM($A35)),'Data E2059 '!$D$6:$D$457) -> 0.04893132117 | C35: =LOOKUP(2,1/('Data E2059 '!$A$6:$A$457&"*"&'Data E2059 '!$C$6:$C$457=$B34&"*"&TRIM($A35)),'Data E2059 '!$L$6:$L$457) -> 0.05769690511 | D35: =IF(C35="k V","k V",(B35-C35)/C35) -> -0.1519246817 | E35: =(LOOKUP(2,1/('Data E2059 '!$A$6:$A$457&"*"&'Data E2059 '!$C$6:$C$457=$B34&"*"&TRIM($A35)),'Data E2059 '!$I$6:$I$457))/(LOOKUP(2,1/('Data E2059 '!$A$6:$A$457&"*"&'Data E2059 '!$C$6:$C$457=$B34&"*"&TRIM($A35)),'Data E2059 '!$G$6:$G$457)) -> 12116.33412 | F35: =(LOOKUP(2,1/('Data E2059 '!$A$6:$A$457&"*"&'Data E2059 '!$C$6:$C$457=$B34&"*"&TRIM($A35)),'Data E2059 '!$Q$6:$Q$457))/(LOOKUP(2,1/('Data E2059 '!$A$6:$A$457&"*"&'Data E2059 '!$C$6:$C$457=$B34&"*"&TRIM($A35)),'Data E2059 '!$O$6:$O$457)) -> 9545.688931 | G35: =IF(F35="k V","k V",(E35-F35)/F35) -> 0.2692990739 | H35: =LOOKUP(2,1/('Data E2059 '!$A$6:$A$457&"*"&'Data E2059 '!$C$6:$C$457=$B34&"*"&TRIM($A35)),'Data E2059 '!$H$6:$H$457) -> 28.68253704 | I35: =LOOKUP(2,1/('Data E2059 '!$A$6:$A$457&"*"&'Data E2059 '!$C$6:$C$457=$B34&"*"&TRIM($A35)),'Data E2059 '!$P$6:$P$457) -> 22.29419709 | J35: =IF(I35="k V","k V",(H35-I35)/I35) -> 0.2865472088 | K35: =LOOKUP(2,1/('Data E2059 '!$A$6:$A$457&"*"&'Data E2059 '!$C$6:$C$457=$B34&"*"&TRIM($A35)),'Data E2059 '!$I$6:$I$457) -> 1403.474432 | L35: =LOOKUP(2,1/('Data E2059 '!$A$6:$A$457&"*"&'Data E2059 '!$C$6:$C$457=$B34&"*"&TRIM($A35)),'Data E2059 '!$Q$6:$Q$457) -> 1286.306174 | M35: =IF(L35="k V","k V",(K35-L35)/L35) -> 0.09108893359 | N35: =LOOKUP(2,1/('Data E2059 '!$A$6:$A$457&"*"&'Data E2059 '!$C$6:$C$457=$B34&"*"&TRIM($A35)),'Data E2059 '!$K$6:$K$457)/100 -> 0.01165813513 | O35: =LOOKUP(2,1/('Data E2059 '!$A$6:$A$457&"*"&'Data E2059 '!$C$6:$C$457=$B34&"*"&TRIM($A35)),'Data E2059 '!$S$6:$S$457)/100 -> 0.01268610872 | P35: =(N35-O35)*100 -> -0.1027973587 | Q35: =P35/O35/100 -> -0.08103143448
A36: 20:00-23:00 | B36: =LOOKUP(2,1/('Data E2059 '!$A$6:$A$457&"*"&'Data E2059 '!$C$6:$C$457=$B34&"*"&TRIM($A36)),'Data E2059 '!$D$6:$D$457) -> 0.08903659291 | C36: =LOOKUP(2,1/('Data E2059 '!$A$6:$A$457&"*"&'Data E2059 '!$C$6:$C$457=$B34&"*"&TRIM($A36)),'Data E2059 '!$L$6:$L$457) -> 0.09917869686 | D36: =IF(C36="k V","k V",(B36-C36)/C36) -> -0.1022609117 | E36: =(LOOKUP(2,1/('Data E2059 '!$A$6:$A$457&"*"&'Data E2059 '!$C$6:$C$457=$B34&"*"&TRIM($A36)),'Data E2059 '!$I$6:$I$457))/(LOOKUP(2,1/('Data E2059 '!$A$6:$A$457&"*"&'Data E2059 '!$C$6:$C$457=$B34&"*"&TRIM($A36)),'Data E2059 '!$G$6:$G$457)) -> 17173.54072 | F36: =(LOOKUP(2,1/('Data E2059 '!$A$6:$A$457&"*"&'Data E2059 '!$C$6:$C$457=$B34&"*"&TRIM($A36)),'Data E2059 '!$Q$6:$Q$457))/(LOOKUP(2,1/('Data E2059 '!$A$6:$A$457&"*"&'Data E2059 '!$C$6:$C$457=$B34&"*"&TRIM($A36)),'Data E2059 '!$O$6:$O$457)) -> 14895.55758 | G36: =IF(F36="k V","k V",(E36-F36)/F36) -> 0.1529303709 | H36: =LOOKUP(2,1/('Data E2059 '!$A$6:$A$457&"*"&'Data E2059 '!$C$6:$C$457=$B34&"*"&TRIM($A36)),'Data E2059 '!$H$6:$H$457) -> 40.65426993 | I36: =LOOKUP(2,1/('Data E2059 '!$A$6:$A$457&"*"&'Data E2059 '!$C$6:$C$457=$B34&"*"&TRIM($A36)),'Data E2059 '!$P$6:$P$457) -> 34.78895015 | J36: =IF(I36="k V","k V",(H36-I36)/I36) -> 0.1685972055 | K36: =LOOKUP(2,1/('Data E2059 '!$A$6:$A$457&"*"&'Data E2059 '!$C$6:$C$457=$B34&"*"&TRIM($A36)),'Data E2059 '!$I$6:$I$457) -> 3619.717682 | L36: =LOOKUP(2,1/('Data E2059 '!$A$6:$A$457&"*"&'Data E2059 '!$C$6:$C$457=$B34&"*"&TRIM($A36)),'Data E2059 '!$Q$6:$Q$457) -> 3450.322741 | M36: =IF(L36="k V","k V",(K36-L36)/L36) -> 0.04909538992 | N36: =LOOKUP(2,1/('Data E2059 '!$A$6:$A$457&"*"&'Data E2059 '!$C$6:$C$457=$B34&"*"&TRIM($A36)),'Data E2059 '!$K$6:$K$457)/100 -> 0.01060977142 | O36: =LOOKUP(2,1/('Data E2059 '!$A$6:$A$457&"*"&'Data E2059 '!$C$6:$C$457=$B34&"*"&TRIM($A36)),'Data E2059 '!$S$6:$S$457)/100 -> 0.01123599941 | P36: =(N36-O36)*100 -> -0.06262279935 | Q36: =P36/O36/100 -> -0.0557340714
B37: S1 GOLD
A38: 03:00-03:00 | B38: =LOOKUP(2,1/('Data E2059 '!$A$6:$A$457&"*"&'Data E2059 '!$C$6:$C$457=$B37&"*"&TRIM($A38)),'Data E2059 '!$D$6:$D$457) -> 0.09155626722 | C38: =LOOKUP(2,1/('Data E2059 '!$A$6:$A$457&"*"&'Data E2059 '!$C$6:$C$457=$B37&"*"&TRIM($A38)),'Data E2059 '!$L$6:$L$457) -> 0.101885438 | D38: =IF(C38="k V","k V",(B38-C38)/C38) -> -0.1013802463 | E38: =(LOOKUP(2,1/('Data E2059 '!$A$6:$A$457&"*"&'Data E2059 '!$C$6:$C$457=$B37&"*"&TRIM($A38)),'Data E2059 '!$I$6:$I$457))/(LOOKUP(2,1/('Data E2059 '!$A$6:$A$457&"*"&'Data E2059 '!$C$6:$C$457=$B37&"*"&TRIM($A38)),'Data E2059 '!$G$6:$G$457)) -> 7659.862559 | F38: =(LOOKUP(2,1/('Data E2059 '!$A$6:$A$457&"*"&'Data E2059 '!$C$6:$C$457=$B37&"*"&TRIM($A38)),'Data E2059 '!$Q$6:$Q$457))/(LOOKUP(2,1/('Data E2059 '!$A$6:$A$457&"*"&'Data E2059 '!$C$6:$C$457=$B37&"*"&TRIM($A38)),'Data E2059 '!$O$6:$O$457)) -> 6548.704168 | G38: =IF(F38="k V","k V",(E38-F38)/F38) -> 0.1696760706 | H38: =LOOKUP(2,1/('Data E2059 '!$A$6:$A$457&"*"&'Data E2059 '!$C$6:$C$457=$B37&"*"&TRIM($A38)),'Data E2059 '!$H$6:$H$457) -> 18.13290137 | I38: =LOOKUP(2,1/('Data E2059 '!$A$6:$A$457&"*"&'Data E2059 '!$C$6:$C$457=$B37&"*"&TRIM($A38)),'Data E2059 '!$P$6:$P$457) -> 15.29466364 | J38: =IF(I38="k V","k V",(H38-I38)/I38) -> 0.1855704576 | K38: =LOOKUP(2,1/('Data E2059 '!$A$6:$A$457&"*"&'Data E2059 '!$C$6:$C$457=$B37&"*"&TRIM($A38)),'Data E2059 '!$I$6:$I$457) -> 1660.180763 | L38: =LOOKUP(2,1/('Data E2059 '!$A$6:$A$457&"*"&'Data E2059 '!$C$6:$C$457=$B37&"*"&TRIM($A38)),'Data E2059 '!$Q$6:$Q$457) -> 1558.303504 | M38: =IF(L38="k V","k V",(K38-L38)/L38) -> 0.06537703262 | N38: =LOOKUP(2,1/('Data E2059 '!$A$6:$A$457&"*"&'Data E2059 '!$C$6:$C$457=$B37&"*"&TRIM($A38)),'Data E2059 '!$K$6:$K$457)/100 -> 0.02136131574 | O38: =LOOKUP(2,1/('Data E2059 '!$A$6:$A$457&"*"&'Data E2059 '!$C$6:$C$457=$B37&"*"&TRIM($A38)),'Data E2059 '!$S$6:$S$457)/100 -> 0.01954135261 | P38: =(N38-O38)*100 -> 0.1819963136 | Q38: =P38/O38/100 -> 0.09313393872
A39: 20:00-23:00 | B39: =LOOKUP(2,1/('Data E2059 '!$A$6:$A$457&"*"&'Data E2059 '!$C$6:$C$457=$B37&"*"&TRIM($A39)),'Data E2059 '!$D$6:$D$457) -> 0.1043768027 | C39: =LOOKUP(2,1/('Data E2059 '!$A$6:$A$457&"*"&'Data E2059 '!$C$6:$C$457=$B37&"*"&TRIM($A39)),'Data E2059 '!$L$6:$L$457) -> 0.1288164894 | D39: =IF(C39="k V","k V",(B39-C39)/C39) -> -0.189724831 | E39: =(LOOKUP(2,1/('Data E2059 '!$A$6:$A$457&"*"&'Data E2059 '!$C$6:$C$457=$B37&"*"&TRIM($A39)),'Data E2059 '!$I$6:$I$457))/(LOOKUP(2,1/('Data E2059 '!$A$6:$A$457&"*"&'Data E2059 '!$C$6:$C$457=$B37&"*"&TRIM($A39)),'Data E2059 '!$G$6:$G$457)) -> 13638.90257 | F39: =(LOOKUP(2,1/('Data E2059 '!$A$6:$A$457&"*"&'Data E2059 '!$C$6:$C$457=$B37&"*"&TRIM($A39)),'Data E2059 '!$Q$6:$Q$457))/(LOOKUP(2,1/('Data E2059 '!$A$6:$A$457&"*"&'Data E2059 '!$C$6:$C$457=$B37&"*"&TRIM($A39)),'Data E2059 '!$O$6:$O$457)) -> 10035.4986 | G39: =IF(F39="k V","k V",(E39-F39)/F39) -> 0.3590657636 | H39: =LOOKUP(2,1/('Data E2059 '!$A$6:$A$457&"*"&'Data E2059 '!$C$6:$C$457=$B37&"*"&TRIM($A39)),'Data E2059 '!$H$6:$H$457) -> 32.28685543 | I39: =LOOKUP(2,1/('Data E2059 '!$A$6:$A$457&"*"&'Data E2059 '!$C$6:$C$457=$B37&"*"&TRIM($A39)),'Data E2059 '!$P$6:$P$457) -> 23.43815992 | J39: =IF(I39="k V","k V",(H39-I39)/I39) -> 0.3775337119 | K39: =LOOKUP(2,1/('Data E2059 '!$A$6:$A$457&"*"&'Data E2059 '!$C$6:$C$457=$B37&"*"&TRIM($A39)),'Data E2059 '!$I$6:$I$457) -> 3369.998739 | L39: =LOOKUP(2,1/('Data E2059 '!$A$6:$A$457&"*"&'Data E2059 '!$C$6:$C$457=$B37&"*"&TRIM($A39)),'Data E2059 '!$Q$6:$Q$457) -> 3019.221478 | M39: =IF(L39="k V","k V",(K39-L39)/L39) -> 0.1161813612 | N39: =LOOKUP(2,1/('Data E2059 '!$A$6:$A$457&"*"&'Data E2059 '!$C$6:$C$457=$B37&"*"&TRIM($A39)),'Data E2059 '!$K$6:$K$457)/100 -> 0.01166118689 | O39: =LOOKUP(2,1/('Data E2059 '!$A$6:$A$457&"*"&'Data E2059 '!$C$6:$C$457=$B37&"*"&TRIM($A39)),'Data E2059 '!$S$6:$S$457)/100 -> 0.01301992331 | P39: =(N39-O39)*100 -> -0.1358736426 | Q39: =P39/O39/100 -> -0.104358251
B40: P7 MAXX
A41: 03:00-03:00 | B41: =LOOKUP(2,1/('Data E2059 '!$A$6:$A$457&"*"&'Data E2059 '!$C$6:$C$457=$B40&"*"&TRIM($A41)),'Data E2059 '!$D$6:$D$457) -> 0.05086303717 | C41: =LOOKUP(2,1/('Data E2059 '!$A$6:$A$457&"*"&'Data E2059 '!$C$6:$C$457=$B40&"*"&TRIM($A41)),'Data E2059 '!$L$6:$L$457) -> 0.06230707323 | D41: =IF(C41="k V","k V",(B41-C41)/C41) -> -0.1836715395 | E41: =(LOOKUP(2,1/('Data E2059 '!$A$6:$A$457&"*"&'Data E2059 '!$C$6:$C$457=$B40&"*"&TRIM($A41)),'Data E2059 '!$I$6:$I$457))/(LOOKUP(2,1/('Data E2059 '!$A$6:$A$457&"*"&'Data E2059 '!$C$6:$C$457=$B40&"*"&TRIM($A41)),'Data E2059 '!$G$6:$G$457)) -> 14368.85749 | F41: =(LOOKUP(2,1/('Data E2059 '!$A$6:$A$457&"*"&'Data E2059 '!$C$6:$C$457=$B40&"*"&TRIM($A41)),'Data E2059 '!$Q$6:$Q$457))/(LOOKUP(2,1/('Data E2059 '!$A$6:$A$457&"*"&'Data E2059 '!$C$6:$C$457=$B40&"*"&TRIM($A41)),'Data E2059 '!$O$6:$O$457)) -> 13055.40009 | G41: =IF(F41="k V","k V",(E41-F41)/F41) -> 0.1006064458 | H41: =LOOKUP(2,1/('Data E2059 '!$A$6:$A$457&"*"&'Data E2059 '!$C$6:$C$457=$B40&"*"&TRIM($A41)),'Data E2059 '!$H$6:$H$457) -> 34.01484995 | I41: =LOOKUP(2,1/('Data E2059 '!$A$6:$A$457&"*"&'Data E2059 '!$C$6:$C$457=$B40&"*"&TRIM($A41)),'Data E2059 '!$P$6:$P$457) -> 30.49121595 | J41: =IF(I41="k V","k V",(H41-I41)/I41) -> 0.1155622658 | K41: =LOOKUP(2,1/('Data E2059 '!$A$6:$A$457&"*"&'Data E2059 '!$C$6:$C$457=$B40&"*"&TRIM($A41)),'Data E2059 '!$I$6:$I$457) -> 1730.098577 | L41: =LOOKUP(2,1/('Data E2059 '!$A$6:$A$457&"*"&'Data E2059 '!$C$6:$C$457=$B40&"*"&TRIM($A41)),'Data E2059 '!$Q$6:$Q$457) -> 1899.818425 | M41: =IF(L41="k V","k V",(K41-L41)/L41) -> -0.08933477295 | N41: =LOOKUP(2,1/('Data E2059 '!$A$6:$A$457&"*"&'Data E2059 '!$C$6:$C$457=$B40&"*"&TRIM($A41)),'Data E2059 '!$K$6:$K$457)/100 -> 0.01132464156 | O41: =LOOKUP(2,1/('Data E2059 '!$A$6:$A$457&"*"&'Data E2059 '!$C$6:$C$457=$B40&"*"&TRIM($A41)),'Data E2059 '!$S$6:$S$457)/100 -> 0.01290813965 | P41: =(N41-O41)*100 -> -0.1583498092 | Q41: =P41/O41/100 -> -0.1226743849
A42: 20:00-23:00 | B42: =LOOKUP(2,1/('Data E2059 '!$A$6:$A$457&"*"&'Data E2059 '!$C$6:$C$457=$B40&"*"&TRIM($A42)),'Data E2059 '!$D$6:$D$457) -> 0.06615998303 | C42: =LOOKUP(2,1/('Data E2059 '!$A$6:$A$457&"*"&'Data E2059 '!$C$6:$C$457=$B40&"*"&TRIM($A42)),'Data E2059 '!$L$6:$L$457) -> 0.0880849079 | D42: =IF(C42="k V","k V",(B42-C42)/C42) -> -0.2489067128 | E42: =(LOOKUP(2,1/('Data E2059 '!$A$6:$A$457&"*"&'Data E2059 '!$C$6:$C$457=$B40&"*"&TRIM($A42)),'Data E2059 '!$I$6:$I$457))/(LOOKUP(2,1/('Data E2059 '!$A$6:$A$457&"*"&'Data E2059 '!$C$6:$C$457=$B40&"*"&TRIM($A42)),'Data E2059 '!$G$6:$G$457)) -> 23256.59184 | F42: =(LOOKUP(2,1/('Data E2059 '!$A$6:$A$457&"*"&'Data E2059 '!$C$6:$C$457=$B40&"*"&TRIM($A42)),'Data E2059 '!$Q$6:$Q$457))/(LOOKUP(2,1/('Data E2059 '!$A$6:$A$457&"*"&'Data E2059 '!$C$6:$C$457=$B40&"*"&TRIM($A42)),'Data E2059 '!$O$6:$O$457)) -> 19069.56555 | G42: =IF(F42="k V","k V",(E42-F42)/F42) -> 0.2195658982 | H42: =LOOKUP(2,1/('Data E2059 '!$A$6:$A$457&"*"&'Data E2059 '!$C$6:$C$457=$B40&"*"&TRIM($A42)),'Data E2059 '!$H$6:$H$457) -> 55.05444552 | I42: =LOOKUP(2,1/('Data E2059 '!$A$6:$A$457&"*"&'Data E2059 '!$C$6:$C$457=$B40&"*"&TRIM($A42)),'Data E2059 '!$P$6:$P$457) -> 44.53745097 | J42: =IF(I42="k V","k V",(H42-I42)/I42) -> 0.2361382235 | K42: =LOOKUP(2,1/('Data E2059 '!$A$6:$A$457&"*"&'Data E2059 '!$C$6:$C$457=$B40&"*"&TRIM($A42)),'Data E2059 '!$I$6:$I$457) -> 3642.401181 | L42: =LOOKUP(2,1/('Data E2059 '!$A$6:$A$457&"*"&'Data E2059 '!$C$6:$C$457=$B40&"*"&TRIM($A42)),'Data E2059 '!$Q$6:$Q$457) -> 3923.077267 | M42: =IF(L42="k V","k V",(K42-L42)/L42) -> -0.07154487831 | N42: =LOOKUP(2,1/('Data E2059 '!$A$6:$A$457&"*"&'Data E2059 '!$C$6:$C$457=$B40&"*"&TRIM($A42)),'Data E2059 '!$K$6:$K$457)/100 -> 0.007658803666 | O42: =LOOKUP(2,1/('Data E2059 '!$A$6:$A$457&"*"&'Data E2059 '!$C$6:$C$457=$B40&"*"&TRIM($A42)),'Data E2059 '!$S$6:$S$457)/100 -> 0.009581160285 | P42: =(N42-O42)*100 -> -0.1922356619 | Q42: =P42/O42/100 -> -0.2006392297
A43: K1 Doku
A44: 03:00-03:00 | B44: =LOOKUP(2,1/('Data E2059 '!$A$6:$A$457&"*"&'Data E2059 '!$C$6:$C$457=$A43&"*"&TRIM($A44)),'Data E2059 '!$D$6:$D$457) -> 0.05308882925 | C44: =LOOKUP(2,1/('Data E2059 '!$A$6:$A$457&"*"&'Data E2059 '!$C$6:$C$457=$A43&"*"&TRIM($A44)),'Data E2059 '!$L$6:$L$457) -> 0.05013289342 | D44: =IF(C44="k V","k V",(B44-C44)/C44) -> 0.05896200329 | E44: =(LOOKUP(2,1/('Data E2059 '!$A$6:$A$457&"*"&'Data E2059 '!$C$6:$C$457=$A43&"*"&TRIM($A44)),'Data E2059 '!$I$6:$I$457))/(LOOKUP(2,1/('Data E2059 '!$A$6:$A$457&"*"&'Data E2059 '!$C$6:$C$457=$A43&"*"&TRIM($A44)),'Data E2059 '!$G$6:$G$457)) -> 7859.124204 | F44: =(LOOKUP(2,1/('Data E2059 '!$A$6:$A$457&"*"&'Data E2059 '!$C$6:$C$457=$A43&"*"&TRIM($A44)),'Data E2059 '!$Q$6:$Q$457))/(LOOKUP(2,1/('Data E2059 '!$A$6:$A$457&"*"&'Data E2059 '!$C$6:$C$457=$A43&"*"&TRIM($A44)),'Data E2059 '!$O$6:$O$457)) -> 7988.192377 | G44: =IF(F44="k V","k V",(E44-F44)/F44) -> -0.01615736918 | H44: =LOOKUP(2,1/('Data E2059 '!$A$6:$A$457&"*"&'Data E2059 '!$C$6:$C$457=$A43&"*"&TRIM($A44)),'Data E2059 '!$H$6:$H$457) -> 18.60460588 | I44: =LOOKUP(2,1/('Data E2059 '!$A$6:$A$457&"*"&'Data E2059 '!$C$6:$C$457=$A43&"*"&TRIM($A44)),'Data E2059 '!$P$6:$P$457) -> 18.65662463 | J44: =IF(I44="k V","k V",(H44-I44)/I44) -> -0.002788218599 | K44: =LOOKUP(2,1/('Data E2059 '!$A$6:$A$457&"*"&'Data E2059 '!$C$6:$C$457=$A43&"*"&TRIM($A44)),'Data E2059 '!$I$6:$I$457) -> 987.6967451 | L44: =LOOKUP(2,1/('Data E2059 '!$A$6:$A$457&"*"&'Data E2059 '!$C$6:$C$457=$A43&"*"&TRIM($A44)),'Data E2059 '!$Q$6:$Q$457) -> 935.3105743 | M44: =IF(L44="k V","k V",(K44-L44)/L44) -> 0.05600938573 | N44: =LOOKUP(2,1/('Data E2059 '!$A$6:$A$457&"*"&'Data E2059 '!$C$6:$C$457=$A43&"*"&TRIM($A44)),'Data E2059 '!$K$6:$K$457)/100 -> 0.0128188163 | O44: =LOOKUP(2,1/('Data E2059 '!$A$6:$A$457&"*"&'Data E2059 '!$C$6:$C$457=$A43&"*"&TRIM($A44)),'Data E2059 '!$S$6:$S$457)/100 -> 0.01077665404 | P44: =(N44-O44)*100 -> 0.2042162256 | Q44: =P44/O44/100 -> 0.1894987301
A45: 20:00-23:00 | B45: =LOOKUP(2,1/('Data E2059 '!$A$6:$A$457&"*"&'Data E2059 '!$C$6:$C$457=$A43&"*"&TRIM($A45)),'Data E2059 '!$D$6:$D$457) -> 0.08275131432 | C45: =LOOKUP(2,1/('Data E2059 '!$A$6:$A$457&"*"&'Data E2059 '!$C$6:$C$457=$A43&"*"&TRIM($A45)),'Data E2059 '!$L$6:$L$457) -> 0.07151467906 | D45: =IF(C45="k V","k V",(B45-C45)/C45) -> 0.1571234803 | E45: =(LOOKUP(2,1/('Data E2059 '!$A$6:$A$457&"*"&'Data E2059 '!$C$6:$C$457=$A43&"*"&TRIM($A45)),'Data E2059 '!$I$6:$I$457))/(LOOKUP(2,1/('Data E2059 '!$A$6:$A$457&"*"&'Data E2059 '!$C$6:$C$457=$A43&"*"&TRIM($A45)),'Data E2059 '!$G$6:$G$457)) -> 10465.92862 | F45: =(LOOKUP(2,1/('Data E2059 '!$A$6:$A$457&"*"&'Data E2059 '!$C$6:$C$457=$A43&"*"&TRIM($A45)),'Data E2059 '!$Q$6:$Q$457))/(LOOKUP(2,1/('Data E2059 '!$A$6:$A$457&"*"&'Data E2059 '!$C$6:$C$457=$A43&"*"&TRIM($A45)),'Data E2059 '!$O$6:$O$457)) -> 13696.3084 | G45: =IF(F45="k V","k V",(E45-F45)/F45) -> -0.2358576984 | H45: =LOOKUP(2,1/('Data E2059 '!$A$6:$A$457&"*"&'Data E2059 '!$C$6:$C$457=$A43&"*"&TRIM($A45)),'Data E2059 '!$H$6:$H$457) -> 24.77559486 | I45: =LOOKUP(2,1/('Data E2059 '!$A$6:$A$457&"*"&'Data E2059 '!$C$6:$C$457=$A43&"*"&TRIM($A45)),'Data E2059 '!$P$6:$P$457) -> 31.98807347 | J45: =IF(I45="k V","k V",(H45-I45)/I45) -> -0.2254739915 | K45: =LOOKUP(2,1/('Data E2059 '!$A$6:$A$457&"*"&'Data E2059 '!$C$6:$C$457=$A43&"*"&TRIM($A45)),'Data E2059 '!$I$6:$I$457) -> 2050.213038 | L45: =LOOKUP(2,1/('Data E2059 '!$A$6:$A$457&"*"&'Data E2059 '!$C$6:$C$457=$A43&"*"&TRIM($A45)),'Data E2059 '!$Q$6:$Q$457) -> 2287.616808 | M45: =IF(L45="k V","k V",(K45-L45)/L45) -> -0.1037777695 | N45: =LOOKUP(2,1/('Data E2059 '!$A$6:$A$457&"*"&'Data E2059 '!$C$6:$C$457=$A43&"*"&TRIM($A45)),'Data E2059 '!$K$6:$K$457)/100 -> 0.00958886047 | O45: =LOOKUP(2,1/('Data E2059 '!$A$6:$A$457&"*"&'Data E2059 '!$C$6:$C$457=$A43&"*"&TRIM($A45)),'Data E2059 '!$S$6:$S$457)/100 -> 0.007252568026 | P45: =(N45-O45)*100 -> 0.2336292444 | Q45: =P45/O45/100 -> 0.3221331307
A46: DMAX | B46: DMAX
A47: 03:00-03:00 | B47: =LOOKUP(2,1/('Data E2059 '!$A$6:$A$457&"*"&'Data E2059 '!$C$6:$C$457=$B46&"*"&TRIM($A47)),'Data E2059 '!$D$6:$D$457) -> 0.06386481895 | C47: =LOOKUP(2,1/('Data E2059 '!$A$6:$A$457&"*"&'Data E2059 '!$C$6:$C$457=$B46&"*"&TRIM($A47)),'Data E2059 '!$L$6:$L$457) -> 0.07191930842 | D47: =IF(C47="k V","k V",(B47-C47)/C47) -> -0.1119934222 | E47: =(LOOKUP(2,1/('Data E2059 '!$A$6:$A$457&"*"&'Data E2059 '!$C$6:$C$457=$B46&"*"&TRIM($A47)),'Data E2059 '!$I$6:$I$457))/(LOOKUP(2,1/('Data E2059 '!$A$6:$A$457&"*"&'Data E2059 '!$C$6:$C$457=$B46&"*"&TRIM($A47)),'Data E2059 '!$G$6:$G$457)) -> 15563.90833 | F47: =(LOOKUP(2,1/('Data E2059 '!$A$6:$A$457&"*"&'Data E2059 '!$C$6:$C$457=$B46&"*"&TRIM($A47)),'Data E2059 '!$Q$6:$Q$457))/(LOOKUP(2,1/('Data E2059 '!$A$6:$A$457&"*"&'Data E2059 '!$C$6:$C$457=$B46&"*"&TRIM($A47)),'Data E2059 '!$O$6:$O$457)) -> 14071.18729 | G47: =IF(F47="k V","k V",(E47-F47)/F47) -> 0.1060835177 | H47: =LOOKUP(2,1/('Data E2059 '!$A$6:$A$457&"*"&'Data E2059 '!$C$6:$C$457=$B46&"*"&TRIM($A47)),'Data E2059 '!$H$6:$H$457) -> 36.84384838 | I47: =LOOKUP(2,1/('Data E2059 '!$A$6:$A$457&"*"&'Data E2059 '!$C$6:$C$457=$B46&"*"&TRIM($A47)),'Data E2059 '!$P$6:$P$457) -> 32.86361256 | J47: =IF(I47="k V","k V",(H47-I47)/I47) -> 0.121113764 | K47: =LOOKUP(2,1/('Data E2059 '!$A$6:$A$457&"*"&'Data E2059 '!$C$6:$C$457=$B46&"*"&TRIM($A47)),'Data E2059 '!$I$6:$I$457) -> 2353.025706 | L47: =LOOKUP(2,1/('Data E2059 '!$A$6:$A$457&"*"&'Data E2059 '!$C$6:$C$457=$B46&"*"&TRIM($A47)),'Data E2059 '!$Q$6:$Q$457) -> 2363.528288 | M47: =IF(L47="k V","k V",(K47-L47)/L47) -> -0.004443603127 | N47: =LOOKUP(2,1/('Data E2059 '!$A$6:$A$457&"*"&'Data E2059 '!$C$6:$C$457=$B46&"*"&TRIM($A47)),'Data E2059 '!$K$6:$K$457)/100 -> 0.01543921274 | O47: =LOOKUP(2,1/('Data E2059 '!$A$6:$A$457&"*"&'Data E2059 '!$C$6:$C$457=$B46&"*"&TRIM($A47)),'Data E2059 '!$S$6:$S$457)/100 -> 0.01542895268 | P47: =(N47-O47)*100 -> 0.001026005261 | Q47: =P47/O47/100 -> 0.0006649869775
A48: 20:00-23:00 | B48: =LOOKUP(2,1/('Data E2059 '!$A$6:$A$457&"*"&'Data E2059 '!$C$6:$C$457=$B46&"*"&TRIM($A48)),'Data E2059 '!$D$6:$D$457) -> 0.1134544483 | C48: =LOOKUP(2,1/('Data E2059 '!$A$6:$A$457&"*"&'Data E2059 '!$C$6:$C$457=$B46&"*"&TRIM($A48)),'Data E2059 '!$L$6:$L$457) -> 0.128397466 | D48: =IF(C48="k V","k V",(B48-C48)/C48) -> -0.1163809397 | E48: =(LOOKUP(2,1/('Data E2059 '!$A$6:$A$457&"*"&'Data E2059 '!$C$6:$C$457=$B46&"*"&TRIM($A48)),'Data E2059 '!$I$6:$I$457))/(LOOKUP(2,1/('Data E2059 '!$A$6:$A$457&"*"&'Data E2059 '!$C$6:$C$457=$B46&"*"&TRIM($A48)),'Data E2059 '!$G$6:$G$457)) -> 20387.02549 | F48: =(LOOKUP(2,1/('Data E2059 '!$A$6:$A$457&"*"&'Data E2059 '!$C$6:$C$457=$B46&"*"&TRIM($A48)),'Data E2059 '!$Q$6:$Q$457))/(LOOKUP(2,1/('Data E2059 '!$A$6:$A$457&"*"&'Data E2059 '!$C$6:$C$457=$B46&"*"&TRIM($A48)),'Data E2059 '!$O$6:$O$457)) -> 18126.97184 | G48: =IF(F48="k V","k V",(E48-F48)/F48) -> 0.1246790508 | H48: =LOOKUP(2,1/('Data E2059 '!$A$6:$A$457&"*"&'Data E2059 '!$C$6:$C$457=$B46&"*"&TRIM($A48)),'Data E2059 '!$H$6:$H$457) -> 48.26143022 | I48: =LOOKUP(2,1/('Data E2059 '!$A$6:$A$457&"*"&'Data E2059 '!$C$6:$C$457=$B46&"*"&TRIM($A48)),'Data E2059 '!$P$6:$P$457) -> 42.33599962 | J48: =IF(I48="k V","k V",(H48-I48)/I48) -> 0.1399619864 | K48: =LOOKUP(2,1/('Data E2059 '!$A$6:$A$457&"*"&'Data E2059 '!$C$6:$C$457=$B46&"*"&TRIM($A48)),'Data E2059 '!$I$6:$I$457) -> 5475.473938 | L48: =LOOKUP(2,1/('Data E2059 '!$A$6:$A$457&"*"&'Data E2059 '!$C$6:$C$457=$B46&"*"&TRIM($A48)),'Data E2059 '!$Q$6:$Q$457) -> 5435.835072 | M48: =IF(L48="k V","k V",(K48-L48)/L48) -> 0.007292139253 | N48: =LOOKUP(2,1/('Data E2059 '!$A$6:$A$457&"*"&'Data E2059 '!$C$6:$C$457=$B46&"*"&TRIM($A48)),'Data E2059 '!$K$6:$K$457)/100 -> 0.01382138568 | O48: =LOOKUP(2,1/('Data E2059 '!$A$6:$A$457&"*"&'Data E2059 '!$C$6:$C$457=$B46&"*"&TRIM($A48)),'Data E2059 '!$S$6:$S$457)/100 -> 0.01397636499 | P48: =(N48-O48)*100 -> -0.0154979301 | Q48: =P48/O48/100 -> -0.01108867013
A49: SuperRTL | B49: SUP RTL
A50: 03:00-03:00 | B50: =LOOKUP(2,1/('Data E2059 '!$A$6:$A$457&"*"&'Data E2059 '!$C$6:$C$457=$B49&"*"&TRIM($A50)),'Data E2059 '!$D$6:$D$457) -> 0.07544989379 | C50: =LOOKUP(2,1/('Data E2059 '!$A$6:$A$457&"*"&'Data E2059 '!$C$6:$C$457=$B49&"*"&TRIM($A50)),'Data E2059 '!$L$6:$L$457) -> 0.08722637191 | D50: =IF(C50="k V","k V",(B50-C50)/C50) -> -0.1350105233 | E50: =(LOOKUP(2,1/('Data E2059 '!$A$6:$A$457&"*"&'Data E2059 '!$C$6:$C$457=$B49&"*"&TRIM($A50)),'Data E2059 '!$I$6:$I$457))/(LOOKUP(2,1/('Data E2059 '!$A$6:$A$457&"*"&'Data E2059 '!$C$6:$C$457=$B49&"*"&TRIM($A50)),'Data E2059 '!$G$6:$G$457)) -> 10585.76205 | F50: =(LOOKUP(2,1/('Data E2059 '!$A$6:$A$457&"*"&'Data E2059 '!$C$6:$C$457=$B49&"*"&TRIM($A50)),'Data E2059 '!$Q$6:$Q$457))/(LOOKUP(2,1/('Data E2059 '!$A$6:$A$457&"*"&'Data E2059 '!$C$6:$C$457=$B49&"*"&TRIM($A50)),'Data E2059 '!$O$6:$O$457)) -> 10987.53243 | G50: =IF(F50="k V","k V",(E50-F50)/F50) -> -0.03656602469 | H50: =LOOKUP(2,1/('Data E2059 '!$A$6:$A$457&"*"&'Data E2059 '!$C$6:$C$457=$B49&"*"&TRIM($A50)),'Data E2059 '!$H$6:$H$457) -> 25.05927198 | I50: =LOOKUP(2,1/('Data E2059 '!$A$6:$A$457&"*"&'Data E2059 '!$C$6:$C$457=$B49&"*"&TRIM($A50)),'Data E2059 '!$P$6:$P$457) -> 25.66165892 | J50: =IF(I50="k V","k V",(H50-I50)/I50) -> -0.02347420138 | K50: =LOOKUP(2,1/('Data E2059 '!$A$6:$A$457&"*"&'Data E2059 '!$C$6:$C$457=$B49&"*"&TRIM($A50)),'Data E2059 '!$I$6:$I$457) -> 1890.719409 | L50: =LOOKUP(2,1/('Data E2059 '!$A$6:$A$457&"*"&'Data E2059 '!$C$6:$C$457=$B49&"*"&TRIM($A50)),'Data E2059 '!$Q$6:$Q$457) -> 2238.373405 | M50: =IF(L50="k V","k V",(K50-L50)/L50) -> -0.1553154605 | N50: =LOOKUP(2,1/('Data E2059 '!$A$6:$A$457&"*"&'Data E2059 '!$C$6:$C$457=$B49&"*"&TRIM($A50)),'Data E2059 '!$K$6:$K$457)/100 -> 0.01475585752 | O50: =LOOKUP(2,1/('Data E2059 '!$A$6:$A$457&"*"&'Data E2059 '!$C$6:$C$457=$B49&"*"&TRIM($A50)),'Data E2059 '!$S$6:$S$457)/100 -> 0.01397190172 | P50: =(N50-O50)*100 -> 0.0783955799 | Q50: =P50/O50/100 -> 0.05610945559
A51: 20:00-23:00 | B51: =LOOKUP(2,1/('Data E2059 '!$A$6:$A$457&"*"&'Data E2059 '!$C$6:$C$457=$B49&"*"&TRIM($A51)),'Data E2059 '!$D$6:$D$457) -> 0.1632231047 | C51: =LOOKUP(2,1/('Data E2059 '!$A$6:$A$457&"*"&'Data E2059 '!$C$6:$C$457=$B49&"*"&TRIM($A51)),'Data E2059 '!$L$6:$L$457) -> 0.1653482034 | D51: =IF(C51="k V","k V",(B51-C51)/C51) -> -0.01285226366 | E51: =(LOOKUP(2,1/('Data E2059 '!$A$6:$A$457&"*"&'Data E2059 '!$C$6:$C$457=$B49&"*"&TRIM($A51)),'Data E2059 '!$I$6:$I$457))/(LOOKUP(2,1/('Data E2059 '!$A$6:$A$457&"*"&'Data E2059 '!$C$6:$C$457=$B49&"*"&TRIM($A51)),'Data E2059 '!$G$6:$G$457)) -> 12681.21244 | F51: =(LOOKUP(2,1/('Data E2059 '!$A$6:$A$457&"*"&'Data E2059 '!$C$6:$C$457=$B49&"*"&TRIM($A51)),'Data E2059 '!$Q$6:$Q$457))/(LOOKUP(2,1/('Data E2059 '!$A$6:$A$457&"*"&'Data E2059 '!$C$6:$C$457=$B49&"*"&TRIM($A51)),'Data E2059 '!$O$6:$O$457)) -> 13717.36248 | G51: =IF(F51="k V","k V",(E51-F51)/F51) -> -0.07553566103 | H51: =LOOKUP(2,1/('Data E2059 '!$A$6:$A$457&"*"&'Data E2059 '!$C$6:$C$457=$B49&"*"&TRIM($A51)),'Data E2059 '!$H$6:$H$457) -> 30.019752 | I51: =LOOKUP(2,1/('Data E2059 '!$A$6:$A$457&"*"&'Data E2059 '!$C$6:$C$457=$B49&"*"&TRIM($A51)),'Data E2059 '!$P$6:$P$457) -> 32.0372458 | J51: =IF(I51="k V","k V",(H51-I51)/I51) -> -0.06297338475 | K51: =LOOKUP(2,1/('Data E2059 '!$A$6:$A$457&"*"&'Data E2059 '!$C$6:$C$457=$B49&"*"&TRIM($A51)),'Data E2059 '!$I$6:$I$457) -> 4899.917123 | L51: =LOOKUP(2,1/('Data E2059 '!$A$6:$A$457&"*"&'Data E2059 '!$C$6:$C$457=$B49&"*"&TRIM($A51)),'Data E2059 '!$Q$6:$Q$457) -> 5297.301035 | M51: =IF(L51="k V","k V",(K51-L51)/L51) -> -0.07501629786 | N51: =LOOKUP(2,1/('Data E2059 '!$A$6:$A$457&"*"&'Data E2059 '!$C$6:$C$457=$B49&"*"&TRIM($A51)),'Data E2059 '!$K$6:$K$457)/100 -> 0.01919830517 | O51: =LOOKUP(2,1/('Data E2059 '!$A$6:$A$457&"*"&'Data E2059 '!$C$6:$C$457=$B49&"*"&TRIM($A51)),'Data E2059 '!$S$6:$S$457)/100 -> 0.01767572591 | P51: =(N51-O51)*100 -> 0.1522579265 | Q51: =P51/O51/100 -> 0.08613956071
A52: NITRO | B52: Nitro
A53: 03:00-03:00 | B53: =LOOKUP(2,1/('Data E2059 '!$A$6:$A$457&"*"&'Data E2059 '!$C$6:$C$457=$B52&"*"&TRIM($A53)),'Data E2059 '!$D$6:$D$457) -> 0.09926314459 | C53: =LOOKUP(2,1/('Data E2059 '!$A$6:$A$457&"*"&'Data E2059 '!$C$6:$C$457=$B52&"*"&TRIM($A53)),'Data E2059 '!$L$6:$L$457) -> 0.1164690459 | D53: =IF(C53="k V","k V",(B53-C53)/C53) -> -0.1477293917 | E53: =IF(H53=0,0,(LOOKUP(2,1/('Data E2059 '!$A$6:$A$457&"*"&'Data E2059 '!$C$6:$C$457=$B52&"*"&TRIM($A53)),'Data E2059 '!$I$6:$I$457))/(LOOKUP(2,1/('Data E2059 '!$A$6:$A$457&"*"&'Data E2059 '!$C$6:$C$457=$B52&"*"&TRIM($A53)),'Data E2059 '!$G$6:$G$457))) -> 10045.24855 | F53: =(LOOKUP(2,1/('Data E2059 '!$A$6:$A$457&"*"&'Data E2059 '!$C$6:$C$457=$B52&"*"&TRIM($A53)),'Data E2059 '!$Q$6:$Q$457))/(LOOKUP(2,1/('Data E2059 '!$A$6:$A$457&"*"&'Data E2059 '!$C$6:$C$457=$B52&"*"&TRIM($A53)),'Data E2059 '!$O$6:$O$457)) -> 11067.87226 | G53: =IF(F53="k V","k V",(E53-F53)/F53) -> -0.09239569128 | H53: =LOOKUP(2,1/('Data E2059 '!$A$6:$A$457&"*"&'Data E2059 '!$C$6:$C$457=$B52&"*"&TRIM($A53)),'Data E2059 '!$H$6:$H$457) -> 23.77973492 | I53: =LOOKUP(2,1/('Data E2059 '!$A$6:$A$457&"*"&'Data E2059 '!$C$6:$C$457=$B52&"*"&TRIM($A53)),'Data E2059 '!$P$6:$P$457) -> 25.84929461 | J53: =IF(I53="k V","k V",(H53-I53)/I53) -> -0.08006252103 | K53: =LOOKUP(2,1/('Data E2059 '!$A$6:$A$457&"*"&'Data E2059 '!$C$6:$C$457=$B52&"*"&TRIM($A53)),'Data E2059 '!$I$6:$I$457) -> 2360.451265 | L53: =LOOKUP(2,1/('Data E2059 '!$A$6:$A$457&"*"&'Data E2059 '!$C$6:$C$457=$B52&"*"&TRIM($A53)),'Data E2059 '!$Q$6:$Q$457) -> 3010.64268 | M53: =IF(L53="k V","k V",(K53-L53)/L53) -> -0.2159643252 | N53: =LOOKUP(2,1/('Data E2059 '!$A$6:$A$457&"*"&'Data E2059 '!$C$6:$C$457=$B52&"*"&TRIM($A53)),'Data E2059 '!$K$6:$K$457)/100 -> 0.02044231096 | O53: =LOOKUP(2,1/('Data E2059 '!$A$6:$A$457&"*"&'Data E2059 '!$C$6:$C$457=$B52&"*"&TRIM($A53)),'Data E2059 '!$S$6:$S$457)/100 -> 0.02207322901 | P53: =(N53-O53)*100 -> -0.1630918045 | Q53: =P53/O53/100 -> -0.07388669981
A54: 20:00-23:00 | B54: =LOOKUP(2,1/('Data E2059 '!$A$6:$A$457&"*"&'Data E2059 '!$C$6:$C$457=$B52&"*"&TRIM($A54)),'Data E2059 '!$D$6:$D$457) -> 0.1615149722 | C54: =LOOKUP(2,1/('Data E2059 '!$A$6:$A$457&"*"&'Data E2059 '!$C$6:$C$457=$B52&"*"&TRIM($A54)),'Data E2059 '!$L$6:$L$457) -> 0.1915332808 | D54: =IF(C54="k V","k V",(B54-C54)/C54) -> -0.1567263323 | E54: =(LOOKUP(2,1/('Data E2059 '!$A$6:$A$457&"*"&'Data E2059 '!$C$6:$C$457=$B52&"*"&TRIM($A54)),'Data E2059 '!$I$6:$I$457))/(LOOKUP(2,1/('Data E2059 '!$A$6:$A$457&"*"&'Data E2059 '!$C$6:$C$457=$B52&"*"&TRIM($A54)),'Data E2059 '!$G$6:$G$457)) -> 11680.21397 | F54: =(LOOKUP(2,1/('Data E2059 '!$A$6:$A$457&"*"&'Data E2059 '!$C$6:$C$457=$B52&"*"&TRIM($A54)),'Data E2059 '!$Q$6:$Q$457))/(LOOKUP(2,1/('Data E2059 '!$A$6:$A$457&"*"&'Data E2059 '!$C$6:$C$457=$B52&"*"&TRIM($A54)),'Data E2059 '!$O$6:$O$457)) -> 14347.93711 | G54: =IF(F54="k V","k V",(E54-F54)/F54) -> -0.1859307797 | H54: =LOOKUP(2,1/('Data E2059 '!$A$6:$A$457&"*"&'Data E2059 '!$C$6:$C$457=$B52&"*"&TRIM($A54)),'Data E2059 '!$H$6:$H$457) -> 27.6501264 | I54: =LOOKUP(2,1/('Data E2059 '!$A$6:$A$457&"*"&'Data E2059 '!$C$6:$C$457=$B52&"*"&TRIM($A54)),'Data E2059 '!$P$6:$P$457) -> 33.50996874 | J54: =IF(I54="k V","k V",(H54-I54)/I54) -> -0.1748686305 | K54: =LOOKUP(2,1/('Data E2059 '!$A$6:$A$457&"*"&'Data E2059 '!$C$6:$C$457=$B52&"*"&TRIM($A54)),'Data E2059 '!$I$6:$I$457) -> 4465.909395 | L54: =LOOKUP(2,1/('Data E2059 '!$A$6:$A$457&"*"&'Data E2059 '!$C$6:$C$457=$B52&"*"&TRIM($A54)),'Data E2059 '!$Q$6:$Q$457) -> 6418.274251 | M54: =IF(L54="k V","k V",(K54-L54)/L54) -> -0.3041884437 | N54: =LOOKUP(2,1/('Data E2059 '!$A$6:$A$457&"*"&'Data E2059 '!$C$6:$C$457=$B52&"*"&TRIM($A54)),'Data E2059 '!$K$6:$K$457)/100 -> 0.01862695375 | O54: =LOOKUP(2,1/('Data E2059 '!$A$6:$A$457&"*"&'Data E2059 '!$C$6:$C$457=$B52&"*"&TRIM($A54)),'Data E2059 '!$S$6:$S$457)/100 -> 0.01975105401 | P54: =(N54-O54)*100 -> -0.1124100261 | Q54: =P54/O54/100 -> -0.05691343157
A55: RTLup | B55: RTLup
A56: 03:00-03:00 | B56: =LOOKUP(2,1/('Data E2059 '!$A$6:$A$457&"*"&'Data E2059 '!$C$6:$C$457=$B55&"*"&TRIM($A56)),'Data E2059 '!$D$6:$D$457) -> 0.1219225238 | C56: =LOOKUP(2,1/('Data E2059 '!$A$6:$A$457&"*"&'Data E2059 '!$C$6:$C$457=$B55&"*"&TRIM($A56)),'Data E2059 '!$L$6:$L$457) -> 0.1133888585 | D56: =IF(C56="k V","k V",(B56-C56)/C56) -> 0.07526017465 | E56: =IF(H56=0,0,(LOOKUP(2,1/('Data E2059 '!$A$6:$A$457&"*"&'Data E2059 '!$C$6:$C$457=$B55&"*"&TRIM($A56)),'Data E2059 '!$I$6:$I$457))/(LOOKUP(2,1/('Data E2059 '!$A$6:$A$457&"*"&'Data E2059 '!$C$6:$C$457=$B55&"*"&TRIM($A56)),'Data E2059 '!$G$6:$G$457))) -> 9468.506033 | F56: =(LOOKUP(2,1/('Data E2059 '!$A$6:$A$457&"*"&'Data E2059 '!$C$6:$C$457=$B55&"*"&TRIM($A56)),'Data E2059 '!$Q$6:$Q$457))/(LOOKUP(2,1/('Data E2059 '!$A$6:$A$457&"*"&'Data E2059 '!$C$6:$C$457=$B55&"*"&TRIM($A56)),'Data E2059 '!$O$6:$O$457)) -> 8892.1942 | G56: =IF(F56="k V","k V",(E56-F56)/F56) -> 0.06481098132 | H56: =LOOKUP(2,1/('Data E2059 '!$A$6:$A$457&"*"&'Data E2059 '!$C$6:$C$457=$B55&"*"&TRIM($A56)),'Data E2059 '!$H$6:$H$457) -> 22.41443429 | I56: =LOOKUP(2,1/('Data E2059 '!$A$6:$A$457&"*"&'Data E2059 '!$C$6:$C$457=$B55&"*"&TRIM($A56)),'Data E2059 '!$P$6:$P$457) -> 20.76794368 | J56: =IF(I56="k V","k V",(H56-I56)/I56) -> 0.0792803872 | K56: =LOOKUP(2,1/('Data E2059 '!$A$6:$A$457&"*"&'Data E2059 '!$C$6:$C$457=$B55&"*"&TRIM($A56)),'Data E2059 '!$I$6:$I$457) -> 2732.824398 | L56: =LOOKUP(2,1/('Data E2059 '!$A$6:$A$457&"*"&'Data E2059 '!$C$6:$C$457=$B55&"*"&TRIM($A56)),'Data E2059 '!$Q$6:$Q$457) -> 2354.853426 | M56: =IF(L56="k V","k V",(K56-L56)/L56) -> 0.1605072176 | N56: =LOOKUP(2,1/('Data E2059 '!$A$6:$A$457&"*"&'Data E2059 '!$C$6:$C$457=$B55&"*"&TRIM($A56)),'Data E2059 '!$K$6:$K$457)/100 -> 0.02432893499 | O56: =LOOKUP(2,1/('Data E2059 '!$A$6:$A$457&"*"&'Data E2059 '!$C$6:$C$457=$B55&"*"&TRIM($A56)),'Data E2059 '!$S$6:$S$457)/100 -> 0.02055842014 | P56: =(N56-O56)*100 -> 0.3770514848 | Q56: =P56/O56/100 -> 0.1834048931
A57: 20:00-23:00 | B57: =LOOKUP(2,1/('Data E2059 '!$A$6:$A$457&"*"&'Data E2059 '!$C$6:$C$457=$B55&"*"&TRIM($A57)),'Data E2059 '!$D$6:$D$457) -> 0.1239685304 | C57: =LOOKUP(2,1/('Data E2059 '!$A$6:$A$457&"*"&'Data E2059 '!$C$6:$C$457=$B55&"*"&TRIM($A57)),'Data E2059 '!$L$6:$L$457) -> 0.1191239077 | D57: =IF(C57="k V","k V",(B57-C57)/C57) -> 0.04066876898 | E57: =(LOOKUP(2,1/('Data E2059 '!$A$6:$A$457&"*"&'Data E2059 '!$C$6:$C$457=$B55&"*"&TRIM($A57)),'Data E2059 '!$I$6:$I$457))/(LOOKUP(2,1/('Data E2059 '!$A$6:$A$457&"*"&'Data E2059 '!$C$6:$C$457=$B55&"*"&TRIM($A57)),'Data E2059 '!$G$6:$G$457)) -> 13383.7355 | F57: =(LOOKUP(2,1/('Data E2059 '!$A$6:$A$457&"*"&'Data E2059 '!$C$6:$C$457=$B55&"*"&TRIM($A57)),'Data E2059 '!$Q$6:$Q$457))/(LOOKUP(2,1/('Data E2059 '!$A$6:$A$457&"*"&'Data E2059 '!$C$6:$C$457=$B55&"*"&TRIM($A57)),'Data E2059 '!$O$6:$O$457)) -> 11443.31974 | G57: =IF(F57="k V","k V",(E57-F57)/F57) -> 0.1695675561 | H57: =LOOKUP(2,1/('Data E2059 '!$A$6:$A$457&"*"&'Data E2059 '!$C$6:$C$457=$B55&"*"&TRIM($A57)),'Data E2059 '!$H$6:$H$457) -> 31.68280814 | I57: =LOOKUP(2,1/('Data E2059 '!$A$6:$A$457&"*"&'Data E2059 '!$C$6:$C$457=$B55&"*"&TRIM($A57)),'Data E2059 '!$P$6:$P$457) -> 26.72616168 | J57: =IF(I57="k V","k V",(H57-I57)/I57) -> 0.1854604685 | K57: =LOOKUP(2,1/('Data E2059 '!$A$6:$A$457&"*"&'Data E2059 '!$C$6:$C$457=$B55&"*"&TRIM($A57)),'Data E2059 '!$I$6:$I$457) -> 3927.671164 | L57: =LOOKUP(2,1/('Data E2059 '!$A$6:$A$457&"*"&'Data E2059 '!$C$6:$C$457=$B55&"*"&TRIM($A57)),'Data E2059 '!$Q$6:$Q$457) -> 3183.724817 | M57: =IF(L57="k V","k V",(K57-L57)/L57) -> 0.2336716865 | N57: =LOOKUP(2,1/('Data E2059 '!$A$6:$A$457&"*"&'Data E2059 '!$C$6:$C$457=$B55&"*"&TRIM($A57)),'Data E2059 '!$K$6:$K$457)/100 -> 0.01433776925 | O57: =LOOKUP(2,1/('Data E2059 '!$A$6:$A$457&"*"&'Data E2059 '!$C$6:$C$457=$B55&"*"&TRIM($A57)),'Data E2059 '!$S$6:$S$457)/100 -> 0.01232906882 | P57: =(N57-O57)*100 -> 0.2008700434 | Q57: =P57/O57/100 -> 0.1629239372
A58: Disney Channel | B58: DisneyChan
A59: 03:00-03:00 | B59: =LOOKUP(2,1/('Data E2059 '!$A$6:$A$457&"*"&'Data E2059 '!$C$6:$C$457=$B58&"*"&TRIM($A59)),'Data E2059 '!$D$6:$D$457) -> 0.04612193056 | C59: =LOOKUP(2,1/('Data E2059 '!$A$6:$A$457&"*"&'Data E2059 '!$C$6:$C$457=$B58&"*"&TRIM($A59)),'Data E2059 '!$L$6:$L$457) -> 0.03991236564 | D59: =IF(C59="k V","k V",(B59-C59)/C59) -> 0.1555799767 | E59: =(LOOKUP(2,1/('Data E2059 '!$A$6:$A$457&"*"&'Data E2059 '!$C$6:$C$457=$B58&"*"&TRIM($A59)),'Data E2059 '!$I$6:$I$457))/(LOOKUP(2,1/('Data E2059 '!$A$6:$A$457&"*"&'Data E2059 '!$C$6:$C$457=$B58&"*"&TRIM($A59)),'Data E2059 '!$G$6:$G$457)) -> 10375.41201 | F59: =(LOOKUP(2,1/('Data E2059 '!$A$6:$A$457&"*"&'Data E2059 '!$C$6:$C$457=$B58&"*"&TRIM($A59)),'Data E2059 '!$Q$6:$Q$457))/(LOOKUP(2,1/('Data E2059 '!$A$6:$A$457&"*"&'Data E2059 '!$C$6:$C$457=$B58&"*"&TRIM($A59)),'Data E2059 '!$O$6:$O$457)) -> 12512.08042 | G59: =IF(F59="k V","k V",(E59-F59)/F59) -> -0.1707684367 | H59: =LOOKUP(2,1/('Data E2059 '!$A$6:$A$457&"*"&'Data E2059 '!$C$6:$C$457=$B58&"*"&TRIM($A59)),'Data E2059 '!$H$6:$H$457) -> 24.56131832 | I59: =LOOKUP(2,1/('Data E2059 '!$A$6:$A$457&"*"&'Data E2059 '!$C$6:$C$457=$B58&"*"&TRIM($A59)),'Data E2059 '!$P$6:$P$457) -> 29.22227918 | J59: =IF(I59="k V","k V",(H59-I59)/I59) -> -0.1595002508 | K59: =LOOKUP(2,1/('Data E2059 '!$A$6:$A$457&"*"&'Data E2059 '!$C$6:$C$457=$B58&"*"&TRIM($A59)),'Data E2059 '!$I$6:$I$457) -> 1132.815418 | L59: =LOOKUP(2,1/('Data E2059 '!$A$6:$A$457&"*"&'Data E2059 '!$C$6:$C$457=$B58&"*"&TRIM($A59)),'Data E2059 '!$Q$6:$Q$457) -> 1166.330291 | M59: =IF(L59="k V","k V",(K59-L59)/L59) -> -0.02873531936 | N59: =LOOKUP(2,1/('Data E2059 '!$A$6:$A$457&"*"&'Data E2059 '!$C$6:$C$457=$B58&"*"&TRIM($A59)),'Data E2059 '!$K$6:$K$457)/100 -> 0.008755773836 | O59: =LOOKUP(2,1/('Data E2059 '!$A$6:$A$457&"*"&'Data E2059 '!$C$6:$C$457=$B58&"*"&TRIM($A59)),'Data E2059 '!$S$6:$S$457)/100 -> 0.007384685651 | P59: =(N59-O59)*100 -> 0.1371088185 | Q59: =P59/O59/100 -> 0.185666425
A60: 20:00-23:00 | B60: =LOOKUP(2,1/('Data E2059 '!$A$6:$A$457&"*"&'Data E2059 '!$C$6:$C$457=$B58&"*"&TRIM($A60)),'Data E2059 '!$D$6:$D$457) -> 0.08798022395 | C60: =LOOKUP(2,1/('Data E2059 '!$A$6:$A$457&"*"&'Data E2059 '!$C$6:$C$457=$B58&"*"&TRIM($A60)),'Data E2059 '!$L$6:$L$457) -> 0.0859172958 | D60: =IF(C60="k V","k V",(B60-C60)/C60) -> 0.02401062714 | E60: =(LOOKUP(2,1/('Data E2059 '!$A$6:$A$457&"*"&'Data E2059 '!$C$6:$C$457=$B58&"*"&TRIM($A60)),'Data E2059 '!$I$6:$I$457))/(LOOKUP(2,1/('Data E2059 '!$A$6:$A$457&"*"&'Data E2059 '!$C$6:$C$457=$B58&"*"&TRIM($A60)),'Data E2059 '!$G$6:$G$457)) -> 11210.55031 | F60: =(LOOKUP(2,1/('Data E2059 '!$A$6:$A$457&"*"&'Data E2059 '!$C$6:$C$457=$B58&"*"&TRIM($A60)),'Data E2059 '!$Q$6:$Q$457))/(LOOKUP(2,1/('Data E2059 '!$A$6:$A$457&"*"&'Data E2059 '!$C$6:$C$457=$B58&"*"&TRIM($A60)),'Data E2059 '!$O$6:$O$457)) -> 13795.78809 | G60: =IF(F60="k V","k V",(E60-F60)/F60) -> -0.1873932654 | H60: =LOOKUP(2,1/('Data E2059 '!$A$6:$A$457&"*"&'Data E2059 '!$C$6:$C$457=$B58&"*"&TRIM($A60)),'Data E2059 '!$H$6:$H$457) -> 26.53830946 | I60: =LOOKUP(2,1/('Data E2059 '!$A$6:$A$457&"*"&'Data E2059 '!$C$6:$C$457=$B58&"*"&TRIM($A60)),'Data E2059 '!$P$6:$P$457) -> 32.22041079 | J60: =IF(I60="k V","k V",(H60-I60)/I60) -> -0.1763509894 | K60: =LOOKUP(2,1/('Data E2059 '!$A$6:$A$457&"*"&'Data E2059 '!$C$6:$C$457=$B58&"*"&TRIM($A60)),'Data E2059 '!$I$6:$I$457) -> 2334.84641 | L60: =LOOKUP(2,1/('Data E2059 '!$A$6:$A$457&"*"&'Data E2059 '!$C$6:$C$457=$B58&"*"&TRIM($A60)),'Data E2059 '!$Q$6:$Q$457) -> 2768.290564 | M60: =IF(L60="k V","k V",(K60-L60)/L60) -> -0.1565746602 | N60: =LOOKUP(2,1/('Data E2059 '!$A$6:$A$457&"*"&'Data E2059 '!$C$6:$C$457=$B58&"*"&TRIM($A60)),'Data E2059 '!$K$6:$K$457)/100 -> 0.01009160984 | O60: =LOOKUP(2,1/('Data E2059 '!$A$6:$A$457&"*"&'Data E2059 '!$C$6:$C$457=$B58&"*"&TRIM($A60)),'Data E2059 '!$S$6:$S$457)/100 -> 0.009540981016 | P60: =(N60-O60)*100 -> 0.05506288215 | Q60: =P60/O60/100 -> 0.05771197119
A61: TLC | B61: TLC
A62: 03:00-03:00 | B62: =LOOKUP(2,1/('Data E2059 '!$A$6:$A$457&"*"&'Data E2059 '!$C$6:$C$457=$B61&"*"&TRIM($A62)),'Data E2059 '!$D$6:$D$457) -> 0.03642728656 | C62: =LOOKUP(2,1/('Data E2059 '!$A$6:$A$457&"*"&'Data E2059 '!$C$6:$C$457=$B61&"*"&TRIM($A62)),'Data E2059 '!$L$6:$L$457) -> 0.03556761766 | D62: =IF(C62="k V","k V",(B62-C62)/C62) -> 0.02416998808 | E62: =(LOOKUP(2,1/('Data E2059 '!$A$6:$A$457&"*"&'Data E2059 '!$C$6:$C$457=$B61&"*"&TRIM($A62)),'Data E2059 '!$I$6:$I$457))/(LOOKUP(2,1/('Data E2059 '!$A$6:$A$457&"*"&'Data E2059 '!$C$6:$C$457=$B61&"*"&TRIM($A62)),'Data E2059 '!$G$6:$G$457)) -> 12535.12019 | F62: =(LOOKUP(2,1/('Data E2059 '!$A$6:$A$457&"*"&'Data E2059 '!$C$6:$C$457=$B61&"*"&TRIM($A62)),'Data E2059 '!$Q$6:$Q$457))/(LOOKUP(2,1/('Data E2059 '!$A$6:$A$457&"*"&'Data E2059 '!$C$6:$C$457=$B61&"*"&TRIM($A62)),'Data E2059 '!$O$6:$O$457)) -> 13026.2114 | G62: =IF(F62="k V","k V",(E62-F62)/F62) -> -0.03770023404 | H62: =LOOKUP(2,1/('Data E2059 '!$A$6:$A$457&"*"&'Data E2059 '!$C$6:$C$457=$B61&"*"&TRIM($A62)),'Data E2059 '!$H$6:$H$457) -> 29.67391337 | I62: =LOOKUP(2,1/('Data E2059 '!$A$6:$A$457&"*"&'Data E2059 '!$C$6:$C$457=$B61&"*"&TRIM($A62)),'Data E2059 '!$P$6:$P$457) -> 30.42304505 | J62: =IF(I62="k V","k V",(H62-I62)/I62) -> -0.02462382317 | K62: =LOOKUP(2,1/('Data E2059 '!$A$6:$A$457&"*"&'Data E2059 '!$C$6:$C$457=$B61&"*"&TRIM($A62)),'Data E2059 '!$I$6:$I$457) -> 1080.940146 | L62: =LOOKUP(2,1/('Data E2059 '!$A$6:$A$457&"*"&'Data E2059 '!$C$6:$C$457=$B61&"*"&TRIM($A62)),'Data E2059 '!$Q$6:$Q$457) -> 1082.075234 | M62: =IF(L62="k V","k V",(K62-L62)/L62) -> -0.001048992596 | N62: =LOOKUP(2,1/('Data E2059 '!$A$6:$A$457&"*"&'Data E2059 '!$C$6:$C$457=$B61&"*"&TRIM($A62)),'Data E2059 '!$K$6:$K$457)/100 -> 0.008544304255 | O62: =LOOKUP(2,1/('Data E2059 '!$A$6:$A$457&"*"&'Data E2059 '!$C$6:$C$457=$B61&"*"&TRIM($A62)),'Data E2059 '!$S$6:$S$457)/100 -> 0.007382978531 | P62: =(N62-O62)*100 -> 0.1161325724 | Q62: =P62/O62/100 -> 0.1572977247
A63: 20:00-23:00 | B63: =LOOKUP(2,1/('Data E2059 '!$A$6:$A$457&"*"&'Data E2059 '!$C$6:$C$457=$B61&"*"&TRIM($A63)),'Data E2059 '!$D$6:$D$457) -> 0.05826390776 | C63: =LOOKUP(2,1/('Data E2059 '!$A$6:$A$457&"*"&'Data E2059 '!$C$6:$C$457=$B61&"*"&TRIM($A63)),'Data E2059 '!$L$6:$L$457) -> 0.06086743966 | D63: =IF(C63="k V","k V",(B63-C63)/C63) -> -0.04277380339 | E63: =(LOOKUP(2,1/('Data E2059 '!$A$6:$A$457&"*"&'Data E2059 '!$C$6:$C$457=$B61&"*"&TRIM($A63)),'Data E2059 '!$I$6:$I$457))/(LOOKUP(2,1/('Data E2059 '!$A$6:$A$457&"*"&'Data E2059 '!$C$6:$C$457=$B61&"*"&TRIM($A63)),'Data E2059 '!$G$6:$G$457)) -> 16486.84189 | F63: =(LOOKUP(2,1/('Data E2059 '!$A$6:$A$457&"*"&'Data E2059 '!$C$6:$C$457=$B61&"*"&TRIM($A63)),'Data E2059 '!$Q$6:$Q$457))/(LOOKUP(2,1/('Data E2059 '!$A$6:$A$457&"*"&'Data E2059 '!$C$6:$C$457=$B61&"*"&TRIM($A63)),'Data E2059 '!$O$6:$O$457)) -> 16009.17573 | G63: =IF(F63="k V","k V",(E63-F63)/F63) -> 0.02983702408 | H63: =LOOKUP(2,1/('Data E2059 '!$A$6:$A$457&"*"&'Data E2059 '!$C$6:$C$457=$B61&"*"&TRIM($A63)),'Data E2059 '!$H$6:$H$457) -> 39.0286739 | I63: =LOOKUP(2,1/('Data E2059 '!$A$6:$A$457&"*"&'Data E2059 '!$C$6:$C$457=$B61&"*"&TRIM($A63)),'Data E2059 '!$P$6:$P$457) -> 37.38983342 | J63: =IF(I63="k V","k V",(H63-I63)/I63) -> 0.04383117905 | K63: =LOOKUP(2,1/('Data E2059 '!$A$6:$A$457&"*"&'Data E2059 '!$C$6:$C$457=$B61&"*"&TRIM($A63)),'Data E2059 '!$I$6:$I$457) -> 2273.963056 | L63: =LOOKUP(2,1/('Data E2059 '!$A$6:$A$457&"*"&'Data E2059 '!$C$6:$C$457=$B61&"*"&TRIM($A63)),'Data E2059 '!$Q$6:$Q$457) -> 2275.82343 | M63: =IF(L63="k V","k V",(K63-L63)/L63) -> -0.0008174505737 | N63: =LOOKUP(2,1/('Data E2059 '!$A$6:$A$457&"*"&'Data E2059 '!$C$6:$C$457=$B61&"*"&TRIM($A63)),'Data E2059 '!$K$6:$K$457)/100 -> 0.007023080763 | O63: =LOOKUP(2,1/('Data E2059 '!$A$6:$A$457&"*"&'Data E2059 '!$C$6:$C$457=$B61&"*"&TRIM($A63)),'Data E2059 '!$S$6:$S$457)/100 -> 0.006505350831 | P63: =(N63-O63)*100 -> 0.05177299316 | Q63: =P63/O63/100 -> 0.07958524374
A64: Tele 5 | B64: Tele 5
A65: 03:00-03:00 | B65: =LOOKUP(2,1/('Data E2059 '!$A$6:$A$457&"*"&'Data E2059 '!$C$6:$C$457=$B64&"*"&TRIM($A65)),'Data E2059 '!$D$6:$D$457) -> 0.08110127604 | C65: =LOOKUP(2,1/('Data E2059 '!$A$6:$A$457&"*"&'Data E2059 '!$C$6:$C$457=$B64&"*"&TRIM($A65)),'Data E2059 '!$L$6:$L$457) -> 0.08787469765 | D65: =IF(C65="k V","k V",(B65-C65)/C65) -> -0.07708045423 | E65: =(LOOKUP(2,1/('Data E2059 '!$A$6:$A$457&"*"&'Data E2059 '!$C$6:$C$457=$B64&"*"&TRIM($A65)),'Data E2059 '!$I$6:$I$457))/(LOOKUP(2,1/('Data E2059 '!$A$6:$A$457&"*"&'Data E2059 '!$C$6:$C$457=$B64&"*"&TRIM($A65)),'Data E2059 '!$G$6:$G$457)) -> 14134.19744 | F65: =(LOOKUP(2,1/('Data E2059 '!$A$6:$A$457&"*"&'Data E2059 '!$C$6:$C$457=$B64&"*"&TRIM($A65)),'Data E2059 '!$Q$6:$Q$457))/(LOOKUP(2,1/('Data E2059 '!$A$6:$A$457&"*"&'Data E2059 '!$C$6:$C$457=$B64&"*"&TRIM($A65)),'Data E2059 '!$O$6:$O$457)) -> 13607.53093 | G65: =IF(F65="k V","k V",(E65-F65)/F65) -> 0.03870404707 | H65: =LOOKUP(2,1/('Data E2059 '!$A$6:$A$457&"*"&'Data E2059 '!$C$6:$C$457=$B64&"*"&TRIM($A65)),'Data E2059 '!$H$6:$H$457) -> 33.45934815 | I65: =LOOKUP(2,1/('Data E2059 '!$A$6:$A$457&"*"&'Data E2059 '!$C$6:$C$457=$B64&"*"&TRIM($A65)),'Data E2059 '!$P$6:$P$457) -> 31.78073144 | J65: =IF(I65="k V","k V",(H65-I65)/I65) -> 0.05281869343 | K65: =LOOKUP(2,1/('Data E2059 '!$A$6:$A$457&"*"&'Data E2059 '!$C$6:$C$457=$B64&"*"&TRIM($A65)),'Data E2059 '!$I$6:$I$457) -> 2713.595831 | L65: =LOOKUP(2,1/('Data E2059 '!$A$6:$A$457&"*"&'Data E2059 '!$C$6:$C$457=$B64&"*"&TRIM($A65)),'Data E2059 '!$Q$6:$Q$457) -> 2792.722167 | M65: =IF(L65="k V","k V",(K65-L65)/L65) -> -0.02833304968 | N65: =LOOKUP(2,1/('Data E2059 '!$A$6:$A$457&"*"&'Data E2059 '!$C$6:$C$457=$B64&"*"&TRIM($A65)),'Data E2059 '!$K$6:$K$457)/100 -> 0.01190451059 | O65: =LOOKUP(2,1/('Data E2059 '!$A$6:$A$457&"*"&'Data E2059 '!$C$6:$C$457=$B64&"*"&TRIM($A65)),'Data E2059 '!$S$6:$S$457)/100 -> 0.01123118143 | P65: =(N65-O65)*100 -> 0.06733291531 | Q65: =P65/O65/100 -> 0.05995176527
A66: 20:00-23:00 | B66: =LOOKUP(2,1/('Data E2059 '!$A$6:$A$457&"*"&'Data E2059 '!$C$6:$C$457=$B64&"*"&TRIM($A66)),'Data E2059 '!$D$6:$D$457) -> 0.1083667577 | C66: =LOOKUP(2,1/('Data E2059 '!$A$6:$A$457&"*"&'Data E2059 '!$C$6:$C$457=$B64&"*"&TRIM($A66)),'Data E2059 '!$L$6:$L$457) -> 0.1254830378 | D66: =IF(C66="k V","k V",(B66-C66)/C66) -> -0.1364031376 | E66: =(LOOKUP(2,1/('Data E2059 '!$A$6:$A$457&"*"&'Data E2059 '!$C$6:$C$457=$B64&"*"&TRIM($A66)),'Data E2059 '!$I$6:$I$457))/(LOOKUP(2,1/('Data E2059 '!$A$6:$A$457&"*"&'Data E2059 '!$C$6:$C$457=$B64&"*"&TRIM($A66)),'Data E2059 '!$G$6:$G$457)) -> 19030.86698 | F66: =(LOOKUP(2,1/('Data E2059 '!$A$6:$A$457&"*"&'Data E2059 '!$C$6:$C$457=$B64&"*"&TRIM($A66)),'Data E2059 '!$Q$6:$Q$457))/(LOOKUP(2,1/('Data E2059 '!$A$6:$A$457&"*"&'Data E2059 '!$C$6:$C$457=$B64&"*"&TRIM($A66)),'Data E2059 '!$O$6:$O$457)) -> 17832.78766 | G66: =IF(F66="k V","k V",(E66-F66)/F66) -> 0.06718407409 | H66: =LOOKUP(2,1/('Data E2059 '!$A$6:$A$457&"*"&'Data E2059 '!$C$6:$C$457=$B64&"*"&TRIM($A66)),'Data E2059 '!$H$6:$H$457) -> 45.05104776 | I66: =LOOKUP(2,1/('Data E2059 '!$A$6:$A$457&"*"&'Data E2059 '!$C$6:$C$457=$B64&"*"&TRIM($A66)),'Data E2059 '!$P$6:$P$457) -> 41.64892503 | J66: =IF(I66="k V","k V",(H66-I66)/I66) -> 0.08168572723 | K66: =LOOKUP(2,1/('Data E2059 '!$A$6:$A$457&"*"&'Data E2059 '!$C$6:$C$457=$B64&"*"&TRIM($A66)),'Data E2059 '!$I$6:$I$457) -> 4882.035976 | L66: =LOOKUP(2,1/('Data E2059 '!$A$6:$A$457&"*"&'Data E2059 '!$C$6:$C$457=$B64&"*"&TRIM($A66)),'Data E2059 '!$Q$6:$Q$457) -> 5226.233632 | M66: =IF(L66="k V","k V",(K66-L66)/L66) -> -0.06585959986 | N66: =LOOKUP(2,1/('Data E2059 '!$A$6:$A$457&"*"&'Data E2059 '!$C$6:$C$457=$B64&"*"&TRIM($A66)),'Data E2059 '!$K$6:$K$457)/100 -> 0.01301510102 | O66: =LOOKUP(2,1/('Data E2059 '!$A$6:$A$457&"*"&'Data E2059 '!$C$6:$C$457=$B64&"*"&TRIM($A66)),'Data E2059 '!$S$6:$S$457)/100 -> 0.01273732144 | P66: =(N66-O66)*100 -> 0.02777795843 | Q66: =P66/O66/100 -> 0.02180832019
A67: Sport1 | B67: Sport1
A68: 03:00-03:00 | B68: =LOOKUP(2,1/('Data E2059 '!$A$6:$A$457&"*"&'Data E2059 '!$C$6:$C$457=$B67&"*"&TRIM($A68)),'Data E2059 '!$D$6:$D$457) -> 0.03953448159 | C68: =LOOKUP(2,1/('Data E2059 '!$A$6:$A$457&"*"&'Data E2059 '!$C$6:$C$457=$B67&"*"&TRIM($A68)),'Data E2059 '!$L$6:$L$457) -> 0.03503970582 | D68: =IF(C68="k V","k V",(B68-C68)/C68) -> 0.128276641 | E68: =(LOOKUP(2,1/('Data E2059 '!$A$6:$A$457&"*"&'Data E2059 '!$C$6:$C$457=$B67&"*"&TRIM($A68)),'Data E2059 '!$I$6:$I$457))/(LOOKUP(2,1/('Data E2059 '!$A$6:$A$457&"*"&'Data E2059 '!$C$6:$C$457=$B67&"*"&TRIM($A68)),'Data E2059 '!$G$6:$G$457)) -> 19300.49055 | F68: =(LOOKUP(2,1/('Data E2059 '!$A$6:$A$457&"*"&'Data E2059 '!$C$6:$C$457=$B67&"*"&TRIM($A68)),'Data E2059 '!$Q$6:$Q$457))/(LOOKUP(2,1/('Data E2059 '!$A$6:$A$457&"*"&'Data E2059 '!$C$6:$C$457=$B67&"*"&TRIM($A68)),'Data E2059 '!$O$6:$O$457)) -> 20659.17191 | G68: =IF(F68="k V","k V",(E68-F68)/F68) -> -0.06576649658 | H68: =LOOKUP(2,1/('Data E2059 '!$A$6:$A$457&"*"&'Data E2059 '!$C$6:$C$457=$B67&"*"&TRIM($A68)),'Data E2059 '!$H$6:$H$457) -> 45.68931737 | I68: =LOOKUP(2,1/('Data E2059 '!$A$6:$A$457&"*"&'Data E2059 '!$C$6:$C$457=$B67&"*"&TRIM($A68)),'Data E2059 '!$P$6:$P$457) -> 48.25001669 | J68: =IF(I68="k V","k V",(H68-I68)/I68) -> -0.05307146997 | K68: =LOOKUP(2,1/('Data E2059 '!$A$6:$A$457&"*"&'Data E2059 '!$C$6:$C$457=$B67&"*"&TRIM($A68)),'Data E2059 '!$I$6:$I$457) -> 1806.303476 | L68: =LOOKUP(2,1/('Data E2059 '!$A$6:$A$457&"*"&'Data E2059 '!$C$6:$C$457=$B67&"*"&TRIM($A68)),'Data E2059 '!$Q$6:$Q$457) -> 1690.666391 | M68: =IF(L68="k V","k V",(K68-L68)/L68) -> 0.06839734114 | N68: =LOOKUP(2,1/('Data E2059 '!$A$6:$A$457&"*"&'Data E2059 '!$C$6:$C$457=$B67&"*"&TRIM($A68)),'Data E2059 '!$K$6:$K$457)/100 -> 0.006550774561 | O68: =LOOKUP(2,1/('Data E2059 '!$A$6:$A$457&"*"&'Data E2059 '!$C$6:$C$457=$B67&"*"&TRIM($A68)),'Data E2059 '!$S$6:$S$457)/100 -> 0.005651805616 | P68: =(N68-O68)*100 -> 0.0898968945 | Q68: =P68/O68/100 -> 0.1590587161
A69: 20:00-23:00 | B69: =LOOKUP(2,1/('Data E2059 '!$A$6:$A$457&"*"&'Data E2059 '!$C$6:$C$457=$B67&"*"&TRIM($A69)),'Data E2059 '!$D$6:$D$457) -> 0.05278413066 | C69: =LOOKUP(2,1/('Data E2059 '!$A$6:$A$457&"*"&'Data E2059 '!$C$6:$C$457=$B67&"*"&TRIM($A69)),'Data E2059 '!$L$6:$L$457) -> 0.04166086122 | D69: =IF(C69="k V","k V",(B69-C69)/C69) -> 0.266995667 | E69: =(LOOKUP(2,1/('Data E2059 '!$A$6:$A$457&"*"&'Data E2059 '!$C$6:$C$457=$B67&"*"&TRIM($A69)),'Data E2059 '!$I$6:$I$457))/(LOOKUP(2,1/('Data E2059 '!$A$6:$A$457&"*"&'Data E2059 '!$C$6:$C$457=$B67&"*"&TRIM($A69)),'Data E2059 '!$G$6:$G$457)) -> 17199.20821 | F69: =(LOOKUP(2,1/('Data E2059 '!$A$6:$A$457&"*"&'Data E2059 '!$C$6:$C$457=$B67&"*"&TRIM($A69)),'Data E2059 '!$Q$6:$Q$457))/(LOOKUP(2,1/('Data E2059 '!$A$6:$A$457&"*"&'Data E2059 '!$C$6:$C$457=$B67&"*"&TRIM($A69)),'Data E2059 '!$O$6:$O$457)) -> 21484.61279 | G69: =IF(F69="k V","k V",(E69-F69)/F69) -> -0.1994638964 | H69: =LOOKUP(2,1/('Data E2059 '!$A$6:$A$457&"*"&'Data E2059 '!$C$6:$C$457=$B67&"*"&TRIM($A69)),'Data E2059 '!$H$6:$H$457) -> 40.7150316 | I69: =LOOKUP(2,1/('Data E2059 '!$A$6:$A$457&"*"&'Data E2059 '!$C$6:$C$457=$B67&"*"&TRIM($A69)),'Data E2059 '!$P$6:$P$457) -> 50.17785467 | J69: =IF(I69="k V","k V",(H69-I69)/I69) -> -0.1885856448 | K69: =LOOKUP(2,1/('Data E2059 '!$A$6:$A$457&"*"&'Data E2059 '!$C$6:$C$457=$B67&"*"&TRIM($A69)),'Data E2059 '!$I$6:$I$457) -> 2149.107547 | L69: =LOOKUP(2,1/('Data E2059 '!$A$6:$A$457&"*"&'Data E2059 '!$C$6:$C$457=$B67&"*"&TRIM($A69)),'Data E2059 '!$Q$6:$Q$457) -> 2090.45264 | M69: =IF(L69="k V","k V",(K69-L69)/L69) -> 0.02805847226 | N69: =LOOKUP(2,1/('Data E2059 '!$A$6:$A$457&"*"&'Data E2059 '!$C$6:$C$457=$B67&"*"&TRIM($A69)),'Data E2059 '!$K$6:$K$457)/100 -> 0.008121813898 | O69: =LOOKUP(2,1/('Data E2059 '!$A$6:$A$457&"*"&'Data E2059 '!$C$6:$C$457=$B67&"*"&TRIM($A69)),'Data E2059 '!$S$6:$S$457)/100 -> 0.005478174115 | P69: =(N69-O69)*100 -> 0.2643639782 | Q69: =P69/O69/100 -> 0.4825768088
A71: WELT | B71: WELT
A72: 03:00-03:00 | B72: =LOOKUP(2,1/('Data E2059 '!$A$6:$A$457&"*"&'Data E2059 '!$C$6:$C$457=$B71&"*"&TRIM($A72)),'Data E2059 '!$D$6:$D$457) -> 0.05037906968 | C72: =LOOKUP(2,1/('Data E2059 '!$A$6:$A$457&"*"&'Data E2059 '!$C$6:$C$457=$B71&"*"&TRIM($A72)),'Data E2059 '!$L$6:$L$457) -> 0.06687167322 | D72: =IF(C72="k V","k V",(B72-C72)/C72) -> -0.2466306396 | E72: =(LOOKUP(2,1/('Data E2059 '!$A$6:$A$457&"*"&'Data E2059 '!$C$6:$C$457=$B71&"*"&TRIM($A72)),'Data E2059 '!$I$6:$I$457))/(LOOKUP(2,1/('Data E2059 '!$A$6:$A$457&"*"&'Data E2059 '!$C$6:$C$457=$B71&"*"&TRIM($A72)),'Data E2059 '!$G$6:$G$457)) -> 14690.42486 | F72: =(LOOKUP(2,1/('Data E2059 '!$A$6:$A$457&"*"&'Data E2059 '!$C$6:$C$457=$B71&"*"&TRIM($A72)),'Data E2059 '!$Q$6:$Q$457))/(LOOKUP(2,1/('Data E2059 '!$A$6:$A$457&"*"&'Data E2059 '!$C$6:$C$457=$B71&"*"&TRIM($A72)),'Data E2059 '!$O$6:$O$457)) -> 11945.38677 | G72: =IF(F72="k V","k V",(E72-F72)/F72) -> 0.2297990127 | H72: =LOOKUP(2,1/('Data E2059 '!$A$6:$A$457&"*"&'Data E2059 '!$C$6:$C$457=$B71&"*"&TRIM($A72)),'Data E2059 '!$H$6:$H$457) -> 34.77608417 | I72: =LOOKUP(2,1/('Data E2059 '!$A$6:$A$457&"*"&'Data E2059 '!$C$6:$C$457=$B71&"*"&TRIM($A72)),'Data E2059 '!$P$6:$P$457) -> 27.89875188 | J72: =IF(I72="k V","k V",(H72-I72)/I72) -> 0.2465103928 | K72: =LOOKUP(2,1/('Data E2059 '!$A$6:$A$457&"*"&'Data E2059 '!$C$6:$C$457=$B71&"*"&TRIM($A72)),'Data E2059 '!$I$6:$I$457) -> 1751.986767 | L72: =LOOKUP(2,1/('Data E2059 '!$A$6:$A$457&"*"&'Data E2059 '!$C$6:$C$457=$B71&"*"&TRIM($A72)),'Data E2059 '!$Q$6:$Q$457) -> 1865.636219 | M72: =IF(L72="k V","k V",(K72-L72)/L72) -> -0.06091726262 | N72: =LOOKUP(2,1/('Data E2059 '!$A$6:$A$457&"*"&'Data E2059 '!$C$6:$C$457=$B71&"*"&TRIM($A72)),'Data E2059 '!$K$6:$K$457)/100 -> 0.01606246011 | O72: =LOOKUP(2,1/('Data E2059 '!$A$6:$A$457&"*"&'Data E2059 '!$C$6:$C$457=$B71&"*"&TRIM($A72)),'Data E2059 '!$S$6:$S$457)/100 -> 0.01752838501 | P72: =(N72-O72)*100 -> -0.1465924904 | Q72: =P72/O72/100 -> -0.08363148703
A73: 20:00-23:00 | B73: =LOOKUP(2,1/('Data E2059 '!$A$6:$A$457&"*"&'Data E2059 '!$C$6:$C$457=$B71&"*"&TRIM($A73)),'Data E2059 '!$D$6:$D$457) -> 0.08065840266 | C73: =LOOKUP(2,1/('Data E2059 '!$A$6:$A$457&"*"&'Data E2059 '!$C$6:$C$457=$B71&"*"&TRIM($A73)),'Data E2059 '!$L$6:$L$457) -> 0.09321768207 | D73: =IF(C73="k V","k V",(B73-C73)/C73) -> -0.1347306555 | E73: =(LOOKUP(2,1/('Data E2059 '!$A$6:$A$457&"*"&'Data E2059 '!$C$6:$C$457=$B71&"*"&TRIM($A73)),'Data E2059 '!$I$6:$I$457))/(LOOKUP(2,1/('Data E2059 '!$A$6:$A$457&"*"&'Data E2059 '!$C$6:$C$457=$B71&"*"&TRIM($A73)),'Data E2059 '!$G$6:$G$457)) -> 17157.42754 | F73: =(LOOKUP(2,1/('Data E2059 '!$A$6:$A$457&"*"&'Data E2059 '!$C$6:$C$457=$B71&"*"&TRIM($A73)),'Data E2059 '!$Q$6:$Q$457))/(LOOKUP(2,1/('Data E2059 '!$A$6:$A$457&"*"&'Data E2059 '!$C$6:$C$457=$B71&"*"&TRIM($A73)),'Data E2059 '!$O$6:$O$457)) -> 14495.22967 | G73: =IF(F73="k V","k V",(E73-F73)/F73) -> 0.1836602752 | H73: =LOOKUP(2,1/('Data E2059 '!$A$6:$A$457&"*"&'Data E2059 '!$C$6:$C$457=$B71&"*"&TRIM($A73)),'Data E2059 '!$H$6:$H$457) -> 40.6161258 | I73: =LOOKUP(2,1/('Data E2059 '!$A$6:$A$457&"*"&'Data E2059 '!$C$6:$C$457=$B71&"*"&TRIM($A73)),'Data E2059 '!$P$6:$P$457) -> 33.85397423 | J73: =IF(I73="k V","k V",(H73-I73)/I73) -> 0.1997446895 | K73: =LOOKUP(2,1/('Data E2059 '!$A$6:$A$457&"*"&'Data E2059 '!$C$6:$C$457=$B71&"*"&TRIM($A73)),'Data E2059 '!$I$6:$I$457) -> 3276.031829 | L73: =LOOKUP(2,1/('Data E2059 '!$A$6:$A$457&"*"&'Data E2059 '!$C$6:$C$457=$B71&"*"&TRIM($A73)),'Data E2059 '!$Q$6:$Q$457) -> 3155.789006 | M73: =IF(L73="k V","k V",(K73-L73)/L73) -> 0.03810230103 | N73: =LOOKUP(2,1/('Data E2059 '!$A$6:$A$457&"*"&'Data E2059 '!$C$6:$C$457=$B71&"*"&TRIM($A73)),'Data E2059 '!$K$6:$K$457)/100 -> 0.009549233527 | O73: =LOOKUP(2,1/('Data E2059 '!$A$6:$A$457&"*"&'Data E2059 '!$C$6:$C$457=$B71&"*"&TRIM($A73)),'Data E2059 '!$S$6:$S$457)/100 -> 0.009923083462 | P73: =(N73-O73)*100 -> -0.03738499341 | Q73: =P73/O73/100 -> -0.03767477474
A74: n-tv | B74: N-TV
A75: 03:00-03:00 | B75: =LOOKUP(2,1/('Data E2059 '!$A$6:$A$457&"*"&'Data E2059 '!$C$6:$C$457=$B74&"*"&TRIM($A75)),'Data E2059 '!$D$6:$D$457) -> 0.04677566954 | C75: =LOOKUP(2,1/('Data E2059 '!$A$6:$A$457&"*"&'Data E2059 '!$C$6:$C$457=$B74&"*"&TRIM($A75)),'Data E2059 '!$L$6:$L$457) -> 0.05332558553 | D75: =IF(C75="k V","k V",(B75-C75)/C75) -> -0.1228287683 | E75: =(LOOKUP(2,1/('Data E2059 '!$A$6:$A$457&"*"&'Data E2059 '!$C$6:$C$457=$B74&"*"&TRIM($A75)),'Data E2059 '!$I$6:$I$457))/(LOOKUP(2,1/('Data E2059 '!$A$6:$A$457&"*"&'Data E2059 '!$C$6:$C$457=$B74&"*"&TRIM($A75)),'Data E2059 '!$G$6:$G$457)) -> 10645.13088 | F75: =(LOOKUP(2,1/('Data E2059 '!$A$6:$A$457&"*"&'Data E2059 '!$C$6:$C$457=$B74&"*"&TRIM($A75)),'Data E2059 '!$Q$6:$Q$457))/(LOOKUP(2,1/('Data E2059 '!$A$6:$A$457&"*"&'Data E2059 '!$C$6:$C$457=$B74&"*"&TRIM($A75)),'Data E2059 '!$O$6:$O$457)) -> 11575.98904 | G75: =IF(F75="k V","k V",(E75-F75)/F75) -> -0.08041284064 | H75: =LOOKUP(2,1/('Data E2059 '!$A$6:$A$457&"*"&'Data E2059 '!$C$6:$C$457=$B74&"*"&TRIM($A75)),'Data E2059 '!$H$6:$H$457) -> 25.19981354 | I75: =LOOKUP(2,1/('Data E2059 '!$A$6:$A$457&"*"&'Data E2059 '!$C$6:$C$457=$B74&"*"&TRIM($A75)),'Data E2059 '!$P$6:$P$457) -> 27.03601416 | J75: =IF(I75="k V","k V",(H75-I75)/I75) -> -0.06791683893 | K75: =LOOKUP(2,1/('Data E2059 '!$A$6:$A$457&"*"&'Data E2059 '!$C$6:$C$457=$B74&"*"&TRIM($A75)),'Data E2059 '!$I$6:$I$457) -> 1178.738151 | L75: =LOOKUP(2,1/('Data E2059 '!$A$6:$A$457&"*"&'Data E2059 '!$C$6:$C$457=$B74&"*"&TRIM($A75)),'Data E2059 '!$Q$6:$Q$457) -> 1441.711286 | M75: =IF(L75="k V","k V",(K75-L75)/L75) -> -0.1824034655 | N75: =LOOKUP(2,1/('Data E2059 '!$A$6:$A$457&"*"&'Data E2059 '!$C$6:$C$457=$B74&"*"&TRIM($A75)),'Data E2059 '!$K$6:$K$457)/100 -> 0.01252440934 | O75: =LOOKUP(2,1/('Data E2059 '!$A$6:$A$457&"*"&'Data E2059 '!$C$6:$C$457=$B74&"*"&TRIM($A75)),'Data E2059 '!$S$6:$S$457)/100 -> 0.01210242009 | P75: =(N75-O75)*100 -> 0.04219892477 | Q75: =P75/O75/100 -> 0.03486817054
A76: 20:00-23:00 | B76: =LOOKUP(2,1/('Data E2059 '!$A$6:$A$457&"*"&'Data E2059 '!$C$6:$C$457=$B74&"*"&TRIM($A76)),'Data E2059 '!$D$6:$D$457) -> 0.07053282425 | C76: =LOOKUP(2,1/('Data E2059 '!$A$6:$A$457&"*"&'Data E2059 '!$C$6:$C$457=$B74&"*"&TRIM($A76)),'Data E2059 '!$L$6:$L$457) -> 0.07312688432 | D76: =IF(C76="k V","k V",(B76-C76)/C76) -> -0.03547341162 | E76: =(LOOKUP(2,1/('Data E2059 '!$A$6:$A$457&"*"&'Data E2059 '!$C$6:$C$457=$B74&"*"&TRIM($A76)),'Data E2059 '!$I$6:$I$457))/(LOOKUP(2,1/('Data E2059 '!$A$6:$A$457&"*"&'Data E2059 '!$C$6:$C$457=$B74&"*"&TRIM($A76)),'Data E2059 '!$G$6:$G$457)) -> 12668.54304 | F76: =(LOOKUP(2,1/('Data E2059 '!$A$6:$A$457&"*"&'Data E2059 '!$C$6:$C$457=$B74&"*"&TRIM($A76)),'Data E2059 '!$Q$6:$Q$457))/(LOOKUP(2,1/('Data E2059 '!$A$6:$A$457&"*"&'Data E2059 '!$C$6:$C$457=$B74&"*"&TRIM($A76)),'Data E2059 '!$O$6:$O$457)) -> 13340.07583 | G76: =IF(F76="k V","k V",(E76-F76)/F76) -> -0.05033950355 | H76: =LOOKUP(2,1/('Data E2059 '!$A$6:$A$457&"*"&'Data E2059 '!$C$6:$C$457=$B74&"*"&TRIM($A76)),'Data E2059 '!$H$6:$H$457) -> 29.98976021 | I76: =LOOKUP(2,1/('Data E2059 '!$A$6:$A$457&"*"&'Data E2059 '!$C$6:$C$457=$B74&"*"&TRIM($A76)),'Data E2059 '!$P$6:$P$457) -> 31.15608333 | J76: =IF(I76="k V","k V",(H76-I76)/I76) -> -0.03743484403 | K76: =LOOKUP(2,1/('Data E2059 '!$A$6:$A$457&"*"&'Data E2059 '!$C$6:$C$457=$B74&"*"&TRIM($A76)),'Data E2059 '!$I$6:$I$457) -> 2115.262486 | L76: =LOOKUP(2,1/('Data E2059 '!$A$6:$A$457&"*"&'Data E2059 '!$C$6:$C$457=$B74&"*"&TRIM($A76)),'Data E2059 '!$Q$6:$Q$457) -> 2278.347302 | M76: =IF(L76="k V","k V",(K76-L76)/L76) -> -0.07158031402 | N76: =LOOKUP(2,1/('Data E2059 '!$A$6:$A$457&"*"&'Data E2059 '!$C$6:$C$457=$B74&"*"&TRIM($A76)),'Data E2059 '!$K$6:$K$457)/100 -> 0.007901292416 | O76: =LOOKUP(2,1/('Data E2059 '!$A$6:$A$457&"*"&'Data E2059 '!$C$6:$C$457=$B74&"*"&TRIM($A76)),'Data E2059 '!$S$6:$S$457)/100 -> 0.007532176745 | P76: =(N76-O76)*100 -> 0.03691156702 | Q76: =P76/O76/100 -> 0.04900517907
A78: ARD | B78: ARD
A79: 03:00-03:00 | B79: =LOOKUP(2,1/('Data E2059 '!$A$6:$A$457&"*"&'Data E2059 '!$C$6:$C$457=$B78&"*"&TRIM($A79)),'Data E2059 '!$D$6:$D$457) -> 0.5605739225 | C79: =LOOKUP(2,1/('Data E2059 '!$A$6:$A$457&"*"&'Data E2059 '!$C$6:$C$457=$B78&"*"&TRIM($A79)),'Data E2059 '!$L$6:$L$457) -> 0.6384061681 | D79: =IF(C79="k V","k V",(B79-C79)/C79) -> -0.1219165 | E79: =(LOOKUP(2,1/('Data E2059 '!$A$6:$A$457&"*"&'Data E2059 '!$C$6:$C$457=$B78&"*"&TRIM($A79)),'Data E2059 '!$I$6:$I$457))/(LOOKUP(2,1/('Data E2059 '!$A$6:$A$457&"*"&'Data E2059 '!$C$6:$C$457=$B78&"*"&TRIM($A79)),'Data E2059 '!$G$6:$G$457)) -> 14400.34646 | F79: =(LOOKUP(2,1/('Data E2059 '!$A$6:$A$457&"*"&'Data E2059 '!$C$6:$C$457=$B78&"*"&TRIM($A79)),'Data E2059 '!$Q$6:$Q$457))/(LOOKUP(2,1/('Data E2059 '!$A$6:$A$457&"*"&'Data E2059 '!$C$6:$C$457=$B78&"*"&TRIM($A79)),'Data E2059 '!$O$6:$O$457)) -> 12703.12898 | G79: =IF(F79="k V","k V",(E79-F79)/F79) -> 0.1336062541 | H79: =LOOKUP(2,1/('Data E2059 '!$A$6:$A$457&"*"&'Data E2059 '!$C$6:$C$457=$B78&"*"&TRIM($A79)),'Data E2059 '!$H$6:$H$457) -> 34.08952212 | I79: =LOOKUP(2,1/('Data E2059 '!$A$6:$A$457&"*"&'Data E2059 '!$C$6:$C$457=$B78&"*"&TRIM($A79)),'Data E2059 '!$P$6:$P$457) -> 29.66861423 | J79: =IF(I79="k V","k V",(H79-I79)/I79) -> 0.1490095848 | K79: =LOOKUP(2,1/('Data E2059 '!$A$6:$A$457&"*"&'Data E2059 '!$C$6:$C$457=$B78&"*"&TRIM($A79)),'Data E2059 '!$I$6:$I$457) -> 19109.69713 | L79: =LOOKUP(2,1/('Data E2059 '!$A$6:$A$457&"*"&'Data E2059 '!$C$6:$C$457=$B78&"*"&TRIM($A79)),'Data E2059 '!$Q$6:$Q$457) -> 18940.62632 | M79: =IF(L79="k V","k V",(K79-L79)/L79) -> 0.008926357736 | N79: =LOOKUP(2,1/('Data E2059 '!$A$6:$A$457&"*"&'Data E2059 '!$C$6:$C$457=$B78&"*"&TRIM($A79)),'Data E2059 '!$K$6:$K$457)/100 -> 0.08904368844 | O79: =LOOKUP(2,1/('Data E2059 '!$A$6:$A$457&"*"&'Data E2059 '!$C$6:$C$457=$B78&"*"&TRIM($A79)),'Data E2059 '!$S$6:$S$457)/100 -> 0.09264581173 | P79: =(N79-O79)*100 -> -0.3602123287 | Q79: =P79/O79/100 -> -0.03888058424
A80: 17:00-20:00 | B80: =LOOKUP(2,1/('Data E2059 '!$A$6:$A$457&"*"&'Data E2059 '!$C$6:$C$457=$B78&"*"&TRIM($A80)),'Data E2059 '!$D$6:$D$457) -> 0.6290010544 | C80: =LOOKUP(2,1/('Data E2059 '!$A$6:$A$457&"*"&'Data E2059 '!$C$6:$C$457=$B78&"*"&TRIM($A80)),'Data E2059 '!$L$6:$L$457) -> 0.6964958371 | D80: =IF(C80="k V","k V",(B80-C80)/C80) -> -0.09690622554 | E80: =(LOOKUP(2,1/('Data E2059 '!$A$6:$A$457&"*"&'Data E2059 '!$C$6:$C$457=$B78&"*"&TRIM($A80)),'Data E2059 '!$I$6:$I$457))/(LOOKUP(2,1/('Data E2059 '!$A$6:$A$457&"*"&'Data E2059 '!$C$6:$C$457=$B78&"*"&TRIM($A80)),'Data E2059 '!$G$6:$G$457)) -> 13788.2473 | F80: =(LOOKUP(2,1/('Data E2059 '!$A$6:$A$457&"*"&'Data E2059 '!$C$6:$C$457=$B78&"*"&TRIM($A80)),'Data E2059 '!$Q$6:$Q$457))/(LOOKUP(2,1/('Data E2059 '!$A$6:$A$457&"*"&'Data E2059 '!$C$6:$C$457=$B78&"*"&TRIM($A80)),'Data E2059 '!$O$6:$O$457)) -> 12295.07375 | G80: =IF(F80="k V","k V",(E80-F80)/F80) -> 0.1214448632 | H80: =LOOKUP(2,1/('Data E2059 '!$A$6:$A$457&"*"&'Data E2059 '!$C$6:$C$457=$B78&"*"&TRIM($A80)),'Data E2059 '!$H$6:$H$457) -> 32.64051753 | I80: =LOOKUP(2,1/('Data E2059 '!$A$6:$A$457&"*"&'Data E2059 '!$C$6:$C$457=$B78&"*"&TRIM($A80)),'Data E2059 '!$P$6:$P$457) -> 28.71558657 | J80: =IF(I80="k V","k V",(H80-I80)/I80) -> 0.1366829461 | K80: =LOOKUP(2,1/('Data E2059 '!$A$6:$A$457&"*"&'Data E2059 '!$C$6:$C$457=$B78&"*"&TRIM($A80)),'Data E2059 '!$I$6:$I$457) -> 20530.91995 | L80: =LOOKUP(2,1/('Data E2059 '!$A$6:$A$457&"*"&'Data E2059 '!$C$6:$C$457=$B78&"*"&TRIM($A80)),'Data E2059 '!$Q$6:$Q$457) -> 20000.2865 | M80: =IF(L80="k V","k V",(K80-L80)/L80) -> 0.02653129212 | N80: =LOOKUP(2,1/('Data E2059 '!$A$6:$A$457&"*"&'Data E2059 '!$C$6:$C$457=$B78&"*"&TRIM($A80)),'Data E2059 '!$K$6:$K$457)/100 -> 0.1016329326 | O80: =LOOKUP(2,1/('Data E2059 '!$A$6:$A$457&"*"&'Data E2059 '!$C$6:$C$457=$B78&"*"&TRIM($A80)),'Data E2059 '!$S$6:$S$457)/100 -> 0.09818200745 | P80: =(N80-O80)*100 -> 0.3450925098 | Q80: =P80/O80/100 -> 0.03514824343
A81: ZDF | B81: ZDF
A82: 03:00-03:00 | B82: =LOOKUP(2,1/('Data E2059 '!$A$6:$A$457&"*"&'Data E2059 '!$C$6:$C$457=$B81&"*"&TRIM($A82)),'Data E2059 '!$D$6:$D$457) -> 0.5518202897 | C82: =LOOKUP(2,1/('Data E2059 '!$A$6:$A$457&"*"&'Data E2059 '!$C$6:$C$457=$B81&"*"&TRIM($A82)),'Data E2059 '!$L$6:$L$457) -> 0.6374896135 | D82: =IF(C82="k V","k V",(B82-C82)/C82) -> -0.1343854424 | E82: =(LOOKUP(2,1/('Data E2059 '!$A$6:$A$457&"*"&'Data E2059 '!$C$6:$C$457=$B81&"*"&TRIM($A82)),'Data E2059 '!$I$6:$I$457))/(LOOKUP(2,1/('Data E2059 '!$A$6:$A$457&"*"&'Data E2059 '!$C$6:$C$457=$B81&"*"&TRIM($A82)),'Data E2059 '!$G$6:$G$457)) -> 17194.39158 | F82: =(LOOKUP(2,1/('Data E2059 '!$A$6:$A$457&"*"&'Data E2059 '!$C$6:$C$457=$B81&"*"&TRIM($A82)),'Data E2059 '!$Q$6:$Q$457))/(LOOKUP(2,1/('Data E2059 '!$A$6:$A$457&"*"&'Data E2059 '!$C$6:$C$457=$B81&"*"&TRIM($A82)),'Data E2059 '!$O$6:$O$457)) -> 15205.11946 | G82: =IF(F82="k V","k V",(E82-F82)/F82) -> 0.1308291016 | H82: =LOOKUP(2,1/('Data E2059 '!$A$6:$A$457&"*"&'Data E2059 '!$C$6:$C$457=$B81&"*"&TRIM($A82)),'Data E2059 '!$H$6:$H$457) -> 40.70378401 | I82: =LOOKUP(2,1/('Data E2059 '!$A$6:$A$457&"*"&'Data E2059 '!$C$6:$C$457=$B81&"*"&TRIM($A82)),'Data E2059 '!$P$6:$P$457) -> 35.5121029 | J82: =IF(I82="k V","k V",(H82-I82)/I82) -> 0.1461946966 | K82: =LOOKUP(2,1/('Data E2059 '!$A$6:$A$457&"*"&'Data E2059 '!$C$6:$C$457=$B81&"*"&TRIM($A82)),'Data E2059 '!$I$6:$I$457) -> 22461.17389 | L82: =LOOKUP(2,1/('Data E2059 '!$A$6:$A$457&"*"&'Data E2059 '!$C$6:$C$457=$B81&"*"&TRIM($A82)),'Data E2059 '!$Q$6:$Q$457) -> 22638.59675 | M82: =IF(L82="k V","k V",(K82-L82)/L82) -> -0.007837184781 | N82: =LOOKUP(2,1/('Data E2059 '!$A$6:$A$457&"*"&'Data E2059 '!$C$6:$C$457=$B81&"*"&TRIM($A82)),'Data E2059 '!$K$6:$K$457)/100 -> 0.094300758 | O82: =LOOKUP(2,1/('Data E2059 '!$A$6:$A$457&"*"&'Data E2059 '!$C$6:$C$457=$B81&"*"&TRIM($A82)),'Data E2059 '!$S$6:$S$457)/100 -> 0.09912265474 | P82: =(N82-O82)*100 -> -0.4821896741 | Q82: =P82/O82/100 -> -0.04864575867
A83: 17:00-20:00 | B83: =LOOKUP(2,1/('Data E2059 '!$A$6:$A$457&"*"&'Data E2059 '!$C$6:$C$457=$B81&"*"&TRIM($A83)),'Data E2059 '!$D$6:$D$457) -> 0.577158913 | C83: =LOOKUP(2,1/('Data E2059 '!$A$6:$A$457&"*"&'Data E2059 '!$C$6:$C$457=$B81&"*"&TRIM($A83)),'Data E2059 '!$L$6:$L$457) -> 0.666465102 | D83: =IF(C83="k V","k V",(B83-C83)/C83) -> -0.1339997979 | E83: =(LOOKUP(2,1/('Data E2059 '!$A$6:$A$457&"*"&'Data E2059 '!$C$6:$C$457=$B81&"*"&TRIM($A83)),'Data E2059 '!$I$6:$I$457))/(LOOKUP(2,1/('Data E2059 '!$A$6:$A$457&"*"&'Data E2059 '!$C$6:$C$457=$B81&"*"&TRIM($A83)),'Data E2059 '!$G$6:$G$457)) -> 16887.97463 | F83: =(LOOKUP(2,1/('Data E2059 '!$A$6:$A$457&"*"&'Data E2059 '!$C$6:$C$457=$B81&"*"&TRIM($A83)),'Data E2059 '!$Q$6:$Q$457))/(LOOKUP(2,1/('Data E2059 '!$A$6:$A$457&"*"&'Data E2059 '!$C$6:$C$457=$B81&"*"&TRIM($A83)),'Data E2059 '!$O$6:$O$457)) -> 14935.67957 | G83: =IF(F83="k V","k V",(E83-F83)/F83) -> 0.1307135072 | H83: =LOOKUP(2,1/('Data E2059 '!$A$6:$A$457&"*"&'Data E2059 '!$C$6:$C$457=$B81&"*"&TRIM($A83)),'Data E2059 '!$H$6:$H$457) -> 39.97841205 | I83: =LOOKUP(2,1/('Data E2059 '!$A$6:$A$457&"*"&'Data E2059 '!$C$6:$C$457=$B81&"*"&TRIM($A83)),'Data E2059 '!$P$6:$P$457) -> 34.88281635 | J83: =IF(I83="k V","k V",(H83-I83)/I83) -> 0.1460775315 | K83: =LOOKUP(2,1/('Data E2059 '!$A$6:$A$457&"*"&'Data E2059 '!$C$6:$C$457=$B81&"*"&TRIM($A83)),'Data E2059 '!$I$6:$I$457) -> 23073.89685 | L83: =LOOKUP(2,1/('Data E2059 '!$A$6:$A$457&"*"&'Data E2059 '!$C$6:$C$457=$B81&"*"&TRIM($A83)),'Data E2059 '!$Q$6:$Q$457) -> 23248.17976 | M83: =IF(L83="k V","k V",(K83-L83)/L83) -> -0.007496626132 | N83: =LOOKUP(2,1/('Data E2059 '!$A$6:$A$457&"*"&'Data E2059 '!$C$6:$C$457=$B81&"*"&TRIM($A83)),'Data E2059 '!$K$6:$K$457)/100 -> 0.09229160036 | O83: =LOOKUP(2,1/('Data E2059 '!$A$6:$A$457&"*"&'Data E2059 '!$C$6:$C$457=$B81&"*"&TRIM($A83)),'Data E2059 '!$S$6:$S$457)/100 -> 0.09371461124 | P83: =(N83-O83)*100 -> -0.1423010873 | Q83: =P83/O83/100 -> -0.0151845145
A85: Quelle: AGF in Zusammenarbeit mit GfK | AGF SCOPE 1.5 | Markstandard: Bewegtbild | Seven.One Media - Media Insights & Analytics
A86: Daten endgültig gewichtet, WB-RW und TKP für Werbung der TA 1-30

Sheet Zeitschienen Monat
G1: Trendmonitor | P1: =VALUE(RIGHT(R2,10)) -> 2024-02-29
I2: E 20-59 J. | R2: ='Data E2059 '!D2 -> 01.02.2024 - 29.02.2024
B3: RW Zeitschiene in Mio | E3: Seher in % | H3: Verweildauer in Min. | L3: Ø Sehdauer in Min.
B4: ='Übersicht Monat'!$B$7 -> 2024 | C4: ='Übersicht Monat'!$C$7 -> 2023 | D4: Diff in % | E4: ='Übersicht Monat'!$B$7 -> 2024 | F4: ='Übersicht Monat'!$C$7 -> 2023 | G4: Diff in % | H4: ='Übersicht Monat'!$B$7 -> 2024 | I4: ='Übersicht Monat'!$C$7 -> 2023 | K4: Diff in % | L4: ='Übersicht Monat'!$B$7 -> 2024 | M4: ='Übersicht Monat'!$C$7 -> 2023 | N4: Diff in %
A5: TV-Gesamt | D5: *Reichweiten der Zeitschienen
A6: 03:00-03:00 | B6: =LOOKUP(2,1/('Data E2059 '!$A$6:$A$457&"*"&'Data E2059 '!$C$6:$C$457=$A5&"*"&TRIM($A6)),'Data E2059 '!$D$6:$D$457) -> 4.156859827 | C6: =LOOKUP(2,1/('Data E2059 '!$A$6:$A$457&"*"&'Data E2059 '!$C$6:$C$457=$A5&"*"&TRIM($A6)),'Data E2059 '!$L$6:$L$457) -> 4.532916227 | D6: =IF(C6="k V","k V",(B6-C6)/C6) -> -0.08296125082 | E6: =LOOKUP(2,1/('Data E2059 '!$A$6:$A$457&"*"&'Data E2059 '!$C$6:$C$457=$A5&"*"&TRIM($A6)),'Data E2059 '!$I$6:$I$457) -> 58.50976592 | F6: =LOOKUP(2,1/('Data E2059 '!$A$6:$A$457&"*"&'Data E2059 '!$C$6:$C$457=$A5&"*"&TRIM($A6)),'Data E2059 '!$Q$6:$Q$457) -> 59.42992596 | G6: =IF(F6="k V","k V",(E6-F6)/F6) -> -0.0154831092 | H6: =LOOKUP(2,1/('Data E2059 '!$A$6:$A$457&"*"&'Data E2059 '!$C$6:$C$457=$A5&"*"&TRIM($A6)),'Data E2059 '!$J$6:$J$457) -> 230.7523914 | I6: =LOOKUP(2,1/('Data E2059 '!$A$6:$A$457&"*"&'Data E2059 '!$C$6:$C$457=$A5&"*"&TRIM($A6)),'Data E2059 '!$R$6:$R$457) -> 245.9975638 | K6: =IF(I6="k V","k V",(H6-I6)/I6) -> -0.06197285918 | L6: =LOOKUP(2,1/('Data E2059 '!$A$6:$A$457&"*"&'Data E2059 '!$C$6:$C$457=$A5&"*"&TRIM($A6)),'Data E2059 '!$K$6:$K$457) -> 141.7014173 | M6: =LOOKUP(2,1/('Data E2059 '!$A$6:$A$457&"*"&'Data E2059 '!$C$6:$C$457=$A5&"*"&TRIM($A6)),'Data E2059 '!$S$6:$S$457) -> 152.4490574 | N6: =IF(M6="k V","k V",(L6-M6)/M6) -> -0.07049987871
A7: 06:00-09:00 | B7: =LOOKUP(2,1/('Data E2059 '!$A$6:$A$457&"*"&'Data E2059 '!$C$6:$C$457=$A5&"*"&TRIM($A7)),'Data E2059 '!$D$6:$D$457) -> 1.629766981 | C7: =LOOKUP(2,1/('Data E2059 '!$A$6:$A$457&"*"&'Data E2059 '!$C$6:$C$457=$A5&"*"&TRIM($A7)),'Data E2059 '!$L$6:$L$457) -> 1.752064517 | D7: -0.06980195935 | E7: =LOOKUP(2,1/('Data E2059 '!$A$6:$A$457&"*"&'Data E2059 '!$C$6:$C$457=$A5&"*"&TRIM($A7)),'Data E2059 '!$I$6:$I$457) -> 12.86826326 | F7: =LOOKUP(2,1/('Data E2059 '!$A$6:$A$457&"*"&'Data E2059 '!$C$6:$C$457=$A5&"*"&TRIM($A7)),'Data E2059 '!$Q$6:$Q$457) -> 13.06689898 | G7: -0.01520144277 | H7: =LOOKUP(2,1/('Data E2059 '!$A$6:$A$457&"*"&'Data E2059 '!$C$6:$C$457=$A5&"*"&TRIM($A7)),'Data E2059 '!$J$6:$J$457) -> 50.24454609 | I7: =LOOKUP(2,1/('Data E2059 '!$A$6:$A$457&"*"&'Data E2059 '!$C$6:$C$457=$A5&"*"&TRIM($A7)),'Data E2059 '!$R$6:$R$457) -> 52.77919988 | K7: -0.04802372529 | L7: =LOOKUP(2,1/('Data E2059 '!$A$6:$A$457&"*"&'Data E2059 '!$C$6:$C$457=$A5&"*"&TRIM($A7)),'Data E2059 '!$K$6:$K$457) -> 6.944553725 | M7: =LOOKUP(2,1/('Data E2059 '!$A$6:$A$457&"*"&'Data E2059 '!$C$6:$C$457=$A5&"*"&TRIM($A7)),'Data E2059 '!$S$6:$S$457) -> 7.365583512 | N7: -0.05716176946
A8: 09:00-13:00 | B8: =LOOKUP(2,1/('Data E2059 '!$A$6:$A$457&"*"&'Data E2059 '!$C$6:$C$457=$A5&"*"&TRIM($A8)),'Data E2059 '!$D$6:$D$457) -> 2.481436562 | C8: =LOOKUP(2,1/('Data E2059 '!$A$6:$A$457&"*"&'Data E2059 '!$C$6:$C$457=$A5&"*"&TRIM($A8)),'Data E2059 '!$L$6:$L$457) -> 2.813758315 | D8: -0.1181060048 | E8: =LOOKUP(2,1/('Data E2059 '!$A$6:$A$457&"*"&'Data E2059 '!$C$6:$C$457=$A5&"*"&TRIM($A8)),'Data E2059 '!$I$6:$I$457) -> 17.28360055 | F8: =LOOKUP(2,1/('Data E2059 '!$A$6:$A$457&"*"&'Data E2059 '!$C$6:$C$457=$A5&"*"&TRIM($A8)),'Data E2059 '!$Q$6:$Q$457) -> 18.28133465 | G8: -0.05457665517 | H8: =LOOKUP(2,1/('Data E2059 '!$A$6:$A$457&"*"&'Data E2059 '!$C$6:$C$457=$A5&"*"&TRIM($A8)),'Data E2059 '!$J$6:$J$457) -> 73.08825646 | I8: =LOOKUP(2,1/('Data E2059 '!$A$6:$A$457&"*"&'Data E2059 '!$C$6:$C$457=$A5&"*"&TRIM($A8)),'Data E2059 '!$R$6:$R$457) -> 78.58412551 | K8: -0.06993612282 | L8: =LOOKUP(2,1/('Data E2059 '!$A$6:$A$457&"*"&'Data E2059 '!$C$6:$C$457=$A5&"*"&TRIM($A8)),'Data E2059 '!$K$6:$K$457) -> 14.098105 | M8: =LOOKUP(2,1/('Data E2059 '!$A$6:$A$457&"*"&'Data E2059 '!$C$6:$C$457=$A5&"*"&TRIM($A8)),'Data E2059 '!$S$6:$S$457) -> 15.77184831 | N8: -0.1061222045
A9: 13:00-17:00 | B9: =LOOKUP(2,1/('Data E2059 '!$A$6:$A$457&"*"&'Data E2059 '!$C$6:$C$457=$A5&"*"&TRIM($A9)),'Data E2059 '!$D$6:$D$457) -> 3.720253262 | C9: =LOOKUP(2,1/('Data E2059 '!$A$6:$A$457&"*"&'Data E2059 '!$C$6:$C$457=$A5&"*"&TRIM($A9)),'Data E2059 '!$L$6:$L$457) -> 4.28228799 | D9: -0.131246364 | E9: =LOOKUP(2,1/('Data E2059 '!$A$6:$A$457&"*"&'Data E2059 '!$C$6:$C$457=$A5&"*"&TRIM($A9)),'Data E2059 '!$I$6:$I$457) -> 22.62674559 | F9: =LOOKUP(2,1/('Data E2059 '!$A$6:$A$457&"*"&'Data E2059 '!$C$6:$C$457=$A5&"*"&TRIM($A9)),'Data E2059 '!$Q$6:$Q$457) -> 24.19094312 | G9: -0.06466046086 | H9: =LOOKUP(2,1/('Data E2059 '!$A$6:$A$457&"*"&'Data E2059 '!$C$6:$C$457=$A5&"*"&TRIM($A9)),'Data E2059 '!$J$6:$J$457) -> 84.66812793 | I9: =LOOKUP(2,1/('Data E2059 '!$A$6:$A$457&"*"&'Data E2059 '!$C$6:$C$457=$A5&"*"&TRIM($A9)),'Data E2059 '!$R$6:$R$457) -> 91.20460355 | K9: -0.07166826415 | L9: =LOOKUP(2,1/('Data E2059 '!$A$6:$A$457&"*"&'Data E2059 '!$C$6:$C$457=$A5&"*"&TRIM($A9)),'Data E2059 '!$K$6:$K$457) -> 21.1363538 | M9: =LOOKUP(2,1/('Data E2059 '!$A$6:$A$457&"*"&'Data E2059 '!$C$6:$C$457=$A5&"*"&TRIM($A9)),'Data E2059 '!$S$6:$S$457) -> 24.00333968 | N9: -0.1194411242
A10: 17:00-20:00 | B10: =LOOKUP(2,1/('Data E2059 '!$A$6:$A$457&"*"&'Data E2059 '!$C$6:$C$457=$A5&"*"&TRIM($A10)),'Data E2059 '!$D$6:$D$457) -> 6.873133875 | C10: =LOOKUP(2,1/('Data E2059 '!$A$6:$A$457&"*"&'Data E2059 '!$C$6:$C$457=$A5&"*"&TRIM($A10)),'Data E2059 '!$L$6:$L$457) -> 7.590651088 | D10: -0.09452643853 | E10: =LOOKUP(2,1/('Data E2059 '!$A$6:$A$457&"*"&'Data E2059 '!$C$6:$C$457=$A5&"*"&TRIM($A10)),'Data E2059 '!$I$6:$I$457) -> 35.77526204 | F10: =LOOKUP(2,1/('Data E2059 '!$A$6:$A$457&"*"&'Data E2059 '!$C$6:$C$457=$A5&"*"&TRIM($A10)),'Data E2059 '!$Q$6:$Q$457) -> 37.31739855 | G10: -0.04132486631 | H10: =LOOKUP(2,1/('Data E2059 '!$A$6:$A$457&"*"&'Data E2059 '!$C$6:$C$457=$A5&"*"&TRIM($A10)),'Data E2059 '!$J$6:$J$457) -> 76.31738322 | I10: =LOOKUP(2,1/('Data E2059 '!$A$6:$A$457&"*"&'Data E2059 '!$C$6:$C$457=$A5&"*"&TRIM($A10)),'Data E2059 '!$R$6:$R$457) -> 80.2120627 | K10: -0.04855478529 | L10: =LOOKUP(2,1/('Data E2059 '!$A$6:$A$457&"*"&'Data E2059 '!$C$6:$C$457=$A5&"*"&TRIM($A10)),'Data E2059 '!$K$6:$K$457) -> 29.28691525 | M10: =LOOKUP(2,1/('Data E2059 '!$A$6:$A$457&"*"&'Data E2059 '!$C$6:$C$457=$A5&"*"&TRIM($A10)),'Data E2059 '!$S$6:$S$457) -> 31.91068248 | N10: -0.08222222238
A11: 20:00-23:00 | B11: =LOOKUP(2,1/('Data E2059 '!$A$6:$A$457&"*"&'Data E2059 '!$C$6:$C$457=$A5&"*"&TRIM($A11)),'Data E2059 '!$D$6:$D$457) -> 10.46003217 | C11: =LOOKUP(2,1/('Data E2059 '!$A$6:$A$457&"*"&'Data E2059 '!$C$6:$C$457=$A5&"*"&TRIM($A11)),'Data E2059 '!$L$6:$L$457) -> 11.3836728 | D11: -0.08113731304 | E11: =LOOKUP(2,1/('Data E2059 '!$A$6:$A$457&"*"&'Data E2059 '!$C$6:$C$457=$A5&"*"&TRIM($A11)),'Data E2059 '!$I$6:$I$457) -> 45.29558415 | F11: =LOOKUP(2,1/('Data E2059 '!$A$6:$A$457&"*"&'Data E2059 '!$C$6:$C$457=$A5&"*"&TRIM($A11)),'Data E2059 '!$Q$6:$Q$457) -> 46.86368787 | G11: -0.03346095447 | H11: =LOOKUP(2,1/('Data E2059 '!$A$6:$A$457&"*"&'Data E2059 '!$C$6:$C$457=$A5&"*"&TRIM($A11)),'Data E2059 '!$J$6:$J$457) -> 93.61584406 | I11: =LOOKUP(2,1/('Data E2059 '!$A$6:$A$457&"*"&'Data E2059 '!$C$6:$C$457=$A5&"*"&TRIM($A11)),'Data E2059 '!$R$6:$R$457) -> 97.86779597 | K11: -0.0434458738 | L11: =LOOKUP(2,1/('Data E2059 '!$A$6:$A$457&"*"&'Data E2059 '!$C$6:$C$457=$A5&"*"&TRIM($A11)),'Data E2059 '!$K$6:$K$457) -> 44.57094555 | M11: =LOOKUP(2,1/('Data E2059 '!$A$6:$A$457&"*"&'Data E2059 '!$C$6:$C$457=$A5&"*"&TRIM($A11)),'Data E2059 '!$S$6:$S$457) -> 47.85633851 | N11: -0.06865115596
A12: 23:00-01:00 | B12: =LOOKUP(2,1/('Data E2059 '!$A$6:$A$457&"*"&'Data E2059 '!$C$6:$C$457=$A5&"*"&TRIM($A12)),'Data E2059 '!$D$6:$D$457) -> 5.125470278 | C12: =LOOKUP(2,1/('Data E2059 '!$A$6:$A$457&"*"&'Data E2059 '!$C$6:$C$457=$A5&"*"&TRIM($A12)),'Data E2059 '!$L$6:$L$457) -> 5.235932477 | D12: -0.02109694865 | E12: =LOOKUP(2,1/('Data E2059 '!$A$6:$A$457&"*"&'Data E2059 '!$C$6:$C$457=$A5&"*"&TRIM($A12)),'Data E2059 '!$I$6:$I$457) -> 23.37206057 | F12: =LOOKUP(2,1/('Data E2059 '!$A$6:$A$457&"*"&'Data E2059 '!$C$6:$C$457=$A5&"*"&TRIM($A12)),'Data E2059 '!$Q$6:$Q$457) -> 23.81484013 | G12: -0.01859259 | H12: =LOOKUP(2,1/('Data E2059 '!$A$6:$A$457&"*"&'Data E2059 '!$C$6:$C$457=$A5&"*"&TRIM($A12)),'Data E2059 '!$J$6:$J$457) -> 58.9130889 | I12: =LOOKUP(2,1/('Data E2059 '!$A$6:$A$457&"*"&'Data E2059 '!$C$6:$C$457=$A5&"*"&TRIM($A12)),'Data E2059 '!$R$6:$R$457) -> 58.57978185 | K12: 0.005689796716 | L12: =LOOKUP(2,1/('Data E2059 '!$A$6:$A$457&"*"&'Data E2059 '!$C$6:$C$457=$A5&"*"&TRIM($A12)),'Data E2059 '!$K$6:$K$457) -> 14.55999707 | M12: =LOOKUP(2,1/('Data E2059 '!$A$6:$A$457&"*"&'Data E2059 '!$C$6:$C$457=$A5&"*"&TRIM($A12)),'Data E2059 '!$S$6:$S$457) -> 14.67438272 | N12: -0.007794920574
B14: RW Werbung in Mio | E14: CpG Werbung in Euro | H14: TKP Werbung in Euro | L14: Tarif Werbung in Euro | O14: Marktanteile
B15: ='Übersicht Monat'!$B$7 -> 2024 | C15: ='Übersicht Monat'!$C$7 -> 2023 | D15: Diff in % | E15: ='Übersicht Monat'!$B$7 -> 2024 | F15: ='Übersicht Monat'!$C$7 -> 2023 | G15: Diff in % | H15: ='Übersicht Monat'!$B$7 -> 2024 | I15: ='Übersicht Monat'!$C$7 -> 2023 | J15: Index¹ | K15: Diff in % | L15: ='Übersicht Monat'!$B$7 -> 2024 | M15: ='Übersicht Monat'!$C$7 -> 2023 | N15: Diff in % | O15: ='Übersicht Monat'!$B$7 -> 2024 | P15: ='Übersicht Monat'!$C$7 -> 2023 | Q15: Diff | R15: Diff in %
B16: SAT.1
A17: 03:00-03:00 | B17: =LOOKUP(2,1/('Data E2059 '!$A$6:$A$457&"*"&'Data E2059 '!$C$6:$C$457=$B16&"*"&TRIM($A17)),'Data E2059 '!$D$6:$D$457) -> 0.2138713711 | C17: =LOOKUP(2,1/('Data E2059 '!$A$6:$A$457&"*"&'Data E2059 '!$C$6:$C$457=$B16&"*"&TRIM($A17)),'Data E2059 '!$L$6:$L$457) -> 0.2723370468 | D17: =IF(C17="k V","k V",(B17-C17)/C17) -> -0.2146813164 | E17: =(LOOKUP(2,1/('Data E2059 '!$A$6:$A$195&"*"&'Data E2059 '!$C$6:$C$195=$B$16&"*"&TRIM($A17)),'Data E2059 '!$I$6:$I$195))/(LOOKUP(2,1/('Data E2059 '!$A$6:$A$195&"*"&'Data E2059 '!$C$6:$C$195=$B$16&"*"&TRIM($A17)),'Data E2059 '!$G$6:$G$195)) -> 16746.41731 | F17: =(LOOKUP(2,1/('Data E2059 '!$A$6:$A$195&"*"&'Data E2059 '!$C$6:$C$195=$B$16&"*"&TRIM($A17)),'Data E2059 '!$Q$6:$Q$195))/(LOOKUP(2,1/('Data E2059 '!$A$6:$A$195&"*"&'Data E2059 '!$C$6:$C$195=$B$16&"*"&TRIM($A17)),'Data E2059 '!$O$6:$O$195)) -> 12530.10685 | G17: =IF(F17="k V","k V",(E17-F17)/F17) -> 0.336494374 | H17: =LOOKUP(2,1/('Data E2059 '!$A$6:$A$457&"*"&'Data E2059 '!$C$6:$C$457=$B16&"*"&TRIM($A17)),'Data E2059 '!$H$6:$H$457) -> 39.64315691 | I17: =LOOKUP(2,1/('Data E2059 '!$A$6:$A$457&"*"&'Data E2059 '!$C$6:$C$457=$B16&"*"&TRIM($A17)),'Data E2059 '!$P$6:$P$457) -> 29.26438036 | J17: =H17*100/H33 -> 92.83280187 | K17: =IF(I17="k V","k V",(H17-I17)/I17) -> 0.3546556063 | L17: =LOOKUP(2,1/('Data E2059 '!$A$6:$A$457&"*"&'Data E2059 '!$C$6:$C$457=$B16&"*"&TRIM($A17)),'Data E2059 '!$I$6:$I$457) -> 8478.536323 | M17: =LOOKUP(2,1/('Data E2059 '!$A$6:$A$457&"*"&'Data E2059 '!$C$6:$C$457=$B16&"*"&TRIM($A17)),'Data E2059 '!$Q$6:$Q$457) -> 7969.774922 | N17: =IF(M17="k V","k V",(L17-M17)/M17) -> 0.06383635752 | O17: =LOOKUP(2,1/('Data E2059 '!$A$6:$A$457&"*"&'Data E2059 '!$C$6:$C$457=$B16&"*"&TRIM($A17)),'Data E2059 '!$K$6:$K$457)/100 -> 0.05404315699 | P17: =LOOKUP(2,1/('Data E2059 '!$A$6:$A$457&"*"&'Data E2059 '!$C$6:$C$457=$B16&"*"&TRIM($A17)),'Data E2059 '!$S$6:$S$457)/100 -> 0.06009114084 | Q17: =(O17-P17)*100 -> -0.6047983848 | R17: =Q17/P17/100 -> -0.1006468468
A18: 06:00-09:00 | B18: =LOOKUP(2,1/('Data E2059 '!$A$6:$A$457&"*"&'Data E2059 '!$C$6:$C$457=$B16&"*"&TRIM($A18)),'Data E2059 '!$D$6:$D$457) -> 0.1611938606 | C18: =LOOKUP(2,1/('Data E2059 '!$A$6:$A$457&"*"&'Data E2059 '!$C$6:$C$457=$B16&"*"&TRIM($A18)),'Data E2059 '!$L$6:$L$457) -> 0.1960046706 | D18: -0.1776019412 | E18: =(LOOKUP(2,1/('Data E2059 '!$A$6:$A$195&"*"&'Data E2059 '!$C$6:$C$195=$B$16&"*"&TRIM($A18)),'Data E2059 '!$I$6:$I$195))/(LOOKUP(2,1/('Data E2059 '!$A$6:$A$195&"*"&'Data E2059 '!$C$6:$C$195=$B$16&"*"&TRIM($A18)),'Data E2059 '!$G$6:$G$195)) -> 11903.01957 | F18: =(LOOKUP(2,1/('Data E2059 '!$A$6:$A$195&"*"&'Data E2059 '!$C$6:$C$195=$B$16&"*"&TRIM($A18)),'Data E2059 '!$Q$6:$Q$195))/(LOOKUP(2,1/('Data E2059 '!$A$6:$A$195&"*"&'Data E2059 '!$C$6:$C$195=$B$16&"*"&TRIM($A18)),'Data E2059 '!$O$6:$O$195)) -> 9149.684808 | G18: 0.3009212687 | H18: =LOOKUP(2,1/('Data E2059 '!$A$6:$A$457&"*"&'Data E2059 '!$C$6:$C$457=$B16&"*"&TRIM($A18)),'Data E2059 '!$H$6:$H$457) -> 28.17756561 | I18: =LOOKUP(2,1/('Data E2059 '!$A$6:$A$457&"*"&'Data E2059 '!$C$6:$C$457=$B16&"*"&TRIM($A18)),'Data E2059 '!$P$6:$P$457) -> 21.36931948 | J18: =H18*100/H34 -> 95.3205983 | K18: 0.3185991085 | L18: =LOOKUP(2,1/('Data E2059 '!$A$6:$A$457&"*"&'Data E2059 '!$C$6:$C$457=$B16&"*"&TRIM($A18)),'Data E2059 '!$I$6:$I$457) -> 4542.050583 | M18: =LOOKUP(2,1/('Data E2059 '!$A$6:$A$457&"*"&'Data E2059 '!$C$6:$C$457=$B16&"*"&TRIM($A18)),'Data E2059 '!$Q$6:$Q$457) -> 4188.486424 | N18: 0.08441334715 | O18: =LOOKUP(2,1/('Data E2059 '!$A$6:$A$457&"*"&'Data E2059 '!$C$6:$C$457=$B16&"*"&TRIM($A18)),'Data E2059 '!$K$6:$K$457)/100 -> 0.1115478222 | P18: =LOOKUP(2,1/('Data E2059 '!$A$6:$A$457&"*"&'Data E2059 '!$C$6:$C$457=$B16&"*"&TRIM($A18)),'Data E2059 '!$S$6:$S$457)/100 -> 0.1198942857 | Q18: -0.834646358 | R18: -0.06961519082
A19: 09:00-13:00 | B19: =LOOKUP(2,1/('Data E2059 '!$A$6:$A$457&"*"&'Data E2059 '!$C$6:$C$457=$B16&"*"&TRIM($A19)),'Data E2059 '!$D$6:$D$457) -> 0.1559155094 | C19: =LOOKUP(2,1/('Data E2059 '!$A$6:$A$457&"*"&'Data E2059 '!$C$6:$C$457=$B16&"*"&TRIM($A19)),'Data E2059 '!$L$6:$L$457) -> 0.1681255967 | D19: -0.07262479726 | E19: =(LOOKUP(2,1/('Data E2059 '!$A$6:$A$195&"*"&'Data E2059 '!$C$6:$C$195=$B$16&"*"&TRIM($A19)),'Data E2059 '!$I$6:$I$195))/(LOOKUP(2,1/('Data E2059 '!$A$6:$A$195&"*"&'Data E2059 '!$C$6:$C$195=$B$16&"*"&TRIM($A19)),'Data E2059 '!$G$6:$G$195)) -> 10036.19288 | F19: =(LOOKUP(2,1/('Data E2059 '!$A$6:$A$195&"*"&'Data E2059 '!$C$6:$C$195=$B$16&"*"&TRIM($A19)),'Data E2059 '!$Q$6:$Q$195))/(LOOKUP(2,1/('Data E2059 '!$A$6:$A$195&"*"&'Data E2059 '!$C$6:$C$195=$B$16&"*"&TRIM($A19)),'Data E2059 '!$O$6:$O$195)) -> 8374.535344 | G19: 0.1984178782 | H19: =LOOKUP(2,1/('Data E2059 '!$A$6:$A$457&"*"&'Data E2059 '!$C$6:$C$457=$B16&"*"&TRIM($A19)),'Data E2059 '!$H$6:$H$457) -> 23.75829777 | I19: =LOOKUP(2,1/('Data E2059 '!$A$6:$A$457&"*"&'Data E2059 '!$C$6:$C$457=$B16&"*"&TRIM($A19)),'Data E2059 '!$P$6:$P$457) -> 19.55893837 | J19: 80.06565401 | K19: 0.2147028292 | L19: =LOOKUP(2,1/('Data E2059 '!$A$6:$A$457&"*"&'Data E2059 '!$C$6:$C$457=$B16&"*"&TRIM($A19)),'Data E2059 '!$I$6:$I$457) -> 3704.287098 | M19: =LOOKUP(2,1/('Data E2059 '!$A$6:$A$457&"*"&'Data E2059 '!$C$6:$C$457=$B16&"*"&TRIM($A19)),'Data E2059 '!$Q$6:$Q$457) -> 3288.358184 | N19: 0.1264852825 | O19: =LOOKUP(2,1/('Data E2059 '!$A$6:$A$457&"*"&'Data E2059 '!$C$6:$C$457=$B16&"*"&TRIM($A19)),'Data E2059 '!$K$6:$K$457)/100 -> 0.06799244795 | P19: =LOOKUP(2,1/('Data E2059 '!$A$6:$A$457&"*"&'Data E2059 '!$C$6:$C$457=$B16&"*"&TRIM($A19)),'Data E2059 '!$S$6:$S$457)/100 -> 0.06284789436 | Q19: 0.5144553591 | R19: 0.08185721484
A20: 13:00-17:00 | B20: =LOOKUP(2,1/('Data E2059 '!$A$6:$A$457&"*"&'Data E2059 '!$C$6:$C$457=$B16&"*"&TRIM($A20)),'Data E2059 '!$D$6:$D$457) -> 0.1495967579 | C20: =LOOKUP(2,1/('Data E2059 '!$A$6:$A$457&"*"&'Data E2059 '!$C$6:$C$457=$B16&"*"&TRIM($A20)),'Data E2059 '!$L$6:$L$457) -> 0.2573949167 | D20: -0.4188045365 | E20: =(LOOKUP(2,1/('Data E2059 '!$A$6:$A$195&"*"&'Data E2059 '!$C$6:$C$195=$B$16&"*"&TRIM($A20)),'Data E2059 '!$I$6:$I$195))/(LOOKUP(2,1/('Data E2059 '!$A$6:$A$195&"*"&'Data E2059 '!$C$6:$C$195=$B$16&"*"&TRIM($A20)),'Data E2059 '!$G$6:$G$195)) -> 13560.65201 | F20: =(LOOKUP(2,1/('Data E2059 '!$A$6:$A$195&"*"&'Data E2059 '!$C$6:$C$195=$B$16&"*"&TRIM($A20)),'Data E2059 '!$Q$6:$Q$195))/(LOOKUP(2,1/('Data E2059 '!$A$6:$A$195&"*"&'Data E2059 '!$C$6:$C$195=$B$16&"*"&TRIM($A20)),'Data E2059 '!$O$6:$O$195)) -> 8603.188542 | G20: 0.5762355952 | H20: =LOOKUP(2,1/('Data E2059 '!$A$6:$A$457&"*"&'Data E2059 '!$C$6:$C$457=$B16&"*"&TRIM($A20)),'Data E2059 '!$H$6:$H$457) -> 32.10161586 | I20: =LOOKUP(2,1/('Data E2059 '!$A$6:$A$457&"*"&'Data E2059 '!$C$6:$C$457=$B16&"*"&TRIM($A20)),'Data E2059 '!$P$6:$P$457) -> 20.09296368 | J20: 104.3799913 | K20: 0.597654601 | L20: =LOOKUP(2,1/('Data E2059 '!$A$6:$A$457&"*"&'Data E2059 '!$C$6:$C$457=$B16&"*"&TRIM($A20)),'Data E2059 '!$I$6:$I$457) -> 4802.297656 | M20: =LOOKUP(2,1/('Data E2059 '!$A$6:$A$457&"*"&'Data E2059 '!$C$6:$C$457=$B16&"*"&TRIM($A20)),'Data E2059 '!$Q$6:$Q$457) -> 5171.826711 | N20: -0.07145039366 | O20: =LOOKUP(2,1/('Data E2059 '!$A$6:$A$457&"*"&'Data E2059 '!$C$6:$C$457=$B16&"*"&TRIM($A20)),'Data E2059 '!$K$6:$K$457)/100 -> 0.04428402216 | P20: =LOOKUP(2,1/('Data E2059 '!$A$6:$A$457&"*"&'Data E2059 '!$C$6:$C$457=$B16&"*"&TRIM($A20)),'Data E2059 '!$S$6:$S$457)/100 -> 0.06423565085 | Q20: -1.99516287 | R20: -0.3106005533
A21: 17:00-20:00 | B21: =LOOKUP(2,1/('Data E2059 '!$A$6:$A$457&"*"&'Data E2059 '!$C$6:$C$457=$B16&"*"&TRIM($A21)),'Data E2059 '!$D$6:$D$457) -> 0.217044977 | C21: =LOOKUP(2,1/('Data E2059 '!$A$6:$A$457&"*"&'Data E2059 '!$C$6:$C$457=$B16&"*"&TRIM($A21)),'Data E2059 '!$L$6:$L$457) -> 0.3457755905 | D21: -0.3722952603 | E21: =(LOOKUP(2,1/('Data E2059 '!$A$6:$A$195&"*"&'Data E2059 '!$C$6:$C$195=$B$16&"*"&TRIM($A21)),'Data E2059 '!$I$6:$I$195))/(LOOKUP(2,1/('Data E2059 '!$A$6:$A$195&"*"&'Data E2059 '!$C$6:$C$195=$B$16&"*"&TRIM($A21)),'Data E2059 '!$G$6:$G$195)) -> 14491.27235 | F21: =(LOOKUP(2,1/('Data E2059 '!$A$6:$A$195&"*"&'Data E2059 '!$C$6:$C$195=$B$16&"*"&TRIM($A21)),'Data E2059 '!$Q$6:$Q$195))/(LOOKUP(2,1/('Data E2059 '!$A$6:$A$195&"*"&'Data E2059 '!$C$6:$C$195=$B$16&"*"&TRIM($A21)),'Data E2059 '!$O$6:$O$195)) -> 9133.080477 | G21: 0.5866795855 | H21: =LOOKUP(2,1/('Data E2059 '!$A$6:$A$457&"*"&'Data E2059 '!$C$6:$C$457=$B16&"*"&TRIM($A21)),'Data E2059 '!$H$6:$H$457) -> 34.304638 | I21: =LOOKUP(2,1/('Data E2059 '!$A$6:$A$457&"*"&'Data E2059 '!$C$6:$C$457=$B16&"*"&TRIM($A21)),'Data E2059 '!$P$6:$P$457) -> 21.33053965 | J21: 96.49159874 | K21: 0.6082405117 | L21: =LOOKUP(2,1/('Data E2059 '!$A$6:$A$457&"*"&'Data E2059 '!$C$6:$C$457=$B16&"*"&TRIM($A21)),'Data E2059 '!$I$6:$I$457) -> 7445.649365 | M21: =LOOKUP(2,1/('Data E2059 '!$A$6:$A$457&"*"&'Data E2059 '!$C$6:$C$457=$B16&"*"&TRIM($A21)),'Data E2059 '!$Q$6:$Q$457) -> 7375.579941 | N21: 0.009500191742 | O21: =LOOKUP(2,1/('Data E2059 '!$A$6:$A$457&"*"&'Data E2059 '!$C$6:$C$457=$B16&"*"&TRIM($A21)),'Data E2059 '!$K$6:$K$457)/100 -> 0.03891387243 | P21: =LOOKUP(2,1/('Data E2059 '!$A$6:$A$457&"*"&'Data E2059 '!$C$6:$C$457=$B16&"*"&TRIM($A21)),'Data E2059 '!$S$6:$S$457)/100 -> 0.05212696221 | Q21: -1.321308978 | R21: -0.253478991
A22: 20:00-23:00 | B22: =LOOKUP(2,1/('Data E2059 '!$A$6:$A$457&"*"&'Data E2059 '!$C$6:$C$457=$B16&"*"&TRIM($A22)),'Data E2059 '!$D$6:$D$457) -> 0.4843969441 | C22: =LOOKUP(2,1/('Data E2059 '!$A$6:$A$457&"*"&'Data E2059 '!$C$6:$C$457=$B16&"*"&TRIM($A22)),'Data E2059 '!$L$6:$L$457) -> 0.5005423265 | D22: -0.03225577854 | E22: =(LOOKUP(2,1/('Data E2059 '!$A$6:$A$195&"*"&'Data E2059 '!$C$6:$C$195=$B$16&"*"&TRIM($A22)),'Data E2059 '!$I$6:$I$195))/(LOOKUP(2,1/('Data E2059 '!$A$6:$A$195&"*"&'Data E2059 '!$C$6:$C$195=$B$16&"*"&TRIM($A22)),'Data E2059 '!$G$6:$G$195)) -> 23383.80544 | F22: =(LOOKUP(2,1/('Data E2059 '!$A$6:$A$195&"*"&'Data E2059 '!$C$6:$C$195=$B$16&"*"&TRIM($A22)),'Data E2059 '!$Q$6:$Q$195))/(LOOKUP(2,1/('Data E2059 '!$A$6:$A$195&"*"&'Data E2059 '!$C$6:$C$195=$B$16&"*"&TRIM($A22)),'Data E2059 '!$O$6:$O$195)) -> 20745.65916 | G22: 0.1271661825 | H22: =LOOKUP(2,1/('Data E2059 '!$A$6:$A$457&"*"&'Data E2059 '!$C$6:$C$457=$B16&"*"&TRIM($A22)),'Data E2059 '!$H$6:$H$457) -> 55.35559345 | I22: =LOOKUP(2,1/('Data E2059 '!$A$6:$A$457&"*"&'Data E2059 '!$C$6:$C$457=$B16&"*"&TRIM($A22)),'Data E2059 '!$P$6:$P$457) -> 48.45200985 | J22: 87.03731745 | K22: 0.142482915 | L22: =LOOKUP(2,1/('Data E2059 '!$A$6:$A$457&"*"&'Data E2059 '!$C$6:$C$457=$B16&"*"&TRIM($A22)),'Data E2059 '!$I$6:$I$457) -> 26814.0803 | M22: =LOOKUP(2,1/('Data E2059 '!$A$6:$A$457&"*"&'Data E2059 '!$C$6:$C$457=$B16&"*"&TRIM($A22)),'Data E2059 '!$Q$6:$Q$457) -> 24252.28173 | N22: 0.1056312391 | O22: =LOOKUP(2,1/('Data E2059 '!$A$6:$A$457&"*"&'Data E2059 '!$C$6:$C$457=$B16&"*"&TRIM($A22)),'Data E2059 '!$K$6:$K$457)/100 -> 0.05839334181 | P22: =LOOKUP(2,1/('Data E2059 '!$A$6:$A$457&"*"&'Data E2059 '!$C$6:$C$457=$B16&"*"&TRIM($A22)),'Data E2059 '!$S$6:$S$457)/100 -> 0.05580543696 | Q22: 0.2587904844 | R22: 0.04637370452
A23: 23:00-01:00 | B23: =LOOKUP(2,1/('Data E2059 '!$A$6:$A$457&"*"&'Data E2059 '!$C$6:$C$457=$B16&"*"&TRIM($A23)),'Data E2059 '!$D$6:$D$457) -> 0.1683630848 | C23: =LOOKUP(2,1/('Data E2059 '!$A$6:$A$457&"*"&'Data E2059 '!$C$6:$C$457=$B16&"*"&TRIM($A23)),'Data E2059 '!$L$6:$L$457) -> 0.2137663804 | D23: -0.212396802 | E23: =(LOOKUP(2,1/('Data E2059 '!$A$6:$A$195&"*"&'Data E2059 '!$C$6:$C$195=$B$16&"*"&TRIM($A23)),'Data E2059 '!$I$6:$I$195))/(LOOKUP(2,1/('Data E2059 '!$A$6:$A$195&"*"&'Data E2059 '!$C$6:$C$195=$B$16&"*"&TRIM($A23)),'Data E2059 '!$G$6:$G$195)) -> 20190.36342 | F23: =(LOOKUP(2,1/('Data E2059 '!$A$6:$A$195&"*"&'Data E2059 '!$C$6:$C$195=$B$16&"*"&TRIM($A23)),'Data E2059 '!$Q$6:$Q$195))/(LOOKUP(2,1/('Data E2059 '!$A$6:$A$195&"*"&'Data E2059 '!$C$6:$C$195=$B$16&"*"&TRIM($A23)),'Data E2059 '!$O$6:$O$195)) -> 12485.09461 | G23: 0.6171574233 | H23: =LOOKUP(2,1/('Data E2059 '!$A$6:$A$457&"*"&'Data E2059 '!$C$6:$C$457=$B16&"*"&TRIM($A23)),'Data E2059 '!$H$6:$H$457) -> 47.7958796 | I23: =LOOKUP(2,1/('Data E2059 '!$A$6:$A$457&"*"&'Data E2059 '!$C$6:$C$457=$B16&"*"&TRIM($A23)),'Data E2059 '!$P$6:$P$457) -> 29.15925313 | J23: 123.514066 | K23: 0.6391325039 | L23: =LOOKUP(2,1/('Data E2059 '!$A$6:$A$457&"*"&'Data E2059 '!$C$6:$C$457=$B16&"*"&TRIM($A23)),'Data E2059 '!$I$6:$I$457) -> 8047.061731 | M23: =LOOKUP(2,1/('Data E2059 '!$A$6:$A$457&"*"&'Data E2059 '!$C$6:$C$457=$B16&"*"&TRIM($A23)),'Data E2059 '!$Q$6:$Q$457) -> 6233.267997 | N23: 0.290986002 | O23: =LOOKUP(2,1/('Data E2059 '!$A$6:$A$457&"*"&'Data E2059 '!$C$6:$C$457=$B16&"*"&TRIM($A23)),'Data E2059 '!$K$6:$K$457)/100 -> 0.04330534182 | P23: =LOOKUP(2,1/('Data E2059 '!$A$6:$A$457&"*"&'Data E2059 '!$C$6:$C$457=$B16&"*"&TRIM($A23)),'Data E2059 '!$S$6:$S$457)/100 -> 0.04964267622 | Q23: -0.6337334405 | R23: -0.127659
B24: ProSieben
A25: 03:00-03:00 | B25: =LOOKUP(2,1/('Data E2059 '!$A$6:$A$457&"*"&'Data E2059 '!$C$6:$C$457=$B24&"*"&TRIM($A25)),'Data E2059 '!$D$6:$D$457) -> 0.192236329 | C25: =LOOKUP(2,1/('Data E2059 '!$A$6:$A$457&"*"&'Data E2059 '!$C$6:$C$457=$B24&"*"&TRIM($A25)),'Data E2059 '!$L$6:$L$457) -> 0.2386610853 | D25: =IF(C25="k V","k V",(B25-C25)/C25) -> -0.1945216842 | E25: =(LOOKUP(2,1/('Data E2059 '!$A$6:$A$195&"*"&'Data E2059 '!$C$6:$C$195=$B$24&"*"&TRIM($A25)),'Data E2059 '!$I$6:$I$195))/(LOOKUP(2,1/('Data E2059 '!$A$6:$A$195&"*"&'Data E2059 '!$C$6:$C$195=$B$24&"*"&TRIM($A25)),'Data E2059 '!$G$6:$G$195)) -> 21059.23939 | F25: =(LOOKUP(2,1/('Data E2059 '!$A$6:$A$195&"*"&'Data E2059 '!$C$6:$C$195=$B$24&"*"&TRIM($A25)),'Data E2059 '!$Q$6:$Q$195))/(LOOKUP(2,1/('Data E2059 '!$A$6:$A$195&"*"&'Data E2059 '!$C$6:$C$195=$B$24&"*"&TRIM($A25)),'Data E2059 '!$O$6:$O$195)) -> 16939.27306 | G25: =IF(F25="k V","k V",(E25-F25)/F25) -> 0.2432197836 | H25: =LOOKUP(2,1/('Data E2059 '!$A$6:$A$457&"*"&'Data E2059 '!$C$6:$C$457=$B24&"*"&TRIM($A25)),'Data E2059 '!$H$6:$H$457) -> 49.85273663 | I25: =LOOKUP(2,1/('Data E2059 '!$A$6:$A$457&"*"&'Data E2059 '!$C$6:$C$457=$B24&"*"&TRIM($A25)),'Data E2059 '!$P$6:$P$457) -> 39.56209917 | J25: =H25*100/H33 -> 116.7406832 | K25: =IF(I25="k V","k V",(H25-I25)/I25) -> 0.2601135347 | L25: =LOOKUP(2,1/('Data E2059 '!$A$6:$A$457&"*"&'Data E2059 '!$C$6:$C$457=$B24&"*"&TRIM($A25)),'Data E2059 '!$I$6:$I$457) -> 9583.507082 | M25: =LOOKUP(2,1/('Data E2059 '!$A$6:$A$457&"*"&'Data E2059 '!$C$6:$C$457=$B24&"*"&TRIM($A25)),'Data E2059 '!$Q$6:$Q$457) -> 9441.933526 | N25: =IF(M25="k V","k V",(L25-M25)/M25) -> 0.01499412761 | O25: =LOOKUP(2,1/('Data E2059 '!$A$6:$A$457&"*"&'Data E2059 '!$C$6:$C$457=$B24&"*"&TRIM($A25)),'Data E2059 '!$K$6:$K$457)/100 -> 0.05177520125 | P25: =LOOKUP(2,1/('Data E2059 '!$A$6:$A$457&"*"&'Data E2059 '!$C$6:$C$457=$B24&"*"&TRIM($A25)),'Data E2059 '!$S$6:$S$457)/100 -> 0.0558806858 | Q25: =(O25-P25)*100 -> -0.410548455 | R25: =Q25/P25/100 -> -0.07346875742
A26: 06:00-09:00 | B26: =LOOKUP(2,1/('Data E2059 '!$A$6:$A$457&"*"&'Data E2059 '!$C$6:$C$457=$B24&"*"&TRIM($A26)),'Data E2059 '!$D$6:$D$457) -> 0.04026734889 | C26: =LOOKUP(2,1/('Data E2059 '!$A$6:$A$457&"*"&'Data E2059 '!$C$6:$C$457=$B24&"*"&TRIM($A26)),'Data E2059 '!$L$6:$L$457) -> 0.06025707668 | D26: -0.3317407496 | E26: =(LOOKUP(2,1/('Data E2059 '!$A$6:$A$195&"*"&'Data E2059 '!$C$6:$C$195=$B$24&"*"&TRIM($A26)),'Data E2059 '!$I$6:$I$195))/(LOOKUP(2,1/('Data E2059 '!$A$6:$A$195&"*"&'Data E2059 '!$C$6:$C$195=$B$24&"*"&TRIM($A26)),'Data E2059 '!$G$6:$G$195)) -> 19109.92646 | F26: =(LOOKUP(2,1/('Data E2059 '!$A$6:$A$195&"*"&'Data E2059 '!$C$6:$C$195=$B$24&"*"&TRIM($A26)),'Data E2059 '!$Q$6:$Q$195))/(LOOKUP(2,1/('Data E2059 '!$A$6:$A$195&"*"&'Data E2059 '!$C$6:$C$195=$B$24&"*"&TRIM($A26)),'Data E2059 '!$O$6:$O$195)) -> 12144.41376 | G26: 0.5735569321 | H26: =LOOKUP(2,1/('Data E2059 '!$A$6:$A$457&"*"&'Data E2059 '!$C$6:$C$457=$B24&"*"&TRIM($A26)),'Data E2059 '!$H$6:$H$457) -> 45.23820225 | I26: =LOOKUP(2,1/('Data E2059 '!$A$6:$A$457&"*"&'Data E2059 '!$C$6:$C$457=$B24&"*"&TRIM($A26)),'Data E2059 '!$P$6:$P$457) -> 28.36358443 | J26: =H26*100/H34 -> 153.0342459 | K26: 0.5949395384 | L26: =LOOKUP(2,1/('Data E2059 '!$A$6:$A$457&"*"&'Data E2059 '!$C$6:$C$457=$B24&"*"&TRIM($A26)),'Data E2059 '!$I$6:$I$457) -> 1821.622473 | M26: =LOOKUP(2,1/('Data E2059 '!$A$6:$A$457&"*"&'Data E2059 '!$C$6:$C$457=$B24&"*"&TRIM($A26)),'Data E2059 '!$Q$6:$Q$457) -> 1709.106682 | N26: 0.06583310042 | O26: =LOOKUP(2,1/('Data E2059 '!$A$6:$A$457&"*"&'Data E2059 '!$C$6:$C$457=$B24&"*"&TRIM($A26)),'Data E2059 '!$K$6:$K$457)/100 -> 0.02493929218 | P26: =LOOKUP(2,1/('Data E2059 '!$A$6:$A$457&"*"&'Data E2059 '!$C$6:$C$457=$B24&"*"&TRIM($A26)),'Data E2059 '!$S$6:$S$457)/100 -> 0.03587986575 | Q26: -1.094057357 | R26: -0.3049223664
A27: 09:00-13:00 | B27: =LOOKUP(2,1/('Data E2059 '!$A$6:$A$457&"*"&'Data E2059 '!$C$6:$C$457=$B24&"*"&TRIM($A27)),'Data E2059 '!$D$6:$D$457) -> 0.07335782833 | C27: =LOOKUP(2,1/('Data E2059 '!$A$6:$A$457&"*"&'Data E2059 '!$C$6:$C$457=$B24&"*"&TRIM($A27)),'Data E2059 '!$L$6:$L$457) -> 0.110619168 | D27: -0.336843427 | E27: =(LOOKUP(2,1/('Data E2059 '!$A$6:$A$195&"*"&'Data E2059 '!$C$6:$C$195=$B$24&"*"&TRIM($A27)),'Data E2059 '!$I$6:$I$195))/(LOOKUP(2,1/('Data E2059 '!$A$6:$A$195&"*"&'Data E2059 '!$C$6:$C$195=$B$24&"*"&TRIM($A27)),'Data E2059 '!$G$6:$G$195)) -> 19510.86442 | F27: =(LOOKUP(2,1/('Data E2059 '!$A$6:$A$195&"*"&'Data E2059 '!$C$6:$C$195=$B$24&"*"&TRIM($A27)),'Data E2059 '!$Q$6:$Q$195))/(LOOKUP(2,1/('Data E2059 '!$A$6:$A$195&"*"&'Data E2059 '!$C$6:$C$195=$B$24&"*"&TRIM($A27)),'Data E2059 '!$O$6:$O$195)) -> 12518.9598 | G27: 0.5585052377 | H27: =LOOKUP(2,1/('Data E2059 '!$A$6:$A$457&"*"&'Data E2059 '!$C$6:$C$457=$B24&"*"&TRIM($A27)),'Data E2059 '!$H$6:$H$457) -> 46.18732743 | I27: =LOOKUP(2,1/('Data E2059 '!$A$6:$A$457&"*"&'Data E2059 '!$C$6:$C$457=$B24&"*"&TRIM($A27)),'Data E2059 '!$P$6:$P$457) -> 29.23834614 | J27: 155.6516638 | K27: 0.5796833108 | L27: =LOOKUP(2,1/('Data E2059 '!$A$6:$A$457&"*"&'Data E2059 '!$C$6:$C$457=$B24&"*"&TRIM($A27)),'Data E2059 '!$I$6:$I$457) -> 3388.202037 | M27: =LOOKUP(2,1/('Data E2059 '!$A$6:$A$457&"*"&'Data E2059 '!$C$6:$C$457=$B24&"*"&TRIM($A27)),'Data E2059 '!$Q$6:$Q$457) -> 3234.321522 | N27: 0.04757737085 | O27: =LOOKUP(2,1/('Data E2059 '!$A$6:$A$457&"*"&'Data E2059 '!$C$6:$C$457=$B24&"*"&TRIM($A27)),'Data E2059 '!$K$6:$K$457)/100 -> 0.03189236498 | P27: =LOOKUP(2,1/('Data E2059 '!$A$6:$A$457&"*"&'Data E2059 '!$C$6:$C$457=$B24&"*"&TRIM($A27)),'Data E2059 '!$S$6:$S$457)/100 -> 0.0420505902 | Q27: -1.015822522 | R27: -0.2415715254
A28: 13:00-17:00 | B28: =LOOKUP(2,1/('Data E2059 '!$A$6:$A$457&"*"&'Data E2059 '!$C$6:$C$457=$B24&"*"&TRIM($A28)),'Data E2059 '!$D$6:$D$457) -> 0.1269860661 | C28: =LOOKUP(2,1/('Data E2059 '!$A$6:$A$457&"*"&'Data E2059 '!$C$6:$C$457=$B24&"*"&TRIM($A28)),'Data E2059 '!$L$6:$L$457) -> 0.1944069975 | D28: -0.3468030073 | E28: =(LOOKUP(2,1/('Data E2059 '!$A$6:$A$195&"*"&'Data E2059 '!$C$6:$C$195=$B$24&"*"&TRIM($A28)),'Data E2059 '!$I$6:$I$195))/(LOOKUP(2,1/('Data E2059 '!$A$6:$A$195&"*"&'Data E2059 '!$C$6:$C$195=$B$24&"*"&TRIM($A28)),'Data E2059 '!$G$6:$G$195)) -> 18169.59738 | F28: =(LOOKUP(2,1/('Data E2059 '!$A$6:$A$195&"*"&'Data E2059 '!$C$6:$C$195=$B$24&"*"&TRIM($A28)),'Data E2059 '!$Q$6:$Q$195))/(LOOKUP(2,1/('Data E2059 '!$A$6:$A$195&"*"&'Data E2059 '!$C$6:$C$195=$B$24&"*"&TRIM($A28)),'Data E2059 '!$O$6:$O$195)) -> 12625.46043 | G28: 0.4391235451 | H28: =LOOKUP(2,1/('Data E2059 '!$A$6:$A$457&"*"&'Data E2059 '!$C$6:$C$457=$B24&"*"&TRIM($A28)),'Data E2059 '!$H$6:$H$457) -> 43.01219697 | I28: =LOOKUP(2,1/('Data E2059 '!$A$6:$A$457&"*"&'Data E2059 '!$C$6:$C$457=$B24&"*"&TRIM($A28)),'Data E2059 '!$P$6:$P$457) -> 29.48708105 | J28: 139.8562852 | K28: 0.4586793753 | L28: =LOOKUP(2,1/('Data E2059 '!$A$6:$A$457&"*"&'Data E2059 '!$C$6:$C$457=$B24&"*"&TRIM($A28)),'Data E2059 '!$I$6:$I$457) -> 5461.94969 | M28: =LOOKUP(2,1/('Data E2059 '!$A$6:$A$457&"*"&'Data E2059 '!$C$6:$C$457=$B24&"*"&TRIM($A28)),'Data E2059 '!$Q$6:$Q$457) -> 5732.494893 | N28: -0.04719501871 | O28: =LOOKUP(2,1/('Data E2059 '!$A$6:$A$457&"*"&'Data E2059 '!$C$6:$C$457=$B24&"*"&TRIM($A28)),'Data E2059 '!$K$6:$K$457)/100 -> 0.03921945696 | P28: =LOOKUP(2,1/('Data E2059 '!$A$6:$A$457&"*"&'Data E2059 '!$C$6:$C$457=$B24&"*"&TRIM($A28)),'Data E2059 '!$S$6:$S$457)/100 -> 0.04870488469 | Q28: -0.9485427726 | R28: -0.1947531092
A29: 17:00-20:00 | B29: =LOOKUP(2,1/('Data E2059 '!$A$6:$A$457&"*"&'Data E2059 '!$C$6:$C$457=$B24&"*"&TRIM($A29)),'Data E2059 '!$D$6:$D$457) -> 0.2707850118 | C29: =LOOKUP(2,1/('Data E2059 '!$A$6:$A$457&"*"&'Data E2059 '!$C$6:$C$457=$B24&"*"&TRIM($A29)),'Data E2059 '!$L$6:$L$457) -> 0.3403715877 | D29: -0.2044429631 | E29: =(LOOKUP(2,1/('Data E2059 '!$A$6:$A$195&"*"&'Data E2059 '!$C$6:$C$195=$B$24&"*"&TRIM($A29)),'Data E2059 '!$I$6:$I$195))/(LOOKUP(2,1/('Data E2059 '!$A$6:$A$195&"*"&'Data E2059 '!$C$6:$C$195=$B$24&"*"&TRIM($A29)),'Data E2059 '!$G$6:$G$195)) -> 19745.50826 | F29: =(LOOKUP(2,1/('Data E2059 '!$A$6:$A$195&"*"&'Data E2059 '!$C$6:$C$195=$B$24&"*"&TRIM($A29)),'Data E2059 '!$Q$6:$Q$195))/(LOOKUP(2,1/('Data E2059 '!$A$6:$A$195&"*"&'Data E2059 '!$C$6:$C$195=$B$24&"*"&TRIM($A29)),'Data E2059 '!$O$6:$O$195)) -> 15123.68385 | G29: 0.3056017608 | H29: =LOOKUP(2,1/('Data E2059 '!$A$6:$A$457&"*"&'Data E2059 '!$C$6:$C$457=$B24&"*"&TRIM($A29)),'Data E2059 '!$H$6:$H$457) -> 46.74279089 | I29: =LOOKUP(2,1/('Data E2059 '!$A$6:$A$457&"*"&'Data E2059 '!$C$6:$C$457=$B24&"*"&TRIM($A29)),'Data E2059 '!$P$6:$P$457) -> 35.32174481 | J29: 131.4774586 | K29: 0.3233432023 | L29: =LOOKUP(2,1/('Data E2059 '!$A$6:$A$457&"*"&'Data E2059 '!$C$6:$C$457=$B24&"*"&TRIM($A29)),'Data E2059 '!$I$6:$I$457) -> 12657.24718 | M29: =LOOKUP(2,1/('Data E2059 '!$A$6:$A$457&"*"&'Data E2059 '!$C$6:$C$457=$B24&"*"&TRIM($A29)),'Data E2059 '!$Q$6:$Q$457) -> 12022.51836 | N29: 0.05279499688 | O29: =LOOKUP(2,1/('Data E2059 '!$A$6:$A$457&"*"&'Data E2059 '!$C$6:$C$457=$B24&"*"&TRIM($A29)),'Data E2059 '!$K$6:$K$457)/100 -> 0.04897779937 | P29: =LOOKUP(2,1/('Data E2059 '!$A$6:$A$457&"*"&'Data E2059 '!$C$6:$C$457=$B24&"*"&TRIM($A29)),'Data E2059 '!$S$6:$S$457)/100 -> 0.0534795557 | Q29: -0.4501756327 | R29: -0.08417714524
A30: 20:00-23:00 | B30: =LOOKUP(2,1/('Data E2059 '!$A$6:$A$457&"*"&'Data E2059 '!$C$6:$C$457=$B24&"*"&TRIM($A30)),'Data E2059 '!$D$6:$D$457) -> 0.55274588 | C30: =LOOKUP(2,1/('Data E2059 '!$A$6:$A$457&"*"&'Data E2059 '!$C$6:$C$457=$B24&"*"&TRIM($A30)),'Data E2059 '!$L$6:$L$457) -> 0.5339353753 | D30: 0.03522992779 | E30: =(LOOKUP(2,1/('Data E2059 '!$A$6:$A$195&"*"&'Data E2059 '!$C$6:$C$195=$B$24&"*"&TRIM($A30)),'Data E2059 '!$I$6:$I$195))/(LOOKUP(2,1/('Data E2059 '!$A$6:$A$195&"*"&'Data E2059 '!$C$6:$C$195=$B$24&"*"&TRIM($A30)),'Data E2059 '!$G$6:$G$195)) -> 24333.15596 | F30: =(LOOKUP(2,1/('Data E2059 '!$A$6:$A$195&"*"&'Data E2059 '!$C$6:$C$195=$B$24&"*"&TRIM($A30)),'Data E2059 '!$Q$6:$Q$195))/(LOOKUP(2,1/('Data E2059 '!$A$6:$A$195&"*"&'Data E2059 '!$C$6:$C$195=$B$24&"*"&TRIM($A30)),'Data E2059 '!$O$6:$O$195)) -> 23203.98876 | G30: 0.04866263315 | H30: =LOOKUP(2,1/('Data E2059 '!$A$6:$A$457&"*"&'Data E2059 '!$C$6:$C$457=$B24&"*"&TRIM($A30)),'Data E2059 '!$H$6:$H$457) -> 57.60295483 | I30: =LOOKUP(2,1/('Data E2059 '!$A$6:$A$457&"*"&'Data E2059 '!$C$6:$C$457=$B24&"*"&TRIM($A30)),'Data E2059 '!$P$6:$P$457) -> 54.1935006 | J30: 90.57091349 | K30: 0.06291260383 | L30: =LOOKUP(2,1/('Data E2059 '!$A$6:$A$457&"*"&'Data E2059 '!$C$6:$C$457=$B24&"*"&TRIM($A30)),'Data E2059 '!$I$6:$I$457) -> 31839.79596 | M30: =LOOKUP(2,1/('Data E2059 '!$A$6:$A$457&"*"&'Data E2059 '!$C$6:$C$457=$B24&"*"&TRIM($A30)),'Data E2059 '!$Q$6:$Q$457) -> 28935.82708 | N30: 0.1003589381 | O30: =LOOKUP(2,1/('Data E2059 '!$A$6:$A$457&"*"&'Data E2059 '!$C$6:$C$457=$B24&"*"&TRIM($A30)),'Data E2059 '!$K$6:$K$457)/100 -> 0.07251839217 | P30: =LOOKUP(2,1/('Data E2059 '!$A$6:$A$457&"*"&'Data E2059 '!$C$6:$C$457=$B24&"*"&TRIM($A30)),'Data E2059 '!$S$6:$S$457)/100 -> 0.06377212995 | Q30: 0.8746262225 | R30: 0.1371486609
A31: 23:00-01:00 | B31: =LOOKUP(2,1/('Data E2059 '!$A$6:$A$457&"*"&'Data E2059 '!$C$6:$C$457=$B24&"*"&TRIM($A31)),'Data E2059 '!$D$6:$D$457) -> 0.1948772227 | C31: =LOOKUP(2,1/('Data E2059 '!$A$6:$A$457&"*"&'Data E2059 '!$C$6:$C$457=$B24&"*"&TRIM($A31)),'Data E2059 '!$L$6:$L$457) -> 0.25682028 | D31: -0.2411922348 | E31: =(LOOKUP(2,1/('Data E2059 '!$A$6:$A$195&"*"&'Data E2059 '!$C$6:$C$195=$B$24&"*"&TRIM($A31)),'Data E2059 '!$I$6:$I$195))/(LOOKUP(2,1/('Data E2059 '!$A$6:$A$195&"*"&'Data E2059 '!$C$6:$C$195=$B$24&"*"&TRIM($A31)),'Data E2059 '!$G$6:$G$195)) -> 18215.42962 | F31: =(LOOKUP(2,1/('Data E2059 '!$A$6:$A$195&"*"&'Data E2059 '!$C$6:$C$195=$B$24&"*"&TRIM($A31)),'Data E2059 '!$Q$6:$Q$195))/(LOOKUP(2,1/('Data E2059 '!$A$6:$A$195&"*"&'Data E2059 '!$C$6:$C$195=$B$24&"*"&TRIM($A31)),'Data E2059 '!$O$6:$O$195)) -> 14420.58716 | G31: 0.2631545035 | H31: =LOOKUP(2,1/('Data E2059 '!$A$6:$A$457&"*"&'Data E2059 '!$C$6:$C$457=$B24&"*"&TRIM($A31)),'Data E2059 '!$H$6:$H$457) -> 43.12069389 | I31: =LOOKUP(2,1/('Data E2059 '!$A$6:$A$457&"*"&'Data E2059 '!$C$6:$C$457=$B24&"*"&TRIM($A31)),'Data E2059 '!$P$6:$P$457) -> 33.67964477 | J31: 111.4324556 | K31: 0.2803191416 | L31: =LOOKUP(2,1/('Data E2059 '!$A$6:$A$457&"*"&'Data E2059 '!$C$6:$C$457=$B24&"*"&TRIM($A31)),'Data E2059 '!$I$6:$I$457) -> 8403.241065 | M31: =LOOKUP(2,1/('Data E2059 '!$A$6:$A$457&"*"&'Data E2059 '!$C$6:$C$457=$B24&"*"&TRIM($A31)),'Data E2059 '!$Q$6:$Q$457) -> 8649.615799 | N31: -0.0284838934 | O31: =LOOKUP(2,1/('Data E2059 '!$A$6:$A$457&"*"&'Data E2059 '!$C$6:$C$457=$B24&"*"&TRIM($A31)),'Data E2059 '!$K$6:$K$457)/100 -> 0.05311912477 | P31: =LOOKUP(2,1/('Data E2059 '!$A$6:$A$457&"*"&'Data E2059 '!$C$6:$C$457=$B24&"*"&TRIM($A31)),'Data E2059 '!$S$6:$S$457)/100 -> 0.06466525615 | Q31: -1.154613138 | R31: -0.178552318
A32: RTL | B32: RTL
A33: 03:00-03:00 | B33: =LOOKUP(2,1/('Data E2059 '!$A$6:$A$457&"*"&'Data E2059 '!$C$6:$C$457=$B32&"*"&TRIM($A33)),'Data E2059 '!$D$6:$D$457) -> 0.3858996089 | C33: =LOOKUP(2,1/('Data E2059 '!$A$6:$A$457&"*"&'Data E2059 '!$C$6:$C$457=$B32&"*"&TRIM($A33)),'Data E2059 '!$L$6:$L$457) -> 0.392919554 | D33: =IF(C33="k V","k V",(B33-C33)/C33) -> -0.01786611273 | E33: =(LOOKUP(2,1/('Data E2059 '!$A$6:$A$195&"*"&'Data E2059 '!$C$6:$C$195=$B$32&"*"&TRIM($A33)),'Data E2059 '!$I$6:$I$195))/(LOOKUP(2,1/('Data E2059 '!$A$6:$A$195&"*"&'Data E2059 '!$C$6:$C$195=$B$32&"*"&TRIM($A33)),'Data E2059 '!$G$6:$G$195)) -> 18039.33197 | F33: =(LOOKUP(2,1/('Data E2059 '!$A$6:$A$195&"*"&'Data E2059 '!$C$6:$C$195=$B$32&"*"&TRIM($A33)),'Data E2059 '!$Q$6:$Q$195))/(LOOKUP(2,1/('Data E2059 '!$A$6:$A$195&"*"&'Data E2059 '!$C$6:$C$195=$B$32&"*"&TRIM($A33)),'Data E2059 '!$O$6:$O$195)) -> 17706.06656 | G33: =IF(F33="k V","k V",(E33-F33)/F33) -> 0.01882210342 | H33: =LOOKUP(2,1/('Data E2059 '!$A$6:$A$457&"*"&'Data E2059 '!$C$6:$C$457=$B32&"*"&TRIM($A33)),'Data E2059 '!$H$6:$H$457) -> 42.70382463 | I33: =LOOKUP(2,1/('Data E2059 '!$A$6:$A$457&"*"&'Data E2059 '!$C$6:$C$457=$B32&"*"&TRIM($A33)),'Data E2059 '!$P$6:$P$457) -> 41.35296471 | K33: =IF(I33="k V","k V",(H33-I33)/I33) -> 0.03266657985 | L33: =LOOKUP(2,1/('Data E2059 '!$A$6:$A$457&"*"&'Data E2059 '!$C$6:$C$457=$B32&"*"&TRIM($A33)),'Data E2059 '!$I$6:$I$457) -> 16479.38923 | M33: =LOOKUP(2,1/('Data E2059 '!$A$6:$A$457&"*"&'Data E2059 '!$C$6:$C$457=$B32&"*"&TRIM($A33)),'Data E2059 '!$Q$6:$Q$457) -> 16248.38845 | N33: =IF(M33="k V","k V",(L33-M33)/M33) -> 0.01421684232 | O33: =LOOKUP(2,1/('Data E2059 '!$A$6:$A$457&"*"&'Data E2059 '!$C$6:$C$457=$B32&"*"&TRIM($A33)),'Data E2059 '!$K$6:$K$457)/100 -> 0.1065187768 | P33: =LOOKUP(2,1/('Data E2059 '!$A$6:$A$457&"*"&'Data E2059 '!$C$6:$C$457=$B32&"*"&TRIM($A33)),'Data E2059 '!$S$6:$S$457)/100 -> 0.09496528169 | Q33: =(O33-P33)*100 -> 1.155349512 | R33: =Q33/P33/100 -> 0.1216601995
A34: 06:00-09:00 | B34: =LOOKUP(2,1/('Data E2059 '!$A$6:$A$457&"*"&'Data E2059 '!$C$6:$C$457=$B32&"*"&TRIM($A34)),'Data E2059 '!$D$6:$D$457) -> 0.1157254254 | C34: =LOOKUP(2,1/('Data E2059 '!$A$6:$A$457&"*"&'Data E2059 '!$C$6:$C$457=$B32&"*"&TRIM($A34)),'Data E2059 '!$L$6:$L$457) -> 0.1152270617 | D34: 0.00432505747 | E34: =(LOOKUP(2,1/('Data E2059 '!$A$6:$A$195&"*"&'Data E2059 '!$C$6:$C$195=$B$32&"*"&TRIM($A34)),'Data E2059 '!$I$6:$I$195))/(LOOKUP(2,1/('Data E2059 '!$A$6:$A$195&"*"&'Data E2059 '!$C$6:$C$195=$B$32&"*"&TRIM($A34)),'Data E2059 '!$G$6:$G$195)) -> 12487.35298 | F34: =(LOOKUP(2,1/('Data E2059 '!$A$6:$A$195&"*"&'Data E2059 '!$C$6:$C$195=$B$32&"*"&TRIM($A34)),'Data E2059 '!$Q$6:$Q$195))/(LOOKUP(2,1/('Data E2059 '!$A$6:$A$195&"*"&'Data E2059 '!$C$6:$C$195=$B$32&"*"&TRIM($A34)),'Data E2059 '!$O$6:$O$195)) -> 11647.87496 | G34: 0.07207134531 | H34: =LOOKUP(2,1/('Data E2059 '!$A$6:$A$457&"*"&'Data E2059 '!$C$6:$C$457=$B32&"*"&TRIM($A34)),'Data E2059 '!$H$6:$H$457) -> 29.56083587 | I34: =LOOKUP(2,1/('Data E2059 '!$A$6:$A$457&"*"&'Data E2059 '!$C$6:$C$457=$B32&"*"&TRIM($A34)),'Data E2059 '!$P$6:$P$457) -> 27.20390554 | K34: 0.08663941016 | L34: =LOOKUP(2,1/('Data E2059 '!$A$6:$A$457&"*"&'Data E2059 '!$C$6:$C$457=$B32&"*"&TRIM($A34)),'Data E2059 '!$I$6:$I$457) -> 3420.940306 | M34: =LOOKUP(2,1/('Data E2059 '!$A$6:$A$457&"*"&'Data E2059 '!$C$6:$C$457=$B32&"*"&TRIM($A34)),'Data E2059 '!$Q$6:$Q$457) -> 3134.626103 | N34: 0.09133918805 | O34: =LOOKUP(2,1/('Data E2059 '!$A$6:$A$457&"*"&'Data E2059 '!$C$6:$C$457=$B32&"*"&TRIM($A34)),'Data E2059 '!$K$6:$K$457)/100 -> 0.07750601809 | P34: =LOOKUP(2,1/('Data E2059 '!$A$6:$A$457&"*"&'Data E2059 '!$C$6:$C$457=$B32&"*"&TRIM($A34)),'Data E2059 '!$S$6:$S$457)/100 -> 0.07311571746 | Q34: 0.4390300623 | R34: 0.06004592138
A35: 09:00-13:00 | B35: =LOOKUP(2,1/('Data E2059 '!$A$6:$A$457&"*"&'Data E2059 '!$C$6:$C$457=$B32&"*"&TRIM($A35)),'Data E2059 '!$D$6:$D$457) -> 0.2047379022 | C35: =LOOKUP(2,1/('Data E2059 '!$A$6:$A$457&"*"&'Data E2059 '!$C$6:$C$457=$B32&"*"&TRIM($A35)),'Data E2059 '!$L$6:$L$457) -> 0.1904209206 | D35: 0.07518597011 | E35: =(LOOKUP(2,1/('Data E2059 '!$A$6:$A$195&"*"&'Data E2059 '!$C$6:$C$195=$B$32&"*"&TRIM($A35)),'Data E2059 '!$I$6:$I$195))/(LOOKUP(2,1/('Data E2059 '!$A$6:$A$195&"*"&'Data E2059 '!$C$6:$C$195=$B$32&"*"&TRIM($A35)),'Data E2059 '!$G$6:$G$195)) -> 12534.95397 | F35: =(LOOKUP(2,1/('Data E2059 '!$A$6:$A$195&"*"&'Data E2059 '!$C$6:$C$195=$B$32&"*"&TRIM($A35)),'Data E2059 '!$Q$6:$Q$195))/(LOOKUP(2,1/('Data E2059 '!$A$6:$A$195&"*"&'Data E2059 '!$C$6:$C$195=$B$32&"*"&TRIM($A35)),'Data E2059 '!$O$6:$O$195)) -> 12003.51639 | G35: 0.04427349182 | H35: =LOOKUP(2,1/('Data E2059 '!$A$6:$A$457&"*"&'Data E2059 '!$C$6:$C$457=$B32&"*"&TRIM($A35)),'Data E2059 '!$H$6:$H$457) -> 29.67351989 | I35: =LOOKUP(2,1/('Data E2059 '!$A$6:$A$457&"*"&'Data E2059 '!$C$6:$C$457=$B32&"*"&TRIM($A35)),'Data E2059 '!$P$6:$P$457) -> 28.03451506 | K35: 0.05846381974 | L35: =LOOKUP(2,1/('Data E2059 '!$A$6:$A$457&"*"&'Data E2059 '!$C$6:$C$457=$B32&"*"&TRIM($A35)),'Data E2059 '!$I$6:$I$457) -> 6075.294214 | M35: =LOOKUP(2,1/('Data E2059 '!$A$6:$A$457&"*"&'Data E2059 '!$C$6:$C$457=$B32&"*"&TRIM($A35)),'Data E2059 '!$Q$6:$Q$457) -> 5338.358165 | N35: 0.1380454489 | O35: =LOOKUP(2,1/('Data E2059 '!$A$6:$A$457&"*"&'Data E2059 '!$C$6:$C$457=$B32&"*"&TRIM($A35)),'Data E2059 '!$K$6:$K$457)/100 -> 0.08875012885 | P35: =LOOKUP(2,1/('Data E2059 '!$A$6:$A$457&"*"&'Data E2059 '!$C$6:$C$457=$B32&"*"&TRIM($A35)),'Data E2059 '!$S$6:$S$457)/100 -> 0.07620428088 | Q35: 1.254584797 | R35: 0.1646344251
A36: 13:00-17:00 | B36: =LOOKUP(2,1/('Data E2059 '!$A$6:$A$457&"*"&'Data E2059 '!$C$6:$C$457=$B32&"*"&TRIM($A36)),'Data E2059 '!$D$6:$D$457) -> 0.3287223463 | C36: =LOOKUP(2,1/('Data E2059 '!$A$6:$A$457&"*"&'Data E2059 '!$C$6:$C$457=$B32&"*"&TRIM($A36)),'Data E2059 '!$L$6:$L$457) -> 0.3286854037 | D36: 0.0001123950367 | E36: =(LOOKUP(2,1/('Data E2059 '!$A$6:$A$195&"*"&'Data E2059 '!$C$6:$C$195=$B$32&"*"&TRIM($A36)),'Data E2059 '!$I$6:$I$195))/(LOOKUP(2,1/('Data E2059 '!$A$6:$A$195&"*"&'Data E2059 '!$C$6:$C$195=$B$32&"*"&TRIM($A36)),'Data E2059 '!$G$6:$G$195)) -> 12991.62018 | F36: =(LOOKUP(2,1/('Data E2059 '!$A$6:$A$195&"*"&'Data E2059 '!$C$6:$C$195=$B$32&"*"&TRIM($A36)),'Data E2059 '!$Q$6:$Q$195))/(LOOKUP(2,1/('Data E2059 '!$A$6:$A$195&"*"&'Data E2059 '!$C$6:$C$195=$B$32&"*"&TRIM($A36)),'Data E2059 '!$O$6:$O$195)) -> 12179.82277 | G36: 0.06665100341 | H36: =LOOKUP(2,1/('Data E2059 '!$A$6:$A$457&"*"&'Data E2059 '!$C$6:$C$457=$B32&"*"&TRIM($A36)),'Data E2059 '!$H$6:$H$457) -> 30.75456845 | I36: =LOOKUP(2,1/('Data E2059 '!$A$6:$A$457&"*"&'Data E2059 '!$C$6:$C$457=$B32&"*"&TRIM($A36)),'Data E2059 '!$P$6:$P$457) -> 28.44628307 | K36: 0.08114541281 | L36: =LOOKUP(2,1/('Data E2059 '!$A$6:$A$457&"*"&'Data E2059 '!$C$6:$C$457=$B32&"*"&TRIM($A36)),'Data E2059 '!$I$6:$I$457) -> 10109.7139 | M36: =LOOKUP(2,1/('Data E2059 '!$A$6:$A$457&"*"&'Data E2059 '!$C$6:$C$457=$B32&"*"&TRIM($A36)),'Data E2059 '!$Q$6:$Q$457) -> 9349.878032 | N36: 0.08126692819 | O36: =LOOKUP(2,1/('Data E2059 '!$A$6:$A$457&"*"&'Data E2059 '!$C$6:$C$457=$B32&"*"&TRIM($A36)),'Data E2059 '!$K$6:$K$457)/100 -> 0.09355172181 | P36: =LOOKUP(2,1/('Data E2059 '!$A$6:$A$457&"*"&'Data E2059 '!$C$6:$C$457=$B32&"*"&TRIM($A36)),'Data E2059 '!$S$6:$S$457)/100 -> 0.0813973159 | Q36: 1.215440591 | R36: 0.1493219496
A37: 17:00-20:00 | B37: =LOOKUP(2,1/('Data E2059 '!$A$6:$A$457&"*"&'Data E2059 '!$C$6:$C$457=$B32&"*"&TRIM($A37)),'Data E2059 '!$D$6:$D$457) -> 0.606764226 | C37: =LOOKUP(2,1/('Data E2059 '!$A$6:$A$457&"*"&'Data E2059 '!$C$6:$C$457=$B32&"*"&TRIM($A37)),'Data E2059 '!$L$6:$L$457) -> 0.6166535147 | D37: -0.01603702655 | E37: =(LOOKUP(2,1/('Data E2059 '!$A$6:$A$195&"*"&'Data E2059 '!$C$6:$C$195=$B$32&"*"&TRIM($A37)),'Data E2059 '!$I$6:$I$195))/(LOOKUP(2,1/('Data E2059 '!$A$6:$A$195&"*"&'Data E2059 '!$C$6:$C$195=$B$32&"*"&TRIM($A37)),'Data E2059 '!$G$6:$G$195)) -> 15018.17001 | F37: =(LOOKUP(2,1/('Data E2059 '!$A$6:$A$195&"*"&'Data E2059 '!$C$6:$C$195=$B$32&"*"&TRIM($A37)),'Data E2059 '!$Q$6:$Q$195))/(LOOKUP(2,1/('Data E2059 '!$A$6:$A$195&"*"&'Data E2059 '!$C$6:$C$195=$B$32&"*"&TRIM($A37)),'Data E2059 '!$O$6:$O$195)) -> 15378.95091 | G37: -0.02345939571 | H37: =LOOKUP(2,1/('Data E2059 '!$A$6:$A$457&"*"&'Data E2059 '!$C$6:$C$457=$B32&"*"&TRIM($A37)),'Data E2059 '!$H$6:$H$457) -> 35.5519428 | I37: =LOOKUP(2,1/('Data E2059 '!$A$6:$A$457&"*"&'Data E2059 '!$C$6:$C$457=$B32&"*"&TRIM($A37)),'Data E2059 '!$P$6:$P$457) -> 35.91792746 | K37: -0.01018947024 | L37: =LOOKUP(2,1/('Data E2059 '!$A$6:$A$457&"*"&'Data E2059 '!$C$6:$C$457=$B32&"*"&TRIM($A37)),'Data E2059 '!$I$6:$I$457) -> 21571.64706 | M37: =LOOKUP(2,1/('Data E2059 '!$A$6:$A$457&"*"&'Data E2059 '!$C$6:$C$457=$B32&"*"&TRIM($A37)),'Data E2059 '!$Q$6:$Q$457) -> 22148.91621 | N37: -0.02606308798 | O37: =LOOKUP(2,1/('Data E2059 '!$A$6:$A$457&"*"&'Data E2059 '!$C$6:$C$457=$B32&"*"&TRIM($A37)),'Data E2059 '!$K$6:$K$457)/100 -> 0.1111730092 | P37: =LOOKUP(2,1/('Data E2059 '!$A$6:$A$457&"*"&'Data E2059 '!$C$6:$C$457=$B32&"*"&TRIM($A37)),'Data E2059 '!$S$6:$S$457)/100 -> 0.1051022795 | Q37: 0.6070729621 | R37: 0.0577602089
A38: 20:00-23:00 | B38: =LOOKUP(2,1/('Data E2059 '!$A$6:$A$457&"*"&'Data E2059 '!$C$6:$C$457=$B32&"*"&TRIM($A38)),'Data E2059 '!$D$6:$D$457) -> 0.8902817005 | C38: =LOOKUP(2,1/('Data E2059 '!$A$6:$A$457&"*"&'Data E2059 '!$C$6:$C$457=$B32&"*"&TRIM($A38)),'Data E2059 '!$L$6:$L$457) -> 0.9934855636 | D38: -0.1038805865 | E38: =(LOOKUP(2,1/('Data E2059 '!$A$6:$A$195&"*"&'Data E2059 '!$C$6:$C$195=$B$32&"*"&TRIM($A38)),'Data E2059 '!$I$6:$I$195))/(LOOKUP(2,1/('Data E2059 '!$A$6:$A$195&"*"&'Data E2059 '!$C$6:$C$195=$B$32&"*"&TRIM($A38)),'Data E2059 '!$G$6:$G$195)) -> 26866.41331 | F38: =(LOOKUP(2,1/('Data E2059 '!$A$6:$A$195&"*"&'Data E2059 '!$C$6:$C$195=$B$32&"*"&TRIM($A38)),'Data E2059 '!$Q$6:$Q$195))/(LOOKUP(2,1/('Data E2059 '!$A$6:$A$195&"*"&'Data E2059 '!$C$6:$C$195=$B$32&"*"&TRIM($A38)),'Data E2059 '!$O$6:$O$195)) -> 25137.86849 | G38: 0.06876258489 | H38: =LOOKUP(2,1/('Data E2059 '!$A$6:$A$457&"*"&'Data E2059 '!$C$6:$C$457=$B32&"*"&TRIM($A38)),'Data E2059 '!$H$6:$H$457) -> 63.59983863 | I38: =LOOKUP(2,1/('Data E2059 '!$A$6:$A$457&"*"&'Data E2059 '!$C$6:$C$457=$B32&"*"&TRIM($A38)),'Data E2059 '!$P$6:$P$457) -> 58.71012544 | K38: 0.08328568796 | L38: =LOOKUP(2,1/('Data E2059 '!$A$6:$A$457&"*"&'Data E2059 '!$C$6:$C$457=$B32&"*"&TRIM($A38)),'Data E2059 '!$I$6:$I$457) -> 56621.77249 | M38: =LOOKUP(2,1/('Data E2059 '!$A$6:$A$457&"*"&'Data E2059 '!$C$6:$C$457=$B32&"*"&TRIM($A38)),'Data E2059 '!$Q$6:$Q$457) -> 58327.66206 | N38: -0.02924666468 | O38: =LOOKUP(2,1/('Data E2059 '!$A$6:$A$457&"*"&'Data E2059 '!$C$6:$C$457=$B32&"*"&TRIM($A38)),'Data E2059 '!$K$6:$K$457)/100 -> 0.1063696782 | P38: =LOOKUP(2,1/('Data E2059 '!$A$6:$A$457&"*"&'Data E2059 '!$C$6:$C$457=$B32&"*"&TRIM($A38)),'Data E2059 '!$S$6:$S$457)/100 -> 0.1069451368 | Q38: -0.05754585365 | R38: -0.005380876157
A39: 23:00-01:00 | B39: =LOOKUP(2,1/('Data E2059 '!$A$6:$A$457&"*"&'Data E2059 '!$C$6:$C$457=$B32&"*"&TRIM($A39)),'Data E2059 '!$D$6:$D$457) -> 0.4436801711 | C39: =LOOKUP(2,1/('Data E2059 '!$A$6:$A$457&"*"&'Data E2059 '!$C$6:$C$457=$B32&"*"&TRIM($A39)),'Data E2059 '!$L$6:$L$457) -> 0.3690027957 | D39: 0.2023761779 | E39: =(LOOKUP(2,1/('Data E2059 '!$A$6:$A$195&"*"&'Data E2059 '!$C$6:$C$195=$B$32&"*"&TRIM($A39)),'Data E2059 '!$I$6:$I$195))/(LOOKUP(2,1/('Data E2059 '!$A$6:$A$195&"*"&'Data E2059 '!$C$6:$C$195=$B$32&"*"&TRIM($A39)),'Data E2059 '!$G$6:$G$195)) -> 16346.61061 | F39: =(LOOKUP(2,1/('Data E2059 '!$A$6:$A$195&"*"&'Data E2059 '!$C$6:$C$195=$B$32&"*"&TRIM($A39)),'Data E2059 '!$Q$6:$Q$195))/(LOOKUP(2,1/('Data E2059 '!$A$6:$A$195&"*"&'Data E2059 '!$C$6:$C$195=$B$32&"*"&TRIM($A39)),'Data E2059 '!$O$6:$O$195)) -> 17038.36771 | G39: -0.04059996283 | H39: =LOOKUP(2,1/('Data E2059 '!$A$6:$A$457&"*"&'Data E2059 '!$C$6:$C$457=$B32&"*"&TRIM($A39)),'Data E2059 '!$H$6:$H$457) -> 38.69670972 | I39: =LOOKUP(2,1/('Data E2059 '!$A$6:$A$457&"*"&'Data E2059 '!$C$6:$C$457=$B32&"*"&TRIM($A39)),'Data E2059 '!$P$6:$P$457) -> 39.79353722 | K39: -0.02756295553 | L39: =LOOKUP(2,1/('Data E2059 '!$A$6:$A$457&"*"&'Data E2059 '!$C$6:$C$457=$B32&"*"&TRIM($A39)),'Data E2059 '!$I$6:$I$457) -> 17168.96279 | M39: =LOOKUP(2,1/('Data E2059 '!$A$6:$A$457&"*"&'Data E2059 '!$C$6:$C$457=$B32&"*"&TRIM($A39)),'Data E2059 '!$Q$6:$Q$457) -> 14683.92648 | N39: 0.1692351368 | O39: =LOOKUP(2,1/('Data E2059 '!$A$6:$A$457&"*"&'Data E2059 '!$C$6:$C$457=$B32&"*"&TRIM($A39)),'Data E2059 '!$K$6:$K$457)/100 -> 0.1435043649 | P39: =LOOKUP(2,1/('Data E2059 '!$A$6:$A$457&"*"&'Data E2059 '!$C$6:$C$457=$B32&"*"&TRIM($A39)),'Data E2059 '!$S$6:$S$457)/100 -> 0.09802830671 | Q39: 4.547605816 | R39: 0.463907413
B40: Kabel Eins
A41: 03:00-03:00 | B41: =LOOKUP(2,1/('Data E2059 '!$A$6:$A$457&"*"&'Data E2059 '!$C$6:$C$457=$B40&"*"&TRIM($A41)),'Data E2059 '!$D$6:$D$457) -> 0.163480466 | C41: =LOOKUP(2,1/('Data E2059 '!$A$6:$A$457&"*"&'Data E2059 '!$C$6:$C$457=$B40&"*"&TRIM($A41)),'Data E2059 '!$L$6:$L$457) -> 0.1891992881 | D41: =IF(C41="k V","k V",(B41-C41)/C41) -> -0.1359350892 | E41: =(LOOKUP(2,1/('Data E2059 '!$A$6:$A$195&"*"&'Data E2059 '!$C$6:$C$195=$B$40&"*"&TRIM($A41)),'Data E2059 '!$I$6:$I$195))/(LOOKUP(2,1/('Data E2059 '!$A$6:$A$195&"*"&'Data E2059 '!$C$6:$C$195=$B$40&"*"&TRIM($A41)),'Data E2059 '!$G$6:$G$195)) -> 12110.66103 | F41: =(LOOKUP(2,1/('Data E2059 '!$A$6:$A$195&"*"&'Data E2059 '!$C$6:$C$195=$B$40&"*"&TRIM($A41)),'Data E2059 '!$Q$6:$Q$195))/(LOOKUP(2,1/('Data E2059 '!$A$6:$A$195&"*"&'Data E2059 '!$C$6:$C$195=$B$40&"*"&TRIM($A41)),'Data E2059 '!$O$6:$O$195)) -> 9741.949004 | G41: =IF(F41="k V","k V",(E41-F41)/F41) -> 0.2431455987 | H41: =LOOKUP(2,1/('Data E2059 '!$A$6:$A$457&"*"&'Data E2059 '!$C$6:$C$457=$B40&"*"&TRIM($A41)),'Data E2059 '!$H$6:$H$457) -> 28.66910734 | I41: =LOOKUP(2,1/('Data E2059 '!$A$6:$A$457&"*"&'Data E2059 '!$C$6:$C$457=$B40&"*"&TRIM($A41)),'Data E2059 '!$P$6:$P$457) -> 22.75256744 | J41: =H41*100/H57 -> 80.01924544 | K41: =IF(I41="k V","k V",(H41-I41)/I41) -> 0.2600383417 | L41: =LOOKUP(2,1/('Data E2059 '!$A$6:$A$457&"*"&'Data E2059 '!$C$6:$C$457=$B40&"*"&TRIM($A41)),'Data E2059 '!$I$6:$I$457) -> 4686.839028 | M41: =LOOKUP(2,1/('Data E2059 '!$A$6:$A$457&"*"&'Data E2059 '!$C$6:$C$457=$B40&"*"&TRIM($A41)),'Data E2059 '!$Q$6:$Q$457) -> 4304.769561 | N41: =IF(M41="k V","k V",(L41-M41)/M41) -> 0.08875491737 | O41: =LOOKUP(2,1/('Data E2059 '!$A$6:$A$457&"*"&'Data E2059 '!$C$6:$C$457=$B40&"*"&TRIM($A41)),'Data E2059 '!$K$6:$K$457)/100 -> 0.04124351645 | P41: =LOOKUP(2,1/('Data E2059 '!$A$6:$A$457&"*"&'Data E2059 '!$C$6:$C$457=$B40&"*"&TRIM($A41)),'Data E2059 '!$S$6:$S$457)/100 -> 0.04264504323 | Q41: =(O41-P41)*100 -> -0.1401526781 | R41: =Q41/P41/100 -> -0.03286493985
A42: 06:00-09:00 | B42: =LOOKUP(2,1/('Data E2059 '!$A$6:$A$457&"*"&'Data E2059 '!$C$6:$C$457=$B40&"*"&TRIM($A42)),'Data E2059 '!$D$6:$D$457) -> 0.06226597854 | C42: =LOOKUP(2,1/('Data E2059 '!$A$6:$A$457&"*"&'Data E2059 '!$C$6:$C$457=$B40&"*"&TRIM($A42)),'Data E2059 '!$L$6:$L$457) -> 0.05833222844 | D42: 0.06743699331 | E42: =(LOOKUP(2,1/('Data E2059 '!$A$6:$A$195&"*"&'Data E2059 '!$C$6:$C$195=$B$40&"*"&TRIM($A42)),'Data E2059 '!$I$6:$I$195))/(LOOKUP(2,1/('Data E2059 '!$A$6:$A$195&"*"&'Data E2059 '!$C$6:$C$195=$B$40&"*"&TRIM($A42)),'Data E2059 '!$G$6:$G$195)) -> 5692.400469 | F42: =(LOOKUP(2,1/('Data E2059 '!$A$6:$A$195&"*"&'Data E2059 '!$C$6:$C$195=$B$40&"*"&TRIM($A42)),'Data E2059 '!$Q$6:$Q$195))/(LOOKUP(2,1/('Data E2059 '!$A$6:$A$195&"*"&'Data E2059 '!$C$6:$C$195=$B$40&"*"&TRIM($A42)),'Data E2059 '!$O$6:$O$195)) -> 5674.944167 | G42: 0.003076030612 | H42: =LOOKUP(2,1/('Data E2059 '!$A$6:$A$457&"*"&'Data E2059 '!$C$6:$C$457=$B40&"*"&TRIM($A42)),'Data E2059 '!$H$6:$H$457) -> 13.47540318 | I42: =LOOKUP(2,1/('Data E2059 '!$A$6:$A$457&"*"&'Data E2059 '!$C$6:$C$457=$B40&"*"&TRIM($A42)),'Data E2059 '!$P$6:$P$457) -> 13.25397513 | J42: =H42*100/H58 -> 54.54345318 | K42: 0.01670653825 | L42: =LOOKUP(2,1/('Data E2059 '!$A$6:$A$457&"*"&'Data E2059 '!$C$6:$C$457=$B40&"*"&TRIM($A42)),'Data E2059 '!$I$6:$I$457) -> 839.059165 | M42: =LOOKUP(2,1/('Data E2059 '!$A$6:$A$457&"*"&'Data E2059 '!$C$6:$C$457=$B40&"*"&TRIM($A42)),'Data E2059 '!$Q$6:$Q$457) -> 773.1339053 | N42: 0.08527017027 | O42: =LOOKUP(2,1/('Data E2059 '!$A$6:$A$457&"*"&'Data E2059 '!$C$6:$C$457=$B40&"*"&TRIM($A42)),'Data E2059 '!$K$6:$K$457)/100 -> 0.03842250485 | P42: =LOOKUP(2,1/('Data E2059 '!$A$6:$A$457&"*"&'Data E2059 '!$C$6:$C$457=$B40&"*"&TRIM($A42)),'Data E2059 '!$S$6:$S$457)/100 -> 0.03402715917 | Q42: 0.4395345678 | R42: 0.1291716907
A43: 09:00-13:00 | B43: =LOOKUP(2,1/('Data E2059 '!$A$6:$A$457&"*"&'Data E2059 '!$C$6:$C$457=$B40&"*"&TRIM($A43)),'Data E2059 '!$D$6:$D$457) -> 0.0926251391 | C43: =LOOKUP(2,1/('Data E2059 '!$A$6:$A$457&"*"&'Data E2059 '!$C$6:$C$457=$B40&"*"&TRIM($A43)),'Data E2059 '!$L$6:$L$457) -> 0.1177467119 | D43: -0.2133526481 | E43: =(LOOKUP(2,1/('Data E2059 '!$A$6:$A$195&"*"&'Data E2059 '!$C$6:$C$195=$B$40&"*"&TRIM($A43)),'Data E2059 '!$I$6:$I$195))/(LOOKUP(2,1/('Data E2059 '!$A$6:$A$195&"*"&'Data E2059 '!$C$6:$C$195=$B$40&"*"&TRIM($A43)),'Data E2059 '!$G$6:$G$195)) -> 8044.498278 | F43: =(LOOKUP(2,1/('Data E2059 '!$A$6:$A$195&"*"&'Data E2059 '!$C$6:$C$195=$B$40&"*"&TRIM($A43)),'Data E2059 '!$Q$6:$Q$195))/(LOOKUP(2,1/('Data E2059 '!$A$6:$A$195&"*"&'Data E2059 '!$C$6:$C$195=$B$40&"*"&TRIM($A43)),'Data E2059 '!$O$6:$O$195)) -> 6325.583045 | G43: 0.271740205 | H43: =LOOKUP(2,1/('Data E2059 '!$A$6:$A$457&"*"&'Data E2059 '!$C$6:$C$457=$B40&"*"&TRIM($A43)),'Data E2059 '!$H$6:$H$457) -> 19.04343488 | I43: =LOOKUP(2,1/('Data E2059 '!$A$6:$A$457&"*"&'Data E2059 '!$C$6:$C$457=$B40&"*"&TRIM($A43)),'Data E2059 '!$P$6:$P$457) -> 14.77355863 | J43: 74.32920038 | K43: 0.2890215118 | L43: =LOOKUP(2,1/('Data E2059 '!$A$6:$A$457&"*"&'Data E2059 '!$C$6:$C$457=$B40&"*"&TRIM($A43)),'Data E2059 '!$I$6:$I$457) -> 1763.900805 | M43: =LOOKUP(2,1/('Data E2059 '!$A$6:$A$457&"*"&'Data E2059 '!$C$6:$C$457=$B40&"*"&TRIM($A43)),'Data E2059 '!$Q$6:$Q$457) -> 1739.537952 | N43: 0.01400535876 | O43: =LOOKUP(2,1/('Data E2059 '!$A$6:$A$457&"*"&'Data E2059 '!$C$6:$C$457=$B40&"*"&TRIM($A43)),'Data E2059 '!$K$6:$K$457)/100 -> 0.04120242073 | P43: =LOOKUP(2,1/('Data E2059 '!$A$6:$A$457&"*"&'Data E2059 '!$C$6:$C$457=$B40&"*"&TRIM($A43)),'Data E2059 '!$S$6:$S$457)/100 -> 0.04545797154 | Q43: -0.4255550817 | R43: -0.09361506183
A44: 13:00-17:00 | B44: =LOOKUP(2,1/('Data E2059 '!$A$6:$A$457&"*"&'Data E2059 '!$C$6:$C$457=$B40&"*"&TRIM($A44)),'Data E2059 '!$D$6:$D$457) -> 0.1664506906 | C44: =LOOKUP(2,1/('Data E2059 '!$A$6:$A$457&"*"&'Data E2059 '!$C$6:$C$457=$B40&"*"&TRIM($A44)),'Data E2059 '!$L$6:$L$457) -> 0.1705360592 | D44: -0.02395603918 | E44: =(LOOKUP(2,1/('Data E2059 '!$A$6:$A$195&"*"&'Data E2059 '!$C$6:$C$195=$B$40&"*"&TRIM($A44)),'Data E2059 '!$I$6:$I$195))/(LOOKUP(2,1/('Data E2059 '!$A$6:$A$195&"*"&'Data E2059 '!$C$6:$C$195=$B$40&"*"&TRIM($A44)),'Data E2059 '!$G$6:$G$195)) -> 7260.021498 | F44: =(LOOKUP(2,1/('Data E2059 '!$A$6:$A$195&"*"&'Data E2059 '!$C$6:$C$195=$B$40&"*"&TRIM($A44)),'Data E2059 '!$Q$6:$Q$195))/(LOOKUP(2,1/('Data E2059 '!$A$6:$A$195&"*"&'Data E2059 '!$C$6:$C$195=$B$40&"*"&TRIM($A44)),'Data E2059 '!$O$6:$O$195)) -> 6851.206493 | G44: 0.05967051287 | H44: =LOOKUP(2,1/('Data E2059 '!$A$6:$A$457&"*"&'Data E2059 '!$C$6:$C$457=$B40&"*"&TRIM($A44)),'Data E2059 '!$H$6:$H$457) -> 17.18637283 | I44: =LOOKUP(2,1/('Data E2059 '!$A$6:$A$457&"*"&'Data E2059 '!$C$6:$C$457=$B40&"*"&TRIM($A44)),'Data E2059 '!$P$6:$P$457) -> 16.00116544 | J44: 67.1634679 | K44: 0.07407006642 | L44: =LOOKUP(2,1/('Data E2059 '!$A$6:$A$457&"*"&'Data E2059 '!$C$6:$C$457=$B40&"*"&TRIM($A44)),'Data E2059 '!$I$6:$I$457) -> 2860.683627 | M44: =LOOKUP(2,1/('Data E2059 '!$A$6:$A$457&"*"&'Data E2059 '!$C$6:$C$457=$B40&"*"&TRIM($A44)),'Data E2059 '!$Q$6:$Q$457) -> 2728.775696 | N44: 0.04833960183 | O44: =LOOKUP(2,1/('Data E2059 '!$A$6:$A$457&"*"&'Data E2059 '!$C$6:$C$457=$B40&"*"&TRIM($A44)),'Data E2059 '!$K$6:$K$457)/100 -> 0.04999838563 | P44: =LOOKUP(2,1/('Data E2059 '!$A$6:$A$457&"*"&'Data E2059 '!$C$6:$C$457=$B40&"*"&TRIM($A44)),'Data E2059 '!$S$6:$S$457)/100 -> 0.04506568795 | Q44: 0.4932697687 | R44: 0.1094557281
A45: 17:00-20:00 | B45: =LOOKUP(2,1/('Data E2059 '!$A$6:$A$457&"*"&'Data E2059 '!$C$6:$C$457=$B40&"*"&TRIM($A45)),'Data E2059 '!$D$6:$D$457) -> 0.2383067548 | C45: =LOOKUP(2,1/('Data E2059 '!$A$6:$A$457&"*"&'Data E2059 '!$C$6:$C$457=$B40&"*"&TRIM($A45)),'Data E2059 '!$L$6:$L$457) -> 0.2887756825 | D45: -0.1747686207 | E45: =(LOOKUP(2,1/('Data E2059 '!$A$6:$A$195&"*"&'Data E2059 '!$C$6:$C$195=$B$40&"*"&TRIM($A45)),'Data E2059 '!$I$6:$I$195))/(LOOKUP(2,1/('Data E2059 '!$A$6:$A$195&"*"&'Data E2059 '!$C$6:$C$195=$B$40&"*"&TRIM($A45)),'Data E2059 '!$G$6:$G$195)) -> 11361.00035 | F45: =(LOOKUP(2,1/('Data E2059 '!$A$6:$A$195&"*"&'Data E2059 '!$C$6:$C$195=$B$40&"*"&TRIM($A45)),'Data E2059 '!$Q$6:$Q$195))/(LOOKUP(2,1/('Data E2059 '!$A$6:$A$195&"*"&'Data E2059 '!$C$6:$C$195=$B$40&"*"&TRIM($A45)),'Data E2059 '!$O$6:$O$195)) -> 7272.000362 | G45: 0.5622936992 | H45: =LOOKUP(2,1/('Data E2059 '!$A$6:$A$457&"*"&'Data E2059 '!$C$6:$C$457=$B40&"*"&TRIM($A45)),'Data E2059 '!$H$6:$H$457) -> 26.89446412 | I45: =LOOKUP(2,1/('Data E2059 '!$A$6:$A$457&"*"&'Data E2059 '!$C$6:$C$457=$B40&"*"&TRIM($A45)),'Data E2059 '!$P$6:$P$457) -> 16.98394013 | J45: 80.92693295 | K45: 0.5835232526 | L45: =LOOKUP(2,1/('Data E2059 '!$A$6:$A$457&"*"&'Data E2059 '!$C$6:$C$457=$B40&"*"&TRIM($A45)),'Data E2059 '!$I$6:$I$457) -> 6409.132465 | M45: =LOOKUP(2,1/('Data E2059 '!$A$6:$A$457&"*"&'Data E2059 '!$C$6:$C$457=$B40&"*"&TRIM($A45)),'Data E2059 '!$Q$6:$Q$457) -> 4904.548903 | N45: 0.306773078 | O45: =LOOKUP(2,1/('Data E2059 '!$A$6:$A$457&"*"&'Data E2059 '!$C$6:$C$457=$B40&"*"&TRIM($A45)),'Data E2059 '!$K$6:$K$457)/100 -> 0.03970139929 | P45: =LOOKUP(2,1/('Data E2059 '!$A$6:$A$457&"*"&'Data E2059 '!$C$6:$C$457=$B40&"*"&TRIM($A45)),'Data E2059 '!$S$6:$S$457)/100 -> 0.04339573992 | Q45: -0.3694340635 | R45: -0.08513141246
A46: 20:00-23:00 | B46: =LOOKUP(2,1/('Data E2059 '!$A$6:$A$457&"*"&'Data E2059 '!$C$6:$C$457=$B40&"*"&TRIM($A46)),'Data E2059 '!$D$6:$D$457) -> 0.3026729068 | C46: =LOOKUP(2,1/('Data E2059 '!$A$6:$A$457&"*"&'Data E2059 '!$C$6:$C$457=$B40&"*"&TRIM($A46)),'Data E2059 '!$L$6:$L$457) -> 0.3586776117 | D46: -0.1561421817 | E46: =(LOOKUP(2,1/('Data E2059 '!$A$6:$A$195&"*"&'Data E2059 '!$C$6:$C$195=$B$40&"*"&TRIM($A46)),'Data E2059 '!$I$6:$I$195))/(LOOKUP(2,1/('Data E2059 '!$A$6:$A$195&"*"&'Data E2059 '!$C$6:$C$195=$B$40&"*"&TRIM($A46)),'Data E2059 '!$G$6:$G$195)) -> 19405.37261 | F46: =(LOOKUP(2,1/('Data E2059 '!$A$6:$A$195&"*"&'Data E2059 '!$C$6:$C$195=$B$40&"*"&TRIM($A46)),'Data E2059 '!$Q$6:$Q$195))/(LOOKUP(2,1/('Data E2059 '!$A$6:$A$195&"*"&'Data E2059 '!$C$6:$C$195=$B$40&"*"&TRIM($A46)),'Data E2059 '!$O$6:$O$195)) -> 16102.69435 | G46: 0.2051009718 | H46: =LOOKUP(2,1/('Data E2059 '!$A$6:$A$457&"*"&'Data E2059 '!$C$6:$C$457=$B40&"*"&TRIM($A46)),'Data E2059 '!$H$6:$H$457) -> 45.9376007 | I46: =LOOKUP(2,1/('Data E2059 '!$A$6:$A$457&"*"&'Data E2059 '!$C$6:$C$457=$B40&"*"&TRIM($A46)),'Data E2059 '!$P$6:$P$457) -> 37.60824852 | J46: 85.47395575 | K46: 0.2214767375 | L46: =LOOKUP(2,1/('Data E2059 '!$A$6:$A$457&"*"&'Data E2059 '!$C$6:$C$457=$B40&"*"&TRIM($A46)),'Data E2059 '!$I$6:$I$457) -> 13904.06714 | M46: =LOOKUP(2,1/('Data E2059 '!$A$6:$A$457&"*"&'Data E2059 '!$C$6:$C$457=$B40&"*"&TRIM($A46)),'Data E2059 '!$Q$6:$Q$457) -> 13489.23676 | N46: 0.03075269479 | O46: =LOOKUP(2,1/('Data E2059 '!$A$6:$A$457&"*"&'Data E2059 '!$C$6:$C$457=$B40&"*"&TRIM($A46)),'Data E2059 '!$K$6:$K$457)/100 -> 0.03827173517 | P46: =LOOKUP(2,1/('Data E2059 '!$A$6:$A$457&"*"&'Data E2059 '!$C$6:$C$457=$B40&"*"&TRIM($A46)),'Data E2059 '!$S$6:$S$457)/100 -> 0.03977658878 | Q46: -0.1504853615 | R46: -0.03783264631
A47: 23:00-01:00 | B47: =LOOKUP(2,1/('Data E2059 '!$A$6:$A$457&"*"&'Data E2059 '!$C$6:$C$457=$B40&"*"&TRIM($A47)),'Data E2059 '!$D$6:$D$457) -> 0.1480606496 | C47: =LOOKUP(2,1/('Data E2059 '!$A$6:$A$457&"*"&'Data E2059 '!$C$6:$C$457=$B40&"*"&TRIM($A47)),'Data E2059 '!$L$6:$L$457) -> 0.1820178344 | D47: -0.1865596573 | E47: =(LOOKUP(2,1/('Data E2059 '!$A$6:$A$195&"*"&'Data E2059 '!$C$6:$C$195=$B$40&"*"&TRIM($A47)),'Data E2059 '!$I$6:$I$195))/(LOOKUP(2,1/('Data E2059 '!$A$6:$A$195&"*"&'Data E2059 '!$C$6:$C$195=$B$40&"*"&TRIM($A47)),'Data E2059 '!$G$6:$G$195)) -> 12089.69172 | F47: =(LOOKUP(2,1/('Data E2059 '!$A$6:$A$195&"*"&'Data E2059 '!$C$6:$C$195=$B$40&"*"&TRIM($A47)),'Data E2059 '!$Q$6:$Q$195))/(LOOKUP(2,1/('Data E2059 '!$A$6:$A$195&"*"&'Data E2059 '!$C$6:$C$195=$B$40&"*"&TRIM($A47)),'Data E2059 '!$O$6:$O$195)) -> 9501.612725 | G47: 0.2723831279 | H47: =LOOKUP(2,1/('Data E2059 '!$A$6:$A$457&"*"&'Data E2059 '!$C$6:$C$457=$B40&"*"&TRIM($A47)),'Data E2059 '!$H$6:$H$457) -> 28.6194675 | I47: =LOOKUP(2,1/('Data E2059 '!$A$6:$A$457&"*"&'Data E2059 '!$C$6:$C$457=$B40&"*"&TRIM($A47)),'Data E2059 '!$P$6:$P$457) -> 22.191256 | J47: 88.32108072 | K47: 0.2896731711 | L47: =LOOKUP(2,1/('Data E2059 '!$A$6:$A$457&"*"&'Data E2059 '!$C$6:$C$457=$B40&"*"&TRIM($A47)),'Data E2059 '!$I$6:$I$457) -> 4237.41695 | M47: =LOOKUP(2,1/('Data E2059 '!$A$6:$A$457&"*"&'Data E2059 '!$C$6:$C$457=$B40&"*"&TRIM($A47)),'Data E2059 '!$Q$6:$Q$457) -> 4039.204361 | N47: 0.04907218628 | O47: =LOOKUP(2,1/('Data E2059 '!$A$6:$A$457&"*"&'Data E2059 '!$C$6:$C$457=$B40&"*"&TRIM($A47)),'Data E2059 '!$K$6:$K$457)/100 -> 0.0380447199 | P47: =LOOKUP(2,1/('Data E2059 '!$A$6:$A$457&"*"&'Data E2059 '!$C$6:$C$457=$B40&"*"&TRIM($A47)),'Data E2059 '!$S$6:$S$457)/100 -> 0.04462119053 | Q47: -0.6576470628 | R47: -0.1473844725
A48: RTL ZWEI | B48: RTL ZWEI
A49: 03:00-03:00 | B49: =LOOKUP(2,1/('Data E2059 '!$A$6:$A$457&"*"&'Data E2059 '!$C$6:$C$457=$B48&"*"&TRIM($A49)),'Data E2059 '!$D$6:$D$457) -> 0.1377834347 | C49: =LOOKUP(2,1/('Data E2059 '!$A$6:$A$457&"*"&'Data E2059 '!$C$6:$C$457=$B48&"*"&TRIM($A49)),'Data E2059 '!$L$6:$L$457) -> 0.1581792786 | D49: =IF(C49="k V","k V",(B49-C49)/C49) -> -0.1289413131 | E49: =(LOOKUP(2,1/('Data E2059 '!$A$6:$A$195&"*"&'Data E2059 '!$C$6:$C$195=$B$48&"*"&TRIM($A49)),'Data E2059 '!$I$6:$I$195))/(LOOKUP(2,1/('Data E2059 '!$A$6:$A$195&"*"&'Data E2059 '!$C$6:$C$195=$B$48&"*"&TRIM($A49)),'Data E2059 '!$G$6:$G$195)) -> 14501.81862 | F49: =(LOOKUP(2,1/('Data E2059 '!$A$6:$A$195&"*"&'Data E2059 '!$C$6:$C$195=$B$48&"*"&TRIM($A49)),'Data E2059 '!$Q$6:$Q$195))/(LOOKUP(2,1/('Data E2059 '!$A$6:$A$195&"*"&'Data E2059 '!$C$6:$C$195=$B$48&"*"&TRIM($A49)),'Data E2059 '!$O$6:$O$195)) -> 13057.48837 | G49: =IF(F49="k V","k V",(E49-F49)/F49) -> 0.1106131754 | H49: =LOOKUP(2,1/('Data E2059 '!$A$6:$A$457&"*"&'Data E2059 '!$C$6:$C$457=$B48&"*"&TRIM($A49)),'Data E2059 '!$H$6:$H$457) -> 34.32960379 | I49: =LOOKUP(2,1/('Data E2059 '!$A$6:$A$457&"*"&'Data E2059 '!$C$6:$C$457=$B48&"*"&TRIM($A49)),'Data E2059 '!$P$6:$P$457) -> 30.4960932 | K49: =IF(I49="k V","k V",(H49-I49)/I49) -> 0.1257049739 | L49: =LOOKUP(2,1/('Data E2059 '!$A$6:$A$457&"*"&'Data E2059 '!$C$6:$C$457=$B48&"*"&TRIM($A49)),'Data E2059 '!$I$6:$I$457) -> 4730.050724 | M49: =LOOKUP(2,1/('Data E2059 '!$A$6:$A$457&"*"&'Data E2059 '!$C$6:$C$457=$B48&"*"&TRIM($A49)),'Data E2059 '!$Q$6:$Q$457) -> 4823.850023 | N49: =IF(M49="k V","k V",(L49-M49)/M49) -> -0.01944490361 | O49: =LOOKUP(2,1/('Data E2059 '!$A$6:$A$457&"*"&'Data E2059 '!$C$6:$C$457=$B48&"*"&TRIM($A49)),'Data E2059 '!$K$6:$K$457)/100 -> 0.03420800049 | P49: =LOOKUP(2,1/('Data E2059 '!$A$6:$A$457&"*"&'Data E2059 '!$C$6:$C$457=$B$48&"*"&TRIM($A49)),'Data E2059 '!$S$6:$S$457)/100 -> 0.03414525965 | Q49: =(O49-P49)*100 -> 0.006274084387 | R49: =Q49/P49/100 -> 0.001837468642
A50: 06:00-09:00 | B50: =LOOKUP(2,1/('Data E2059 '!$A$6:$A$457&"*"&'Data E2059 '!$C$6:$C$457=$B48&"*"&TRIM($A50)),'Data E2059 '!$D$6:$D$457) -> 0.06744382383 | C50: =LOOKUP(2,1/('Data E2059 '!$A$6:$A$457&"*"&'Data E2059 '!$C$6:$C$457=$B48&"*"&TRIM($A50)),'Data E2059 '!$L$6:$L$457) -> 0.09082672064 | D50: -0.257445129 | E50: =(LOOKUP(2,1/('Data E2059 '!$A$6:$A$195&"*"&'Data E2059 '!$C$6:$C$195=$B$48&"*"&TRIM($A50)),'Data E2059 '!$I$6:$I$195))/(LOOKUP(2,1/('Data E2059 '!$A$6:$A$195&"*"&'Data E2059 '!$C$6:$C$195=$B$48&"*"&TRIM($A50)),'Data E2059 '!$G$6:$G$195)) -> 7397.76812 | F50: =(LOOKUP(2,1/('Data E2059 '!$A$6:$A$195&"*"&'Data E2059 '!$C$6:$C$195=$B$48&"*"&TRIM($A50)),'Data E2059 '!$Q$6:$Q$195))/(LOOKUP(2,1/('Data E2059 '!$A$6:$A$195&"*"&'Data E2059 '!$C$6:$C$195=$B$48&"*"&TRIM($A50)),'Data E2059 '!$O$6:$O$195)) -> 4389.3636 | G50: 0.6853851253 | H50: =LOOKUP(2,1/('Data E2059 '!$A$6:$A$457&"*"&'Data E2059 '!$C$6:$C$457=$B48&"*"&TRIM($A50)),'Data E2059 '!$H$6:$H$457) -> 17.5125217 | I50: =LOOKUP(2,1/('Data E2059 '!$A$6:$A$457&"*"&'Data E2059 '!$C$6:$C$457=$B48&"*"&TRIM($A50)),'Data E2059 '!$P$6:$P$457) -> 10.25146932 | K50: 0.7082938223 | L50: =LOOKUP(2,1/('Data E2059 '!$A$6:$A$457&"*"&'Data E2059 '!$C$6:$C$457=$B48&"*"&TRIM($A50)),'Data E2059 '!$I$6:$I$457) -> 1181.111429 | M50: =LOOKUP(2,1/('Data E2059 '!$A$6:$A$457&"*"&'Data E2059 '!$C$6:$C$457=$B48&"*"&TRIM($A50)),'Data E2059 '!$Q$6:$Q$457) -> 931.1073398 | N50: 0.2685018988 | O50: =LOOKUP(2,1/('Data E2059 '!$A$6:$A$457&"*"&'Data E2059 '!$C$6:$C$457=$B48&"*"&TRIM($A50)),'Data E2059 '!$K$6:$K$457)/100 -> 0.0361846524 | P50: =LOOKUP(2,1/('Data E2059 '!$A$6:$A$457&"*"&'Data E2059 '!$C$6:$C$457=$B$48&"*"&TRIM($A50)),'Data E2059 '!$S$6:$S$457)/100 -> 0.04759694905 | Q50: -1.141229665 | R50: -0.2397694995
A51: 09:00-13:00 | B51: =LOOKUP(2,1/('Data E2059 '!$A$6:$A$457&"*"&'Data E2059 '!$C$6:$C$457=$B48&"*"&TRIM($A51)),'Data E2059 '!$D$6:$D$457) -> 0.08980328426 | C51: =LOOKUP(2,1/('Data E2059 '!$A$6:$A$457&"*"&'Data E2059 '!$C$6:$C$457=$B48&"*"&TRIM($A51)),'Data E2059 '!$L$6:$L$457) -> 0.1109654289 | D51: -0.1907093482 | E51: =(LOOKUP(2,1/('Data E2059 '!$A$6:$A$195&"*"&'Data E2059 '!$C$6:$C$195=$B$48&"*"&TRIM($A51)),'Data E2059 '!$I$6:$I$195))/(LOOKUP(2,1/('Data E2059 '!$A$6:$A$195&"*"&'Data E2059 '!$C$6:$C$195=$B$48&"*"&TRIM($A51)),'Data E2059 '!$G$6:$G$195)) -> 9111.518927 | F51: =(LOOKUP(2,1/('Data E2059 '!$A$6:$A$195&"*"&'Data E2059 '!$C$6:$C$195=$B$48&"*"&TRIM($A51)),'Data E2059 '!$Q$6:$Q$195))/(LOOKUP(2,1/('Data E2059 '!$A$6:$A$195&"*"&'Data E2059 '!$C$6:$C$195=$B$48&"*"&TRIM($A51)),'Data E2059 '!$O$6:$O$195)) -> 6772.024089 | G51: 0.3454646362 | H51: =LOOKUP(2,1/('Data E2059 '!$A$6:$A$457&"*"&'Data E2059 '!$C$6:$C$457=$B48&"*"&TRIM($A51)),'Data E2059 '!$H$6:$H$457) -> 21.56935229 | I51: =LOOKUP(2,1/('Data E2059 '!$A$6:$A$457&"*"&'Data E2059 '!$C$6:$C$457=$B48&"*"&TRIM($A51)),'Data E2059 '!$P$6:$P$457) -> 15.81623294 | K51: 0.3637477628 | L51: =LOOKUP(2,1/('Data E2059 '!$A$6:$A$457&"*"&'Data E2059 '!$C$6:$C$457=$B48&"*"&TRIM($A51)),'Data E2059 '!$I$6:$I$457) -> 1936.998675 | M51: =LOOKUP(2,1/('Data E2059 '!$A$6:$A$457&"*"&'Data E2059 '!$C$6:$C$457=$B48&"*"&TRIM($A51)),'Data E2059 '!$Q$6:$Q$457) -> 1755.055072 | N51: 0.1036683159 | O51: =LOOKUP(2,1/('Data E2059 '!$A$6:$A$457&"*"&'Data E2059 '!$C$6:$C$457=$B48&"*"&TRIM($A51)),'Data E2059 '!$K$6:$K$457)/100 -> 0.03842035887 | P51: =LOOKUP(2,1/('Data E2059 '!$A$6:$A$457&"*"&'Data E2059 '!$C$6:$C$457=$B$48&"*"&TRIM($A51)),'Data E2059 '!$S$6:$S$457)/100 -> 0.04157157195 | Q51: -0.315121308 | R51: -0.07580211505
A52: 13:00-17:00 | B52: =LOOKUP(2,1/('Data E2059 '!$A$6:$A$457&"*"&'Data E2059 '!$C$6:$C$457=$B48&"*"&TRIM($A52)),'Data E2059 '!$D$6:$D$457) -> 0.1296798482 | C52: =LOOKUP(2,1/('Data E2059 '!$A$6:$A$457&"*"&'Data E2059 '!$C$6:$C$457=$B48&"*"&TRIM($A52)),'Data E2059 '!$L$6:$L$457) -> 0.1226484932 | D52: 0.05732932231 | E52: =(LOOKUP(2,1/('Data E2059 '!$A$6:$A$195&"*"&'Data E2059 '!$C$6:$C$195=$B$48&"*"&TRIM($A52)),'Data E2059 '!$I$6:$I$195))/(LOOKUP(2,1/('Data E2059 '!$A$6:$A$195&"*"&'Data E2059 '!$C$6:$C$195=$B$48&"*"&TRIM($A52)),'Data E2059 '!$G$6:$G$195)) -> 8823.363361 | F52: =(LOOKUP(2,1/('Data E2059 '!$A$6:$A$195&"*"&'Data E2059 '!$C$6:$C$195=$B$48&"*"&TRIM($A52)),'Data E2059 '!$Q$6:$Q$195))/(LOOKUP(2,1/('Data E2059 '!$A$6:$A$195&"*"&'Data E2059 '!$C$6:$C$195=$B$48&"*"&TRIM($A52)),'Data E2059 '!$O$6:$O$195)) -> 9305.840226 | G52: -0.05184667405 | H52: =LOOKUP(2,1/('Data E2059 '!$A$6:$A$457&"*"&'Data E2059 '!$C$6:$C$457=$B48&"*"&TRIM($A52)),'Data E2059 '!$H$6:$H$457) -> 20.88721258 | I52: =LOOKUP(2,1/('Data E2059 '!$A$6:$A$457&"*"&'Data E2059 '!$C$6:$C$457=$B48&"*"&TRIM($A52)),'Data E2059 '!$P$6:$P$457) -> 21.73402439 | K52: -0.03896249502 | L52: =LOOKUP(2,1/('Data E2059 '!$A$6:$A$457&"*"&'Data E2059 '!$C$6:$C$457=$B48&"*"&TRIM($A52)),'Data E2059 '!$I$6:$I$457) -> 2708.650555 | M52: =LOOKUP(2,1/('Data E2059 '!$A$6:$A$457&"*"&'Data E2059 '!$C$6:$C$457=$B48&"*"&TRIM($A52)),'Data E2059 '!$Q$6:$Q$457) -> 2665.645342 | N52: 0.01613313385 | O52: =LOOKUP(2,1/('Data E2059 '!$A$6:$A$457&"*"&'Data E2059 '!$C$6:$C$457=$B48&"*"&TRIM($A52)),'Data E2059 '!$K$6:$K$457)/100 -> 0.03755279428 | P52: =LOOKUP(2,1/('Data E2059 '!$A$6:$A$457&"*"&'Data E2059 '!$C$6:$C$457=$B$48&"*"&TRIM($A52)),'Data E2059 '!$S$6:$S$457)/100 -> 0.03154693259 | Q52: 0.6005861689 | R52: 0.1903786262
A53: 17:00-20:00 | B53: =LOOKUP(2,1/('Data E2059 '!$A$6:$A$457&"*"&'Data E2059 '!$C$6:$C$457=$B48&"*"&TRIM($A53)),'Data E2059 '!$D$6:$D$457) -> 0.1730183664 | C53: =LOOKUP(2,1/('Data E2059 '!$A$6:$A$457&"*"&'Data E2059 '!$C$6:$C$457=$B48&"*"&TRIM($A53)),'Data E2059 '!$L$6:$L$457) -> 0.1769888677 | D53: -0.02243362157 | E53: =(LOOKUP(2,1/('Data E2059 '!$A$6:$A$195&"*"&'Data E2059 '!$C$6:$C$195=$B$48&"*"&TRIM($A53)),'Data E2059 '!$I$6:$I$195))/(LOOKUP(2,1/('Data E2059 '!$A$6:$A$195&"*"&'Data E2059 '!$C$6:$C$195=$B$48&"*"&TRIM($A53)),'Data E2059 '!$G$6:$G$195)) -> 15381.1282 | F53: =(LOOKUP(2,1/('Data E2059 '!$A$6:$A$195&"*"&'Data E2059 '!$C$6:$C$195=$B$48&"*"&TRIM($A53)),'Data E2059 '!$Q$6:$Q$195))/(LOOKUP(2,1/('Data E2059 '!$A$6:$A$195&"*"&'Data E2059 '!$C$6:$C$195=$B$48&"*"&TRIM($A53)),'Data E2059 '!$O$6:$O$195)) -> 14843.58057 | G53: 0.03621414844 | H53: =LOOKUP(2,1/('Data E2059 '!$A$6:$A$457&"*"&'Data E2059 '!$C$6:$C$457=$B48&"*"&TRIM($A53)),'Data E2059 '!$H$6:$H$457) -> 36.41115991 | I53: =LOOKUP(2,1/('Data E2059 '!$A$6:$A$457&"*"&'Data E2059 '!$C$6:$C$457=$B48&"*"&TRIM($A53)),'Data E2059 '!$P$6:$P$457) -> 34.66755654 | K53: 0.05029496029 | L53: =LOOKUP(2,1/('Data E2059 '!$A$6:$A$457&"*"&'Data E2059 '!$C$6:$C$457=$B48&"*"&TRIM($A53)),'Data E2059 '!$I$6:$I$457) -> 6299.799408 | M53: =LOOKUP(2,1/('Data E2059 '!$A$6:$A$457&"*"&'Data E2059 '!$C$6:$C$457=$B48&"*"&TRIM($A53)),'Data E2059 '!$Q$6:$Q$457) -> 6135.771577 | N53: 0.02673304063 | O53: =LOOKUP(2,1/('Data E2059 '!$A$6:$A$457&"*"&'Data E2059 '!$C$6:$C$457=$B48&"*"&TRIM($A53)),'Data E2059 '!$K$6:$K$457)/100 -> 0.03082745509 | P53: =LOOKUP(2,1/('Data E2059 '!$A$6:$A$457&"*"&'Data E2059 '!$C$6:$C$457=$B$48&"*"&TRIM($A53)),'Data E2059 '!$S$6:$S$457)/100 -> 0.02636044737 | Q53: 0.4467007726 | R53: 0.1694587221
A54: 20:00-23:00 | B54: =LOOKUP(2,1/('Data E2059 '!$A$6:$A$457&"*"&'Data E2059 '!$C$6:$C$457=$B48&"*"&TRIM($A54)),'Data E2059 '!$D$6:$D$457) -> 0.2690515223 | C54: =LOOKUP(2,1/('Data E2059 '!$A$6:$A$457&"*"&'Data E2059 '!$C$6:$C$457=$B48&"*"&TRIM($A54)),'Data E2059 '!$L$6:$L$457) -> 0.3111912965 | D54: -0.1354143728 | E54: =(LOOKUP(2,1/('Data E2059 '!$A$6:$A$195&"*"&'Data E2059 '!$C$6:$C$195=$B$48&"*"&TRIM($A54)),'Data E2059 '!$I$6:$I$195))/(LOOKUP(2,1/('Data E2059 '!$A$6:$A$195&"*"&'Data E2059 '!$C$6:$C$195=$B$48&"*"&TRIM($A54)),'Data E2059 '!$G$6:$G$195)) -> 22782.99815 | F54: =(LOOKUP(2,1/('Data E2059 '!$A$6:$A$195&"*"&'Data E2059 '!$C$6:$C$195=$B$48&"*"&TRIM($A54)),'Data E2059 '!$Q$6:$Q$195))/(LOOKUP(2,1/('Data E2059 '!$A$6:$A$195&"*"&'Data E2059 '!$C$6:$C$195=$B$48&"*"&TRIM($A54)),'Data E2059 '!$O$6:$O$195)) -> 19722.09388 | G54: 0.1552017896 | H54: =LOOKUP(2,1/('Data E2059 '!$A$6:$A$457&"*"&'Data E2059 '!$C$6:$C$457=$B48&"*"&TRIM($A54)),'Data E2059 '!$H$6:$H$457) -> 53.9333252 | I54: =LOOKUP(2,1/('Data E2059 '!$A$6:$A$457&"*"&'Data E2059 '!$C$6:$C$457=$B48&"*"&TRIM($A54)),'Data E2059 '!$P$6:$P$457) -> 46.06144735 | K54: 0.1708994898 | L54: =LOOKUP(2,1/('Data E2059 '!$A$6:$A$457&"*"&'Data E2059 '!$C$6:$C$457=$B48&"*"&TRIM($A54)),'Data E2059 '!$I$6:$I$457) -> 14510.84325 | M54: =LOOKUP(2,1/('Data E2059 '!$A$6:$A$457&"*"&'Data E2059 '!$C$6:$C$457=$B48&"*"&TRIM($A54)),'Data E2059 '!$Q$6:$Q$457) -> 14333.92152 | N54: 0.01234286977 | O54: =LOOKUP(2,1/('Data E2059 '!$A$6:$A$457&"*"&'Data E2059 '!$C$6:$C$457=$B48&"*"&TRIM($A54)),'Data E2059 '!$K$6:$K$457)/100 -> 0.03308652146 | P54: =LOOKUP(2,1/('Data E2059 '!$A$6:$A$457&"*"&'Data E2059 '!$C$6:$C$457=$B$48&"*"&TRIM($A54)),'Data E2059 '!$S$6:$S$457)/100 -> 0.03398470447 | Q54: -0.08981830061 | R54: -0.02642903683
A55: 23:00-01:00 | B55: =LOOKUP(2,1/('Data E2059 '!$A$6:$A$457&"*"&'Data E2059 '!$C$6:$C$457=$B48&"*"&TRIM($A55)),'Data E2059 '!$D$6:$D$457) -> 0.1340487084 | C55: =LOOKUP(2,1/('Data E2059 '!$A$6:$A$457&"*"&'Data E2059 '!$C$6:$C$457=$B48&"*"&TRIM($A55)),'Data E2059 '!$L$6:$L$457) -> 0.1546349792 | D55: -0.133128164 | E55: =(LOOKUP(2,1/('Data E2059 '!$A$6:$A$195&"*"&'Data E2059 '!$C$6:$C$195=$B$48&"*"&TRIM($A55)),'Data E2059 '!$I$6:$I$195))/(LOOKUP(2,1/('Data E2059 '!$A$6:$A$195&"*"&'Data E2059 '!$C$6:$C$195=$B$48&"*"&TRIM($A55)),'Data E2059 '!$G$6:$G$195)) -> 14379.40286 | F55: =(LOOKUP(2,1/('Data E2059 '!$A$6:$A$195&"*"&'Data E2059 '!$C$6:$C$195=$B$48&"*"&TRIM($A55)),'Data E2059 '!$Q$6:$Q$195))/(LOOKUP(2,1/('Data E2059 '!$A$6:$A$195&"*"&'Data E2059 '!$C$6:$C$195=$B$48&"*"&TRIM($A55)),'Data E2059 '!$O$6:$O$195)) -> 11916.4902 | G55: 0.2066810456 | H55: =LOOKUP(2,1/('Data E2059 '!$A$6:$A$457&"*"&'Data E2059 '!$C$6:$C$457=$B48&"*"&TRIM($A55)),'Data E2059 '!$H$6:$H$457) -> 34.03981361 | I55: =LOOKUP(2,1/('Data E2059 '!$A$6:$A$457&"*"&'Data E2059 '!$C$6:$C$457=$B48&"*"&TRIM($A55)),'Data E2059 '!$P$6:$P$457) -> 27.83126322 | K55: 0.2230782824 | L55: =LOOKUP(2,1/('Data E2059 '!$A$6:$A$457&"*"&'Data E2059 '!$C$6:$C$457=$B48&"*"&TRIM($A55)),'Data E2059 '!$I$6:$I$457) -> 4562.993048 | M55: =LOOKUP(2,1/('Data E2059 '!$A$6:$A$457&"*"&'Data E2059 '!$C$6:$C$457=$B48&"*"&TRIM($A55)),'Data E2059 '!$Q$6:$Q$457) -> 4303.68681 | N55: 0.06025211621 | O55: =LOOKUP(2,1/('Data E2059 '!$A$6:$A$457&"*"&'Data E2059 '!$C$6:$C$457=$B48&"*"&TRIM($A55)),'Data E2059 '!$K$6:$K$457)/100 -> 0.03269673611 | P55: =LOOKUP(2,1/('Data E2059 '!$A$6:$A$457&"*"&'Data E2059 '!$C$6:$C$457=$B$48&"*"&TRIM($A55)),'Data E2059 '!$S$6:$S$457)/100 -> 0.03562029866 | Q55: -0.2923562546 | R55: -0.08207574491
A56: VOX | B56: VOX
A57: 03:00-03:00 | B57: =LOOKUP(2,1/('Data E2059 '!$A$6:$A$457&"*"&'Data E2059 '!$C$6:$C$457=$B56&"*"&TRIM($A57)),'Data E2059 '!$D$6:$D$457) -> 0.2605500689 | C57: =LOOKUP(2,1/('Data E2059 '!$A$6:$A$457&"*"&'Data E2059 '!$C$6:$C$457=$B56&"*"&TRIM($A57)),'Data E2059 '!$L$6:$L$457) -> 0.2781643301 | D57: =IF(C57="k V","k V",(B57-C57)/C57) -> -0.06332322045 | E57: =(LOOKUP(2,1/('Data E2059 '!$A$6:$A$195&"*"&'Data E2059 '!$C$6:$C$195=$B$56&"*"&TRIM($A57)),'Data E2059 '!$I$6:$I$195))/(LOOKUP(2,1/('Data E2059 '!$A$6:$A$195&"*"&'Data E2059 '!$C$6:$C$195=$B$56&"*"&TRIM($A57)),'Data E2059 '!$G$6:$G$195)) -> 15134.68536 | F57: =(LOOKUP(2,1/('Data E2059 '!$A$6:$A$195&"*"&'Data E2059 '!$C$6:$C$195=$B$56&"*"&TRIM($A57)),'Data E2059 '!$Q$6:$Q$195))/(LOOKUP(2,1/('Data E2059 '!$A$6:$A$195&"*"&'Data E2059 '!$C$6:$C$195=$B$56&"*"&TRIM($A57)),'Data E2059 '!$O$6:$O$195)) -> 14430.04059 | G57: =IF(F57="k V","k V",(E57-F57)/F57) -> 0.0488317945 | H57: =LOOKUP(2,1/('Data E2059 '!$A$6:$A$457&"*"&'Data E2059 '!$C$6:$C$457=$B56&"*"&TRIM($A57)),'Data E2059 '!$H$6:$H$457) -> 35.82776516 | I57: =LOOKUP(2,1/('Data E2059 '!$A$6:$A$457&"*"&'Data E2059 '!$C$6:$C$457=$B56&"*"&TRIM($A57)),'Data E2059 '!$P$6:$P$457) -> 33.70172349 | K57: =IF(I57="k V","k V",(H57-I57)/I57) -> 0.06308406386 | L57: =LOOKUP(2,1/('Data E2059 '!$A$6:$A$457&"*"&'Data E2059 '!$C$6:$C$457=$B56&"*"&TRIM($A57)),'Data E2059 '!$I$6:$I$457) -> 9334.926682 | M57: =LOOKUP(2,1/('Data E2059 '!$A$6:$A$457&"*"&'Data E2059 '!$C$6:$C$457=$B56&"*"&TRIM($A57)),'Data E2059 '!$Q$6:$Q$457) -> 9374.617337 | N57: =IF(M57="k V","k V",(L57-M57)/M57) -> -0.004233842664 | O57: =LOOKUP(2,1/('Data E2059 '!$A$6:$A$457&"*"&'Data E2059 '!$C$6:$C$457=$B$56&"*"&TRIM($A57)),'Data E2059 '!$K$6:$K$457)/100 -> 0.06744576399 | P57: =LOOKUP(2,1/('Data E2059 '!$A$6:$A$457&"*"&'Data E2059 '!$C$6:$C$457=$B$56&"*"&TRIM($A57)),'Data E2059 '!$S$6:$S$457)/100 -> 0.06771299567 | Q57: =(O57-P57)*100 -> -0.0267231673 | R57: =Q57/P57/100 -> -0.003946534492
A58: 06:00-09:00 | B58: =LOOKUP(2,1/('Data E2059 '!$A$6:$A$457&"*"&'Data E2059 '!$C$6:$C$457=$B56&"*"&TRIM($A58)),'Data E2059 '!$D$6:$D$457) -> 0.123135665 | C58: =LOOKUP(2,1/('Data E2059 '!$A$6:$A$457&"*"&'Data E2059 '!$C$6:$C$457=$B56&"*"&TRIM($A58)),'Data E2059 '!$L$6:$L$457) -> 0.1194671486 | D58: 0.03070732325 | E58: =(LOOKUP(2,1/('Data E2059 '!$A$6:$A$195&"*"&'Data E2059 '!$C$6:$C$195=$B$56&"*"&TRIM($A58)),'Data E2059 '!$I$6:$I$195))/(LOOKUP(2,1/('Data E2059 '!$A$6:$A$195&"*"&'Data E2059 '!$C$6:$C$195=$B$56&"*"&TRIM($A58)),'Data E2059 '!$G$6:$G$195)) -> 10436.45046 | F58: =(LOOKUP(2,1/('Data E2059 '!$A$6:$A$195&"*"&'Data E2059 '!$C$6:$C$195=$B$56&"*"&TRIM($A58)),'Data E2059 '!$Q$6:$Q$195))/(LOOKUP(2,1/('Data E2059 '!$A$6:$A$195&"*"&'Data E2059 '!$C$6:$C$195=$B$56&"*"&TRIM($A58)),'Data E2059 '!$O$6:$O$195)) -> 10469.91057 | G58: -0.003195835837 | H58: =LOOKUP(2,1/('Data E2059 '!$A$6:$A$457&"*"&'Data E2059 '!$C$6:$C$457=$B56&"*"&TRIM($A58)),'Data E2059 '!$H$6:$H$457) -> 24.70581232 | I58: =LOOKUP(2,1/('Data E2059 '!$A$6:$A$457&"*"&'Data E2059 '!$C$6:$C$457=$B56&"*"&TRIM($A58)),'Data E2059 '!$P$6:$P$457) -> 24.45274003 | K58: 0.01034944524 | L58: =LOOKUP(2,1/('Data E2059 '!$A$6:$A$457&"*"&'Data E2059 '!$C$6:$C$457=$B56&"*"&TRIM($A58)),'Data E2059 '!$I$6:$I$457) -> 3042.166629 | M58: =LOOKUP(2,1/('Data E2059 '!$A$6:$A$457&"*"&'Data E2059 '!$C$6:$C$457=$B56&"*"&TRIM($A58)),'Data E2059 '!$Q$6:$Q$457) -> 2921.299127 | N58: 0.04137457225 | O58: =LOOKUP(2,1/('Data E2059 '!$A$6:$A$457&"*"&'Data E2059 '!$C$6:$C$457=$B$56&"*"&TRIM($A58)),'Data E2059 '!$K$6:$K$457)/100 -> 0.07952710019 | P58: =LOOKUP(2,1/('Data E2059 '!$A$6:$A$457&"*"&'Data E2059 '!$C$6:$C$457=$B$56&"*"&TRIM($A58)),'Data E2059 '!$S$6:$S$457)/100 -> 0.07743230402 | Q58: 0.2094796169 | R58: 0.02705325892
A59: 09:00-13:00 | B59: =LOOKUP(2,1/('Data E2059 '!$A$6:$A$457&"*"&'Data E2059 '!$C$6:$C$457=$B56&"*"&TRIM($A59)),'Data E2059 '!$D$6:$D$457) -> 0.1561710975 | C59: =LOOKUP(2,1/('Data E2059 '!$A$6:$A$457&"*"&'Data E2059 '!$C$6:$C$457=$B56&"*"&TRIM($A59)),'Data E2059 '!$L$6:$L$457) -> 0.1541986841 | D59: 0.01279137657 | E59: =(LOOKUP(2,1/('Data E2059 '!$A$6:$A$195&"*"&'Data E2059 '!$C$6:$C$195=$B$56&"*"&TRIM($A59)),'Data E2059 '!$I$6:$I$195))/(LOOKUP(2,1/('Data E2059 '!$A$6:$A$195&"*"&'Data E2059 '!$C$6:$C$195=$B$56&"*"&TRIM($A59)),'Data E2059 '!$G$6:$G$195)) -> 10822.79674 | F59: =(LOOKUP(2,1/('Data E2059 '!$A$6:$A$195&"*"&'Data E2059 '!$C$6:$C$195=$B$56&"*"&TRIM($A59)),'Data E2059 '!$Q$6:$Q$195))/(LOOKUP(2,1/('Data E2059 '!$A$6:$A$195&"*"&'Data E2059 '!$C$6:$C$195=$B$56&"*"&TRIM($A59)),'Data E2059 '!$O$6:$O$195)) -> 8816.320732 | G59: 0.2275865491 | H59: =LOOKUP(2,1/('Data E2059 '!$A$6:$A$457&"*"&'Data E2059 '!$C$6:$C$457=$B56&"*"&TRIM($A59)),'Data E2059 '!$H$6:$H$457) -> 25.62039519 | I59: =LOOKUP(2,1/('Data E2059 '!$A$6:$A$457&"*"&'Data E2059 '!$C$6:$C$457=$B56&"*"&TRIM($A59)),'Data E2059 '!$P$6:$P$457) -> 20.59073928 | K59: 0.2442678647 | L59: =LOOKUP(2,1/('Data E2059 '!$A$6:$A$457&"*"&'Data E2059 '!$C$6:$C$457=$B56&"*"&TRIM($A59)),'Data E2059 '!$I$6:$I$457) -> 4001.165236 | M59: =LOOKUP(2,1/('Data E2059 '!$A$6:$A$457&"*"&'Data E2059 '!$C$6:$C$457=$B56&"*"&TRIM($A59)),'Data E2059 '!$Q$6:$Q$457) -> 3175.064901 | N59: 0.2601837635 | O59: =LOOKUP(2,1/('Data E2059 '!$A$6:$A$457&"*"&'Data E2059 '!$C$6:$C$457=$B$56&"*"&TRIM($A59)),'Data E2059 '!$K$6:$K$457)/100 -> 0.06766688791 | P59: =LOOKUP(2,1/('Data E2059 '!$A$6:$A$457&"*"&'Data E2059 '!$C$6:$C$457=$B$56&"*"&TRIM($A59)),'Data E2059 '!$S$6:$S$457)/100 -> 0.06753816442 | Q59: 0.01287234958 | R59: 0.001905937138
A60: 13:00-17:00 | B60: =LOOKUP(2,1/('Data E2059 '!$A$6:$A$457&"*"&'Data E2059 '!$C$6:$C$457=$B56&"*"&TRIM($A60)),'Data E2059 '!$D$6:$D$457) -> 0.1702405003 | C60: =LOOKUP(2,1/('Data E2059 '!$A$6:$A$457&"*"&'Data E2059 '!$C$6:$C$457=$B56&"*"&TRIM($A60)),'Data E2059 '!$L$6:$L$457) -> 0.1932428855 | D60: -0.1190335424 | E60: =(LOOKUP(2,1/('Data E2059 '!$A$6:$A$195&"*"&'Data E2059 '!$C$6:$C$195=$B$56&"*"&TRIM($A60)),'Data E2059 '!$I$6:$I$195))/(LOOKUP(2,1/('Data E2059 '!$A$6:$A$195&"*"&'Data E2059 '!$C$6:$C$195=$B$56&"*"&TRIM($A60)),'Data E2059 '!$G$6:$G$195)) -> 10809.4798 | F60: =(LOOKUP(2,1/('Data E2059 '!$A$6:$A$195&"*"&'Data E2059 '!$C$6:$C$195=$B$56&"*"&TRIM($A60)),'Data E2059 '!$Q$6:$Q$195))/(LOOKUP(2,1/('Data E2059 '!$A$6:$A$195&"*"&'Data E2059 '!$C$6:$C$195=$B$56&"*"&TRIM($A60)),'Data E2059 '!$O$6:$O$195)) -> 11731.85386 | G60: -0.07862133894 | H60: =LOOKUP(2,1/('Data E2059 '!$A$6:$A$457&"*"&'Data E2059 '!$C$6:$C$457=$B56&"*"&TRIM($A60)),'Data E2059 '!$H$6:$H$457) -> 25.58887051 | I60: =LOOKUP(2,1/('Data E2059 '!$A$6:$A$457&"*"&'Data E2059 '!$C$6:$C$457=$B56&"*"&TRIM($A60)),'Data E2059 '!$P$6:$P$457) -> 27.40004039 | K60: -0.06610099303 | L60: =LOOKUP(2,1/('Data E2059 '!$A$6:$A$457&"*"&'Data E2059 '!$C$6:$C$457=$B56&"*"&TRIM($A60)),'Data E2059 '!$I$6:$I$457) -> 4356.262116 | M60: =LOOKUP(2,1/('Data E2059 '!$A$6:$A$457&"*"&'Data E2059 '!$C$6:$C$457=$B56&"*"&TRIM($A60)),'Data E2059 '!$Q$6:$Q$457) -> 5294.862866 | N60: -0.1772663001 | O60: =LOOKUP(2,1/('Data E2059 '!$A$6:$A$457&"*"&'Data E2059 '!$C$6:$C$457=$B$56&"*"&TRIM($A60)),'Data E2059 '!$K$6:$K$457)/100 -> 0.05223238964 | P60: =LOOKUP(2,1/('Data E2059 '!$A$6:$A$457&"*"&'Data E2059 '!$C$6:$C$457=$B$56&"*"&TRIM($A60)),'Data E2059 '!$S$6:$S$457)/100 -> 0.05241423033 | Q60: -0.0181840685 | R60: -0.003469299919
A61: 17:00-20:00 | B61: =LOOKUP(2,1/('Data E2059 '!$A$6:$A$457&"*"&'Data E2059 '!$C$6:$C$457=$B56&"*"&TRIM($A61)),'Data E2059 '!$D$6:$D$457) -> 0.4719320254 | C61: =LOOKUP(2,1/('Data E2059 '!$A$6:$A$457&"*"&'Data E2059 '!$C$6:$C$457=$B56&"*"&TRIM($A61)),'Data E2059 '!$L$6:$L$457) -> 0.5045977713 | D61: -0.06473620735 | E61: =(LOOKUP(2,1/('Data E2059 '!$A$6:$A$195&"*"&'Data E2059 '!$C$6:$C$195=$B$56&"*"&TRIM($A61)),'Data E2059 '!$I$6:$I$195))/(LOOKUP(2,1/('Data E2059 '!$A$6:$A$195&"*"&'Data E2059 '!$C$6:$C$195=$B$56&"*"&TRIM($A61)),'Data E2059 '!$G$6:$G$195)) -> 14038.59004 | F61: =(LOOKUP(2,1/('Data E2059 '!$A$6:$A$195&"*"&'Data E2059 '!$C$6:$C$195=$B$56&"*"&TRIM($A61)),'Data E2059 '!$Q$6:$Q$195))/(LOOKUP(2,1/('Data E2059 '!$A$6:$A$195&"*"&'Data E2059 '!$C$6:$C$195=$B$56&"*"&TRIM($A61)),'Data E2059 '!$O$6:$O$195)) -> 13350.727 | G61: 0.05152251515 | H61: =LOOKUP(2,1/('Data E2059 '!$A$6:$A$457&"*"&'Data E2059 '!$C$6:$C$457=$B56&"*"&TRIM($A61)),'Data E2059 '!$H$6:$H$457) -> 33.23302037 | I61: =LOOKUP(2,1/('Data E2059 '!$A$6:$A$457&"*"&'Data E2059 '!$C$6:$C$457=$B56&"*"&TRIM($A61)),'Data E2059 '!$P$6:$P$457) -> 31.1809594 | K61: 0.06581134794 | L61: =LOOKUP(2,1/('Data E2059 '!$A$6:$A$457&"*"&'Data E2059 '!$C$6:$C$457=$B56&"*"&TRIM($A61)),'Data E2059 '!$I$6:$I$457) -> 15683.72661 | M61: =LOOKUP(2,1/('Data E2059 '!$A$6:$A$457&"*"&'Data E2059 '!$C$6:$C$457=$B56&"*"&TRIM($A61)),'Data E2059 '!$Q$6:$Q$457) -> 15733.84262 | N61: -0.003185236476 | O61: =LOOKUP(2,1/('Data E2059 '!$A$6:$A$457&"*"&'Data E2059 '!$C$6:$C$457=$B$56&"*"&TRIM($A61)),'Data E2059 '!$K$6:$K$457)/100 -> 0.07866891605 | P61: =LOOKUP(2,1/('Data E2059 '!$A$6:$A$457&"*"&'Data E2059 '!$C$6:$C$457=$B$56&"*"&TRIM($A61)),'Data E2059 '!$S$6:$S$457)/100 -> 0.07635571389 | Q61: 0.2313202162 | R61: 0.03029507609
A62: 20:00-23:00 | B62: =LOOKUP(2,1/('Data E2059 '!$A$6:$A$457&"*"&'Data E2059 '!$C$6:$C$457=$B56&"*"&TRIM($A62)),'Data E2059 '!$D$6:$D$457) -> 0.4864686729 | C62: =LOOKUP(2,1/('Data E2059 '!$A$6:$A$457&"*"&'Data E2059 '!$C$6:$C$457=$B56&"*"&TRIM($A62)),'Data E2059 '!$L$6:$L$457) -> 0.5194422523 | D62: -0.06347881655 | E62: =(LOOKUP(2,1/('Data E2059 '!$A$6:$A$195&"*"&'Data E2059 '!$C$6:$C$195=$B$56&"*"&TRIM($A62)),'Data E2059 '!$I$6:$I$195))/(LOOKUP(2,1/('Data E2059 '!$A$6:$A$195&"*"&'Data E2059 '!$C$6:$C$195=$B$56&"*"&TRIM($A62)),'Data E2059 '!$G$6:$G$195)) -> 22703.2579 | F62: =(LOOKUP(2,1/('Data E2059 '!$A$6:$A$195&"*"&'Data E2059 '!$C$6:$C$195=$B$56&"*"&TRIM($A62)),'Data E2059 '!$Q$6:$Q$195))/(LOOKUP(2,1/('Data E2059 '!$A$6:$A$195&"*"&'Data E2059 '!$C$6:$C$195=$B$56&"*"&TRIM($A62)),'Data E2059 '!$O$6:$O$195)) -> 21244.53674 | G62: 0.06866335487 | H62: =LOOKUP(2,1/('Data E2059 '!$A$6:$A$457&"*"&'Data E2059 '!$C$6:$C$457=$B56&"*"&TRIM($A62)),'Data E2059 '!$H$6:$H$457) -> 53.74455914 | I62: =LOOKUP(2,1/('Data E2059 '!$A$6:$A$457&"*"&'Data E2059 '!$C$6:$C$457=$B56&"*"&TRIM($A62)),'Data E2059 '!$P$6:$P$457) -> 49.617151 | K62: 0.08318510953 | L62: =LOOKUP(2,1/('Data E2059 '!$A$6:$A$457&"*"&'Data E2059 '!$C$6:$C$457=$B56&"*"&TRIM($A62)),'Data E2059 '!$I$6:$I$457) -> 26145.04436 | M62: =LOOKUP(2,1/('Data E2059 '!$A$6:$A$457&"*"&'Data E2059 '!$C$6:$C$457=$B56&"*"&TRIM($A62)),'Data E2059 '!$Q$6:$Q$457) -> 25773.24467 | N62: 0.01442580067 | O62: =LOOKUP(2,1/('Data E2059 '!$A$6:$A$457&"*"&'Data E2059 '!$C$6:$C$457=$B$56&"*"&TRIM($A62)),'Data E2059 '!$K$6:$K$457)/100 -> 0.05844896065 | P62: =LOOKUP(2,1/('Data E2059 '!$A$6:$A$457&"*"&'Data E2059 '!$C$6:$C$457=$B$56&"*"&TRIM($A62)),'Data E2059 '!$S$6:$S$457)/100 -> 0.06021946632 | Q62: -0.1770505672 | R62: -0.02940088612
A63: 23:00-01:00 | B63: =LOOKUP(2,1/('Data E2059 '!$A$6:$A$457&"*"&'Data E2059 '!$C$6:$C$457=$B56&"*"&TRIM($A63)),'Data E2059 '!$D$6:$D$457) -> 0.2673762545 | C63: =LOOKUP(2,1/('Data E2059 '!$A$6:$A$457&"*"&'Data E2059 '!$C$6:$C$457=$B56&"*"&TRIM($A63)),'Data E2059 '!$L$6:$L$457) -> 0.2848094637 | D63: -0.06121007692 | E63: =(LOOKUP(2,1/('Data E2059 '!$A$6:$A$195&"*"&'Data E2059 '!$C$6:$C$195=$B$56&"*"&TRIM($A63)),'Data E2059 '!$I$6:$I$195))/(LOOKUP(2,1/('Data E2059 '!$A$6:$A$195&"*"&'Data E2059 '!$C$6:$C$195=$B$56&"*"&TRIM($A63)),'Data E2059 '!$G$6:$G$195)) -> 13688.34215 | F63: =(LOOKUP(2,1/('Data E2059 '!$A$6:$A$195&"*"&'Data E2059 '!$C$6:$C$195=$B$56&"*"&TRIM($A63)),'Data E2059 '!$Q$6:$Q$195))/(LOOKUP(2,1/('Data E2059 '!$A$6:$A$195&"*"&'Data E2059 '!$C$6:$C$195=$B$56&"*"&TRIM($A63)),'Data E2059 '!$O$6:$O$195)) -> 12268.60218 | G63: 0.115721412 | H63: =LOOKUP(2,1/('Data E2059 '!$A$6:$A$457&"*"&'Data E2059 '!$C$6:$C$457=$B56&"*"&TRIM($A63)),'Data E2059 '!$H$6:$H$457) -> 32.40389187 | I63: =LOOKUP(2,1/('Data E2059 '!$A$6:$A$457&"*"&'Data E2059 '!$C$6:$C$457=$B56&"*"&TRIM($A63)),'Data E2059 '!$P$6:$P$457) -> 28.65362962 | K63: 0.1308826249 | L63: =LOOKUP(2,1/('Data E2059 '!$A$6:$A$457&"*"&'Data E2059 '!$C$6:$C$457=$B56&"*"&TRIM($A63)),'Data E2059 '!$I$6:$I$457) -> 8664.031241 | M63: =LOOKUP(2,1/('Data E2059 '!$A$6:$A$457&"*"&'Data E2059 '!$C$6:$C$457=$B56&"*"&TRIM($A63)),'Data E2059 '!$Q$6:$Q$457) -> 8160.824884 | N63: 0.06166121242 | O63: =LOOKUP(2,1/('Data E2059 '!$A$6:$A$457&"*"&'Data E2059 '!$C$6:$C$457=$B$56&"*"&TRIM($A63)),'Data E2059 '!$K$6:$K$457)/100 -> 0.06284804637 | P63: =LOOKUP(2,1/('Data E2059 '!$A$6:$A$457&"*"&'Data E2059 '!$C$6:$C$457=$B$56&"*"&TRIM($A63)),'Data E2059 '!$S$6:$S$457)/100 -> 0.06823968491 | Q63: -0.5391638534 | R63: -0.07901030817
A65: Index¹: SAT.1/ProSieben vs. RTL, Kabel Eins vs. VOX (aktueller Monat)
A66: ='Übersicht Monat'!A85 -> Quelle: AGF in Zusammenarbeit mit GfK | AGF SCOPE 1.5 | Markstandard: Bewegtbild | Seven.One Media - Media Insights & Analytics
A67: ='Übersicht Monat'!A86 -> Daten endgültig gewichtet, WB-RW und TKP für Werbung der TA 1-30

Sheet Übersicht Jahr
G1: Trendmonitor | O1: Jahreskumulation
I2: E 20-59 J. | Q2: ='Data E2059 '!T2 -> 01.01.2024 - 29.02.2024
A3: =MID(Q2,7,4)&" Seven.One Entertainment Group "&TEXT((N16+N19+N26+N35+N38+N41+N44)*100,"0,0")&"% - Ad Alliance "&TEXT((N22+N32+N75+N50+N53+N56)*100,"0,0")&"% - RTL Gruppe "&TEXT((N22+N29+N32+N75+N50+N53+N56)*100,"0,0")&"% - El Cartel "&TEXT(N29*100,"0,0")&"% - Öffentlich-Rechtliche "&TEXT((N79+N82)*100,"0,0")&"%" -> 2024 Seven.One Entertainment Group 19,8% - Ad Alliance 24,7% - RTL Gruppe 28,1% - El Cartel 3,4% - Öffentlich-Rechtliche 19,4%
A4: =RIGHT(Q2,4)-1&" Seven.One Entertainment Group "&TEXT((O16+O19+O26+O35+O38+O41+O44)*100,"0,0")&"% - Ad Alliance "&TEXT((O22+O32+O75+O50+O53+O56)*100,"0,0")&"% - RTL Gruppe "&TEXT((O22+O29+O32+O75+O50+O53+O56)*100,"0,0")&"% - El Cartel "&TEXT(O29*100,"0,0")&"% - Öffentlich-Rechtliche "&TEXT((O79+O82)*100,"0,0")&"%" -> 2023 Seven.One Entertainment Group 20,8% - Ad Alliance 24,0% - RTL Gruppe 27,3% - El Cartel 3,4% - Öffentlich-Rechtliche 19,2%
B6: RW Zeitschiene in Mio | E6: Seher in % | H6: Verweildauer in Min. | K6: Ø Sehdauer in Min.
B7: ='Übersicht Monat'!$B$7 -> 2024 | C7: ='Übersicht Monat'!$C$7 -> 2023 | D7: Diff in % | E7: ='Übersicht Monat'!$B$7 -> 2024 | F7: ='Übersicht Monat'!$C$7 -> 2023 | G7: Diff in % | H7: ='Übersicht Monat'!$B$7 -> 2024 | I7: ='Übersicht Monat'!$C$7 -> 2023 | J7: Diff in % | K7: ='Übersicht Monat'!$B$7 -> 2024 | L7: ='Übersicht Monat'!$C$7 -> 2023 | M7: Diff in %
A8: TV-Gesamt | D8: *Reichweiten der Zeitschienen
A9: 03:00-03:00 | B9: =LOOKUP(2,1/('Data E2059 '!$A$6:$A$457&"*"&'Data E2059 '!$C$6:$C$457=$A8&"*"&TRIM($A9)),'Data E2059 '!$T$6:$T$457) -> 4.313702898 | C9: =LOOKUP(2,1/('Data E2059 '!$A$6:$A$457&"*"&'Data E2059 '!$C$6:$C$457=$A8&"*"&TRIM($A9)),'Data E2059 '!$AB$6:$AB$457) -> 4.650784201 | D9: =IF(C9="k V","k V",(B9-C9)/C9) -> -0.0724783796 | E9: =LOOKUP(2,1/('Data E2059 '!$A$6:$A$457&"*"&'Data E2059 '!$C$6:$C$457=$A8&"*"&TRIM($A9)),'Data E2059 '!$Y$6:$Y$457) -> 59.17594985 | F9: =LOOKUP(2,1/('Data E2059 '!$A$6:$A$457&"*"&'Data E2059 '!$C$6:$C$457=$A8&"*"&TRIM($A9)),'Data E2059 '!$AG$6:$AG$457) -> 59.76631754 | G9: =IF(F9="k V","k V",(E9-F9)/F9) -> -0.009877933246 | H9: =LOOKUP(2,1/('Data E2059 '!$A$6:$A$457&"*"&'Data E2059 '!$C$6:$C$457=$A8&"*"&TRIM($A9)),'Data E2059 '!$Z$6:$Z$457) -> 236.7647409 | I9: =LOOKUP(2,1/('Data E2059 '!$A$6:$A$457&"*"&'Data E2059 '!$C$6:$C$457=$A8&"*"&TRIM($A9)),'Data E2059 '!$AH$6:$AH$457) -> 250.7818887 | J9: =IF(I9="k V","k V",(H9-I9)/I9) -> -0.05589378056 | K9: =LOOKUP(2,1/('Data E2059 '!$A$6:$A$457&"*"&'Data E2059 '!$C$6:$C$457=$A8&"*"&TRIM($A9)),'Data E2059 '!$AA$6:$AA$457) -> 147.0186078 | L9: =LOOKUP(2,1/('Data E2059 '!$A$6:$A$457&"*"&'Data E2059 '!$C$6:$C$457=$A8&"*"&TRIM($A9)),'Data E2059 '!$AI$6:$AI$457) -> 156.4011011 | M9: =IF(L9="k V","k V",(K9-L9)/L9) -> -0.05998994403
A10: 20:00-23:00 | B10: =LOOKUP(2,1/('Data E2059 '!$A$6:$A$457&"*"&'Data E2059 '!$C$6:$C$457=$A8&"*"&TRIM($A10)),'Data E2059 '!$T$6:$T$457) -> 10.78939477 | C10: =LOOKUP(2,1/('Data E2059 '!$A$6:$A$457&"*"&'Data E2059 '!$C$6:$C$457=$A8&"*"&TRIM($A10)),'Data E2059 '!$AB$6:$AB$457) -> 11.60242252 | D10: =IF(C10="k V","k V",(B10-C10)/C10) -> -0.07007396505 | E10: =LOOKUP(2,1/('Data E2059 '!$A$6:$A$457&"*"&'Data E2059 '!$C$6:$C$457=$A8&"*"&TRIM($A10)),'Data E2059 '!$Y$6:$Y$457) -> 46.05017023 | F10: =LOOKUP(2,1/('Data E2059 '!$A$6:$A$457&"*"&'Data E2059 '!$C$6:$C$457=$A8&"*"&TRIM($A10)),'Data E2059 '!$AG$6:$AG$457) -> 47.18593464 | G10: =IF(F10="k V","k V",(E10-F10)/F10) -> -0.02406997787 | H10: =LOOKUP(2,1/('Data E2059 '!$A$6:$A$457&"*"&'Data E2059 '!$C$6:$C$457=$A8&"*"&TRIM($A10)),'Data E2059 '!$Z$6:$Z$457) -> 95.07012559 | I10: =LOOKUP(2,1/('Data E2059 '!$A$6:$A$457&"*"&'Data E2059 '!$C$6:$C$457=$A8&"*"&TRIM($A10)),'Data E2059 '!$AH$6:$AH$457) -> 99.21914693 | J10: =IF(I10="k V","k V",(H10-I10)/I10) -> -0.04181674077 | K10: =LOOKUP(2,1/('Data E2059 '!$A$6:$A$457&"*"&'Data E2059 '!$C$6:$C$457=$A8&"*"&TRIM($A10)),'Data E2059 '!$AA$6:$AA$457) -> 45.96520191 | L10: =LOOKUP(2,1/('Data E2059 '!$A$6:$A$457&"*"&'Data E2059 '!$C$6:$C$457=$A8&"*"&TRIM($A10)),'Data E2059 '!$AI$6:$AI$457) -> 48.77219568 | M10: =IF(L10="k V","k V",(K10-L10)/L10) -> -0.05755315571
B12: RW Werbung in Mio | E12: CpG Werbung in Euro | H12: TKP Werbung in Euro | K12: Tarif Werbung in Euro | N12: Marktanteile
B13: ='Übersicht Monat'!$B$7 -> 2024 | C13: ='Übersicht Monat'!$C$7 -> 2023 | D13: Diff in % | E13: ='Übersicht Monat'!$B$7 -> 2024 | F13: ='Übersicht Monat'!$C$7 -> 2023 | G13: Diff in % | H13: ='Übersicht Monat'!$B$7 -> 2024 | I13: ='Übersicht Monat'!$C$7 -> 2023 | J13: Diff in % | K13: ='Übersicht Monat'!$B$7 -> 2024 | L13: ='Übersicht Monat'!$C$7 -> 2023 | M13: Diff in % | N13: ='Übersicht Monat'!$B$7 -> 2024 | O13: ='Übersicht Monat'!$C$7 -> 2023 | P13: Diff | Q13: Diff in %
B15: SAT.1
A16: 03:00-03:00 | B16: =LOOKUP(2,1/('Data E2059 '!$A$6:$A$457&"*"&'Data E2059 '!$C$6:$C$457=$B15&"*"&TRIM($A16)),'Data E2059 '!$T$6:$T$457) -> 0.2217346651 | C16: =LOOKUP(2,1/('Data E2059 '!$A$6:$A$457&"*"&'Data E2059 '!$C$6:$C$457=$B15&"*"&TRIM($A16)),'Data E2059 '!$AB$6:$AB$457) -> 0.2706825081 | D16: =IF(C16="k V","k V",(B16-C16)/C16) -> -0.180831201 | E16: =(LOOKUP(2,1/('Data E2059 '!$A$6:$A$457&"*"&'Data E2059 '!$C$6:$C$457=$B15&"*"&TRIM($A16)),'Data E2059 '!$Y$6:$Y$457))/(LOOKUP(2,1/('Data E2059 '!$A$6:$A$457&"*"&'Data E2059 '!$C$6:$C$457=$B15&"*"&TRIM($A16)),'Data E2059 '!$W$6:$W$457)) -> 14716.42981 | F16: =(LOOKUP(2,1/('Data E2059 '!$A$6:$A$457&"*"&'Data E2059 '!$C$6:$C$457=$B15&"*"&TRIM($A16)),'Data E2059 '!$AG$6:$AG$457))/(LOOKUP(2,1/('Data E2059 '!$A$6:$A$457&"*"&'Data E2059 '!$C$6:$C$457=$B15&"*"&TRIM($A16)),'Data E2059 '!$AE$6:$AE$457)) -> 12563.53996 | G16: =IF(F16="k V","k V",(E16-F16)/F16) -> 0.1713601304 | H16: =LOOKUP(2,1/('Data E2059 '!$A$6:$A$457&"*"&'Data E2059 '!$C$6:$C$457=$B15&"*"&TRIM($A16)),'Data E2059 '!$X$6:$X$457) -> 34.8306875 | I16: =LOOKUP(2,1/('Data E2059 '!$A$6:$A$457&"*"&'Data E2059 '!$C$6:$C$457=$B15&"*"&TRIM($A16)),'Data E2059 '!$AF$6:$AF$457) -> 29.34020549 | J16: =IF(I16="k V","k V",(H16-I16)/I16) -> 0.1871316824 | K16: =LOOKUP(2,1/('Data E2059 '!$A$6:$A$457&"*"&'Data E2059 '!$C$6:$C$457=$B15&"*"&TRIM($A16)),'Data E2059 '!$Y$6:$Y$457) -> 7723.170829 | L16: =LOOKUP(2,1/('Data E2059 '!$A$6:$A$457&"*"&'Data E2059 '!$C$6:$C$457=$B15&"*"&TRIM($A16)),'Data E2059 '!$AG$6:$AG$457) -> 7941.88041 | M16: =IF(L16="k V","k V",(K16-L16)/L16) -> -0.02753876542 | N16: =LOOKUP(2,1/('Data E2059 '!$A$6:$A$457&"*"&'Data E2059 '!$C$6:$C$457=$B15&"*"&TRIM($A16)),'Data E2059 '!$AA$6:$AA$457)/100 -> 0.05362832267 | O16: =LOOKUP(2,1/('Data E2059 '!$A$6:$A$457&"*"&'Data E2059 '!$C$6:$C$457=$B15&"*"&TRIM($A16)),'Data E2059 '!$AI$6:$AI$457)/100 -> 0.0589100895 | P16: =(N16-O16)*100 -> -0.5281766827 | Q16: =P16/O16/100 -> -0.08965810225
A17: 20:00-23:00 | B17: =LOOKUP(2,1/('Data E2059 '!$A$6:$A$457&"*"&'Data E2059 '!$C$6:$C$457=$B15&"*"&TRIM($A17)),'Data E2059 '!$T$6:$T$457) -> 0.4847662347 | C17: =LOOKUP(2,1/('Data E2059 '!$A$6:$A$457&"*"&'Data E2059 '!$C$6:$C$457=$B15&"*"&TRIM($A17)),'Data E2059 '!$AB$6:$AB$457) -> 0.5145663273 | D17: =IF(C17="k V","k V",(B17-C17)/C17) -> -0.05791302507 | E17: =(LOOKUP(2,1/('Data E2059 '!$A$6:$A$457&"*"&'Data E2059 '!$C$6:$C$457=$B15&"*"&TRIM($A17)),'Data E2059 '!$Y$6:$Y$457))/(LOOKUP(2,1/('Data E2059 '!$A$6:$A$457&"*"&'Data E2059 '!$C$6:$C$457=$B15&"*"&TRIM($A17)),'Data E2059 '!$W$6:$W$457)) -> 21053.68644 | F17: =(LOOKUP(2,1/('Data E2059 '!$A$6:$A$457&"*"&'Data E2059 '!$C$6:$C$457=$B15&"*"&TRIM($A17)),'Data E2059 '!$AG$6:$AG$457))/(LOOKUP(2,1/('Data E2059 '!$A$6:$A$457&"*"&'Data E2059 '!$C$6:$C$457=$B15&"*"&TRIM($A17)),'Data E2059 '!$AE$6:$AE$457)) -> 19736.06193 | G17: =IF(F17="k V","k V",(E17-F17)/F17) -> 0.06676228073 | H17: =LOOKUP(2,1/('Data E2059 '!$A$6:$A$457&"*"&'Data E2059 '!$C$6:$C$457=$B15&"*"&TRIM($A17)),'Data E2059 '!$X$6:$X$457) -> 49.82963821 | I17: =LOOKUP(2,1/('Data E2059 '!$A$6:$A$457&"*"&'Data E2059 '!$C$6:$C$457=$B15&"*"&TRIM($A17)),'Data E2059 '!$AF$6:$AF$457) -> 46.09052181 | J17: =IF(I17="k V","k V",(H17-I17)/I17) -> 0.08112549525 | K17: =LOOKUP(2,1/('Data E2059 '!$A$6:$A$457&"*"&'Data E2059 '!$C$6:$C$457=$B15&"*"&TRIM($A17)),'Data E2059 '!$Y$6:$Y$457) -> 24155.72609 | L17: =LOOKUP(2,1/('Data E2059 '!$A$6:$A$457&"*"&'Data E2059 '!$C$6:$C$457=$B15&"*"&TRIM($A17)),'Data E2059 '!$AG$6:$AG$457) -> 23716.63053 | M17: =IF(L17="k V","k V",(K17-L17)/L17) -> 0.01851424735 | N17: =LOOKUP(2,1/('Data E2059 '!$A$6:$A$457&"*"&'Data E2059 '!$C$6:$C$457=$B15&"*"&TRIM($A17)),'Data E2059 '!$AA$6:$AA$457)/100 -> 0.0575457513 | O17: =LOOKUP(2,1/('Data E2059 '!$A$6:$A$457&"*"&'Data E2059 '!$C$6:$C$457=$B15&"*"&TRIM($A17)),'Data E2059 '!$AI$6:$AI$457)/100 -> 0.0586515005 | P17: =(N17-O17)*100 -> -0.1105749198 | Q17: =P17/O17/100 -> -0.01885287143
B18: ProSieben
A19: 03:00-03:00 | B19: =LOOKUP(2,1/('Data E2059 '!$A$6:$A$457&"*"&'Data E2059 '!$C$6:$C$457=$B18&"*"&TRIM($A19)),'Data E2059 '!$T$6:$T$457) -> 0.1895637963 | C19: =LOOKUP(2,1/('Data E2059 '!$A$6:$A$457&"*"&'Data E2059 '!$C$6:$C$457=$B18&"*"&TRIM($A19)),'Data E2059 '!$AB$6:$AB$457) -> 0.2299348208 | D19: =IF(C19="k V","k V",(B19-C19)/C19) -> -0.1755759495 | E19: =(LOOKUP(2,1/('Data E2059 '!$A$6:$A$457&"*"&'Data E2059 '!$C$6:$C$457=$B18&"*"&TRIM($A19)),'Data E2059 '!$Y$6:$Y$457))/(LOOKUP(2,1/('Data E2059 '!$A$6:$A$457&"*"&'Data E2059 '!$C$6:$C$457=$B18&"*"&TRIM($A19)),'Data E2059 '!$W$6:$W$457)) -> 18834.18987 | F19: =(LOOKUP(2,1/('Data E2059 '!$A$6:$A$457&"*"&'Data E2059 '!$C$6:$C$457=$B18&"*"&TRIM($A19)),'Data E2059 '!$AG$6:$AG$457))/(LOOKUP(2,1/('Data E2059 '!$A$6:$A$457&"*"&'Data E2059 '!$C$6:$C$457=$B18&"*"&TRIM($A19)),'Data E2059 '!$AE$6:$AE$457)) -> 17314.31789 | G19: =IF(F19="k V","k V",(E19-F19)/F19) -> 0.08778122139 | H19: =LOOKUP(2,1/('Data E2059 '!$A$6:$A$457&"*"&'Data E2059 '!$C$6:$C$457=$B18&"*"&TRIM($A19)),'Data E2059 '!$X$6:$X$457) -> 44.57655764 | I19: =LOOKUP(2,1/('Data E2059 '!$A$6:$A$457&"*"&'Data E2059 '!$C$6:$C$457=$B18&"*"&TRIM($A19)),'Data E2059 '!$AF$6:$AF$457) -> 40.43491296 | J19: =IF(I19="k V","k V",(H19-I19)/I19) -> 0.1024274414 | K19: =LOOKUP(2,1/('Data E2059 '!$A$6:$A$457&"*"&'Data E2059 '!$C$6:$C$457=$B18&"*"&TRIM($A19)),'Data E2059 '!$Y$6:$Y$457) -> 8450.101493 | L19: =LOOKUP(2,1/('Data E2059 '!$A$6:$A$457&"*"&'Data E2059 '!$C$6:$C$457=$B18&"*"&TRIM($A19)),'Data E2059 '!$AG$6:$AG$457) -> 9297.394466 | M19: =IF(L19="k V","k V",(K19-L19)/L19) -> -0.09113230335 | N19: =LOOKUP(2,1/('Data E2059 '!$A$6:$A$457&"*"&'Data E2059 '!$C$6:$C$457=$B18&"*"&TRIM($A19)),'Data E2059 '!$AA$6:$AA$457)/100 -> 0.04915919765 | O19: =LOOKUP(2,1/('Data E2059 '!$A$6:$A$457&"*"&'Data E2059 '!$C$6:$C$457=$B18&"*"&TRIM($A19)),'Data E2059 '!$AI$6:$AI$457)/100 -> 0.05232016523 | P19: =(N19-O19)*100 -> -0.3160967582 | Q19: =P19/O19/100 -> -0.06041585626
A20: 20:00-23:00 | B20: =LOOKUP(2,1/('Data E2059 '!$A$6:$A$457&"*"&'Data E2059 '!$C$6:$C$457=$B18&"*"&TRIM($A20)),'Data E2059 '!$T$6:$T$457) -> 0.5100688202 | C20: =LOOKUP(2,1/('Data E2059 '!$A$6:$A$457&"*"&'Data E2059 '!$C$6:$C$457=$B18&"*"&TRIM($A20)),'Data E2059 '!$AB$6:$AB$457) -> 0.4895952823 | D20: =IF(C20="k V","k V",(B20-C20)/C20) -> 0.04181726956 | E20: =(LOOKUP(2,1/('Data E2059 '!$A$6:$A$457&"*"&'Data E2059 '!$C$6:$C$457=$B18&"*"&TRIM($A20)),'Data E2059 '!$Y$6:$Y$457))/(LOOKUP(2,1/('Data E2059 '!$A$6:$A$457&"*"&'Data E2059 '!$C$6:$C$457=$B18&"*"&TRIM($A20)),'Data E2059 '!$W$6:$W$457)) -> 22585.29099 | F20: =(LOOKUP(2,1/('Data E2059 '!$A$6:$A$457&"*"&'Data E2059 '!$C$6:$C$457=$B18&"*"&TRIM($A20)),'Data E2059 '!$AG$6:$AG$457))/(LOOKUP(2,1/('Data E2059 '!$A$6:$A$457&"*"&'Data E2059 '!$C$6:$C$457=$B18&"*"&TRIM($A20)),'Data E2059 '!$AE$6:$AE$457)) -> 24260.60756 | G20: =IF(F20="k V","k V",(E20-F20)/F20) -> -0.0690550128 | H20: =LOOKUP(2,1/('Data E2059 '!$A$6:$A$457&"*"&'Data E2059 '!$C$6:$C$457=$B18&"*"&TRIM($A20)),'Data E2059 '!$X$6:$X$457) -> 53.45462336 | I20: =LOOKUP(2,1/('Data E2059 '!$A$6:$A$457&"*"&'Data E2059 '!$C$6:$C$457=$B18&"*"&TRIM($A20)),'Data E2059 '!$AF$6:$AF$457) -> 56.6568987 | J20: =IF(I20="k V","k V",(H20-I20)/I20) -> -0.05652048397 | K20: =LOOKUP(2,1/('Data E2059 '!$A$6:$A$457&"*"&'Data E2059 '!$C$6:$C$457=$B18&"*"&TRIM($A20)),'Data E2059 '!$Y$6:$Y$457) -> 27265.53668 | L20: =LOOKUP(2,1/('Data E2059 '!$A$6:$A$457&"*"&'Data E2059 '!$C$6:$C$457=$B18&"*"&TRIM($A20)),'Data E2059 '!$AG$6:$AG$457) -> 27738.95031 | M20: =IF(L20="k V","k V",(K20-L20)/L20) -> -0.01706674673 | N20: =LOOKUP(2,1/('Data E2059 '!$A$6:$A$457&"*"&'Data E2059 '!$C$6:$C$457=$B18&"*"&TRIM($A20)),'Data E2059 '!$AA$6:$AA$457)/100 -> 0.06385289951 | O20: =LOOKUP(2,1/('Data E2059 '!$A$6:$A$457&"*"&'Data E2059 '!$C$6:$C$457=$B18&"*"&TRIM($A20)),'Data E2059 '!$AI$6:$AI$457)/100 -> 0.05560904339 | P20: =(N20-O20)*100 -> 0.824385612 | Q20: =P20/O20/100 -> 0.1482466811
A21: RTL | B21: RTL
A22: 03:00-03:00 | B22: =LOOKUP(2,1/('Data E2059 '!$A$6:$A$457&"*"&'Data E2059 '!$C$6:$C$457=$B21&"*"&TRIM($A22)),'Data E2059 '!$T$6:$T$457) -> 0.4136219091 | C22: =LOOKUP(2,1/('Data E2059 '!$A$6:$A$457&"*"&'Data E2059 '!$C$6:$C$457=$B21&"*"&TRIM($A22)),'Data E2059 '!$AB$6:$AB$457) -> 0.4372855437 | D22: =IF(C22="k V","k V",(B22-C22)/C22) -> -0.05411483416 | E22: =(LOOKUP(2,1/('Data E2059 '!$A$6:$A$457&"*"&'Data E2059 '!$C$6:$C$457=$B21&"*"&TRIM($A22)),'Data E2059 '!$Y$6:$Y$457))/(LOOKUP(2,1/('Data E2059 '!$A$6:$A$457&"*"&'Data E2059 '!$C$6:$C$457=$B21&"*"&TRIM($A22)),'Data E2059 '!$W$6:$W$457)) -> 15646.75409 | F22: =(LOOKUP(2,1/('Data E2059 '!$A$6:$A$457&"*"&'Data E2059 '!$C$6:$C$457=$B21&"*"&TRIM($A22)),'Data E2059 '!$AG$6:$AG$457))/(LOOKUP(2,1/('Data E2059 '!$A$6:$A$457&"*"&'Data E2059 '!$C$6:$C$457=$B21&"*"&TRIM($A22)),'Data E2059 '!$AE$6:$AE$457)) -> 15178.89862 | G22: =IF(F22="k V","k V",(E22-F22)/F22) -> 0.03082275482 | H22: =LOOKUP(2,1/('Data E2059 '!$A$6:$A$457&"*"&'Data E2059 '!$C$6:$C$457=$B21&"*"&TRIM($A22)),'Data E2059 '!$X$6:$X$457) -> 37.03256899 | I22: =LOOKUP(2,1/('Data E2059 '!$A$6:$A$457&"*"&'Data E2059 '!$C$6:$C$457=$B21&"*"&TRIM($A22)),'Data E2059 '!$AF$6:$AF$457) -> 35.44797134 | J22: =IF(I22="k V","k V",(H22-I22)/I22) -> 0.04470206854 | K22: =LOOKUP(2,1/('Data E2059 '!$A$6:$A$457&"*"&'Data E2059 '!$C$6:$C$457=$B21&"*"&TRIM($A22)),'Data E2059 '!$Y$6:$Y$457) -> 15317.48188 | L22: =LOOKUP(2,1/('Data E2059 '!$A$6:$A$457&"*"&'Data E2059 '!$C$6:$C$457=$B21&"*"&TRIM($A22)),'Data E2059 '!$AG$6:$AG$457) -> 15500.88542 | M22: =IF(L22="k V","k V",(K22-L22)/L22) -> -0.01183181065 | N22: =LOOKUP(2,1/('Data E2059 '!$A$6:$A$457&"*"&'Data E2059 '!$C$6:$C$457=$B21&"*"&TRIM($A22)),'Data E2059 '!$AA$6:$AA$457)/100 -> 0.1117167931 | O22: =LOOKUP(2,1/('Data E2059 '!$A$6:$A$457&"*"&'Data E2059 '!$C$6:$C$457=$B21&"*"&TRIM($A22)),'Data E2059 '!$AI$6:$AI$457)/100 -> 0.108343909 | P22: =(N22-O22)*100 -> 0.3372884062 | Q22: =P22/O22/100 -> 0.03113127532
A23: 20:00-23:00 | B23: =LOOKUP(2,1/('Data E2059 '!$A$6:$A$457&"*"&'Data E2059 '!$C$6:$C$457=$B21&"*"&TRIM($A23)),'Data E2059 '!$T$6:$T$457) -> 0.9835668326 | C23: =LOOKUP(2,1/('Data E2059 '!$A$6:$A$457&"*"&'Data E2059 '!$C$6:$C$457=$B21&"*"&TRIM($A23)),'Data E2059 '!$AB$6:$AB$457) -> 1.095027245 | D23: =IF(C23="k V","k V",(B23-C23)/C23) -> -0.1017877983 | E23: =(LOOKUP(2,1/('Data E2059 '!$A$6:$A$457&"*"&'Data E2059 '!$C$6:$C$457=$B21&"*"&TRIM($A23)),'Data E2059 '!$Y$6:$Y$457))/(LOOKUP(2,1/('Data E2059 '!$A$6:$A$457&"*"&'Data E2059 '!$C$6:$C$457=$B21&"*"&TRIM($A23)),'Data E2059 '!$W$6:$W$457)) -> 22334.81468 | F23: =(LOOKUP(2,1/('Data E2059 '!$A$6:$A$457&"*"&'Data E2059 '!$C$6:$C$457=$B21&"*"&TRIM($A23)),'Data E2059 '!$AG$6:$AG$457))/(LOOKUP(2,1/('Data E2059 '!$A$6:$A$457&"*"&'Data E2059 '!$C$6:$C$457=$B21&"*"&TRIM($A23)),'Data E2059 '!$AE$6:$AE$457)) -> 21516.98706 | G23: =IF(F23="k V","k V",(E23-F23)/F23) -> 0.03800846327 | H23: =LOOKUP(2,1/('Data E2059 '!$A$6:$A$457&"*"&'Data E2059 '!$C$6:$C$457=$B21&"*"&TRIM($A23)),'Data E2059 '!$X$6:$X$457) -> 52.86179871 | I23: =LOOKUP(2,1/('Data E2059 '!$A$6:$A$457&"*"&'Data E2059 '!$C$6:$C$457=$B21&"*"&TRIM($A23)),'Data E2059 '!$AF$6:$AF$457) -> 50.24959715 | J23: =IF(I23="k V","k V",(H23-I23)/I23) -> 0.05198452758 | K23: =LOOKUP(2,1/('Data E2059 '!$A$6:$A$457&"*"&'Data E2059 '!$C$6:$C$457=$B21&"*"&TRIM($A23)),'Data E2059 '!$Y$6:$Y$457) -> 51993.11193 | L23: =LOOKUP(2,1/('Data E2059 '!$A$6:$A$457&"*"&'Data E2059 '!$C$6:$C$457=$B21&"*"&TRIM($A23)),'Data E2059 '!$AG$6:$AG$457) -> 55024.67792 | M23: =IF(L23="k V","k V",(K23-L23)/L23) -> -0.05509466129 | N23: =LOOKUP(2,1/('Data E2059 '!$A$6:$A$457&"*"&'Data E2059 '!$C$6:$C$457=$B21&"*"&TRIM($A23)),'Data E2059 '!$AA$6:$AA$457)/100 -> 0.1141308098 | O23: =LOOKUP(2,1/('Data E2059 '!$A$6:$A$457&"*"&'Data E2059 '!$C$6:$C$457=$B21&"*"&TRIM($A23)),'Data E2059 '!$AI$6:$AI$457)/100 -> 0.1181722071 | P23: =(N23-O23)*100 -> -0.4041397353 | Q23: =P23/O23/100 -> -0.03419922037
B25: Kabel Eins
A26: 03:00-03:00 | B26: =LOOKUP(2,1/('Data E2059 '!$A$6:$A$457&"*"&'Data E2059 '!$C$6:$C$457=$B25&"*"&TRIM($A26)),'Data E2059 '!$T$6:$T$457) -> 0.1710641811 | C26: =LOOKUP(2,1/('Data E2059 '!$A$6:$A$457&"*"&'Data E2059 '!$C$6:$C$457=$B25&"*"&TRIM($A26)),'Data E2059 '!$AB$6:$AB$457) -> 0.1870231502 | D26: =IF(C26="k V","k V",(B26-C26)/C26) -> -0.08533151728 | E26: =(LOOKUP(2,1/('Data E2059 '!$A$6:$A$457&"*"&'Data E2059 '!$C$6:$C$457=$B25&"*"&TRIM($A26)),'Data E2059 '!$Y$6:$Y$457))/(LOOKUP(2,1/('Data E2059 '!$A$6:$A$457&"*"&'Data E2059 '!$C$6:$C$457=$B25&"*"&TRIM($A26)),'Data E2059 '!$W$6:$W$457)) -> 10455.9987 | F26: =(LOOKUP(2,1/('Data E2059 '!$A$6:$A$457&"*"&'Data E2059 '!$C$6:$C$457=$B25&"*"&TRIM($A26)),'Data E2059 '!$AG$6:$AG$457))/(LOOKUP(2,1/('Data E2059 '!$A$6:$A$457&"*"&'Data E2059 '!$C$6:$C$457=$B25&"*"&TRIM($A26)),'Data E2059 '!$AE$6:$AE$457)) -> 9676.870959 | G26: =IF(F26="k V","k V",(E26-F26)/F26) -> 0.08051442959 | H26: =LOOKUP(2,1/('Data E2059 '!$A$6:$A$457&"*"&'Data E2059 '!$C$6:$C$457=$B25&"*"&TRIM($A26)),'Data E2059 '!$X$6:$X$457) -> 24.74714507 | I26: =LOOKUP(2,1/('Data E2059 '!$A$6:$A$457&"*"&'Data E2059 '!$C$6:$C$457=$B25&"*"&TRIM($A26)),'Data E2059 '!$AF$6:$AF$457) -> 22.59883625 | J26: =IF(I26="k V","k V",(H26-I26)/I26) -> 0.09506280726 | K26: =LOOKUP(2,1/('Data E2059 '!$A$6:$A$457&"*"&'Data E2059 '!$C$6:$C$457=$B25&"*"&TRIM($A26)),'Data E2059 '!$Y$6:$Y$457) -> 4233.350105 | L26: =LOOKUP(2,1/('Data E2059 '!$A$6:$A$457&"*"&'Data E2059 '!$C$6:$C$457=$B25&"*"&TRIM($A26)),'Data E2059 '!$AG$6:$AG$457) -> 4226.505548 | M26: =IF(L26="k V","k V",(K26-L26)/L26) -> 0.001619436402 | N26: =LOOKUP(2,1/('Data E2059 '!$A$6:$A$457&"*"&'Data E2059 '!$C$6:$C$457=$B25&"*"&TRIM($A26)),'Data E2059 '!$AA$6:$AA$457)/100 -> 0.04129551938 | O26: =LOOKUP(2,1/('Data E2059 '!$A$6:$A$457&"*"&'Data E2059 '!$C$6:$C$457=$B25&"*"&TRIM($A26)),'Data E2059 '!$AI$6:$AI$457)/100 -> 0.04136624686 | P26: =(N26-O26)*100 -> -0.007072748451 | Q26: =P26/O26/100 -> -0.001709787324
A27: 20:00-23:00 | B27: =LOOKUP(2,1/('Data E2059 '!$A$6:$A$457&"*"&'Data E2059 '!$C$6:$C$457=$B25&"*"&TRIM($A27)),'Data E2059 '!$T$6:$T$457) -> 0.3152321794 | C27: =LOOKUP(2,1/('Data E2059 '!$A$6:$A$457&"*"&'Data E2059 '!$C$6:$C$457=$B25&"*"&TRIM($A27)),'Data E2059 '!$AB$6:$AB$457) -> 0.3485712403 | D27: =IF(C27="k V","k V",(B27-C27)/C27) -> -0.09564489844 | E27: =(LOOKUP(2,1/('Data E2059 '!$A$6:$A$457&"*"&'Data E2059 '!$C$6:$C$457=$B25&"*"&TRIM($A27)),'Data E2059 '!$Y$6:$Y$457))/(LOOKUP(2,1/('Data E2059 '!$A$6:$A$457&"*"&'Data E2059 '!$C$6:$C$457=$B25&"*"&TRIM($A27)),'Data E2059 '!$W$6:$W$457)) -> 17016.39753 | F27: =(LOOKUP(2,1/('Data E2059 '!$A$6:$A$457&"*"&'Data E2059 '!$C$6:$C$457=$B25&"*"&TRIM($A27)),'Data E2059 '!$AG$6:$AG$457))/(LOOKUP(2,1/('Data E2059 '!$A$6:$A$457&"*"&'Data E2059 '!$C$6:$C$457=$B25&"*"&TRIM($A27)),'Data E2059 '!$AE$6:$AE$457)) -> 15893.80795 | G27: =IF(F27="k V","k V",(E27-F27)/F27) -> 0.07063062436 | H27: =LOOKUP(2,1/('Data E2059 '!$A$6:$A$457&"*"&'Data E2059 '!$C$6:$C$457=$B25&"*"&TRIM($A27)),'Data E2059 '!$X$6:$X$457) -> 40.27422633 | I27: =LOOKUP(2,1/('Data E2059 '!$A$6:$A$457&"*"&'Data E2059 '!$C$6:$C$457=$B25&"*"&TRIM($A27)),'Data E2059 '!$AF$6:$AF$457) -> 37.11753158 | J27: =IF(I27="k V","k V",(H27-I27)/I27) -> 0.08504592344 | K27: =LOOKUP(2,1/('Data E2059 '!$A$6:$A$457&"*"&'Data E2059 '!$C$6:$C$457=$B25&"*"&TRIM($A27)),'Data E2059 '!$Y$6:$Y$457) -> 12695.73214 | L27: =LOOKUP(2,1/('Data E2059 '!$A$6:$A$457&"*"&'Data E2059 '!$C$6:$C$457=$B25&"*"&TRIM($A27)),'Data E2059 '!$AG$6:$AG$457) -> 12938.10402 | M27: =IF(L27="k V","k V",(K27-L27)/L27) -> -0.01873318371 | N27: =LOOKUP(2,1/('Data E2059 '!$A$6:$A$457&"*"&'Data E2059 '!$C$6:$C$457=$B25&"*"&TRIM($A27)),'Data E2059 '!$AA$6:$AA$457)/100 -> 0.03801970017 | O27: =LOOKUP(2,1/('Data E2059 '!$A$6:$A$457&"*"&'Data E2059 '!$C$6:$C$457=$B25&"*"&TRIM($A27)),'Data E2059 '!$AI$6:$AI$457)/100 -> 0.03844326421 | P27: =(N27-O27)*100 -> -0.0423564045 | Q27: =P27/O27/100 -> -0.01101790011
A28: RTL ZWEI | B28: RTL ZWEI
A29: 03:00-03:00 | B29: =LOOKUP(2,1/('Data E2059 '!$A$6:$A$457&"*"&'Data E2059 '!$C$6:$C$457=$B28&"*"&TRIM($A29)),'Data E2059 '!$T$6:$T$457) -> 0.1424583427 | C29: =LOOKUP(2,1/('Data E2059 '!$A$6:$A$457&"*"&'Data E2059 '!$C$6:$C$457=$B28&"*"&TRIM($A29)),'Data E2059 '!$AB$6:$AB$457) -> 0.1578655374 | D29: =IF(C29="k V","k V",(B29-C29)/C29) -> -0.09759694831 | E29: =(LOOKUP(2,1/('Data E2059 '!$A$6:$A$457&"*"&'Data E2059 '!$C$6:$C$457=$B28&"*"&TRIM($A29)),'Data E2059 '!$Y$6:$Y$457))/(LOOKUP(2,1/('Data E2059 '!$A$6:$A$457&"*"&'Data E2059 '!$C$6:$C$457=$B28&"*"&TRIM($A29)),'Data E2059 '!$W$6:$W$457)) -> 11924.17271 | F29: =(LOOKUP(2,1/('Data E2059 '!$A$6:$A$457&"*"&'Data E2059 '!$C$6:$C$457=$B28&"*"&TRIM($A29)),'Data E2059 '!$AG$6:$AG$457))/(LOOKUP(2,1/('Data E2059 '!$A$6:$A$457&"*"&'Data E2059 '!$C$6:$C$457=$B28&"*"&TRIM($A29)),'Data E2059 '!$AE$6:$AE$457)) -> 10707.96978 | G29: =IF(F29="k V","k V",(E29-F29)/F29) -> 0.1135792265 | H29: =LOOKUP(2,1/('Data E2059 '!$A$6:$A$457&"*"&'Data E2059 '!$C$6:$C$457=$B28&"*"&TRIM($A29)),'Data E2059 '!$X$6:$X$457) -> 28.22200347 | I29: =LOOKUP(2,1/('Data E2059 '!$A$6:$A$457&"*"&'Data E2059 '!$C$6:$C$457=$B28&"*"&TRIM($A29)),'Data E2059 '!$AF$6:$AF$457) -> 25.00680816 | J29: =IF(I29="k V","k V",(H29-I29)/I29) -> 0.1285727987 | K29: =LOOKUP(2,1/('Data E2059 '!$A$6:$A$457&"*"&'Data E2059 '!$C$6:$C$457=$B28&"*"&TRIM($A29)),'Data E2059 '!$Y$6:$Y$457) -> 4020.459844 | L29: =LOOKUP(2,1/('Data E2059 '!$A$6:$A$457&"*"&'Data E2059 '!$C$6:$C$457=$B28&"*"&TRIM($A29)),'Data E2059 '!$AG$6:$AG$457) -> 3947.71321 | M29: =IF(L29="k V","k V",(K29-L29)/L29) -> 0.01842753761 | N29: =LOOKUP(2,1/('Data E2059 '!$A$6:$A$457&"*"&'Data E2059 '!$C$6:$C$457=$B28&"*"&TRIM($A29)),'Data E2059 '!$AA$6:$AA$457)/100 -> 0.03397470126 | O29: =LOOKUP(2,1/('Data E2059 '!$A$6:$A$457&"*"&'Data E2059 '!$C$6:$C$457=$B28&"*"&TRIM($A29)),'Data E2059 '!$AI$6:$AI$457)/100 -> 0.03373607841 | P29: =(N29-O29)*100 -> 0.02386228527 | Q29: =P29/O29/100 -> 0.007073224393
A30: 20:00-23:00 | B30: =LOOKUP(2,1/('Data E2059 '!$A$6:$A$457&"*"&'Data E2059 '!$C$6:$C$457=$B28&"*"&TRIM($A30)),'Data E2059 '!$T$6:$T$457) -> 0.2765033138 | C30: =LOOKUP(2,1/('Data E2059 '!$A$6:$A$457&"*"&'Data E2059 '!$C$6:$C$457=$B28&"*"&TRIM($A30)),'Data E2059 '!$AB$6:$AB$457) -> 0.3176043794 | D30: =IF(C30="k V","k V",(B30-C30)/C30) -> -0.1294096313 | E30: =(LOOKUP(2,1/('Data E2059 '!$A$6:$A$457&"*"&'Data E2059 '!$C$6:$C$457=$B28&"*"&TRIM($A30)),'Data E2059 '!$Y$6:$Y$457))/(LOOKUP(2,1/('Data E2059 '!$A$6:$A$457&"*"&'Data E2059 '!$C$6:$C$457=$B28&"*"&TRIM($A30)),'Data E2059 '!$W$6:$W$457)) -> 18622.7784 | F30: =(LOOKUP(2,1/('Data E2059 '!$A$6:$A$457&"*"&'Data E2059 '!$C$6:$C$457=$B28&"*"&TRIM($A30)),'Data E2059 '!$AG$6:$AG$457))/(LOOKUP(2,1/('Data E2059 '!$A$6:$A$457&"*"&'Data E2059 '!$C$6:$C$457=$B28&"*"&TRIM($A30)),'Data E2059 '!$AE$6:$AE$457)) -> 15711.8204 | G30: =IF(F30="k V","k V",(E30-F30)/F30) -> 0.1852718477 | H30: =LOOKUP(2,1/('Data E2059 '!$A$6:$A$457&"*"&'Data E2059 '!$C$6:$C$457=$B28&"*"&TRIM($A30)),'Data E2059 '!$X$6:$X$457) -> 44.07619125 | I30: =LOOKUP(2,1/('Data E2059 '!$A$6:$A$457&"*"&'Data E2059 '!$C$6:$C$457=$B28&"*"&TRIM($A30)),'Data E2059 '!$AF$6:$AF$457) -> 36.69252778 | J30: =IF(I30="k V","k V",(H30-I30)/I30) -> 0.2012307114 | K30: =LOOKUP(2,1/('Data E2059 '!$A$6:$A$457&"*"&'Data E2059 '!$C$6:$C$457=$B28&"*"&TRIM($A30)),'Data E2059 '!$Y$6:$Y$457) -> 12187.21294 | L30: =LOOKUP(2,1/('Data E2059 '!$A$6:$A$457&"*"&'Data E2059 '!$C$6:$C$457=$B28&"*"&TRIM($A30)),'Data E2059 '!$AG$6:$AG$457) -> 11653.70752 | M30: =IF(L30="k V","k V",(K30-L30)/L30) -> 0.04577988793 | N30: =LOOKUP(2,1/('Data E2059 '!$A$6:$A$457&"*"&'Data E2059 '!$C$6:$C$457=$B28&"*"&TRIM($A30)),'Data E2059 '!$AA$6:$AA$457)/100 -> 0.03272997801 | O30: =LOOKUP(2,1/('Data E2059 '!$A$6:$A$457&"*"&'Data E2059 '!$C$6:$C$457=$B28&"*"&TRIM($A30)),'Data E2059 '!$AI$6:$AI$457)/100 -> 0.03457906341 | P30: =(N30-O30)*100 -> -0.1849085401 | Q30: =P30/O30/100 -> -0.05347413199
A31: VOX | B31: VOX
A32: 03:00-03:00 | B32: =LOOKUP(2,1/('Data E2059 '!$A$6:$A$457&"*"&'Data E2059 '!$C$6:$C$457=$B31&"*"&TRIM($A32)),'Data E2059 '!$T$6:$T$457) -> 0.2600272494 | C32: =LOOKUP(2,1/('Data E2059 '!$A$6:$A$457&"*"&'Data E2059 '!$C$6:$C$457=$B31&"*"&TRIM($A32)),'Data E2059 '!$AB$6:$AB$457) -> 0.2726949793 | D32: =IF(C32="k V","k V",(B32-C32)/C32) -> -0.04645384319 | E32: =(LOOKUP(2,1/('Data E2059 '!$A$6:$A$457&"*"&'Data E2059 '!$C$6:$C$457=$B31&"*"&TRIM($A32)),'Data E2059 '!$Y$6:$Y$457))/(LOOKUP(2,1/('Data E2059 '!$A$6:$A$457&"*"&'Data E2059 '!$C$6:$C$457=$B31&"*"&TRIM($A32)),'Data E2059 '!$W$6:$W$457)) -> 13863.86937 | F32: =(LOOKUP(2,1/('Data E2059 '!$A$6:$A$457&"*"&'Data E2059 '!$C$6:$C$457=$B31&"*"&TRIM($A32)),'Data E2059 '!$AG$6:$AG$457))/(LOOKUP(2,1/('Data E2059 '!$A$6:$A$457&"*"&'Data E2059 '!$C$6:$C$457=$B31&"*"&TRIM($A32)),'Data E2059 '!$AE$6:$AE$457)) -> 13232.33997 | G32: =IF(F32="k V","k V",(E32-F32)/F32) -> 0.04772620756 | H32: =LOOKUP(2,1/('Data E2059 '!$A$6:$A$457&"*"&'Data E2059 '!$C$6:$C$457=$B31&"*"&TRIM($A32)),'Data E2059 '!$X$6:$X$457) -> 32.81285664 | I32: =LOOKUP(2,1/('Data E2059 '!$A$6:$A$457&"*"&'Data E2059 '!$C$6:$C$457=$B31&"*"&TRIM($A32)),'Data E2059 '!$AF$6:$AF$457) -> 30.90208451 | J32: =IF(I32="k V","k V",(H32-I32)/I32) -> 0.06183311455 | K32: =LOOKUP(2,1/('Data E2059 '!$A$6:$A$457&"*"&'Data E2059 '!$C$6:$C$457=$B31&"*"&TRIM($A32)),'Data E2059 '!$Y$6:$Y$457) -> 8532.23686 | L32: =LOOKUP(2,1/('Data E2059 '!$A$6:$A$457&"*"&'Data E2059 '!$C$6:$C$457=$B31&"*"&TRIM($A32)),'Data E2059 '!$AG$6:$AG$457) -> 8426.843295 | M32: =IF(L32="k V","k V",(K32-L32)/L32) -> 0.01250688556 | N32: =LOOKUP(2,1/('Data E2059 '!$A$6:$A$457&"*"&'Data E2059 '!$C$6:$C$457=$B31&"*"&TRIM($A32)),'Data E2059 '!$AA$6:$AA$457)/100 -> 0.06541323136 | O32: =LOOKUP(2,1/('Data E2059 '!$A$6:$A$457&"*"&'Data E2059 '!$C$6:$C$457=$B31&"*"&TRIM($A32)),'Data E2059 '!$AI$6:$AI$457)/100 -> 0.06483610708 | P32: =(N32-O32)*100 -> 0.05771242803 | Q32: =P32/O32/100 -> 0.008901279029
A33: 20:00-23:00 | B33: =LOOKUP(2,1/('Data E2059 '!$A$6:$A$457&"*"&'Data E2059 '!$C$6:$C$457=$B31&"*"&TRIM($A33)),'Data E2059 '!$T$6:$T$457) -> 0.4736023046 | C33: =LOOKUP(2,1/('Data E2059 '!$A$6:$A$457&"*"&'Data E2059 '!$C$6:$C$457=$B31&"*"&TRIM($A33)),'Data E2059 '!$AB$6:$AB$457) -> 0.4942239167 | D33: =IF(C33="k V","k V",(B33-C33)/C33) -> -0.04172524113 | E33: =(LOOKUP(2,1/('Data E2059 '!$A$6:$A$457&"*"&'Data E2059 '!$C$6:$C$457=$B31&"*"&TRIM($A33)),'Data E2059 '!$Y$6:$Y$457))/(LOOKUP(2,1/('Data E2059 '!$A$6:$A$457&"*"&'Data E2059 '!$C$6:$C$457=$B31&"*"&TRIM($A33)),'Data E2059 '!$W$6:$W$457)) -> 20819.84053 | F33: =(LOOKUP(2,1/('Data E2059 '!$A$6:$A$457&"*"&'Data E2059 '!$C$6:$C$457=$B31&"*"&TRIM($A33)),'Data E2059 '!$AG$6:$AG$457))/(LOOKUP(2,1/('Data E2059 '!$A$6:$A$457&"*"&'Data E2059 '!$C$6:$C$457=$B31&"*"&TRIM($A33)),'Data E2059 '!$AE$6:$AE$457)) -> 19863.13357 | G33: =IF(F33="k V","k V",(E33-F33)/F33) -> 0.04816495623 | H33: =LOOKUP(2,1/('Data E2059 '!$A$6:$A$457&"*"&'Data E2059 '!$C$6:$C$457=$B31&"*"&TRIM($A33)),'Data E2059 '!$X$6:$X$457) -> 49.27617422 | I33: =LOOKUP(2,1/('Data E2059 '!$A$6:$A$457&"*"&'Data E2059 '!$C$6:$C$457=$B31&"*"&TRIM($A33)),'Data E2059 '!$AF$6:$AF$457) -> 46.38727796 | J33: =IF(I33="k V","k V",(H33-I33)/I33) -> 0.06227777067 | K33: =LOOKUP(2,1/('Data E2059 '!$A$6:$A$457&"*"&'Data E2059 '!$C$6:$C$457=$B31&"*"&TRIM($A33)),'Data E2059 '!$Y$6:$Y$457) -> 23337.30967 | L33: =LOOKUP(2,1/('Data E2059 '!$A$6:$A$457&"*"&'Data E2059 '!$C$6:$C$457=$B31&"*"&TRIM($A33)),'Data E2059 '!$AG$6:$AG$457) -> 22925.7022 | M33: =IF(L33="k V","k V",(K33-L33)/L33) -> 0.01795397454 | N33: =LOOKUP(2,1/('Data E2059 '!$A$6:$A$457&"*"&'Data E2059 '!$C$6:$C$457=$B31&"*"&TRIM($A33)),'Data E2059 '!$AA$6:$AA$457)/100 -> 0.05492227545 | O33: =LOOKUP(2,1/('Data E2059 '!$A$6:$A$457&"*"&'Data E2059 '!$C$6:$C$457=$B31&"*"&TRIM($A33)),'Data E2059 '!$AI$6:$AI$457)/100 -> 0.05555585318 | P33: =(N33-O33)*100 -> -0.06335777229 | Q33: =P33/O33/100 -> -0.01140433792
B34: sixx
A35: 03:00-03:00 | B35: =LOOKUP(2,1/('Data E2059 '!$A$6:$A$457&"*"&'Data E2059 '!$C$6:$C$457=$B34&"*"&TRIM($A35)),'Data E2059 '!$T$6:$T$457) -> 0.04647082457 | C35: =LOOKUP(2,1/('Data E2059 '!$A$6:$A$457&"*"&'Data E2059 '!$C$6:$C$457=$B34&"*"&TRIM($A35)),'Data E2059 '!$AB$6:$AB$457) -> 0.05693491353 | D35: =IF(C35="k V","k V",(B35-C35)/C35) -> -0.1837903725 | E35: =(LOOKUP(2,1/('Data E2059 '!$A$6:$A$457&"*"&'Data E2059 '!$C$6:$C$457=$B34&"*"&TRIM($A35)),'Data E2059 '!$Y$6:$Y$457))/(LOOKUP(2,1/('Data E2059 '!$A$6:$A$457&"*"&'Data E2059 '!$C$6:$C$457=$B34&"*"&TRIM($A35)),'Data E2059 '!$W$6:$W$457)) -> 11859.05682 | F35: =(LOOKUP(2,1/('Data E2059 '!$A$6:$A$457&"*"&'Data E2059 '!$C$6:$C$457=$B34&"*"&TRIM($A35)),'Data E2059 '!$AG$6:$AG$457))/(LOOKUP(2,1/('Data E2059 '!$A$6:$A$457&"*"&'Data E2059 '!$C$6:$C$457=$B34&"*"&TRIM($A35)),'Data E2059 '!$AE$6:$AE$457)) -> 9705.621651 | G35: =IF(F35="k V","k V",(E35-F35)/F35) -> 0.2218750379 | H35: =LOOKUP(2,1/('Data E2059 '!$A$6:$A$457&"*"&'Data E2059 '!$C$6:$C$457=$B34&"*"&TRIM($A35)),'Data E2059 '!$X$6:$X$457) -> 28.06788791 | I35: =LOOKUP(2,1/('Data E2059 '!$A$6:$A$457&"*"&'Data E2059 '!$C$6:$C$457=$B34&"*"&TRIM($A35)),'Data E2059 '!$AF$6:$AF$457) -> 22.66597905 | J35: =IF(I35="k V","k V",(H35-I35)/I35) -> 0.2383267382 | K35: =LOOKUP(2,1/('Data E2059 '!$A$6:$A$457&"*"&'Data E2059 '!$C$6:$C$457=$B34&"*"&TRIM($A35)),'Data E2059 '!$Y$6:$Y$457) -> 1304.337895 | L35: =LOOKUP(2,1/('Data E2059 '!$A$6:$A$457&"*"&'Data E2059 '!$C$6:$C$457=$B34&"*"&TRIM($A35)),'Data E2059 '!$AG$6:$AG$457) -> 1290.485557 | M35: =IF(L35="k V","k V",(K35-L35)/L35) -> 0.01073420575 | N35: =LOOKUP(2,1/('Data E2059 '!$A$6:$A$457&"*"&'Data E2059 '!$C$6:$C$457=$B34&"*"&TRIM($A35)),'Data E2059 '!$AA$6:$AA$457)/100 -> 0.01075406212 | O35: =LOOKUP(2,1/('Data E2059 '!$A$6:$A$457&"*"&'Data E2059 '!$C$6:$C$457=$B34&"*"&TRIM($A35)),'Data E2059 '!$AI$6:$AI$457)/100 -> 0.0121427715 | P35: =(N35-O35)*100 -> -0.1388709376 | Q35: =P35/O35/100 -> -0.1143651082
A36: 20:00-23:00 | B36: =LOOKUP(2,1/('Data E2059 '!$A$6:$A$457&"*"&'Data E2059 '!$C$6:$C$457=$B34&"*"&TRIM($A36)),'Data E2059 '!$T$6:$T$457) -> 0.08342333426 | C36: =LOOKUP(2,1/('Data E2059 '!$A$6:$A$457&"*"&'Data E2059 '!$C$6:$C$457=$B34&"*"&TRIM($A36)),'Data E2059 '!$AB$6:$AB$457) -> 0.09348010013 | D36: =IF(C36="k V","k V",(B36-C36)/C36) -> -0.1075818902 | E36: =(LOOKUP(2,1/('Data E2059 '!$A$6:$A$457&"*"&'Data E2059 '!$C$6:$C$457=$B34&"*"&TRIM($A36)),'Data E2059 '!$Y$6:$Y$457))/(LOOKUP(2,1/('Data E2059 '!$A$6:$A$457&"*"&'Data E2059 '!$C$6:$C$457=$B34&"*"&TRIM($A36)),'Data E2059 '!$W$6:$W$457)) -> 16714.23008 | F36: =(LOOKUP(2,1/('Data E2059 '!$A$6:$A$457&"*"&'Data E2059 '!$C$6:$C$457=$B34&"*"&TRIM($A36)),'Data E2059 '!$AG$6:$AG$457))/(LOOKUP(2,1/('Data E2059 '!$A$6:$A$457&"*"&'Data E2059 '!$C$6:$C$457=$B34&"*"&TRIM($A36)),'Data E2059 '!$AE$6:$AE$457)) -> 15767.3834 | G36: =IF(F36="k V","k V",(E36-F36)/F36) -> 0.0600509709 | H36: =LOOKUP(2,1/('Data E2059 '!$A$6:$A$457&"*"&'Data E2059 '!$C$6:$C$457=$B34&"*"&TRIM($A36)),'Data E2059 '!$X$6:$X$457) -> 39.55905966 | I36: =LOOKUP(2,1/('Data E2059 '!$A$6:$A$457&"*"&'Data E2059 '!$C$6:$C$457=$B34&"*"&TRIM($A36)),'Data E2059 '!$AF$6:$AF$457) -> 36.82228658 | J36: =IF(I36="k V","k V",(H36-I36)/I36) -> 0.07432382229 | K36: =LOOKUP(2,1/('Data E2059 '!$A$6:$A$457&"*"&'Data E2059 '!$C$6:$C$457=$B34&"*"&TRIM($A36)),'Data E2059 '!$Y$6:$Y$457) -> 3300.148657 | L36: =LOOKUP(2,1/('Data E2059 '!$A$6:$A$457&"*"&'Data E2059 '!$C$6:$C$457=$B34&"*"&TRIM($A36)),'Data E2059 '!$AG$6:$AG$457) -> 3442.151036 | M36: =IF(L36="k V","k V",(K36-L36)/L36) -> -0.04125396518 | N36: =LOOKUP(2,1/('Data E2059 '!$A$6:$A$457&"*"&'Data E2059 '!$C$6:$C$457=$B34&"*"&TRIM($A36)),'Data E2059 '!$AA$6:$AA$457)/100 -> 0.009584229928 | O36: =LOOKUP(2,1/('Data E2059 '!$A$6:$A$457&"*"&'Data E2059 '!$C$6:$C$457=$B34&"*"&TRIM($A36)),'Data E2059 '!$AI$6:$AI$457)/100 -> 0.01028574117 | P36: =(N36-O36)*100 -> -0.07015112394 | Q36: =P36/O36/100 -> -0.06820230336
B37: S1 Gold
A38: 03:00-03:00 | B38: =LOOKUP(2,1/('Data E2059 '!$A$6:$A$457&"*"&'Data E2059 '!$C$6:$C$457=$B37&"*"&TRIM($A38)),'Data E2059 '!$T$6:$T$457) -> 0.09155563473 | C38: =LOOKUP(2,1/('Data E2059 '!$A$6:$A$457&"*"&'Data E2059 '!$C$6:$C$457=$B37&"*"&TRIM($A38)),'Data E2059 '!$AB$6:$AB$457) -> 0.1074882601 | D38: =IF(C38="k V","k V",(B38-C38)/C38) -> -0.1482266562 | E38: =(LOOKUP(2,1/('Data E2059 '!$A$6:$A$457&"*"&'Data E2059 '!$C$6:$C$457=$B37&"*"&TRIM($A38)),'Data E2059 '!$Y$6:$Y$457))/(LOOKUP(2,1/('Data E2059 '!$A$6:$A$457&"*"&'Data E2059 '!$C$6:$C$457=$B37&"*"&TRIM($A38)),'Data E2059 '!$W$6:$W$457)) -> 6724.428093 | F38: =(LOOKUP(2,1/('Data E2059 '!$A$6:$A$457&"*"&'Data E2059 '!$C$6:$C$457=$B37&"*"&TRIM($A38)),'Data E2059 '!$AG$6:$AG$457))/(LOOKUP(2,1/('Data E2059 '!$A$6:$A$457&"*"&'Data E2059 '!$C$6:$C$457=$B37&"*"&TRIM($A38)),'Data E2059 '!$AE$6:$AE$457)) -> 6174.508058 | G38: =IF(F38="k V","k V",(E38-F38)/F38) -> 0.08906297149 | H38: =LOOKUP(2,1/('Data E2059 '!$A$6:$A$457&"*"&'Data E2059 '!$C$6:$C$457=$B37&"*"&TRIM($A38)),'Data E2059 '!$X$6:$X$457) -> 15.91530395 | I38: =LOOKUP(2,1/('Data E2059 '!$A$6:$A$457&"*"&'Data E2059 '!$C$6:$C$457=$B37&"*"&TRIM($A38)),'Data E2059 '!$AF$6:$AF$457) -> 14.4196091 | J38: =IF(I38="k V","k V",(H38-I38)/I38) -> 0.1037264493 | K38: =LOOKUP(2,1/('Data E2059 '!$A$6:$A$457&"*"&'Data E2059 '!$C$6:$C$457=$B37&"*"&TRIM($A38)),'Data E2059 '!$Y$6:$Y$457) -> 1457.135755 | L38: =LOOKUP(2,1/('Data E2059 '!$A$6:$A$457&"*"&'Data E2059 '!$C$6:$C$457=$B37&"*"&TRIM($A38)),'Data E2059 '!$AG$6:$AG$457) -> 1549.938693 | M38: =IF(L38="k V","k V",(K38-L38)/L38) -> -0.05987523156 | N38: =LOOKUP(2,1/('Data E2059 '!$A$6:$A$457&"*"&'Data E2059 '!$C$6:$C$457=$B37&"*"&TRIM($A38)),'Data E2059 '!$AA$6:$AA$457)/100 -> 0.02001560358 | O38: =LOOKUP(2,1/('Data E2059 '!$A$6:$A$457&"*"&'Data E2059 '!$C$6:$C$457=$B37&"*"&TRIM($A38)),'Data E2059 '!$AI$6:$AI$457)/100 -> 0.02009235901 | P38: =(N38-O38)*100 -> -0.007675543027 | Q38: =P38/O38/100 -> -0.003820130341
A39: 20:00-23:00 | B39: =LOOKUP(2,1/('Data E2059 '!$A$6:$A$457&"*"&'Data E2059 '!$C$6:$C$457=$B37&"*"&TRIM($A39)),'Data E2059 '!$T$6:$T$457) -> 0.1106214245 | C39: =LOOKUP(2,1/('Data E2059 '!$A$6:$A$457&"*"&'Data E2059 '!$C$6:$C$457=$B37&"*"&TRIM($A39)),'Data E2059 '!$AB$6:$AB$457) -> 0.1335539355 | D39: =IF(C39="k V","k V",(B39-C39)/C39) -> -0.1717097364 | E39: =(LOOKUP(2,1/('Data E2059 '!$A$6:$A$457&"*"&'Data E2059 '!$C$6:$C$457=$B37&"*"&TRIM($A39)),'Data E2059 '!$Y$6:$Y$457))/(LOOKUP(2,1/('Data E2059 '!$A$6:$A$457&"*"&'Data E2059 '!$C$6:$C$457=$B37&"*"&TRIM($A39)),'Data E2059 '!$W$6:$W$457)) -> 11385.05896 | F39: =(LOOKUP(2,1/('Data E2059 '!$A$6:$A$457&"*"&'Data E2059 '!$C$6:$C$457=$B37&"*"&TRIM($A39)),'Data E2059 '!$AG$6:$AG$457))/(LOOKUP(2,1/('Data E2059 '!$A$6:$A$457&"*"&'Data E2059 '!$C$6:$C$457=$B37&"*"&TRIM($A39)),'Data E2059 '!$AE$6:$AE$457)) -> 9678.335924 | G39: =IF(F39="k V","k V",(E39-F39)/F39) -> 0.1763446782 | H39: =LOOKUP(2,1/('Data E2059 '!$A$6:$A$457&"*"&'Data E2059 '!$C$6:$C$457=$B37&"*"&TRIM($A39)),'Data E2059 '!$X$6:$X$457) -> 26.94603487 | I39: =LOOKUP(2,1/('Data E2059 '!$A$6:$A$457&"*"&'Data E2059 '!$C$6:$C$457=$B37&"*"&TRIM($A39)),'Data E2059 '!$AF$6:$AF$457) -> 22.60225745 | J39: =IF(I39="k V","k V",(H39-I39)/I39) -> 0.1921833437 | K39: =LOOKUP(2,1/('Data E2059 '!$A$6:$A$457&"*"&'Data E2059 '!$C$6:$C$457=$B37&"*"&TRIM($A39)),'Data E2059 '!$Y$6:$Y$457) -> 2980.80876 | L39: =LOOKUP(2,1/('Data E2059 '!$A$6:$A$457&"*"&'Data E2059 '!$C$6:$C$457=$B37&"*"&TRIM($A39)),'Data E2059 '!$AG$6:$AG$457) -> 3018.620434 | M39: =IF(L39="k V","k V",(K39-L39)/L39) -> -0.01252614402 | N39: =LOOKUP(2,1/('Data E2059 '!$A$6:$A$457&"*"&'Data E2059 '!$C$6:$C$457=$B37&"*"&TRIM($A39)),'Data E2059 '!$AA$6:$AA$457)/100 -> 0.01195955278 | O39: =LOOKUP(2,1/('Data E2059 '!$A$6:$A$457&"*"&'Data E2059 '!$C$6:$C$457=$B37&"*"&TRIM($A39)),'Data E2059 '!$AI$6:$AI$457)/100 -> 0.01319306425 | P39: =(N39-O39)*100 -> -0.1233511477 | Q39: =P39/O39/100 -> -0.09349696581
B40: P7 MAXX
A41: 03:00-03:00 | B41: =LOOKUP(2,1/('Data E2059 '!$A$6:$A$457&"*"&'Data E2059 '!$C$6:$C$457=$B40&"*"&TRIM($A41)),'Data E2059 '!$T$6:$T$457) -> 0.05154992739 | C41: =LOOKUP(2,1/('Data E2059 '!$A$6:$A$457&"*"&'Data E2059 '!$C$6:$C$457=$B40&"*"&TRIM($A41)),'Data E2059 '!$AB$6:$AB$457) -> 0.06101576418 | D41: =IF(C41="k V","k V",(B41-C41)/C41) -> -0.1551375603 | E41: =(LOOKUP(2,1/('Data E2059 '!$A$6:$A$457&"*"&'Data E2059 '!$C$6:$C$457=$B40&"*"&TRIM($A41)),'Data E2059 '!$Y$6:$Y$457))/(LOOKUP(2,1/('Data E2059 '!$A$6:$A$457&"*"&'Data E2059 '!$C$6:$C$457=$B40&"*"&TRIM($A41)),'Data E2059 '!$W$6:$W$457)) -> 12871.78125 | F41: =(LOOKUP(2,1/('Data E2059 '!$A$6:$A$457&"*"&'Data E2059 '!$C$6:$C$457=$B40&"*"&TRIM($A41)),'Data E2059 '!$AG$6:$AG$457))/(LOOKUP(2,1/('Data E2059 '!$A$6:$A$457&"*"&'Data E2059 '!$C$6:$C$457=$B40&"*"&TRIM($A41)),'Data E2059 '!$AE$6:$AE$457)) -> 12759.31078 | G41: =IF(F41="k V","k V",(E41-F41)/F41) -> 0.0088147764 | H41: =LOOKUP(2,1/('Data E2059 '!$A$6:$A$457&"*"&'Data E2059 '!$C$6:$C$457=$B40&"*"&TRIM($A41)),'Data E2059 '!$X$6:$X$457) -> 30.46479316 | I41: =LOOKUP(2,1/('Data E2059 '!$A$6:$A$457&"*"&'Data E2059 '!$C$6:$C$457=$B40&"*"&TRIM($A41)),'Data E2059 '!$AF$6:$AF$457) -> 29.79739796 | J41: =IF(I41="k V","k V",(H41-I41)/I41) -> 0.02239776795 | K41: =LOOKUP(2,1/('Data E2059 '!$A$6:$A$457&"*"&'Data E2059 '!$C$6:$C$457=$B40&"*"&TRIM($A41)),'Data E2059 '!$Y$6:$Y$457) -> 1570.457875 | L41: =LOOKUP(2,1/('Data E2059 '!$A$6:$A$457&"*"&'Data E2059 '!$C$6:$C$457=$B40&"*"&TRIM($A41)),'Data E2059 '!$AG$6:$AG$457) -> 1818.111007 | M41: =IF(L41="k V","k V",(K41-L41)/L41) -> -0.1362145274 | N41: =LOOKUP(2,1/('Data E2059 '!$A$6:$A$457&"*"&'Data E2059 '!$C$6:$C$457=$B40&"*"&TRIM($A41)),'Data E2059 '!$AA$6:$AA$457)/100 -> 0.01089032911 | O41: =LOOKUP(2,1/('Data E2059 '!$A$6:$A$457&"*"&'Data E2059 '!$C$6:$C$457=$B40&"*"&TRIM($A41)),'Data E2059 '!$AI$6:$AI$457)/100 -> 0.01206555536 | P41: =(N41-O41)*100 -> -0.117522625 | Q41: =P41/O41/100 -> -0.09740341119
A42: 20:00-23:00 | B42: =LOOKUP(2,1/('Data E2059 '!$A$6:$A$457&"*"&'Data E2059 '!$C$6:$C$457=$B40&"*"&TRIM($A42)),'Data E2059 '!$T$6:$T$457) -> 0.06955939195 | C42: =LOOKUP(2,1/('Data E2059 '!$A$6:$A$457&"*"&'Data E2059 '!$C$6:$C$457=$B40&"*"&TRIM($A42)),'Data E2059 '!$AB$6:$AB$457) -> 0.08196803746 | D42: =IF(C42="k V","k V",(B42-C42)/C42) -> -0.1513839527 | E42: =(LOOKUP(2,1/('Data E2059 '!$A$6:$A$457&"*"&'Data E2059 '!$C$6:$C$457=$B40&"*"&TRIM($A42)),'Data E2059 '!$Y$6:$Y$457))/(LOOKUP(2,1/('Data E2059 '!$A$6:$A$457&"*"&'Data E2059 '!$C$6:$C$457=$B40&"*"&TRIM($A42)),'Data E2059 '!$W$6:$W$457)) -> 20181.06226 | F42: =(LOOKUP(2,1/('Data E2059 '!$A$6:$A$457&"*"&'Data E2059 '!$C$6:$C$457=$B40&"*"&TRIM($A42)),'Data E2059 '!$AG$6:$AG$457))/(LOOKUP(2,1/('Data E2059 '!$A$6:$A$457&"*"&'Data E2059 '!$C$6:$C$457=$B40&"*"&TRIM($A42)),'Data E2059 '!$AE$6:$AE$457)) -> 18503.67433 | G42: =IF(F42="k V","k V",(E42-F42)/F42) -> 0.09065161331 | H42: =LOOKUP(2,1/('Data E2059 '!$A$6:$A$457&"*"&'Data E2059 '!$C$6:$C$457=$B40&"*"&TRIM($A42)),'Data E2059 '!$X$6:$X$457) -> 47.7643207 | I42: =LOOKUP(2,1/('Data E2059 '!$A$6:$A$457&"*"&'Data E2059 '!$C$6:$C$457=$B40&"*"&TRIM($A42)),'Data E2059 '!$AF$6:$AF$457) -> 43.21247106 | J42: =IF(I42="k V","k V",(H42-I42)/I42) -> 0.1053364811 | K42: =LOOKUP(2,1/('Data E2059 '!$A$6:$A$457&"*"&'Data E2059 '!$C$6:$C$457=$B40&"*"&TRIM($A42)),'Data E2059 '!$Y$6:$Y$457) -> 3322.457105 | L42: =LOOKUP(2,1/('Data E2059 '!$A$6:$A$457&"*"&'Data E2059 '!$C$6:$C$457=$B40&"*"&TRIM($A42)),'Data E2059 '!$AG$6:$AG$457) -> 3542.041447 | M42: =IF(L42="k V","k V",(K42-L42)/L42) -> -0.06199372446 | N42: =LOOKUP(2,1/('Data E2059 '!$A$6:$A$457&"*"&'Data E2059 '!$C$6:$C$457=$B40&"*"&TRIM($A42)),'Data E2059 '!$AA$6:$AA$457)/100 -> 0.007556695521 | O42: =LOOKUP(2,1/('Data E2059 '!$A$6:$A$457&"*"&'Data E2059 '!$C$6:$C$457=$B40&"*"&TRIM($A42)),'Data E2059 '!$AI$6:$AI$457)/100 -> 0.008534469781 | P42: =(N42-O42)*100 -> -0.09777742603 | Q42: =P42/O42/100 -> -0.1145676633
A43: K1 Doku
A44: 03:00-03:00 | B44: =LOOKUP(2,1/('Data E2059 '!$A$6:$A$457&"*"&'Data E2059 '!$C$6:$C$457=$A43&"*"&TRIM($A44)),'Data E2059 '!$T$6:$T$457) -> 0.05165361472 | C44: =LOOKUP(2,1/('Data E2059 '!$A$6:$A$457&"*"&'Data E2059 '!$C$6:$C$457=$A43&"*"&TRIM($A44)),'Data E2059 '!$AB$6:$AB$457) -> 0.0517342044 | D44: =IF(C44="k V","k V",(B44-C44)/C44) -> -0.001557764112 | E44: =(LOOKUP(2,1/('Data E2059 '!$A$6:$A$457&"*"&'Data E2059 '!$C$6:$C$457=$A43&"*"&TRIM($A44)),'Data E2059 '!$Y$6:$Y$457))/(LOOKUP(2,1/('Data E2059 '!$A$6:$A$457&"*"&'Data E2059 '!$C$6:$C$457=$A43&"*"&TRIM($A44)),'Data E2059 '!$W$6:$W$457)) -> 7169.715384 | F44: =(LOOKUP(2,1/('Data E2059 '!$A$6:$A$457&"*"&'Data E2059 '!$C$6:$C$457=$A43&"*"&TRIM($A44)),'Data E2059 '!$AG$6:$AG$457))/(LOOKUP(2,1/('Data E2059 '!$A$6:$A$457&"*"&'Data E2059 '!$C$6:$C$457=$A43&"*"&TRIM($A44)),'Data E2059 '!$AE$6:$AE$457)) -> 7716.5014 | G44: =IF(F44="k V","k V",(E44-F44)/F44) -> -0.07085931654 | H44: =LOOKUP(2,1/('Data E2059 '!$A$6:$A$457&"*"&'Data E2059 '!$C$6:$C$457=$A43&"*"&TRIM($A44)),'Data E2059 '!$X$6:$X$457) -> 16.96920512 | I44: =LOOKUP(2,1/('Data E2059 '!$A$6:$A$457&"*"&'Data E2059 '!$C$6:$C$457=$A43&"*"&TRIM($A44)),'Data E2059 '!$AF$6:$AF$457) -> 18.02069619 | J44: =IF(I44="k V","k V",(H44-I44)/I44) -> -0.05834908141 | K44: =LOOKUP(2,1/('Data E2059 '!$A$6:$A$457&"*"&'Data E2059 '!$C$6:$C$457=$A43&"*"&TRIM($A44)),'Data E2059 '!$Y$6:$Y$457) -> 876.5207831 | L44: =LOOKUP(2,1/('Data E2059 '!$A$6:$A$457&"*"&'Data E2059 '!$C$6:$C$457=$A43&"*"&TRIM($A44)),'Data E2059 '!$AG$6:$AG$457) -> 932.28638 | M44: =IF(L44="k V","k V",(K44-L44)/L44) -> -0.05981595142 | N44: =LOOKUP(2,1/('Data E2059 '!$A$6:$A$457&"*"&'Data E2059 '!$C$6:$C$457=$A43&"*"&TRIM($A44)),'Data E2059 '!$AA$6:$AA$457)/100 -> 0.01194629361 | O44: =LOOKUP(2,1/('Data E2059 '!$A$6:$A$457&"*"&'Data E2059 '!$C$6:$C$457=$A43&"*"&TRIM($A44)),'Data E2059 '!$AI$6:$AI$457)/100 -> 0.01080799303 | P44: =(N44-O44)*100 -> 0.1138300588 | Q44: =P44/O44/100 -> 0.1053202556
A45: 20:00-23:00 | B45: =LOOKUP(2,1/('Data E2059 '!$A$6:$A$457&"*"&'Data E2059 '!$C$6:$C$457=$A43&"*"&TRIM($A45)),'Data E2059 '!$T$6:$T$457) -> 0.07553886474 | C45: =LOOKUP(2,1/('Data E2059 '!$A$6:$A$457&"*"&'Data E2059 '!$C$6:$C$457=$A43&"*"&TRIM($A45)),'Data E2059 '!$AB$6:$AB$457) -> 0.07163066006 | D45: =IF(C45="k V","k V",(B45-C45)/C45) -> 0.0545605007 | E45: =(LOOKUP(2,1/('Data E2059 '!$A$6:$A$457&"*"&'Data E2059 '!$C$6:$C$457=$A43&"*"&TRIM($A45)),'Data E2059 '!$Y$6:$Y$457))/(LOOKUP(2,1/('Data E2059 '!$A$6:$A$457&"*"&'Data E2059 '!$C$6:$C$457=$A43&"*"&TRIM($A45)),'Data E2059 '!$W$6:$W$457)) -> 10087.36543 | F45: =(LOOKUP(2,1/('Data E2059 '!$A$6:$A$457&"*"&'Data E2059 '!$C$6:$C$457=$A43&"*"&TRIM($A45)),'Data E2059 '!$AG$6:$AG$457))/(LOOKUP(2,1/('Data E2059 '!$A$6:$A$457&"*"&'Data E2059 '!$C$6:$C$457=$A43&"*"&TRIM($A45)),'Data E2059 '!$AE$6:$AE$457)) -> 13562.6474 | G45: =IF(F45="k V","k V",(E45-F45)/F45) -> -0.2562392037 | H45: =LOOKUP(2,1/('Data E2059 '!$A$6:$A$457&"*"&'Data E2059 '!$C$6:$C$457=$A43&"*"&TRIM($A45)),'Data E2059 '!$X$6:$X$457) -> 23.87466781 | I45: =LOOKUP(2,1/('Data E2059 '!$A$6:$A$457&"*"&'Data E2059 '!$C$6:$C$457=$A43&"*"&TRIM($A45)),'Data E2059 '!$AF$6:$AF$457) -> 31.67346646 | J45: =IF(I45="k V","k V",(H45-I45)/I45) -> -0.2462249802 | K45: =LOOKUP(2,1/('Data E2059 '!$A$6:$A$457&"*"&'Data E2059 '!$C$6:$C$457=$A43&"*"&TRIM($A45)),'Data E2059 '!$Y$6:$Y$457) -> 1803.465302 | L45: =LOOKUP(2,1/('Data E2059 '!$A$6:$A$457&"*"&'Data E2059 '!$C$6:$C$457=$A43&"*"&TRIM($A45)),'Data E2059 '!$AG$6:$AG$457) -> 2268.791309 | M45: =IF(L45="k V","k V",(K45-L45)/L45) -> -0.2050986377 | N45: =LOOKUP(2,1/('Data E2059 '!$A$6:$A$457&"*"&'Data E2059 '!$C$6:$C$457=$A43&"*"&TRIM($A45)),'Data E2059 '!$AA$6:$AA$457)/100 -> 0.008654856718 | O45: =LOOKUP(2,1/('Data E2059 '!$A$6:$A$457&"*"&'Data E2059 '!$C$6:$C$457=$A43&"*"&TRIM($A45)),'Data E2059 '!$AI$6:$AI$457)/100 -> 0.007190495831 | P45: =(N45-O45)*100 -> 0.1464360888 | Q45: =P45/O45/100 -> 0.2036522824
A46: DMAX | B46: DMAX
A47: 03:00-03:00 | B47: =LOOKUP(2,1/('Data E2059 '!$A$6:$A$457&"*"&'Data E2059 '!$C$6:$C$457=$B46&"*"&TRIM($A47)),'Data E2059 '!$T$6:$T$457) -> 0.06429854931 | C47: =LOOKUP(2,1/('Data E2059 '!$A$6:$A$457&"*"&'Data E2059 '!$C$6:$C$457=$B46&"*"&TRIM($A47)),'Data E2059 '!$AB$6:$AB$457) -> 0.07061308393 | D47: =IF(C47="k V","k V",(B47-C47)/C47) -> -0.08942442771 | E47: =(LOOKUP(2,1/('Data E2059 '!$A$6:$A$457&"*"&'Data E2059 '!$C$6:$C$457=$B46&"*"&TRIM($A47)),'Data E2059 '!$Y$6:$Y$457))/(LOOKUP(2,1/('Data E2059 '!$A$6:$A$457&"*"&'Data E2059 '!$C$6:$C$457=$B46&"*"&TRIM($A47)),'Data E2059 '!$W$6:$W$457)) -> 13930.80722 | F47: =(LOOKUP(2,1/('Data E2059 '!$A$6:$A$457&"*"&'Data E2059 '!$C$6:$C$457=$B46&"*"&TRIM($A47)),'Data E2059 '!$AG$6:$AG$457))/(LOOKUP(2,1/('Data E2059 '!$A$6:$A$457&"*"&'Data E2059 '!$C$6:$C$457=$B46&"*"&TRIM($A47)),'Data E2059 '!$AE$6:$AE$457)) -> 12823.29213 | G47: =IF(F47="k V","k V",(E47-F47)/F47) -> 0.08636745324 | H47: =LOOKUP(2,1/('Data E2059 '!$A$6:$A$457&"*"&'Data E2059 '!$C$6:$C$457=$B46&"*"&TRIM($A47)),'Data E2059 '!$X$6:$X$457) -> 32.97128442 | I47: =LOOKUP(2,1/('Data E2059 '!$A$6:$A$457&"*"&'Data E2059 '!$C$6:$C$457=$B46&"*"&TRIM($A47)),'Data E2059 '!$AF$6:$AF$457) -> 29.94681653 | J47: =IF(I47="k V","k V",(H47-I47)/I47) -> 0.1009946378 | K47: =LOOKUP(2,1/('Data E2059 '!$A$6:$A$457&"*"&'Data E2059 '!$C$6:$C$457=$B46&"*"&TRIM($A47)),'Data E2059 '!$Y$6:$Y$457) -> 2120.005757 | L47: =LOOKUP(2,1/('Data E2059 '!$A$6:$A$457&"*"&'Data E2059 '!$C$6:$C$457=$B46&"*"&TRIM($A47)),'Data E2059 '!$AG$6:$AG$457) -> 2114.637069 | M47: =IF(L47="k V","k V",(K47-L47)/L47) -> 0.002538822407 | N47: =LOOKUP(2,1/('Data E2059 '!$A$6:$A$457&"*"&'Data E2059 '!$C$6:$C$457=$B46&"*"&TRIM($A47)),'Data E2059 '!$AA$6:$AA$457)/100 -> 0.01512991773 | O47: =LOOKUP(2,1/('Data E2059 '!$A$6:$A$457&"*"&'Data E2059 '!$C$6:$C$457=$B46&"*"&TRIM($A47)),'Data E2059 '!$AI$6:$AI$457)/100 -> 0.01512605308 | P47: =(N47-O47)*100 -> 0.000386465002 | Q47: =P47/O47/100 -> 0.000255496262
A48: 20:00-23:00 | B48: =LOOKUP(2,1/('Data E2059 '!$A$6:$A$457&"*"&'Data E2059 '!$C$6:$C$457=$B46&"*"&TRIM($A48)),'Data E2059 '!$T$6:$T$457) -> 0.1129985717 | C48: =LOOKUP(2,1/('Data E2059 '!$A$6:$A$457&"*"&'Data E2059 '!$C$6:$C$457=$B46&"*"&TRIM($A48)),'Data E2059 '!$AB$6:$AB$457) -> 0.128627866 | D48: =IF(C48="k V","k V",(B48-C48)/C48) -> -0.1215078407 | E48: =(LOOKUP(2,1/('Data E2059 '!$A$6:$A$457&"*"&'Data E2059 '!$C$6:$C$457=$B46&"*"&TRIM($A48)),'Data E2059 '!$Y$6:$Y$457))/(LOOKUP(2,1/('Data E2059 '!$A$6:$A$457&"*"&'Data E2059 '!$C$6:$C$457=$B46&"*"&TRIM($A48)),'Data E2059 '!$W$6:$W$457)) -> 18736.71762 | F48: =(LOOKUP(2,1/('Data E2059 '!$A$6:$A$457&"*"&'Data E2059 '!$C$6:$C$457=$B46&"*"&TRIM($A48)),'Data E2059 '!$AG$6:$AG$457))/(LOOKUP(2,1/('Data E2059 '!$A$6:$A$457&"*"&'Data E2059 '!$C$6:$C$457=$B46&"*"&TRIM($A48)),'Data E2059 '!$AE$6:$AE$457)) -> 16469.74466 | G48: =IF(F48="k V","k V",(E48-F48)/F48) -> 0.1376446942 | H48: =LOOKUP(2,1/('Data E2059 '!$A$6:$A$457&"*"&'Data E2059 '!$C$6:$C$457=$B46&"*"&TRIM($A48)),'Data E2059 '!$X$6:$X$457) -> 44.34586138 | I48: =LOOKUP(2,1/('Data E2059 '!$A$6:$A$457&"*"&'Data E2059 '!$C$6:$C$457=$B46&"*"&TRIM($A48)),'Data E2059 '!$AF$6:$AF$457) -> 38.46254272 | J48: =IF(I48="k V","k V",(H48-I48)/I48) -> 0.1529622912 | K48: =LOOKUP(2,1/('Data E2059 '!$A$6:$A$457&"*"&'Data E2059 '!$C$6:$C$457=$B46&"*"&TRIM($A48)),'Data E2059 '!$Y$6:$Y$457) -> 5011.018998 | L48: =LOOKUP(2,1/('Data E2059 '!$A$6:$A$457&"*"&'Data E2059 '!$C$6:$C$457=$B46&"*"&TRIM($A48)),'Data E2059 '!$AG$6:$AG$457) -> 4947.35479 | M48: =IF(L48="k V","k V",(K48-L48)/L48) -> 0.01286833277 | N48: =LOOKUP(2,1/('Data E2059 '!$A$6:$A$457&"*"&'Data E2059 '!$C$6:$C$457=$B46&"*"&TRIM($A48)),'Data E2059 '!$AA$6:$AA$457)/100 -> 0.01312089056 | O48: =LOOKUP(2,1/('Data E2059 '!$A$6:$A$457&"*"&'Data E2059 '!$C$6:$C$457=$B46&"*"&TRIM($A48)),'Data E2059 '!$AI$6:$AI$457)/100 -> 0.0138293777 | P48: =(N48-O48)*100 -> -0.07084871382 | Q48: =P48/O48/100 -> -0.05123058706
A49: SuperRTL | B49: SUP RTL
A50: 03:00-03:00 | B50: =LOOKUP(2,1/('Data E2059 '!$A$6:$A$457&"*"&'Data E2059 '!$C$6:$C$457=$B49&"*"&TRIM($A50)),'Data E2059 '!$T$6:$T$457) -> 0.07488923501 | C50: =LOOKUP(2,1/('Data E2059 '!$A$6:$A$457&"*"&'Data E2059 '!$C$6:$C$457=$B49&"*"&TRIM($A50)),'Data E2059 '!$AB$6:$AB$457) -> 0.08469914532 | D50: =IF(C50="k V","k V",(B50-C50)/C50) -> -0.1158206529 | E50: =(LOOKUP(2,1/('Data E2059 '!$A$6:$A$457&"*"&'Data E2059 '!$C$6:$C$457=$B49&"*"&TRIM($A50)),'Data E2059 '!$Y$6:$Y$457))/(LOOKUP(2,1/('Data E2059 '!$A$6:$A$457&"*"&'Data E2059 '!$C$6:$C$457=$B49&"*"&TRIM($A50)),'Data E2059 '!$W$6:$W$457)) -> 9880.082931 | F50: =(LOOKUP(2,1/('Data E2059 '!$A$6:$A$457&"*"&'Data E2059 '!$C$6:$C$457=$B49&"*"&TRIM($A50)),'Data E2059 '!$AG$6:$AG$457))/(LOOKUP(2,1/('Data E2059 '!$A$6:$A$457&"*"&'Data E2059 '!$C$6:$C$457=$B49&"*"&TRIM($A50)),'Data E2059 '!$AE$6:$AE$457)) -> 9807.226686 | G50: =IF(F50="k V","k V",(E50-F50)/F50) -> 0.007428832561 | H50: =LOOKUP(2,1/('Data E2059 '!$A$6:$A$457&"*"&'Data E2059 '!$C$6:$C$457=$B49&"*"&TRIM($A50)),'Data E2059 '!$X$6:$X$457) -> 23.38407382 | I50: =LOOKUP(2,1/('Data E2059 '!$A$6:$A$457&"*"&'Data E2059 '!$C$6:$C$457=$B49&"*"&TRIM($A50)),'Data E2059 '!$AF$6:$AF$457) -> 22.9032619 | J50: =IF(I50="k V","k V",(H50-I50)/I50) -> 0.02099316333 | K50: =LOOKUP(2,1/('Data E2059 '!$A$6:$A$457&"*"&'Data E2059 '!$C$6:$C$457=$B49&"*"&TRIM($A50)),'Data E2059 '!$Y$6:$Y$457) -> 1751.2154 | L50: =LOOKUP(2,1/('Data E2059 '!$A$6:$A$457&"*"&'Data E2059 '!$C$6:$C$457=$B49&"*"&TRIM($A50)),'Data E2059 '!$AG$6:$AG$457) -> 1939.886708 | M50: =IF(L50="k V","k V",(K50-L50)/L50) -> -0.0972589315 | N50: =LOOKUP(2,1/('Data E2059 '!$A$6:$A$457&"*"&'Data E2059 '!$C$6:$C$457=$B49&"*"&TRIM($A50)),'Data E2059 '!$AA$6:$AA$457)/100 -> 0.01415442921 | O50: =LOOKUP(2,1/('Data E2059 '!$A$6:$A$457&"*"&'Data E2059 '!$C$6:$C$457=$B49&"*"&TRIM($A50)),'Data E2059 '!$AI$6:$AI$457)/100 -> 0.01361206897 | P50: =(N50-O50)*100 -> 0.05423602385 | Q50: =P50/O50/100 -> 0.0398440707
A51: 20:00-23:00 | B51: =LOOKUP(2,1/('Data E2059 '!$A$6:$A$457&"*"&'Data E2059 '!$C$6:$C$457=$B49&"*"&TRIM($A51)),'Data E2059 '!$T$6:$T$457) -> 0.1574248277 | C51: =LOOKUP(2,1/('Data E2059 '!$A$6:$A$457&"*"&'Data E2059 '!$C$6:$C$457=$B49&"*"&TRIM($A51)),'Data E2059 '!$AB$6:$AB$457) -> 0.1647504054 | D51: =IF(C51="k V","k V",(B51-C51)/C51) -> -0.04446470181 | E51: =(LOOKUP(2,1/('Data E2059 '!$A$6:$A$457&"*"&'Data E2059 '!$C$6:$C$457=$B49&"*"&TRIM($A51)),'Data E2059 '!$Y$6:$Y$457))/(LOOKUP(2,1/('Data E2059 '!$A$6:$A$457&"*"&'Data E2059 '!$C$6:$C$457=$B49&"*"&TRIM($A51)),'Data E2059 '!$W$6:$W$457)) -> 12055.69203 | F51: =(LOOKUP(2,1/('Data E2059 '!$A$6:$A$457&"*"&'Data E2059 '!$C$6:$C$457=$B49&"*"&TRIM($A51)),'Data E2059 '!$AG$6:$AG$457))/(LOOKUP(2,1/('Data E2059 '!$A$6:$A$457&"*"&'Data E2059 '!$C$6:$C$457=$B49&"*"&TRIM($A51)),'Data E2059 '!$AE$6:$AE$457)) -> 12348.51816 | G51: =IF(F51="k V","k V",(E51-F51)/F51) -> -0.02371346328 | H51: =LOOKUP(2,1/('Data E2059 '!$A$6:$A$457&"*"&'Data E2059 '!$C$6:$C$457=$B49&"*"&TRIM($A51)),'Data E2059 '!$X$6:$X$457) -> 28.53328199 | I51: =LOOKUP(2,1/('Data E2059 '!$A$6:$A$457&"*"&'Data E2059 '!$C$6:$C$457=$B49&"*"&TRIM($A51)),'Data E2059 '!$AF$6:$AF$457) -> 28.83805531 | J51: =IF(I51="k V","k V",(H51-I51)/I51) -> -0.01056844192 | K51: =LOOKUP(2,1/('Data E2059 '!$A$6:$A$457&"*"&'Data E2059 '!$C$6:$C$457=$B49&"*"&TRIM($A51)),'Data E2059 '!$Y$6:$Y$457) -> 4491.847002 | L51: =LOOKUP(2,1/('Data E2059 '!$A$6:$A$457&"*"&'Data E2059 '!$C$6:$C$457=$B49&"*"&TRIM($A51)),'Data E2059 '!$AG$6:$AG$457) -> 4751.081302 | M51: =IF(L51="k V","k V",(K51-L51)/L51) -> -0.05456322111 | N51: =LOOKUP(2,1/('Data E2059 '!$A$6:$A$457&"*"&'Data E2059 '!$C$6:$C$457=$B49&"*"&TRIM($A51)),'Data E2059 '!$AA$6:$AA$457)/100 -> 0.01813489213 | O51: =LOOKUP(2,1/('Data E2059 '!$A$6:$A$457&"*"&'Data E2059 '!$C$6:$C$457=$B49&"*"&TRIM($A51)),'Data E2059 '!$AI$6:$AI$457)/100 -> 0.01760953053 | P51: =(N51-O51)*100 -> 0.05253616066 | Q51: =P51/O51/100 -> 0.029833936
A52: NITRO | B52: Nitro
A53: 03:00-03:00 | B53: =LOOKUP(2,1/('Data E2059 '!$A$6:$A$457&"*"&'Data E2059 '!$C$6:$C$457=$B52&"*"&TRIM($A53)),'Data E2059 '!$T$6:$T$457) -> 0.1015890727 | C53: =LOOKUP(2,1/('Data E2059 '!$A$6:$A$457&"*"&'Data E2059 '!$C$6:$C$457=$B52&"*"&TRIM($A53)),'Data E2059 '!$AB$6:$AB$457) -> 0.1159294616 | D53: =IF(C53="k V","k V",(B53-C53)/C53) -> -0.1236992624 | E53: =(LOOKUP(2,1/('Data E2059 '!$A$6:$A$457&"*"&'Data E2059 '!$C$6:$C$457=$B52&"*"&TRIM($A53)),'Data E2059 '!$Y$6:$Y$457))/(LOOKUP(2,1/('Data E2059 '!$A$6:$A$457&"*"&'Data E2059 '!$C$6:$C$457=$B52&"*"&TRIM($A53)),'Data E2059 '!$W$6:$W$457)) -> 9566.15826 | F53: =(LOOKUP(2,1/('Data E2059 '!$A$6:$A$457&"*"&'Data E2059 '!$C$6:$C$457=$B52&"*"&TRIM($A53)),'Data E2059 '!$AG$6:$AG$457))/(LOOKUP(2,1/('Data E2059 '!$A$6:$A$457&"*"&'Data E2059 '!$C$6:$C$457=$B52&"*"&TRIM($A53)),'Data E2059 '!$AE$6:$AE$457)) -> 10191.74893 | G53: =IF(F53="k V","k V",(E53-F53)/F53) -> -0.06138207242 | H53: =LOOKUP(2,1/('Data E2059 '!$A$6:$A$457&"*"&'Data E2059 '!$C$6:$C$457=$B52&"*"&TRIM($A53)),'Data E2059 '!$X$6:$X$457) -> 22.64108029 | I53: =LOOKUP(2,1/('Data E2059 '!$A$6:$A$457&"*"&'Data E2059 '!$C$6:$C$457=$B52&"*"&TRIM($A53)),'Data E2059 '!$AF$6:$AF$457) -> 23.80125417 | J53: =IF(I53="k V","k V",(H53-I53)/I53) -> -0.04874423277 | K53: =LOOKUP(2,1/('Data E2059 '!$A$6:$A$457&"*"&'Data E2059 '!$C$6:$C$457=$B52&"*"&TRIM($A53)),'Data E2059 '!$Y$6:$Y$457) -> 2300.086352 | L53: =LOOKUP(2,1/('Data E2059 '!$A$6:$A$457&"*"&'Data E2059 '!$C$6:$C$457=$B52&"*"&TRIM($A53)),'Data E2059 '!$AG$6:$AG$457) -> 2759.266581 | M53: =IF(L53="k V","k V",(K53-L53)/L53) -> -0.1664138696 | N53: =LOOKUP(2,1/('Data E2059 '!$A$6:$A$457&"*"&'Data E2059 '!$C$6:$C$457=$B52&"*"&TRIM($A53)),'Data E2059 '!$AA$6:$AA$457)/100 -> 0.02023996896 | O53: =LOOKUP(2,1/('Data E2059 '!$A$6:$A$457&"*"&'Data E2059 '!$C$6:$C$457=$B52&"*"&TRIM($A53)),'Data E2059 '!$AI$6:$AI$457)/100 -> 0.02141077582 | P53: =(N53-O53)*100 -> -0.117080686 | Q53: =P53/O53/100 -> -0.05468306565
A54: 20:00-23:00 | B54: =LOOKUP(2,1/('Data E2059 '!$A$6:$A$457&"*"&'Data E2059 '!$C$6:$C$457=$B52&"*"&TRIM($A54)),'Data E2059 '!$T$6:$T$457) -> 0.1604134762 | C54: =LOOKUP(2,1/('Data E2059 '!$A$6:$A$457&"*"&'Data E2059 '!$C$6:$C$457=$B52&"*"&TRIM($A54)),'Data E2059 '!$AB$6:$AB$457) -> 0.1944680842 | D54: =IF(C54="k V","k V",(B54-C54)/C54) -> -0.175116694 | E54: =(LOOKUP(2,1/('Data E2059 '!$A$6:$A$457&"*"&'Data E2059 '!$C$6:$C$457=$B52&"*"&TRIM($A54)),'Data E2059 '!$Y$6:$Y$457))/(LOOKUP(2,1/('Data E2059 '!$A$6:$A$457&"*"&'Data E2059 '!$C$6:$C$457=$B52&"*"&TRIM($A54)),'Data E2059 '!$W$6:$W$457)) -> 12321.60053 | F54: =(LOOKUP(2,1/('Data E2059 '!$A$6:$A$457&"*"&'Data E2059 '!$C$6:$C$457=$B52&"*"&TRIM($A54)),'Data E2059 '!$AG$6:$AG$457))/(LOOKUP(2,1/('Data E2059 '!$A$6:$A$457&"*"&'Data E2059 '!$C$6:$C$457=$B52&"*"&TRIM($A54)),'Data E2059 '!$AE$6:$AE$457)) -> 12810.64455 | G54: =IF(F54="k V","k V",(E54-F54)/F54) -> -0.03817481827 | H54: =LOOKUP(2,1/('Data E2059 '!$A$6:$A$457&"*"&'Data E2059 '!$C$6:$C$457=$B52&"*"&TRIM($A54)),'Data E2059 '!$X$6:$X$457) -> 29.16263136 | I54: =LOOKUP(2,1/('Data E2059 '!$A$6:$A$457&"*"&'Data E2059 '!$C$6:$C$457=$B52&"*"&TRIM($A54)),'Data E2059 '!$AF$6:$AF$457) -> 29.91728006 | J54: =IF(I54="k V","k V",(H54-I54)/I54) -> -0.02522450904 | K54: =LOOKUP(2,1/('Data E2059 '!$A$6:$A$457&"*"&'Data E2059 '!$C$6:$C$457=$B52&"*"&TRIM($A54)),'Data E2059 '!$Y$6:$Y$457) -> 4678.079071 | L54: =LOOKUP(2,1/('Data E2059 '!$A$6:$A$457&"*"&'Data E2059 '!$C$6:$C$457=$B52&"*"&TRIM($A54)),'Data E2059 '!$AG$6:$AG$457) -> 5817.956136 | M54: =IF(L54="k V","k V",(K54-L54)/L54) -> -0.1959239704 | N54: =LOOKUP(2,1/('Data E2059 '!$A$6:$A$457&"*"&'Data E2059 '!$C$6:$C$457=$B52&"*"&TRIM($A54)),'Data E2059 '!$AA$6:$AA$457)/100 -> 0.01794019161 | O54: =LOOKUP(2,1/('Data E2059 '!$A$6:$A$457&"*"&'Data E2059 '!$C$6:$C$457=$B52&"*"&TRIM($A54)),'Data E2059 '!$AI$6:$AI$457)/100 -> 0.01979071569 | P54: =(N54-O54)*100 -> -0.1850524081 | Q54: =P54/O54/100 -> -0.09350465695
A55: RTLup | B55: RTLup
A56: 03:00-03:00 | B56: =LOOKUP(2,1/('Data E2059 '!$A$6:$A$457&"*"&'Data E2059 '!$C$6:$C$457=$B55&"*"&TRIM($A56)),'Data E2059 '!$T$6:$T$457) -> 0.1173400516 | C56: =LOOKUP(2,1/('Data E2059 '!$A$6:$A$457&"*"&'Data E2059 '!$C$6:$C$457=$B55&"*"&TRIM($A56)),'Data E2059 '!$AB$6:$AB$457) -> 0.1079786392 | D56: =IF(C56="k V","k V",(B56-C56)/C56) -> 0.08669689175 | E56: =(LOOKUP(2,1/('Data E2059 '!$A$6:$A$457&"*"&'Data E2059 '!$C$6:$C$457=$B55&"*"&TRIM($A56)),'Data E2059 '!$Y$6:$Y$457))/(LOOKUP(2,1/('Data E2059 '!$A$6:$A$457&"*"&'Data E2059 '!$C$6:$C$457=$B55&"*"&TRIM($A56)),'Data E2059 '!$W$6:$W$457)) -> 8565.830553 | F56: =(LOOKUP(2,1/('Data E2059 '!$A$6:$A$457&"*"&'Data E2059 '!$C$6:$C$457=$B55&"*"&TRIM($A56)),'Data E2059 '!$AG$6:$AG$457))/(LOOKUP(2,1/('Data E2059 '!$A$6:$A$457&"*"&'Data E2059 '!$C$6:$C$457=$B55&"*"&TRIM($A56)),'Data E2059 '!$AE$6:$AE$457)) -> 8283.865464 | G56: =IF(F56="k V","k V",(E56-F56)/F56) -> 0.03403786445 | H56: =LOOKUP(2,1/('Data E2059 '!$A$6:$A$457&"*"&'Data E2059 '!$C$6:$C$457=$B55&"*"&TRIM($A56)),'Data E2059 '!$X$6:$X$457) -> 20.27351546 | I56: =LOOKUP(2,1/('Data E2059 '!$A$6:$A$457&"*"&'Data E2059 '!$C$6:$C$457=$B55&"*"&TRIM($A56)),'Data E2059 '!$AF$6:$AF$457) -> 19.34568725 | J56: =IF(I56="k V","k V",(H56-I56)/I56) -> 0.04796046739 | K56: =LOOKUP(2,1/('Data E2059 '!$A$6:$A$457&"*"&'Data E2059 '!$C$6:$C$457=$B55&"*"&TRIM($A56)),'Data E2059 '!$Y$6:$Y$457) -> 2378.895349 | L56: =LOOKUP(2,1/('Data E2059 '!$A$6:$A$457&"*"&'Data E2059 '!$C$6:$C$457=$B55&"*"&TRIM($A56)),'Data E2059 '!$AG$6:$AG$457) -> 2088.920983 | M56: =IF(L56="k V","k V",(K56-L56)/L56) -> 0.1388153826 | N56: =LOOKUP(2,1/('Data E2059 '!$A$6:$A$457&"*"&'Data E2059 '!$C$6:$C$457=$B55&"*"&TRIM($A56)),'Data E2059 '!$AA$6:$AA$457)/100 -> 0.02277777243 | O56: =LOOKUP(2,1/('Data E2059 '!$A$6:$A$457&"*"&'Data E2059 '!$C$6:$C$457=$B55&"*"&TRIM($A56)),'Data E2059 '!$AI$6:$AI$457)/100 -> 0.01956676802 | P56: =(N56-O56)*100 -> 0.3211004412 | Q56: =P56/O56/100 -> 0.1641049972
A57: 20:00-23:00 | B57: =LOOKUP(2,1/('Data E2059 '!$A$6:$A$457&"*"&'Data E2059 '!$C$6:$C$457=$B55&"*"&TRIM($A57)),'Data E2059 '!$T$6:$T$457) -> 0.1153809646 | C57: =LOOKUP(2,1/('Data E2059 '!$A$6:$A$457&"*"&'Data E2059 '!$C$6:$C$457=$B55&"*"&TRIM($A57)),'Data E2059 '!$AB$6:$AB$457) -> 0.1073390587 | D57: =IF(C57="k V","k V",(B57-C57)/C57) -> 0.07492059263 | E57: =(LOOKUP(2,1/('Data E2059 '!$A$6:$A$457&"*"&'Data E2059 '!$C$6:$C$457=$B55&"*"&TRIM($A57)),'Data E2059 '!$Y$6:$Y$457))/(LOOKUP(2,1/('Data E2059 '!$A$6:$A$457&"*"&'Data E2059 '!$C$6:$C$457=$B55&"*"&TRIM($A57)),'Data E2059 '!$W$6:$W$457)) -> 12309.53965 | F57: =(LOOKUP(2,1/('Data E2059 '!$A$6:$A$457&"*"&'Data E2059 '!$C$6:$C$457=$B55&"*"&TRIM($A57)),'Data E2059 '!$AG$6:$AG$457))/(LOOKUP(2,1/('Data E2059 '!$A$6:$A$457&"*"&'Data E2059 '!$C$6:$C$457=$B55&"*"&TRIM($A57)),'Data E2059 '!$AE$6:$AE$457)) -> 11729.36066 | G57: =IF(F57="k V","k V",(E57-F57)/F57) -> 0.04946381994 | H57: =LOOKUP(2,1/('Data E2059 '!$A$6:$A$457&"*"&'Data E2059 '!$C$6:$C$457=$B55&"*"&TRIM($A57)),'Data E2059 '!$X$6:$X$457) -> 29.1340858 | I57: =LOOKUP(2,1/('Data E2059 '!$A$6:$A$457&"*"&'Data E2059 '!$C$6:$C$457=$B55&"*"&TRIM($A57)),'Data E2059 '!$AF$6:$AF$457) -> 27.39210868 | J57: =IF(I57="k V","k V",(H57-I57)/I57) -> 0.06359412268 | K57: =LOOKUP(2,1/('Data E2059 '!$A$6:$A$457&"*"&'Data E2059 '!$C$6:$C$457=$B55&"*"&TRIM($A57)),'Data E2059 '!$Y$6:$Y$457) -> 3361.518922 | L57: =LOOKUP(2,1/('Data E2059 '!$A$6:$A$457&"*"&'Data E2059 '!$C$6:$C$457=$B55&"*"&TRIM($A57)),'Data E2059 '!$AG$6:$AG$457) -> 2940.243161 | M57: =IF(L57="k V","k V",(K57-L57)/L57) -> 0.1432792247 | N57: =LOOKUP(2,1/('Data E2059 '!$A$6:$A$457&"*"&'Data E2059 '!$C$6:$C$457=$B55&"*"&TRIM($A57)),'Data E2059 '!$AA$6:$AA$457)/100 -> 0.01309090538 | O57: =LOOKUP(2,1/('Data E2059 '!$A$6:$A$457&"*"&'Data E2059 '!$C$6:$C$457=$B55&"*"&TRIM($A57)),'Data E2059 '!$AI$6:$AI$457)/100 -> 0.0113068966 | P57: =(N57-O57)*100 -> 0.1784008783 | Q57: =P57/O57/100 -> 0.157780587
A58: Disney Channel | B58: DisneyChan
A59: 03:00-03:00 | B59: =LOOKUP(2,1/('Data E2059 '!$A$6:$A$457&"*"&'Data E2059 '!$C$6:$C$457=$B58&"*"&TRIM($A59)),'Data E2059 '!$T$6:$T$457) -> 0.04593025446 | C59: =LOOKUP(2,1/('Data E2059 '!$A$6:$A$457&"*"&'Data E2059 '!$C$6:$C$457=$B58&"*"&TRIM($A59)),'Data E2059 '!$AB$6:$AB$457) -> 0.04164693709 | D59: =IF(C59="k V","k V",(B59-C59)/C59) -> 0.1028483165 | E59: =(LOOKUP(2,1/('Data E2059 '!$A$6:$A$457&"*"&'Data E2059 '!$C$6:$C$457=$B58&"*"&TRIM($A59)),'Data E2059 '!$Y$6:$Y$457))/(LOOKUP(2,1/('Data E2059 '!$A$6:$A$457&"*"&'Data E2059 '!$C$6:$C$457=$B58&"*"&TRIM($A59)),'Data E2059 '!$W$6:$W$457)) -> 9140.365727 | F59: =(LOOKUP(2,1/('Data E2059 '!$A$6:$A$457&"*"&'Data E2059 '!$C$6:$C$457=$B58&"*"&TRIM($A59)),'Data E2059 '!$AG$6:$AG$457))/(LOOKUP(2,1/('Data E2059 '!$A$6:$A$457&"*"&'Data E2059 '!$C$6:$C$457=$B58&"*"&TRIM($A59)),'Data E2059 '!$AE$6:$AE$457)) -> 10411.53717 | G59: =IF(F59="k V","k V",(E59-F59)/F59) -> -0.1220925804 | H59: =LOOKUP(2,1/('Data E2059 '!$A$6:$A$457&"*"&'Data E2059 '!$C$6:$C$457=$B58&"*"&TRIM($A59)),'Data E2059 '!$X$6:$X$457) -> 21.63331911 | I59: =LOOKUP(2,1/('Data E2059 '!$A$6:$A$457&"*"&'Data E2059 '!$C$6:$C$457=$B58&"*"&TRIM($A59)),'Data E2059 '!$AF$6:$AF$457) -> 24.31453561 | J59: =IF(I59="k V","k V",(H59-I59)/I59) -> -0.1102721656 | K59: =LOOKUP(2,1/('Data E2059 '!$A$6:$A$457&"*"&'Data E2059 '!$C$6:$C$457=$B58&"*"&TRIM($A59)),'Data E2059 '!$Y$6:$Y$457) -> 993.6238517 | L59: =LOOKUP(2,1/('Data E2059 '!$A$6:$A$457&"*"&'Data E2059 '!$C$6:$C$457=$B58&"*"&TRIM($A59)),'Data E2059 '!$AG$6:$AG$457) -> 1012.625935 | M59: =IF(L59="k V","k V",(K59-L59)/L59) -> -0.01876515575 | N59: =LOOKUP(2,1/('Data E2059 '!$A$6:$A$457&"*"&'Data E2059 '!$C$6:$C$457=$B58&"*"&TRIM($A59)),'Data E2059 '!$AA$6:$AA$457)/100 -> 0.008151032412 | O59: =LOOKUP(2,1/('Data E2059 '!$A$6:$A$457&"*"&'Data E2059 '!$C$6:$C$457=$B58&"*"&TRIM($A59)),'Data E2059 '!$AI$6:$AI$457)/100 -> 0.007119271011 | P59: =(N59-O59)*100 -> 0.1031761401 | Q59: =P59/O59/100 -> 0.1449251475
A60: 20:00-23:00 | B60: =LOOKUP(2,1/('Data E2059 '!$A$6:$A$457&"*"&'Data E2059 '!$C$6:$C$457=$B58&"*"&TRIM($A60)),'Data E2059 '!$T$6:$T$457) -> 0.08277934903 | C60: =LOOKUP(2,1/('Data E2059 '!$A$6:$A$457&"*"&'Data E2059 '!$C$6:$C$457=$B58&"*"&TRIM($A60)),'Data E2059 '!$AB$6:$AB$457) -> 0.08652867792 | D60: =IF(C60="k V","k V",(B60-C60)/C60) -> -0.04333047702 | E60: =(LOOKUP(2,1/('Data E2059 '!$A$6:$A$457&"*"&'Data E2059 '!$C$6:$C$457=$B58&"*"&TRIM($A60)),'Data E2059 '!$Y$6:$Y$457))/(LOOKUP(2,1/('Data E2059 '!$A$6:$A$457&"*"&'Data E2059 '!$C$6:$C$457=$B58&"*"&TRIM($A60)),'Data E2059 '!$W$6:$W$457)) -> 9869.841157 | F60: =(LOOKUP(2,1/('Data E2059 '!$A$6:$A$457&"*"&'Data E2059 '!$C$6:$C$457=$B58&"*"&TRIM($A60)),'Data E2059 '!$AG$6:$AG$457))/(LOOKUP(2,1/('Data E2059 '!$A$6:$A$457&"*"&'Data E2059 '!$C$6:$C$457=$B58&"*"&TRIM($A60)),'Data E2059 '!$AE$6:$AE$457)) -> 11438.39527 | G60: =IF(F60="k V","k V",(E60-F60)/F60) -> -0.1371306096 | H60: =LOOKUP(2,1/('Data E2059 '!$A$6:$A$457&"*"&'Data E2059 '!$C$6:$C$457=$B58&"*"&TRIM($A60)),'Data E2059 '!$X$6:$X$457) -> 23.3598337 | I60: =LOOKUP(2,1/('Data E2059 '!$A$6:$A$457&"*"&'Data E2059 '!$C$6:$C$457=$B58&"*"&TRIM($A60)),'Data E2059 '!$AF$6:$AF$457) -> 26.71260399 | J60: =IF(I60="k V","k V",(H60-I60)/I60) -> -0.1255126715 | K60: =LOOKUP(2,1/('Data E2059 '!$A$6:$A$457&"*"&'Data E2059 '!$C$6:$C$457=$B58&"*"&TRIM($A60)),'Data E2059 '!$Y$6:$Y$457) -> 1933.711827 | L60: =LOOKUP(2,1/('Data E2059 '!$A$6:$A$457&"*"&'Data E2059 '!$C$6:$C$457=$B58&"*"&TRIM($A60)),'Data E2059 '!$AG$6:$AG$457) -> 2311.406307 | M60: =IF(L60="k V","k V",(K60-L60)/L60) -> -0.1634046246 | N60: =LOOKUP(2,1/('Data E2059 '!$A$6:$A$457&"*"&'Data E2059 '!$C$6:$C$457=$B58&"*"&TRIM($A60)),'Data E2059 '!$AA$6:$AA$457)/100 -> 0.00940918102 | O60: =LOOKUP(2,1/('Data E2059 '!$A$6:$A$457&"*"&'Data E2059 '!$C$6:$C$457=$B58&"*"&TRIM($A60)),'Data E2059 '!$AI$6:$AI$457)/100 -> 0.009274260104 | P60: =(N60-O60)*100 -> 0.01349209166 | Q60: =P60/O60/100 -> 0.01454789009
A61: TLC | B61: TLC
A62: 03:00-03:00 | B62: =LOOKUP(2,1/('Data E2059 '!$A$6:$A$457&"*"&'Data E2059 '!$C$6:$C$457=$B61&"*"&TRIM($A62)),'Data E2059 '!$T$6:$T$457) -> 0.03624962868 | C62: =LOOKUP(2,1/('Data E2059 '!$A$6:$A$457&"*"&'Data E2059 '!$C$6:$C$457=$B61&"*"&TRIM($A62)),'Data E2059 '!$AB$6:$AB$457) -> 0.03597577547 | D62: =IF(C62="k V","k V",(B62-C62)/C62) -> 0.007612155829 | E62: =(LOOKUP(2,1/('Data E2059 '!$A$6:$A$457&"*"&'Data E2059 '!$C$6:$C$457=$B61&"*"&TRIM($A62)),'Data E2059 '!$Y$6:$Y$457))/(LOOKUP(2,1/('Data E2059 '!$A$6:$A$457&"*"&'Data E2059 '!$C$6:$C$457=$B61&"*"&TRIM($A62)),'Data E2059 '!$W$6:$W$457)) -> 11478.84343 | F62: =(LOOKUP(2,1/('Data E2059 '!$A$6:$A$457&"*"&'Data E2059 '!$C$6:$C$457=$B61&"*"&TRIM($A62)),'Data E2059 '!$AG$6:$AG$457))/(LOOKUP(2,1/('Data E2059 '!$A$6:$A$457&"*"&'Data E2059 '!$C$6:$C$457=$B61&"*"&TRIM($A62)),'Data E2059 '!$AE$6:$AE$457)) -> 11743.31169 | G62: =IF(F62="k V","k V",(E62-F62)/F62) -> -0.02252075629 | H62: =LOOKUP(2,1/('Data E2059 '!$A$6:$A$457&"*"&'Data E2059 '!$C$6:$C$457=$B61&"*"&TRIM($A62)),'Data E2059 '!$X$6:$X$457) -> 27.16800293 | I62: =LOOKUP(2,1/('Data E2059 '!$A$6:$A$457&"*"&'Data E2059 '!$C$6:$C$457=$B61&"*"&TRIM($A62)),'Data E2059 '!$AF$6:$AF$457) -> 27.42468914 | J62: =IF(I62="k V","k V",(H62-I62)/I62) -> -0.009359675963 | K62: =LOOKUP(2,1/('Data E2059 '!$A$6:$A$457&"*"&'Data E2059 '!$C$6:$C$457=$B61&"*"&TRIM($A62)),'Data E2059 '!$Y$6:$Y$457) -> 984.8300184 | L62: =LOOKUP(2,1/('Data E2059 '!$A$6:$A$457&"*"&'Data E2059 '!$C$6:$C$457=$B61&"*"&TRIM($A62)),'Data E2059 '!$AG$6:$AG$457) -> 986.6244588 | M62: =IF(L62="k V","k V",(K62-L62)/L62) -> -0.001818767456 | N62: =LOOKUP(2,1/('Data E2059 '!$A$6:$A$457&"*"&'Data E2059 '!$C$6:$C$457=$B61&"*"&TRIM($A62)),'Data E2059 '!$AA$6:$AA$457)/100 -> 0.00821592216 | O62: =LOOKUP(2,1/('Data E2059 '!$A$6:$A$457&"*"&'Data E2059 '!$C$6:$C$457=$B61&"*"&TRIM($A62)),'Data E2059 '!$AI$6:$AI$457)/100 -> 0.007324505389 | P62: =(N62-O62)*100 -> 0.08914167717 | Q62: =P62/O62/100 -> 0.1217033403
A63: 20:00-23:00 | B63: =LOOKUP(2,1/('Data E2059 '!$A$6:$A$457&"*"&'Data E2059 '!$C$6:$C$457=$B61&"*"&TRIM($A63)),'Data E2059 '!$T$6:$T$457) -> 0.05863572147 | C63: =LOOKUP(2,1/('Data E2059 '!$A$6:$A$457&"*"&'Data E2059 '!$C$6:$C$457=$B61&"*"&TRIM($A63)),'Data E2059 '!$AB$6:$AB$457) -> 0.05781020528 | D63: =IF(C63="k V","k V",(B63-C63)/C63) -> 0.0142797658 | E63: =(LOOKUP(2,1/('Data E2059 '!$A$6:$A$457&"*"&'Data E2059 '!$C$6:$C$457=$B61&"*"&TRIM($A63)),'Data E2059 '!$Y$6:$Y$457))/(LOOKUP(2,1/('Data E2059 '!$A$6:$A$457&"*"&'Data E2059 '!$C$6:$C$457=$B61&"*"&TRIM($A63)),'Data E2059 '!$W$6:$W$457)) -> 14847.31985 | F63: =(LOOKUP(2,1/('Data E2059 '!$A$6:$A$457&"*"&'Data E2059 '!$C$6:$C$457=$B61&"*"&TRIM($A63)),'Data E2059 '!$AG$6:$AG$457))/(LOOKUP(2,1/('Data E2059 '!$A$6:$A$457&"*"&'Data E2059 '!$C$6:$C$457=$B61&"*"&TRIM($A63)),'Data E2059 '!$AE$6:$AE$457)) -> 15264.73588 | G63: =IF(F63="k V","k V",(E63-F63)/F63) -> -0.02734511976 | H63: =LOOKUP(2,1/('Data E2059 '!$A$6:$A$457&"*"&'Data E2059 '!$C$6:$C$457=$B61&"*"&TRIM($A63)),'Data E2059 '!$X$6:$X$457) -> 35.14047665 | I63: =LOOKUP(2,1/('Data E2059 '!$A$6:$A$457&"*"&'Data E2059 '!$C$6:$C$457=$B61&"*"&TRIM($A63)),'Data E2059 '!$AF$6:$AF$457) -> 35.648431 | J63: =IF(I63="k V","k V",(H63-I63)/I63) -> -0.01424899614 | K63: =LOOKUP(2,1/('Data E2059 '!$A$6:$A$457&"*"&'Data E2059 '!$C$6:$C$457=$B61&"*"&TRIM($A63)),'Data E2059 '!$Y$6:$Y$457) -> 2060.487201 | L63: =LOOKUP(2,1/('Data E2059 '!$A$6:$A$457&"*"&'Data E2059 '!$C$6:$C$457=$B61&"*"&TRIM($A63)),'Data E2059 '!$AG$6:$AG$457) -> 2060.843114 | M63: =IF(L63="k V","k V",(K63-L63)/L63) -> -0.0001727026705 | N63: =LOOKUP(2,1/('Data E2059 '!$A$6:$A$457&"*"&'Data E2059 '!$C$6:$C$457=$B61&"*"&TRIM($A63)),'Data E2059 '!$AA$6:$AA$457)/100 -> 0.006924082476 | O63: =LOOKUP(2,1/('Data E2059 '!$A$6:$A$457&"*"&'Data E2059 '!$C$6:$C$457=$B61&"*"&TRIM($A63)),'Data E2059 '!$AI$6:$AI$457)/100 -> 0.006110830002 | P63: =(N63-O63)*100 -> 0.08132524735 | Q63: =P63/O63/100 -> 0.1330837993
A64: Tele 5 | B64: Tele 5
A65: 03:00-03:00 | B65: =LOOKUP(2,1/('Data E2059 '!$A$6:$A$457&"*"&'Data E2059 '!$C$6:$C$457=$B64&"*"&TRIM($A65)),'Data E2059 '!$T$6:$T$457) -> 0.07803639453 | C65: =LOOKUP(2,1/('Data E2059 '!$A$6:$A$457&"*"&'Data E2059 '!$C$6:$C$457=$B64&"*"&TRIM($A65)),'Data E2059 '!$AB$6:$AB$457) -> 0.08689109054 | D65: =IF(C65="k V","k V",(B65-C65)/C65) -> -0.101905684 | E65: =(LOOKUP(2,1/('Data E2059 '!$A$6:$A$457&"*"&'Data E2059 '!$C$6:$C$457=$B64&"*"&TRIM($A65)),'Data E2059 '!$Y$6:$Y$457))/(LOOKUP(2,1/('Data E2059 '!$A$6:$A$457&"*"&'Data E2059 '!$C$6:$C$457=$B64&"*"&TRIM($A65)),'Data E2059 '!$W$6:$W$457)) -> 13481.89062 | F65: =(LOOKUP(2,1/('Data E2059 '!$A$6:$A$457&"*"&'Data E2059 '!$C$6:$C$457=$B64&"*"&TRIM($A65)),'Data E2059 '!$AG$6:$AG$457))/(LOOKUP(2,1/('Data E2059 '!$A$6:$A$457&"*"&'Data E2059 '!$C$6:$C$457=$B64&"*"&TRIM($A65)),'Data E2059 '!$AE$6:$AE$457)) -> 12679.41462 | G65: =IF(F65="k V","k V",(E65-F65)/F65) -> 0.06328967222 | H65: =LOOKUP(2,1/('Data E2059 '!$A$6:$A$457&"*"&'Data E2059 '!$C$6:$C$457=$B64&"*"&TRIM($A65)),'Data E2059 '!$X$6:$X$457) -> 31.90879344 | I65: =LOOKUP(2,1/('Data E2059 '!$A$6:$A$457&"*"&'Data E2059 '!$C$6:$C$457=$B64&"*"&TRIM($A65)),'Data E2059 '!$AF$6:$AF$457) -> 29.61081284 | J65: =IF(I65="k V","k V",(H65-I65)/I65) -> 0.07760613048 | K65: =LOOKUP(2,1/('Data E2059 '!$A$6:$A$457&"*"&'Data E2059 '!$C$6:$C$457=$B64&"*"&TRIM($A65)),'Data E2059 '!$Y$6:$Y$457) -> 2490.047194 | L65: =LOOKUP(2,1/('Data E2059 '!$A$6:$A$457&"*"&'Data E2059 '!$C$6:$C$457=$B64&"*"&TRIM($A65)),'Data E2059 '!$AG$6:$AG$457) -> 2572.915819 | M65: =IF(L65="k V","k V",(K65-L65)/L65) -> -0.03220805932 | N65: =LOOKUP(2,1/('Data E2059 '!$A$6:$A$457&"*"&'Data E2059 '!$C$6:$C$457=$B64&"*"&TRIM($A65)),'Data E2059 '!$AA$6:$AA$457)/100 -> 0.01102744468 | O65: =LOOKUP(2,1/('Data E2059 '!$A$6:$A$457&"*"&'Data E2059 '!$C$6:$C$457=$B64&"*"&TRIM($A65)),'Data E2059 '!$AI$6:$AI$457)/100 -> 0.01099652745 | P65: =(N65-O65)*100 -> 0.003091723192 | Q65: =P65/O65/100 -> 0.002811545013
A66: 20:00-23:00 | B66: =LOOKUP(2,1/('Data E2059 '!$A$6:$A$457&"*"&'Data E2059 '!$C$6:$C$457=$B64&"*"&TRIM($A66)),'Data E2059 '!$T$6:$T$457) -> 0.1058453398 | C66: =LOOKUP(2,1/('Data E2059 '!$A$6:$A$457&"*"&'Data E2059 '!$C$6:$C$457=$B64&"*"&TRIM($A66)),'Data E2059 '!$AB$6:$AB$457) -> 0.1246704046 | D66: =IF(C66="k V","k V",(B66-C66)/C66) -> -0.1509986658 | E66: =(LOOKUP(2,1/('Data E2059 '!$A$6:$A$457&"*"&'Data E2059 '!$C$6:$C$457=$B64&"*"&TRIM($A66)),'Data E2059 '!$Y$6:$Y$457))/(LOOKUP(2,1/('Data E2059 '!$A$6:$A$457&"*"&'Data E2059 '!$C$6:$C$457=$B64&"*"&TRIM($A66)),'Data E2059 '!$W$6:$W$457)) -> 17875.21121 | F66: =(LOOKUP(2,1/('Data E2059 '!$A$6:$A$457&"*"&'Data E2059 '!$C$6:$C$457=$B64&"*"&TRIM($A66)),'Data E2059 '!$AG$6:$AG$457))/(LOOKUP(2,1/('Data E2059 '!$A$6:$A$457&"*"&'Data E2059 '!$C$6:$C$457=$B64&"*"&TRIM($A66)),'Data E2059 '!$AE$6:$AE$457)) -> 16430.59046 | G66: =IF(F66="k V","k V",(E66-F66)/F66) -> 0.08792263145 | H66: =LOOKUP(2,1/('Data E2059 '!$A$6:$A$457&"*"&'Data E2059 '!$C$6:$C$457=$B64&"*"&TRIM($A66)),'Data E2059 '!$X$6:$X$457) -> 42.30685728 | I66: =LOOKUP(2,1/('Data E2059 '!$A$6:$A$457&"*"&'Data E2059 '!$C$6:$C$457=$B64&"*"&TRIM($A66)),'Data E2059 '!$AF$6:$AF$457) -> 38.37110415 | J66: =IF(I66="k V","k V",(H66-I66)/I66) -> 0.1025707554 | K66: =LOOKUP(2,1/('Data E2059 '!$A$6:$A$457&"*"&'Data E2059 '!$C$6:$C$457=$B64&"*"&TRIM($A66)),'Data E2059 '!$Y$6:$Y$457) -> 4477.983686 | L66: =LOOKUP(2,1/('Data E2059 '!$A$6:$A$457&"*"&'Data E2059 '!$C$6:$C$457=$B64&"*"&TRIM($A66)),'Data E2059 '!$AG$6:$AG$457) -> 4783.741078 | M66: =IF(L66="k V","k V",(K66-L66)/L66) -> -0.06391595763 | N66: =LOOKUP(2,1/('Data E2059 '!$A$6:$A$457&"*"&'Data E2059 '!$C$6:$C$457=$B64&"*"&TRIM($A66)),'Data E2059 '!$AA$6:$AA$457)/100 -> 0.01240331719 | O66: =LOOKUP(2,1/('Data E2059 '!$A$6:$A$457&"*"&'Data E2059 '!$C$6:$C$457=$B64&"*"&TRIM($A66)),'Data E2059 '!$AI$6:$AI$457)/100 -> 0.01246436407 | P66: =(N66-O66)*100 -> -0.006104688032 | Q66: =P66/O66/100 -> -0.004897713189
A67: Sport1 | B67: Sport1
A68: 03:00-03:00 | B68: =LOOKUP(2,1/('Data E2059 '!$A$6:$A$457&"*"&'Data E2059 '!$C$6:$C$457=$B67&"*"&TRIM($A68)),'Data E2059 '!$T$6:$T$457) -> 0.0503326348 | C68: =LOOKUP(2,1/('Data E2059 '!$A$6:$A$457&"*"&'Data E2059 '!$C$6:$C$457=$B67&"*"&TRIM($A68)),'Data E2059 '!$AB$6:$AB$457) -> 0.05272126899 | D68: =IF(C68="k V","k V",(B68-C68)/C68) -> -0.04530684188 | E68: =(LOOKUP(2,1/('Data E2059 '!$A$6:$A$457&"*"&'Data E2059 '!$C$6:$C$457=$B67&"*"&TRIM($A68)),'Data E2059 '!$Y$6:$Y$457))/(LOOKUP(2,1/('Data E2059 '!$A$6:$A$457&"*"&'Data E2059 '!$C$6:$C$457=$B67&"*"&TRIM($A68)),'Data E2059 '!$W$6:$W$457)) -> 14196.42258 | F68: =(LOOKUP(2,1/('Data E2059 '!$A$6:$A$457&"*"&'Data E2059 '!$C$6:$C$457=$B67&"*"&TRIM($A68)),'Data E2059 '!$AG$6:$AG$457))/(LOOKUP(2,1/('Data E2059 '!$A$6:$A$457&"*"&'Data E2059 '!$C$6:$C$457=$B67&"*"&TRIM($A68)),'Data E2059 '!$AE$6:$AE$457)) -> 12096.20655 | G68: =IF(F68="k V","k V",(E68-F68)/F68) -> 0.1736260055 | H68: =LOOKUP(2,1/('Data E2059 '!$A$6:$A$457&"*"&'Data E2059 '!$C$6:$C$457=$B67&"*"&TRIM($A68)),'Data E2059 '!$X$6:$X$457) -> 33.59993999 | I68: =LOOKUP(2,1/('Data E2059 '!$A$6:$A$457&"*"&'Data E2059 '!$C$6:$C$457=$B67&"*"&TRIM($A68)),'Data E2059 '!$AF$6:$AF$457) -> 28.24882055 | J68: =IF(I68="k V","k V",(H68-I68)/I68) -> 0.189428066 | K68: =LOOKUP(2,1/('Data E2059 '!$A$6:$A$457&"*"&'Data E2059 '!$C$6:$C$457=$B67&"*"&TRIM($A68)),'Data E2059 '!$Y$6:$Y$457) -> 1691.173509 | L68: =LOOKUP(2,1/('Data E2059 '!$A$6:$A$457&"*"&'Data E2059 '!$C$6:$C$457=$B67&"*"&TRIM($A68)),'Data E2059 '!$AG$6:$AG$457) -> 1489.313667 | M68: =IF(L68="k V","k V",(K68-L68)/L68) -> 0.1355388367 | N68: =LOOKUP(2,1/('Data E2059 '!$A$6:$A$457&"*"&'Data E2059 '!$C$6:$C$457=$B67&"*"&TRIM($A68)),'Data E2059 '!$AA$6:$AA$457)/100 -> 0.007714916868 | O68: =LOOKUP(2,1/('Data E2059 '!$A$6:$A$457&"*"&'Data E2059 '!$C$6:$C$457=$B67&"*"&TRIM($A68)),'Data E2059 '!$AI$6:$AI$457)/100 -> 0.007619873803 | P68: =(N68-O68)*100 -> 0.009504306475 | Q68: =P68/O68/100 -> 0.01247304971
A69: 20:00-23:00 | B69: =LOOKUP(2,1/('Data E2059 '!$A$6:$A$457&"*"&'Data E2059 '!$C$6:$C$457=$B67&"*"&TRIM($A69)),'Data E2059 '!$T$6:$T$457) -> 0.07881360324 | C69: =LOOKUP(2,1/('Data E2059 '!$A$6:$A$457&"*"&'Data E2059 '!$C$6:$C$457=$B67&"*"&TRIM($A69)),'Data E2059 '!$AB$6:$AB$457) -> 0.08667656233 | D69: =IF(C69="k V","k V",(B69-C69)/C69) -> -0.0907160931 | E69: =(LOOKUP(2,1/('Data E2059 '!$A$6:$A$457&"*"&'Data E2059 '!$C$6:$C$457=$B67&"*"&TRIM($A69)),'Data E2059 '!$Y$6:$Y$457))/(LOOKUP(2,1/('Data E2059 '!$A$6:$A$457&"*"&'Data E2059 '!$C$6:$C$457=$B67&"*"&TRIM($A69)),'Data E2059 '!$W$6:$W$457)) -> 11198.79738 | F69: =(LOOKUP(2,1/('Data E2059 '!$A$6:$A$457&"*"&'Data E2059 '!$C$6:$C$457=$B67&"*"&TRIM($A69)),'Data E2059 '!$AG$6:$AG$457))/(LOOKUP(2,1/('Data E2059 '!$A$6:$A$457&"*"&'Data E2059 '!$C$6:$C$457=$B67&"*"&TRIM($A69)),'Data E2059 '!$AE$6:$AE$457)) -> 8666.679454 | G69: =IF(F69="k V","k V",(E69-F69)/F69) -> 0.2921670222 | H69: =LOOKUP(2,1/('Data E2059 '!$A$6:$A$457&"*"&'Data E2059 '!$C$6:$C$457=$B67&"*"&TRIM($A69)),'Data E2059 '!$X$6:$X$457) -> 26.50519298 | I69: =LOOKUP(2,1/('Data E2059 '!$A$6:$A$457&"*"&'Data E2059 '!$C$6:$C$457=$B67&"*"&TRIM($A69)),'Data E2059 '!$AF$6:$AF$457) -> 20.23969015 | J69: =IF(I69="k V","k V",(H69-I69)/I69) -> 0.3095651553 | K69: =LOOKUP(2,1/('Data E2059 '!$A$6:$A$457&"*"&'Data E2059 '!$C$6:$C$457=$B67&"*"&TRIM($A69)),'Data E2059 '!$Y$6:$Y$457) -> 2088.969763 | L69: =LOOKUP(2,1/('Data E2059 '!$A$6:$A$457&"*"&'Data E2059 '!$C$6:$C$457=$B67&"*"&TRIM($A69)),'Data E2059 '!$AG$6:$AG$457) -> 1754.306765 | M69: =IF(L69="k V","k V",(K69-L69)/L69) -> 0.1907665208 | N69: =LOOKUP(2,1/('Data E2059 '!$A$6:$A$457&"*"&'Data E2059 '!$C$6:$C$457=$B67&"*"&TRIM($A69)),'Data E2059 '!$AA$6:$AA$457)/100 -> 0.01073083796 | O69: =LOOKUP(2,1/('Data E2059 '!$A$6:$A$457&"*"&'Data E2059 '!$C$6:$C$457=$B67&"*"&TRIM($A69)),'Data E2059 '!$AI$6:$AI$457)/100 -> 0.00982985875 | P69: =(N69-O69)*100 -> 0.09009792126 | Q69: =P69/O69/100 -> 0.09165739158
A71: WELT | B71: WELT
A72: 03:00-03:00 | B72: =LOOKUP(2,1/('Data E2059 '!$A$6:$A$457&"*"&'Data E2059 '!$C$6:$C$457=$B71&"*"&TRIM($A72)),'Data E2059 '!$T$6:$T$457) -> 0.05680435098 | C72: =LOOKUP(2,1/('Data E2059 '!$A$6:$A$457&"*"&'Data E2059 '!$C$6:$C$457=$B71&"*"&TRIM($A72)),'Data E2059 '!$AB$6:$AB$457) -> 0.06616648277 | D72: =IF(C72="k V","k V",(B72-C72)/C72) -> -0.141493569 | E72: =(LOOKUP(2,1/('Data E2059 '!$A$6:$A$457&"*"&'Data E2059 '!$C$6:$C$457=$B71&"*"&TRIM($A72)),'Data E2059 '!$Y$6:$Y$457))/(LOOKUP(2,1/('Data E2059 '!$A$6:$A$457&"*"&'Data E2059 '!$C$6:$C$457=$B71&"*"&TRIM($A72)),'Data E2059 '!$W$6:$W$457)) -> 12010.13095 | F72: =(LOOKUP(2,1/('Data E2059 '!$A$6:$A$457&"*"&'Data E2059 '!$C$6:$C$457=$B71&"*"&TRIM($A72)),'Data E2059 '!$AG$6:$AG$457))/(LOOKUP(2,1/('Data E2059 '!$A$6:$A$457&"*"&'Data E2059 '!$C$6:$C$457=$B71&"*"&TRIM($A72)),'Data E2059 '!$AE$6:$AE$457)) -> 11066.56274 | G72: =IF(F72="k V","k V",(E72-F72)/F72) -> 0.08526298851 | H72: =LOOKUP(2,1/('Data E2059 '!$A$6:$A$457&"*"&'Data E2059 '!$C$6:$C$457=$B71&"*"&TRIM($A72)),'Data E2059 '!$X$6:$X$457) -> 28.42544853 | I72: =LOOKUP(2,1/('Data E2059 '!$A$6:$A$457&"*"&'Data E2059 '!$C$6:$C$457=$B71&"*"&TRIM($A72)),'Data E2059 '!$AF$6:$AF$457) -> 25.84424659 | J72: =IF(I72="k V","k V",(H72-I72)/I72) -> 0.09987530224 | K72: =LOOKUP(2,1/('Data E2059 '!$A$6:$A$457&"*"&'Data E2059 '!$C$6:$C$457=$B71&"*"&TRIM($A72)),'Data E2059 '!$Y$6:$Y$457) -> 1614.689155 | L72: =LOOKUP(2,1/('Data E2059 '!$A$6:$A$457&"*"&'Data E2059 '!$C$6:$C$457=$B71&"*"&TRIM($A72)),'Data E2059 '!$AG$6:$AG$457) -> 1710.022897 | M72: =IF(L72="k V","k V",(K72-L72)/L72) -> -0.05574997975 | N72: =LOOKUP(2,1/('Data E2059 '!$A$6:$A$457&"*"&'Data E2059 '!$C$6:$C$457=$B71&"*"&TRIM($A72)),'Data E2059 '!$AA$6:$AA$457)/100 -> 0.01664768015 | O72: =LOOKUP(2,1/('Data E2059 '!$A$6:$A$457&"*"&'Data E2059 '!$C$6:$C$457=$B71&"*"&TRIM($A72)),'Data E2059 '!$AI$6:$AI$457)/100 -> 0.01719119383 | P72: =(N72-O72)*100 -> -0.05435136718 | Q72: =P72/O72/100 -> -0.03161581896
A73: 20:00-23:00 | B73: =LOOKUP(2,1/('Data E2059 '!$A$6:$A$457&"*"&'Data E2059 '!$C$6:$C$457=$B71&"*"&TRIM($A73)),'Data E2059 '!$T$6:$T$457) -> 0.08367455821 | C73: =LOOKUP(2,1/('Data E2059 '!$A$6:$A$457&"*"&'Data E2059 '!$C$6:$C$457=$B71&"*"&TRIM($A73)),'Data E2059 '!$AB$6:$AB$457) -> 0.09279831933 | D73: =IF(C73="k V","k V",(B73-C73)/C73) -> -0.09831817203 | E73: =(LOOKUP(2,1/('Data E2059 '!$A$6:$A$457&"*"&'Data E2059 '!$C$6:$C$457=$B71&"*"&TRIM($A73)),'Data E2059 '!$Y$6:$Y$457))/(LOOKUP(2,1/('Data E2059 '!$A$6:$A$457&"*"&'Data E2059 '!$C$6:$C$457=$B71&"*"&TRIM($A73)),'Data E2059 '!$W$6:$W$457)) -> 15098.96194 | F73: =(LOOKUP(2,1/('Data E2059 '!$A$6:$A$457&"*"&'Data E2059 '!$C$6:$C$457=$B71&"*"&TRIM($A73)),'Data E2059 '!$AG$6:$AG$457))/(LOOKUP(2,1/('Data E2059 '!$A$6:$A$457&"*"&'Data E2059 '!$C$6:$C$457=$B71&"*"&TRIM($A73)),'Data E2059 '!$AE$6:$AE$457)) -> 13319.37985 | G73: =IF(F73="k V","k V",(E73-F73)/F73) -> 0.1336084798 | H73: =LOOKUP(2,1/('Data E2059 '!$A$6:$A$457&"*"&'Data E2059 '!$C$6:$C$457=$B71&"*"&TRIM($A73)),'Data E2059 '!$X$6:$X$457) -> 35.73606043 | I73: =LOOKUP(2,1/('Data E2059 '!$A$6:$A$457&"*"&'Data E2059 '!$C$6:$C$457=$B71&"*"&TRIM($A73)),'Data E2059 '!$AF$6:$AF$457) -> 31.1053527 | J73: =IF(I73="k V","k V",(H73-I73)/I73) -> 0.148871732 | K73: =LOOKUP(2,1/('Data E2059 '!$A$6:$A$457&"*"&'Data E2059 '!$C$6:$C$457=$B71&"*"&TRIM($A73)),'Data E2059 '!$Y$6:$Y$457) -> 2990.199068 | L73: =LOOKUP(2,1/('Data E2059 '!$A$6:$A$457&"*"&'Data E2059 '!$C$6:$C$457=$B71&"*"&TRIM($A73)),'Data E2059 '!$AG$6:$AG$457) -> 2886.524453 | M73: =IF(L73="k V","k V",(K73-L73)/L73) -> 0.03591676343 | N73: =LOOKUP(2,1/('Data E2059 '!$A$6:$A$457&"*"&'Data E2059 '!$C$6:$C$457=$B71&"*"&TRIM($A73)),'Data E2059 '!$AA$6:$AA$457)/100 -> 0.009473036306 | O73: =LOOKUP(2,1/('Data E2059 '!$A$6:$A$457&"*"&'Data E2059 '!$C$6:$C$457=$B71&"*"&TRIM($A73)),'Data E2059 '!$AI$6:$AI$457)/100 -> 0.009792109843 | P73: =(N73-O73)*100 -> -0.03190735369 | Q73: =P73/O73/100 -> -0.03258475875
A74: n-tv | B74: N-TV
A75: 03:00-03:00 | B75: =LOOKUP(2,1/('Data E2059 '!$A$6:$A$457&"*"&'Data E2059 '!$C$6:$C$457=$B74&"*"&TRIM($A75)),'Data E2059 '!$T$6:$T$457) -> 0.0513620624 | C75: =LOOKUP(2,1/('Data E2059 '!$A$6:$A$457&"*"&'Data E2059 '!$C$6:$C$457=$B74&"*"&TRIM($A75)),'Data E2059 '!$AB$6:$AB$457) -> 0.053858823 | D75: =IF(C75="k V","k V",(B75-C75)/C75) -> -0.04635750388 | E75: =(LOOKUP(2,1/('Data E2059 '!$A$6:$A$457&"*"&'Data E2059 '!$C$6:$C$457=$B74&"*"&TRIM($A75)),'Data E2059 '!$Y$6:$Y$457))/(LOOKUP(2,1/('Data E2059 '!$A$6:$A$457&"*"&'Data E2059 '!$C$6:$C$457=$B74&"*"&TRIM($A75)),'Data E2059 '!$W$6:$W$457)) -> 8612.364682 | F75: =(LOOKUP(2,1/('Data E2059 '!$A$6:$A$457&"*"&'Data E2059 '!$C$6:$C$457=$B74&"*"&TRIM($A75)),'Data E2059 '!$AG$6:$AG$457))/(LOOKUP(2,1/('Data E2059 '!$A$6:$A$457&"*"&'Data E2059 '!$C$6:$C$457=$B74&"*"&TRIM($A75)),'Data E2059 '!$AE$6:$AE$457)) -> 10149.07809 | G75: =IF(F75="k V","k V",(E75-F75)/F75) -> -0.1514140888 | H75: =LOOKUP(2,1/('Data E2059 '!$A$6:$A$457&"*"&'Data E2059 '!$C$6:$C$457=$B74&"*"&TRIM($A75)),'Data E2059 '!$X$6:$X$457) -> 20.38365193 | I75: =LOOKUP(2,1/('Data E2059 '!$A$6:$A$457&"*"&'Data E2059 '!$C$6:$C$457=$B74&"*"&TRIM($A75)),'Data E2059 '!$AF$6:$AF$457) -> 23.70160302 | J75: =IF(I75="k V","k V",(H75-I75)/I75) -> -0.1399884679 | K75: =LOOKUP(2,1/('Data E2059 '!$A$6:$A$457&"*"&'Data E2059 '!$C$6:$C$457=$B74&"*"&TRIM($A75)),'Data E2059 '!$Y$6:$Y$457) -> 1046.946402 | L75: =LOOKUP(2,1/('Data E2059 '!$A$6:$A$457&"*"&'Data E2059 '!$C$6:$C$457=$B74&"*"&TRIM($A75)),'Data E2059 '!$AG$6:$AG$457) -> 1276.540442 | M75: =IF(L75="k V","k V",(K75-L75)/L75) -> -0.1798564558 | N75: =LOOKUP(2,1/('Data E2059 '!$A$6:$A$457&"*"&'Data E2059 '!$C$6:$C$457=$B74&"*"&TRIM($A75)),'Data E2059 '!$AA$6:$AA$457)/100 -> 0.01303704758 | O75: =LOOKUP(2,1/('Data E2059 '!$A$6:$A$457&"*"&'Data E2059 '!$C$6:$C$457=$B74&"*"&TRIM($A75)),'Data E2059 '!$AI$6:$AI$457)/100 -> 0.01184024766 | P75: =(N75-O75)*100 -> 0.1196799919 | Q75: =P75/O75/100 -> 0.1010789599
A76: 20:00-23:00 | B76: =LOOKUP(2,1/('Data E2059 '!$A$6:$A$457&"*"&'Data E2059 '!$C$6:$C$457=$B74&"*"&TRIM($A76)),'Data E2059 '!$T$6:$T$457) -> 0.07676018521 | C76: =LOOKUP(2,1/('Data E2059 '!$A$6:$A$457&"*"&'Data E2059 '!$C$6:$C$457=$B74&"*"&TRIM($A76)),'Data E2059 '!$AB$6:$AB$457) -> 0.07442637026 | D76: =IF(C76="k V","k V",(B76-C76)/C76) -> 0.03135736635 | E76: =(LOOKUP(2,1/('Data E2059 '!$A$6:$A$457&"*"&'Data E2059 '!$C$6:$C$457=$B74&"*"&TRIM($A76)),'Data E2059 '!$Y$6:$Y$457))/(LOOKUP(2,1/('Data E2059 '!$A$6:$A$457&"*"&'Data E2059 '!$C$6:$C$457=$B74&"*"&TRIM($A76)),'Data E2059 '!$W$6:$W$457)) -> 10403.91166 | F76: =(LOOKUP(2,1/('Data E2059 '!$A$6:$A$457&"*"&'Data E2059 '!$C$6:$C$457=$B74&"*"&TRIM($A76)),'Data E2059 '!$AG$6:$AG$457))/(LOOKUP(2,1/('Data E2059 '!$A$6:$A$457&"*"&'Data E2059 '!$C$6:$C$457=$B74&"*"&TRIM($A76)),'Data E2059 '!$AE$6:$AE$457)) -> 11687.27856 | G76: =IF(F76="k V","k V",(E76-F76)/F76) -> -0.1098088743 | H76: =LOOKUP(2,1/('Data E2059 '!$A$6:$A$457&"*"&'Data E2059 '!$C$6:$C$457=$B74&"*"&TRIM($A76)),'Data E2059 '!$X$6:$X$457) -> 24.62386602 | I76: =LOOKUP(2,1/('Data E2059 '!$A$6:$A$457&"*"&'Data E2059 '!$C$6:$C$457=$B74&"*"&TRIM($A76)),'Data E2059 '!$AF$6:$AF$457) -> 27.29383244 | J76: =IF(I76="k V","k V",(H76-I76)/I76) -> -0.09782306796 | K76: =LOOKUP(2,1/('Data E2059 '!$A$6:$A$457&"*"&'Data E2059 '!$C$6:$C$457=$B74&"*"&TRIM($A76)),'Data E2059 '!$Y$6:$Y$457) -> 1890.132516 | L76: =LOOKUP(2,1/('Data E2059 '!$A$6:$A$457&"*"&'Data E2059 '!$C$6:$C$457=$B74&"*"&TRIM($A76)),'Data E2059 '!$AG$6:$AG$457) -> 2031.380879 | M76: =IF(L76="k V","k V",(K76-L76)/L76) -> -0.06953317539 | N76: =LOOKUP(2,1/('Data E2059 '!$A$6:$A$457&"*"&'Data E2059 '!$C$6:$C$457=$B74&"*"&TRIM($A76)),'Data E2059 '!$AA$6:$AA$457)/100 -> 0.008329711798 | O76: =LOOKUP(2,1/('Data E2059 '!$A$6:$A$457&"*"&'Data E2059 '!$C$6:$C$457=$B74&"*"&TRIM($A76)),'Data E2059 '!$AI$6:$AI$457)/100 -> 0.007558113586 | P76: 0.0771598212 | Q76: =P76/O76/100 -> 0.1020887293
A78: ARD | B78: ARD
A79: 03:00-03:00 | B79: =LOOKUP(2,1/('Data E2059 '!$A$6:$A$457&"*"&'Data E2059 '!$C$6:$C$457=$B78&"*"&TRIM($A79)),'Data E2059 '!$T$6:$T$457) -> 0.5902387693 | C79: =LOOKUP(2,1/('Data E2059 '!$A$6:$A$457&"*"&'Data E2059 '!$C$6:$C$457=$B78&"*"&TRIM($A79)),'Data E2059 '!$AB$6:$AB$457) -> 0.6400483598 | D79: =IF(C79="k V","k V",(B79-C79)/C79) -> -0.07782160477 | E79: =(LOOKUP(2,1/('Data E2059 '!$A$6:$A$457&"*"&'Data E2059 '!$C$6:$C$457=$B78&"*"&TRIM($A79)),'Data E2059 '!$Y$6:$Y$457))/(LOOKUP(2,1/('Data E2059 '!$A$6:$A$457&"*"&'Data E2059 '!$C$6:$C$457=$B78&"*"&TRIM($A79)),'Data E2059 '!$W$6:$W$457)) -> 13412.50101 | F79: =(LOOKUP(2,1/('Data E2059 '!$A$6:$A$457&"*"&'Data E2059 '!$C$6:$C$457=$B78&"*"&TRIM($A79)),'Data E2059 '!$AG$6:$AG$457))/(LOOKUP(2,1/('Data E2059 '!$A$6:$A$457&"*"&'Data E2059 '!$C$6:$C$457=$B78&"*"&TRIM($A79)),'Data E2059 '!$AE$6:$AE$457)) -> 12288.43844 | G79: =IF(F79="k V","k V",(E79-F79)/F79) -> 0.09147318157 | H79: =LOOKUP(2,1/('Data E2059 '!$A$6:$A$457&"*"&'Data E2059 '!$C$6:$C$457=$B78&"*"&TRIM($A79)),'Data E2059 '!$X$6:$X$457) -> 31.74463137 | I79: =LOOKUP(2,1/('Data E2059 '!$A$6:$A$457&"*"&'Data E2059 '!$C$6:$C$457=$B78&"*"&TRIM($A79)),'Data E2059 '!$AF$6:$AF$457) -> 28.69775632 | J79: =IF(I79="k V","k V",(H79-I79)/I79) -> 0.1061711941 | K79: =LOOKUP(2,1/('Data E2059 '!$A$6:$A$457&"*"&'Data E2059 '!$C$6:$C$457=$B78&"*"&TRIM($A79)),'Data E2059 '!$Y$6:$Y$457) -> 18736.91215 | L79: =LOOKUP(2,1/('Data E2059 '!$A$6:$A$457&"*"&'Data E2059 '!$C$6:$C$457=$B78&"*"&TRIM($A79)),'Data E2059 '!$AG$6:$AG$457) -> 18367.95186 | M79: =IF(L79="k V","k V",(K79-L79)/L79) -> 0.02008717659 | N79: =LOOKUP(2,1/('Data E2059 '!$A$6:$A$457&"*"&'Data E2059 '!$C$6:$C$457=$B78&"*"&TRIM($A79)),'Data E2059 '!$AA$6:$AA$457)/100 -> 0.09476325744 | O79: =LOOKUP(2,1/('Data E2059 '!$A$6:$A$457&"*"&'Data E2059 '!$C$6:$C$457=$B78&"*"&TRIM($A79)),'Data E2059 '!$AI$6:$AI$457)/100 -> 0.09232043164 | P79: =(N79-O79)*100 -> 0.2442825803 | Q79: =P79/O79/100 -> 0.02646029443
A80: 17:00-20:00 | B80: =LOOKUP(2,1/('Data E2059 '!$A$6:$A$457&"*"&'Data E2059 '!$C$6:$C$457=$B78&"*"&TRIM($A80)),'Data E2059 '!$T$6:$T$457) -> 0.6556821087 | C80: =LOOKUP(2,1/('Data E2059 '!$A$6:$A$457&"*"&'Data E2059 '!$C$6:$C$457=$B78&"*"&TRIM($A80)),'Data E2059 '!$AB$6:$AB$457) -> 0.6982481015 | D80: =IF(C80="k V","k V",(B80-C80)/C80) -> -0.06096112928 | E80: =(LOOKUP(2,1/('Data E2059 '!$A$6:$A$457&"*"&'Data E2059 '!$C$6:$C$457=$B78&"*"&TRIM($A80)),'Data E2059 '!$Y$6:$Y$457))/(LOOKUP(2,1/('Data E2059 '!$A$6:$A$457&"*"&'Data E2059 '!$C$6:$C$457=$B78&"*"&TRIM($A80)),'Data E2059 '!$W$6:$W$457)) -> 12912.29284 | F80: =(LOOKUP(2,1/('Data E2059 '!$A$6:$A$457&"*"&'Data E2059 '!$C$6:$C$457=$B78&"*"&TRIM($A80)),'Data E2059 '!$AG$6:$AG$457))/(LOOKUP(2,1/('Data E2059 '!$A$6:$A$457&"*"&'Data E2059 '!$C$6:$C$457=$B78&"*"&TRIM($A80)),'Data E2059 '!$AE$6:$AE$457)) -> 11815.23498 | G80: =IF(F80="k V","k V",(E80-F80)/F80) -> 0.09285112507 | H80: =LOOKUP(2,1/('Data E2059 '!$A$6:$A$457&"*"&'Data E2059 '!$C$6:$C$457=$B78&"*"&TRIM($A80)),'Data E2059 '!$X$6:$X$457) -> 30.56074152 | I80: =LOOKUP(2,1/('Data E2059 '!$A$6:$A$457&"*"&'Data E2059 '!$C$6:$C$457=$B78&"*"&TRIM($A80)),'Data E2059 '!$AF$6:$AF$457) -> 27.59272078 | J80: =IF(I80="k V","k V",(H80-I80)/I80) -> 0.1075653525 | K80: =LOOKUP(2,1/('Data E2059 '!$A$6:$A$457&"*"&'Data E2059 '!$C$6:$C$457=$B78&"*"&TRIM($A80)),'Data E2059 '!$Y$6:$Y$457) -> 20038.13144 | L80: =LOOKUP(2,1/('Data E2059 '!$A$6:$A$457&"*"&'Data E2059 '!$C$6:$C$457=$B78&"*"&TRIM($A80)),'Data E2059 '!$AG$6:$AG$457) -> 19266.5649 | M80: =IF(L80="k V","k V",(K80-L80)/L80) -> 0.04004691784 | N80: =LOOKUP(2,1/('Data E2059 '!$A$6:$A$457&"*"&'Data E2059 '!$C$6:$C$457=$B78&"*"&TRIM($A80)),'Data E2059 '!$AA$6:$AA$457)/100 -> 0.103763753 | O80: =LOOKUP(2,1/('Data E2059 '!$A$6:$A$457&"*"&'Data E2059 '!$C$6:$C$457=$B78&"*"&TRIM($A80)),'Data E2059 '!$AI$6:$AI$457)/100 -> 0.09815949214 | P80: =(N80-O80)*100 -> 0.5604260896 | Q80: =P80/O80/100 -> 0.0570934178
A81: ZDF | B81: ZDF
A82: 03:00-03:00 | B82: =LOOKUP(2,1/('Data E2059 '!$A$6:$A$457&"*"&'Data E2059 '!$C$6:$C$457=$B81&"*"&TRIM($A82)),'Data E2059 '!$T$6:$T$457) -> 0.5851267123 | C82: =LOOKUP(2,1/('Data E2059 '!$A$6:$A$457&"*"&'Data E2059 '!$C$6:$C$457=$B81&"*"&TRIM($A82)),'Data E2059 '!$AB$6:$AB$457) -> 0.6751432495 | D82: =IF(C82="k V","k V",(B82-C82)/C82) -> -0.1333295374 | E82: =(LOOKUP(2,1/('Data E2059 '!$A$6:$A$457&"*"&'Data E2059 '!$C$6:$C$457=$B81&"*"&TRIM($A82)),'Data E2059 '!$Y$6:$Y$457))/(LOOKUP(2,1/('Data E2059 '!$A$6:$A$457&"*"&'Data E2059 '!$C$6:$C$457=$B81&"*"&TRIM($A82)),'Data E2059 '!$W$6:$W$457)) -> 15282.55534 | F82: =(LOOKUP(2,1/('Data E2059 '!$A$6:$A$457&"*"&'Data E2059 '!$C$6:$C$457=$B81&"*"&TRIM($A82)),'Data E2059 '!$AG$6:$AG$457))/(LOOKUP(2,1/('Data E2059 '!$A$6:$A$457&"*"&'Data E2059 '!$C$6:$C$457=$B81&"*"&TRIM($A82)),'Data E2059 '!$AE$6:$AE$457)) -> 13648.38977 | G82: =IF(F82="k V","k V",(E82-F82)/F82) -> 0.1197332139 | H82: =LOOKUP(2,1/('Data E2059 '!$A$6:$A$457&"*"&'Data E2059 '!$C$6:$C$457=$B81&"*"&TRIM($A82)),'Data E2059 '!$X$6:$X$457) -> 36.17066538 | I82: =LOOKUP(2,1/('Data E2059 '!$A$6:$A$457&"*"&'Data E2059 '!$C$6:$C$457=$B81&"*"&TRIM($A82)),'Data E2059 '!$AF$6:$AF$457) -> 31.87371329 | J82: =IF(I82="k V","k V",(H82-I82)/I82) -> 0.1348117821 | K82: =LOOKUP(2,1/('Data E2059 '!$A$6:$A$457&"*"&'Data E2059 '!$C$6:$C$457=$B81&"*"&TRIM($A82)),'Data E2059 '!$Y$6:$Y$457) -> 21164.42252 | L82: =LOOKUP(2,1/('Data E2059 '!$A$6:$A$457&"*"&'Data E2059 '!$C$6:$C$457=$B81&"*"&TRIM($A82)),'Data E2059 '!$AG$6:$AG$457) -> 21519.32236 | M82: =IF(L82="k V","k V",(K82-L82)/L82) -> -0.01649214786 | N82: =LOOKUP(2,1/('Data E2059 '!$A$6:$A$457&"*"&'Data E2059 '!$C$6:$C$457=$B81&"*"&TRIM($A82)),'Data E2059 '!$AA$6:$AA$457)/100 -> 0.09955028118 | O82: =LOOKUP(2,1/('Data E2059 '!$A$6:$A$457&"*"&'Data E2059 '!$C$6:$C$457=$B81&"*"&TRIM($A82)),'Data E2059 '!$AI$6:$AI$457)/100 -> 0.1001228586 | P82: =(N82-O82)*100 -> -0.05725773809 | Q82: =P82/O82/100 -> -0.005718747838
A83: 17:00-20:00 | B83: =LOOKUP(2,1/('Data E2059 '!$A$6:$A$457&"*"&'Data E2059 '!$C$6:$C$457=$B81&"*"&TRIM($A83)),'Data E2059 '!$T$6:$T$457) -> 0.6048091052 | C83: =LOOKUP(2,1/('Data E2059 '!$A$6:$A$457&"*"&'Data E2059 '!$C$6:$C$457=$B81&"*"&TRIM($A83)),'Data E2059 '!$AB$6:$AB$457) -> 0.704758049 | D83: =IF(C83="k V","k V",(B83-C83)/C83) -> -0.1418202232 | E83: =(LOOKUP(2,1/('Data E2059 '!$A$6:$A$457&"*"&'Data E2059 '!$C$6:$C$457=$B81&"*"&TRIM($A83)),'Data E2059 '!$Y$6:$Y$457))/(LOOKUP(2,1/('Data E2059 '!$A$6:$A$457&"*"&'Data E2059 '!$C$6:$C$457=$B81&"*"&TRIM($A83)),'Data E2059 '!$W$6:$W$457)) -> 15027.74005 | F83: =(LOOKUP(2,1/('Data E2059 '!$A$6:$A$457&"*"&'Data E2059 '!$C$6:$C$457=$B81&"*"&TRIM($A83)),'Data E2059 '!$AG$6:$AG$457))/(LOOKUP(2,1/('Data E2059 '!$A$6:$A$457&"*"&'Data E2059 '!$C$6:$C$457=$B81&"*"&TRIM($A83)),'Data E2059 '!$AE$6:$AE$457)) -> 13393.39953 | G83: =IF(F83="k V","k V",(E83-F83)/F83) -> 0.1220258166 | H83: =LOOKUP(2,1/('Data E2059 '!$A$6:$A$457&"*"&'Data E2059 '!$C$6:$C$457=$B81&"*"&TRIM($A83)),'Data E2059 '!$X$6:$X$457) -> 35.56756998 | I83: =LOOKUP(2,1/('Data E2059 '!$A$6:$A$457&"*"&'Data E2059 '!$C$6:$C$457=$B81&"*"&TRIM($A83)),'Data E2059 '!$AF$6:$AF$457) -> 31.27822284 | J83: =IF(I83="k V","k V",(H83-I83)/I83) -> 0.1371352574 | K83: =LOOKUP(2,1/('Data E2059 '!$A$6:$A$457&"*"&'Data E2059 '!$C$6:$C$457=$B81&"*"&TRIM($A83)),'Data E2059 '!$Y$6:$Y$457) -> 21511.59018 | L83: =LOOKUP(2,1/('Data E2059 '!$A$6:$A$457&"*"&'Data E2059 '!$C$6:$C$457=$B81&"*"&TRIM($A83)),'Data E2059 '!$AG$6:$AG$457) -> 22043.57931 | M83: =IF(L83="k V","k V",(K83-L83)/L83) -> -0.02413351854 | N83: =LOOKUP(2,1/('Data E2059 '!$A$6:$A$457&"*"&'Data E2059 '!$C$6:$C$457=$B81&"*"&TRIM($A83)),'Data E2059 '!$AA$6:$AA$457)/100 -> 0.0932936112 | O83: =LOOKUP(2,1/('Data E2059 '!$A$6:$A$457&"*"&'Data E2059 '!$C$6:$C$457=$B81&"*"&TRIM($A83)),'Data E2059 '!$AI$6:$AI$457)/100 -> 0.09743882291 | P83: =(N83-O83)*100 -> -0.4145211708 | Q83: =P83/O83/100 -> -0.04254168497
A85: ='Zeitschienen Monat'!A66 -> Quelle: AGF in Zusammenarbeit mit GfK | AGF SCOPE 1.5 | Markstandard: Bewegtbild | Seven.One Media - Media Insights & Analytics
A86: ='Zeitschienen Monat'!A67 -> Daten endgültig gewichtet, WB-RW und TKP für Werbung der TA 1-30

Sheet Zeitschienen Jahr
G1: Trendmonitor | P1: Jahreskumulation
I2: E 20-59 J. | R2: ='Data E2059 '!T2 -> 01.01.2024 - 29.02.2024
B3: RW Zeitschiene in Mio | E3: Seher in % | H3: Verweildauer in Min. | L3: Ø Sehdauer in Min.
B4: ='Übersicht Monat'!$B$7 -> 2024 | C4: ='Übersicht Monat'!$C$7 -> 2023 | D4: Diff in % | E4: ='Übersicht Monat'!$B$7 -> 2024 | F4: ='Übersicht Monat'!$C$7 -> 2023 | G4: Diff in % | H4: ='Übersicht Monat'!$B$7 -> 2024 | I4: ='Übersicht Monat'!$C$7 -> 2023 | K4: Diff in % | L4: ='Übersicht Monat'!$B$7 -> 2024 | M4: ='Übersicht Monat'!$C$7 -> 2023 | N4: Diff in %
A5: TV-Gesamt | D5: *Reichweiten der Zeitschienen
A6: 03:00-03:00 | B6: =LOOKUP(2,1/('Data E2059 '!$A$6:$A$457&"*"&'Data E2059 '!$C$6:$C$457=$A5&"*"&TRIM($A6)),'Data E2059 '!$T$6:$T$457) -> 4.313702898 | C6: =LOOKUP(2,1/('Data E2059 '!$A$6:$A$457&"*"&'Data E2059 '!$C$6:$C$457=$A5&"*"&TRIM($A6)),'Data E2059 '!$AB$6:$AB$457) -> 4.650784201 | D6: =IF(C6="k V","k V",(B6-C6)/C6) -> -0.0724783796 | E6: =LOOKUP(2,1/('Data E2059 '!$A$6:$A$457&"*"&'Data E2059 '!$C$6:$C$457=$A5&"*"&TRIM($A6)),'Data E2059 '!$Y$6:$Y$457) -> 59.17594985 | F6: =LOOKUP(2,1/('Data E2059 '!$A$6:$A$457&"*"&'Data E2059 '!$C$6:$C$457=$A5&"*"&TRIM($A6)),'Data E2059 '!$AG$6:$AG$457) -> 59.76631754 | G6: =IF(F6="k V","k V",(E6-F6)/F6) -> -0.009877933246 | H6: =LOOKUP(2,1/('Data E2059 '!$A$6:$A$457&"*"&'Data E2059 '!$C$6:$C$457=$A5&"*"&TRIM($A6)),'Data E2059 '!$Z$6:$Z$457) -> 236.7647409 | I6: =LOOKUP(2,1/('Data E2059 '!$A$6:$A$457&"*"&'Data E2059 '!$C$6:$C$457=$A5&"*"&TRIM($A6)),'Data E2059 '!$AH$6:$AH$457) -> 250.7818887 | K6: =IF(I6="k V","k V",(H6-I6)/I6) -> -0.05589378056 | L6: =LOOKUP(2,1/('Data E2059 '!$A$6:$A$457&"*"&'Data E2059 '!$C$6:$C$457=$A5&"*"&TRIM($A6)),'Data E2059 '!$AA$6:$AA$457) -> 147.0186078 | M6: =LOOKUP(2,1/('Data E2059 '!$A$6:$A$457&"*"&'Data E2059 '!$C$6:$C$457=$A5&"*"&TRIM($A6)),'Data E2059 '!$AI$6:$AI$457) -> 156.4011011 | N6: =IF(M6="k V","k V",(L6-M6)/M6) -> -0.05998994403
A7: 06:00-09:00 | B7: =LOOKUP(2,1/('Data E2059 '!$A$6:$A$457&"*"&'Data E2059 '!$C$6:$C$457=$A5&"*"&TRIM($A7)),'Data E2059 '!$T$6:$T$457) -> 1.654626133 | C7: =LOOKUP(2,1/('Data E2059 '!$A$6:$A$457&"*"&'Data E2059 '!$C$6:$C$457=$A5&"*"&TRIM($A7)),'Data E2059 '!$AB$6:$AB$457) -> 1.752779013 | D7: -0.05599843411 | E7: =LOOKUP(2,1/('Data E2059 '!$A$6:$A$457&"*"&'Data E2059 '!$C$6:$C$457=$A5&"*"&TRIM($A7)),'Data E2059 '!$Y$6:$Y$457) -> 12.95201983 | F7: =LOOKUP(2,1/('Data E2059 '!$A$6:$A$457&"*"&'Data E2059 '!$C$6:$C$457=$A5&"*"&TRIM($A7)),'Data E2059 '!$AG$6:$AG$457) -> 12.89843121 | G7: 0.004154661517 | H7: =LOOKUP(2,1/('Data E2059 '!$A$6:$A$457&"*"&'Data E2059 '!$C$6:$C$457=$A5&"*"&TRIM($A7)),'Data E2059 '!$Z$6:$Z$457) -> 50.71414204 | I7: =LOOKUP(2,1/('Data E2059 '!$A$6:$A$457&"*"&'Data E2059 '!$C$6:$C$457=$A5&"*"&TRIM($A7)),'Data E2059 '!$AH$6:$AH$457) -> 53.47302994 | K7: -0.05159400747 | L7: =LOOKUP(2,1/('Data E2059 '!$A$6:$A$457&"*"&'Data E2059 '!$C$6:$C$457=$A5&"*"&TRIM($A7)),'Data E2059 '!$AA$6:$AA$457) -> 7.049072344 | M7: =LOOKUP(2,1/('Data E2059 '!$A$6:$A$457&"*"&'Data E2059 '!$C$6:$C$457=$A5&"*"&TRIM($A7)),'Data E2059 '!$AI$6:$AI$457) -> 7.368019985 | N7: -0.0432881075
A8: 09:00-13:00 | B8: =LOOKUP(2,1/('Data E2059 '!$A$6:$A$457&"*"&'Data E2059 '!$C$6:$C$457=$A5&"*"&TRIM($A8)),'Data E2059 '!$T$6:$T$457) -> 2.579327655 | C8: =LOOKUP(2,1/('Data E2059 '!$A$6:$A$457&"*"&'Data E2059 '!$C$6:$C$457=$A5&"*"&TRIM($A8)),'Data E2059 '!$AB$6:$AB$457) -> 2.83359743 | D8: -0.08973390918 | E8: =LOOKUP(2,1/('Data E2059 '!$A$6:$A$457&"*"&'Data E2059 '!$C$6:$C$457=$A5&"*"&TRIM($A8)),'Data E2059 '!$Y$6:$Y$457) -> 17.79935424 | F8: =LOOKUP(2,1/('Data E2059 '!$A$6:$A$457&"*"&'Data E2059 '!$C$6:$C$457=$A5&"*"&TRIM($A8)),'Data E2059 '!$AG$6:$AG$457) -> 18.34559681 | G8: -0.02977513221 | H8: =LOOKUP(2,1/('Data E2059 '!$A$6:$A$457&"*"&'Data E2059 '!$C$6:$C$457=$A5&"*"&TRIM($A8)),'Data E2059 '!$Z$6:$Z$457) -> 74.16356226 | I8: =LOOKUP(2,1/('Data E2059 '!$A$6:$A$457&"*"&'Data E2059 '!$C$6:$C$457=$A5&"*"&TRIM($A8)),'Data E2059 '!$AH$6:$AH$457) -> 78.82412423 | K8: -0.05912608624 | L8: =LOOKUP(2,1/('Data E2059 '!$A$6:$A$457&"*"&'Data E2059 '!$C$6:$C$457=$A5&"*"&TRIM($A8)),'Data E2059 '!$AA$6:$AA$457) -> 14.65133976 | M8: =LOOKUP(2,1/('Data E2059 '!$A$6:$A$457&"*"&'Data E2059 '!$C$6:$C$457=$A5&"*"&TRIM($A8)),'Data E2059 '!$AI$6:$AI$457) -> 15.88182906 | N8: -0.07747780736
A9: 13:00-17:00 | B9: =LOOKUP(2,1/('Data E2059 '!$A$6:$A$457&"*"&'Data E2059 '!$C$6:$C$457=$A5&"*"&TRIM($A9)),'Data E2059 '!$T$6:$T$457) -> 3.951545704 | C9: =LOOKUP(2,1/('Data E2059 '!$A$6:$A$457&"*"&'Data E2059 '!$C$6:$C$457=$A5&"*"&TRIM($A9)),'Data E2059 '!$AB$6:$AB$457) -> 4.409223785 | D9: -0.103800148 | E9: =LOOKUP(2,1/('Data E2059 '!$A$6:$A$457&"*"&'Data E2059 '!$C$6:$C$457=$A5&"*"&TRIM($A9)),'Data E2059 '!$Y$6:$Y$457) -> 23.58086663 | F9: =LOOKUP(2,1/('Data E2059 '!$A$6:$A$457&"*"&'Data E2059 '!$C$6:$C$457=$A5&"*"&TRIM($A9)),'Data E2059 '!$AG$6:$AG$457) -> 24.67942399 | G9: -0.04451308741 | H9: =LOOKUP(2,1/('Data E2059 '!$A$6:$A$457&"*"&'Data E2059 '!$C$6:$C$457=$A5&"*"&TRIM($A9)),'Data E2059 '!$Z$6:$Z$457) -> 86.08639893 | I9: =LOOKUP(2,1/('Data E2059 '!$A$6:$A$457&"*"&'Data E2059 '!$C$6:$C$457=$A5&"*"&TRIM($A9)),'Data E2059 '!$AH$6:$AH$457) -> 91.90570275 | K9: -0.0633182017 | L9: =LOOKUP(2,1/('Data E2059 '!$A$6:$A$457&"*"&'Data E2059 '!$C$6:$C$457=$A5&"*"&TRIM($A9)),'Data E2059 '!$AA$6:$AA$457) -> 22.4459419 | M9: =LOOKUP(2,1/('Data E2059 '!$A$6:$A$457&"*"&'Data E2059 '!$C$6:$C$457=$A5&"*"&TRIM($A9)),'Data E2059 '!$AI$6:$AI$457) -> 24.71294535 | N9: -0.09173343828
A10: 17:00-20:00 | B10: =LOOKUP(2,1/('Data E2059 '!$A$6:$A$457&"*"&'Data E2059 '!$C$6:$C$457=$A5&"*"&TRIM($A10)),'Data E2059 '!$T$6:$T$457) -> 7.061880944 | C10: =LOOKUP(2,1/('Data E2059 '!$A$6:$A$457&"*"&'Data E2059 '!$C$6:$C$457=$A5&"*"&TRIM($A10)),'Data E2059 '!$AB$6:$AB$457) -> 7.758859115 | D10: -0.08982998152 | E10: =LOOKUP(2,1/('Data E2059 '!$A$6:$A$457&"*"&'Data E2059 '!$C$6:$C$457=$A5&"*"&TRIM($A10)),'Data E2059 '!$Y$6:$Y$457) -> 36.17475406 | F10: =LOOKUP(2,1/('Data E2059 '!$A$6:$A$457&"*"&'Data E2059 '!$C$6:$C$457=$A5&"*"&TRIM($A10)),'Data E2059 '!$AG$6:$AG$457) -> 37.53051312 | G10: -0.03612418122 | H10: =LOOKUP(2,1/('Data E2059 '!$A$6:$A$457&"*"&'Data E2059 '!$C$6:$C$457=$A5&"*"&TRIM($A10)),'Data E2059 '!$Z$6:$Z$457) -> 77.53561365 | I10: =LOOKUP(2,1/('Data E2059 '!$A$6:$A$457&"*"&'Data E2059 '!$C$6:$C$457=$A5&"*"&TRIM($A10)),'Data E2059 '!$AH$6:$AH$457) -> 81.57199888 | K10: -0.04948248528 | L10: =LOOKUP(2,1/('Data E2059 '!$A$6:$A$457&"*"&'Data E2059 '!$C$6:$C$457=$A5&"*"&TRIM($A10)),'Data E2059 '!$AA$6:$AA$457) -> 30.08517071 | M10: =LOOKUP(2,1/('Data E2059 '!$A$6:$A$457&"*"&'Data E2059 '!$C$6:$C$457=$A5&"*"&TRIM($A10)),'Data E2059 '!$AI$6:$AI$457) -> 32.61530895 | N10: -0.07757517324
A11: 20:00-23:00 | B11: =LOOKUP(2,1/('Data E2059 '!$A$6:$A$457&"*"&'Data E2059 '!$C$6:$C$457=$A5&"*"&TRIM($A11)),'Data E2059 '!$T$6:$T$457) -> 10.78939477 | C11: =LOOKUP(2,1/('Data E2059 '!$A$6:$A$457&"*"&'Data E2059 '!$C$6:$C$457=$A5&"*"&TRIM($A11)),'Data E2059 '!$AB$6:$AB$457) -> 11.60242252 | D11: -0.07007396505 | E11: =LOOKUP(2,1/('Data E2059 '!$A$6:$A$457&"*"&'Data E2059 '!$C$6:$C$457=$A5&"*"&TRIM($A11)),'Data E2059 '!$Y$6:$Y$457) -> 46.05017023 | F11: =LOOKUP(2,1/('Data E2059 '!$A$6:$A$457&"*"&'Data E2059 '!$C$6:$C$457=$A5&"*"&TRIM($A11)),'Data E2059 '!$AG$6:$AG$457) -> 47.18593464 | G11: -0.02406997787 | H11: =LOOKUP(2,1/('Data E2059 '!$A$6:$A$457&"*"&'Data E2059 '!$C$6:$C$457=$A5&"*"&TRIM($A11)),'Data E2059 '!$Z$6:$Z$457) -> 95.07012559 | I11: =LOOKUP(2,1/('Data E2059 '!$A$6:$A$457&"*"&'Data E2059 '!$C$6:$C$457=$A5&"*"&TRIM($A11)),'Data E2059 '!$AH$6:$AH$457) -> 99.21914693 | K11: -0.04181674077 | L11: =LOOKUP(2,1/('Data E2059 '!$A$6:$A$457&"*"&'Data E2059 '!$C$6:$C$457=$A5&"*"&TRIM($A11)),'Data E2059 '!$AA$6:$AA$457) -> 45.96520191 | M11: =LOOKUP(2,1/('Data E2059 '!$A$6:$A$457&"*"&'Data E2059 '!$C$6:$C$457=$A5&"*"&TRIM($A11)),'Data E2059 '!$AI$6:$AI$457) -> 48.77219568 | N11: -0.05755315571
A12: 23:00-01:00 | B12: =LOOKUP(2,1/('Data E2059 '!$A$6:$A$457&"*"&'Data E2059 '!$C$6:$C$457=$A5&"*"&TRIM($A12)),'Data E2059 '!$T$6:$T$457) -> 5.374264023 | C12: =LOOKUP(2,1/('Data E2059 '!$A$6:$A$457&"*"&'Data E2059 '!$C$6:$C$457=$A5&"*"&TRIM($A12)),'Data E2059 '!$AB$6:$AB$457) -> 5.556183075 | D12: -0.03274173108 | E12: =LOOKUP(2,1/('Data E2059 '!$A$6:$A$457&"*"&'Data E2059 '!$C$6:$C$457=$A5&"*"&TRIM($A12)),'Data E2059 '!$Y$6:$Y$457) -> 24.04488957 | F12: =LOOKUP(2,1/('Data E2059 '!$A$6:$A$457&"*"&'Data E2059 '!$C$6:$C$457=$A5&"*"&TRIM($A12)),'Data E2059 '!$AG$6:$AG$457) -> 24.66905981 | G12: -0.02530174439 | H12: =LOOKUP(2,1/('Data E2059 '!$A$6:$A$457&"*"&'Data E2059 '!$C$6:$C$457=$A5&"*"&TRIM($A12)),'Data E2059 '!$Z$6:$Z$457) -> 60.14190076 | I12: =LOOKUP(2,1/('Data E2059 '!$A$6:$A$457&"*"&'Data E2059 '!$C$6:$C$457=$A5&"*"&TRIM($A12)),'Data E2059 '!$AH$6:$AH$457) -> 60.00192108 | K12: 0.002332919981 | L12: =LOOKUP(2,1/('Data E2059 '!$A$6:$A$457&"*"&'Data E2059 '!$C$6:$C$457=$A5&"*"&TRIM($A12)),'Data E2059 '!$AA$6:$AA$457) -> 15.26370022 | M12: =LOOKUP(2,1/('Data E2059 '!$A$6:$A$457&"*"&'Data E2059 '!$C$6:$C$457=$A5&"*"&TRIM($A12)),'Data E2059 '!$AI$6:$AI$457) -> 15.57072802 | N12: -0.01971826909
B14: RW Werbung in Mio | E14: CpG Werbung in Euro | H14: TKP Werbung in Euro | L14: Tarif Werbung in Euro | O14: Marktanteile
B15: ='Übersicht Monat'!$B$7 -> 2024 | C15: ='Übersicht Monat'!$C$7 -> 2023 | D15: Diff in % | E15: ='Übersicht Monat'!$B$7 -> 2024 | F15: ='Übersicht Monat'!$C$7 -> 2023 | G15: Diff in % | H15: ='Übersicht Monat'!$B$7 -> 2024 | I15: ='Übersicht Monat'!$C$7 -> 2023 | J15: Index¹ | K15: Diff in % | L15: ='Übersicht Monat'!$B$7 -> 2024 | M15: ='Übersicht Monat'!$C$7 -> 2023 | N15: Diff in % | O15: ='Übersicht Monat'!$B$7 -> 2024 | P15: ='Übersicht Monat'!$C$7 -> 2023 | Q15: Diff | R15: Diff in %
B16: SAT.1
A17: 03:00-03:00 | B17: =LOOKUP(2,1/('Data E2059 '!$A$6:$A$457&"*"&'Data E2059 '!$C$6:$C$457=$B16&"*"&TRIM($A17)),'Data E2059 '!$T$6:$T$457) -> 0.2217346651 | C17: =LOOKUP(2,1/('Data E2059 '!$A$6:$A$457&"*"&'Data E2059 '!$C$6:$C$457=$B16&"*"&TRIM($A17)),'Data E2059 '!$AB$6:$AB$457) -> 0.2706825081 | D17: =IF(C17="k V","k V",(B17-C17)/C17) -> -0.180831201 | E17: =(LOOKUP(2,1/('Data E2059 '!$A$6:$A$195&"*"&'Data E2059 '!$C$6:$C$195=$B$16&"*"&TRIM($A17)),'Data E2059 '!$Y$6:$Y$195))/(LOOKUP(2,1/('Data E2059 '!$A$6:$A$195&"*"&'Data E2059 '!$C$6:$C$195=$B$16&"*"&TRIM($A17)),'Data E2059 '!$W$6:$W$195)) -> 14716.42981 | F17: =(LOOKUP(2,1/('Data E2059 '!$A$6:$A$195&"*"&'Data E2059 '!$C$6:$C$195=$B$16&"*"&TRIM($A17)),'Data E2059 '!$AG$6:$AG$195))/(LOOKUP(2,1/('Data E2059 '!$A$6:$A$195&"*"&'Data E2059 '!$C$6:$C$195=$B$16&"*"&TRIM($A17)),'Data E2059 '!$AE$6:$AE$195)) -> 12563.53996 | G17: =IF(F17="k V","k V",(E17-F17)/F17) -> 0.1713601304 | H17: =LOOKUP(2,1/('Data E2059 '!$A$6:$A$457&"*"&'Data E2059 '!$C$6:$C$457=$B16&"*"&TRIM($A17)),'Data E2059 '!$X$6:$X$457) -> 34.8306875 | I17: =LOOKUP(2,1/('Data E2059 '!$A$6:$A$457&"*"&'Data E2059 '!$C$6:$C$457=$B16&"*"&TRIM($A17)),'Data E2059 '!$AF$6:$AF$457) -> 29.34020549 | J17: =H17*100/H33 -> 94.05420271 | K17: =IF(I17="k V","k V",(H17-I17)/I17) -> 0.1871316824 | L17: =LOOKUP(2,1/('Data E2059 '!$A$6:$A$457&"*"&'Data E2059 '!$C$6:$C$457=$B16&"*"&TRIM($A17)),'Data E2059 '!$Y$6:$Y$457) -> 7723.170829 | M17: =LOOKUP(2,1/('Data E2059 '!$A$6:$A$457&"*"&'Data E2059 '!$C$6:$C$457=$B16&"*"&TRIM($A17)),'Data E2059 '!$AG$6:$AG$457) -> 7941.88041 | N17: =IF(M17="k V","k V",(L17-M17)/M17) -> -0.02753876542 | O17: =LOOKUP(2,1/('Data E2059 '!$A$6:$A$457&"*"&'Data E2059 '!$C$6:$C$457=$B$16&"*"&TRIM($A17)),'Data E2059 '!$AA$6:$AA$457)/100 -> 0.05362832267 | P17: =LOOKUP(2,1/('Data E2059 '!$A$6:$A$457&"*"&'Data E2059 '!$C$6:$C$457=$B$16&"*"&TRIM($A17)),'Data E2059 '!$AI$6:$AI$457)/100 -> 0.0589100895 | Q17: =(O17-P17)*100 -> -0.5281766827 | R17: =Q17/P17/100 -> -0.08965810225
A18: 06:00-09:00 | B18: =LOOKUP(2,1/('Data E2059 '!$A$6:$A$457&"*"&'Data E2059 '!$C$6:$C$457=$B16&"*"&TRIM($A18)),'Data E2059 '!$T$6:$T$457) -> 0.1650304043 | C18: =LOOKUP(2,1/('Data E2059 '!$A$6:$A$457&"*"&'Data E2059 '!$C$6:$C$457=$B16&"*"&TRIM($A18)),'Data E2059 '!$AB$6:$AB$457) -> 0.194767786 | D18: -0.1526812123 | E18: =(LOOKUP(2,1/('Data E2059 '!$A$6:$A$195&"*"&'Data E2059 '!$C$6:$C$195=$B$16&"*"&TRIM($A18)),'Data E2059 '!$Y$6:$Y$195))/(LOOKUP(2,1/('Data E2059 '!$A$6:$A$195&"*"&'Data E2059 '!$C$6:$C$195=$B$16&"*"&TRIM($A18)),'Data E2059 '!$W$6:$W$195)) -> 10554.03219 | F18: =(LOOKUP(2,1/('Data E2059 '!$A$6:$A$195&"*"&'Data E2059 '!$C$6:$C$195=$B$16&"*"&TRIM($A18)),'Data E2059 '!$AG$6:$AG$195))/(LOOKUP(2,1/('Data E2059 '!$A$6:$A$195&"*"&'Data E2059 '!$C$6:$C$195=$B$16&"*"&TRIM($A18)),'Data E2059 '!$AE$6:$AE$195)) -> 9052.280615 | G18: 0.1658975944 | H18: =LOOKUP(2,1/('Data E2059 '!$A$6:$A$457&"*"&'Data E2059 '!$C$6:$C$457=$B16&"*"&TRIM($A18)),'Data E2059 '!$X$6:$X$457) -> 24.97916967 | I18: =LOOKUP(2,1/('Data E2059 '!$A$6:$A$457&"*"&'Data E2059 '!$C$6:$C$457=$B16&"*"&TRIM($A18)),'Data E2059 '!$AF$6:$AF$457) -> 21.14020206 | J18: =H18*100/H34 -> 95.38150415 | K18: 0.1815955971 | L18: =LOOKUP(2,1/('Data E2059 '!$A$6:$A$457&"*"&'Data E2059 '!$C$6:$C$457=$B16&"*"&TRIM($A18)),'Data E2059 '!$Y$6:$Y$457) -> 4122.322471 | M18: =LOOKUP(2,1/('Data E2059 '!$A$6:$A$457&"*"&'Data E2059 '!$C$6:$C$457=$B16&"*"&TRIM($A18)),'Data E2059 '!$AG$6:$AG$457) -> 4117.43035 | N18: 0.001188148928 | O18: =LOOKUP(2,1/('Data E2059 '!$A$6:$A$457&"*"&'Data E2059 '!$C$6:$C$457=$B$16&"*"&TRIM($A18)),'Data E2059 '!$AA$6:$AA$457)/100 -> 0.1117877306 | P18: =LOOKUP(2,1/('Data E2059 '!$A$6:$A$457&"*"&'Data E2059 '!$C$6:$C$457=$B$16&"*"&TRIM($A18)),'Data E2059 '!$AI$6:$AI$457)/100 -> 0.1205556904 | Q18: -0.8767959782 | R18: -0.07272953899
A19: 09:00-13:00 | B19: =LOOKUP(2,1/('Data E2059 '!$A$6:$A$457&"*"&'Data E2059 '!$C$6:$C$457=$B16&"*"&TRIM($A19)),'Data E2059 '!$T$6:$T$457) -> 0.1555787581 | C19: =LOOKUP(2,1/('Data E2059 '!$A$6:$A$457&"*"&'Data E2059 '!$C$6:$C$457=$B16&"*"&TRIM($A19)),'Data E2059 '!$AB$6:$AB$457) -> 0.1651007724 | D19: -0.05767395406 | E19: =(LOOKUP(2,1/('Data E2059 '!$A$6:$A$195&"*"&'Data E2059 '!$C$6:$C$195=$B$16&"*"&TRIM($A19)),'Data E2059 '!$Y$6:$Y$195))/(LOOKUP(2,1/('Data E2059 '!$A$6:$A$195&"*"&'Data E2059 '!$C$6:$C$195=$B$16&"*"&TRIM($A19)),'Data E2059 '!$W$6:$W$195)) -> 9105.009224 | F19: =(LOOKUP(2,1/('Data E2059 '!$A$6:$A$195&"*"&'Data E2059 '!$C$6:$C$195=$B$16&"*"&TRIM($A19)),'Data E2059 '!$AG$6:$AG$195))/(LOOKUP(2,1/('Data E2059 '!$A$6:$A$195&"*"&'Data E2059 '!$C$6:$C$195=$B$16&"*"&TRIM($A19)),'Data E2059 '!$AE$6:$AE$195)) -> 8761.492867 | G19: 0.0392075143 | H19: =LOOKUP(2,1/('Data E2059 '!$A$6:$A$457&"*"&'Data E2059 '!$C$6:$C$457=$B16&"*"&TRIM($A19)),'Data E2059 '!$X$6:$X$457) -> 21.54963772 | I19: =LOOKUP(2,1/('Data E2059 '!$A$6:$A$457&"*"&'Data E2059 '!$C$6:$C$457=$B16&"*"&TRIM($A19)),'Data E2059 '!$AF$6:$AF$457) -> 20.46111222 | J19: 79.96265526 | K19: 0.053199723 | L19: =LOOKUP(2,1/('Data E2059 '!$A$6:$A$457&"*"&'Data E2059 '!$C$6:$C$457=$B16&"*"&TRIM($A19)),'Data E2059 '!$Y$6:$Y$457) -> 3352.665874 | M19: =LOOKUP(2,1/('Data E2059 '!$A$6:$A$457&"*"&'Data E2059 '!$C$6:$C$457=$B16&"*"&TRIM($A19)),'Data E2059 '!$AG$6:$AG$457) -> 3378.145432 | N19: -0.007542469439 | O19: =LOOKUP(2,1/('Data E2059 '!$A$6:$A$457&"*"&'Data E2059 '!$C$6:$C$457=$B$16&"*"&TRIM($A19)),'Data E2059 '!$AA$6:$AA$457)/100 -> 0.06529644497 | P19: =LOOKUP(2,1/('Data E2059 '!$A$6:$A$457&"*"&'Data E2059 '!$C$6:$C$457=$B$16&"*"&TRIM($A19)),'Data E2059 '!$AI$6:$AI$457)/100 -> 0.06243607186 | Q19: 0.2860373112 | R19: 0.04581282946
A20: 13:00-17:00 | B20: =LOOKUP(2,1/('Data E2059 '!$A$6:$A$457&"*"&'Data E2059 '!$C$6:$C$457=$B16&"*"&TRIM($A20)),'Data E2059 '!$T$6:$T$457) -> 0.1618930249 | C20: =LOOKUP(2,1/('Data E2059 '!$A$6:$A$457&"*"&'Data E2059 '!$C$6:$C$457=$B16&"*"&TRIM($A20)),'Data E2059 '!$AB$6:$AB$457) -> 0.2451721512 | D20: -0.3396761254 | E20: =(LOOKUP(2,1/('Data E2059 '!$A$6:$A$195&"*"&'Data E2059 '!$C$6:$C$195=$B$16&"*"&TRIM($A20)),'Data E2059 '!$Y$6:$Y$195))/(LOOKUP(2,1/('Data E2059 '!$A$6:$A$195&"*"&'Data E2059 '!$C$6:$C$195=$B$16&"*"&TRIM($A20)),'Data E2059 '!$W$6:$W$195)) -> 11408.18194 | F20: =(LOOKUP(2,1/('Data E2059 '!$A$6:$A$195&"*"&'Data E2059 '!$C$6:$C$195=$B$16&"*"&TRIM($A20)),'Data E2059 '!$AG$6:$AG$195))/(LOOKUP(2,1/('Data E2059 '!$A$6:$A$195&"*"&'Data E2059 '!$C$6:$C$195=$B$16&"*"&TRIM($A20)),'Data E2059 '!$AE$6:$AE$195)) -> 9114.49945 | G20: 0.2516520525 | H20: =LOOKUP(2,1/('Data E2059 '!$A$6:$A$457&"*"&'Data E2059 '!$C$6:$C$457=$B16&"*"&TRIM($A20)),'Data E2059 '!$X$6:$X$457) -> 27.0007621 | I20: =LOOKUP(2,1/('Data E2059 '!$A$6:$A$457&"*"&'Data E2059 '!$C$6:$C$457=$B16&"*"&TRIM($A20)),'Data E2059 '!$AF$6:$AF$457) -> 21.28550453 | J20: 99.74222801 | K20: 0.2685046797 | L20: =LOOKUP(2,1/('Data E2059 '!$A$6:$A$457&"*"&'Data E2059 '!$C$6:$C$457=$B16&"*"&TRIM($A20)),'Data E2059 '!$Y$6:$Y$457) -> 4371.23505 | M20: =LOOKUP(2,1/('Data E2059 '!$A$6:$A$457&"*"&'Data E2059 '!$C$6:$C$457=$B16&"*"&TRIM($A20)),'Data E2059 '!$AG$6:$AG$457) -> 5218.612935 | N20: -0.162376075 | O20: =LOOKUP(2,1/('Data E2059 '!$A$6:$A$457&"*"&'Data E2059 '!$C$6:$C$457=$B$16&"*"&TRIM($A20)),'Data E2059 '!$AA$6:$AA$457)/100 -> 0.04504511473 | P20: =LOOKUP(2,1/('Data E2059 '!$A$6:$A$457&"*"&'Data E2059 '!$C$6:$C$457=$B$16&"*"&TRIM($A20)),'Data E2059 '!$AI$6:$AI$457)/100 -> 0.06028749796 | Q20: -1.524238323 | R20: -0.2528282604
A21: 17:00-20:00 | B21: =LOOKUP(2,1/('Data E2059 '!$A$6:$A$457&"*"&'Data E2059 '!$C$6:$C$457=$B16&"*"&TRIM($A21)),'Data E2059 '!$T$6:$T$457) -> 0.2357541421 | C21: =LOOKUP(2,1/('Data E2059 '!$A$6:$A$457&"*"&'Data E2059 '!$C$6:$C$457=$B16&"*"&TRIM($A21)),'Data E2059 '!$AB$6:$AB$457) -> 0.3459369742 | D21: -0.318505509 | E21: =(LOOKUP(2,1/('Data E2059 '!$A$6:$A$195&"*"&'Data E2059 '!$C$6:$C$195=$B$16&"*"&TRIM($A21)),'Data E2059 '!$Y$6:$Y$195))/(LOOKUP(2,1/('Data E2059 '!$A$6:$A$195&"*"&'Data E2059 '!$C$6:$C$195=$B$16&"*"&TRIM($A21)),'Data E2059 '!$W$6:$W$195)) -> 12177.12872 | F21: =(LOOKUP(2,1/('Data E2059 '!$A$6:$A$195&"*"&'Data E2059 '!$C$6:$C$195=$B$16&"*"&TRIM($A21)),'Data E2059 '!$AG$6:$AG$195))/(LOOKUP(2,1/('Data E2059 '!$A$6:$A$195&"*"&'Data E2059 '!$C$6:$C$195=$B$16&"*"&TRIM($A21)),'Data E2059 '!$AE$6:$AE$195)) -> 9531.483353 | G21: 0.2775691119 | H21: =LOOKUP(2,1/('Data E2059 '!$A$6:$A$457&"*"&'Data E2059 '!$C$6:$C$457=$B16&"*"&TRIM($A21)),'Data E2059 '!$X$6:$X$457) -> 28.82069705 | I21: =LOOKUP(2,1/('Data E2059 '!$A$6:$A$457&"*"&'Data E2059 '!$C$6:$C$457=$B16&"*"&TRIM($A21)),'Data E2059 '!$AF$6:$AF$457) -> 22.25930597 | J21: 87.76510832 | K21: 0.2947706943 | L21: =LOOKUP(2,1/('Data E2059 '!$A$6:$A$457&"*"&'Data E2059 '!$C$6:$C$457=$B16&"*"&TRIM($A21)),'Data E2059 '!$Y$6:$Y$457) -> 6794.598709 | M21: =LOOKUP(2,1/('Data E2059 '!$A$6:$A$457&"*"&'Data E2059 '!$C$6:$C$457=$B16&"*"&TRIM($A21)),'Data E2059 '!$AG$6:$AG$457) -> 7700.316956 | N21: -0.1176209048 | O21: =LOOKUP(2,1/('Data E2059 '!$A$6:$A$457&"*"&'Data E2059 '!$C$6:$C$457=$B$16&"*"&TRIM($A21)),'Data E2059 '!$AA$6:$AA$457)/100 -> 0.04059142987 | P21: =LOOKUP(2,1/('Data E2059 '!$A$6:$A$457&"*"&'Data E2059 '!$C$6:$C$457=$B$16&"*"&TRIM($A21)),'Data E2059 '!$AI$6:$AI$457)/100 -> 0.04952320836 | Q21: -0.8931778487 | R21: -0.1803554088
A22: 20:00-23:00 | B22: =LOOKUP(2,1/('Data E2059 '!$A$6:$A$457&"*"&'Data E2059 '!$C$6:$C$457=$B16&"*"&TRIM($A22)),'Data E2059 '!$T$6:$T$457) -> 0.4847662347 | C22: =LOOKUP(2,1/('Data E2059 '!$A$6:$A$457&"*"&'Data E2059 '!$C$6:$C$457=$B16&"*"&TRIM($A22)),'Data E2059 '!$AB$6:$AB$457) -> 0.5145663273 | D22: -0.05791302507 | E22: =(LOOKUP(2,1/('Data E2059 '!$A$6:$A$195&"*"&'Data E2059 '!$C$6:$C$195=$B$16&"*"&TRIM($A22)),'Data E2059 '!$Y$6:$Y$195))/(LOOKUP(2,1/('Data E2059 '!$A$6:$A$195&"*"&'Data E2059 '!$C$6:$C$195=$B$16&"*"&TRIM($A22)),'Data E2059 '!$W$6:$W$195)) -> 21053.68644 | F22: =(LOOKUP(2,1/('Data E2059 '!$A$6:$A$195&"*"&'Data E2059 '!$C$6:$C$195=$B$16&"*"&TRIM($A22)),'Data E2059 '!$AG$6:$AG$195))/(LOOKUP(2,1/('Data E2059 '!$A$6:$A$195&"*"&'Data E2059 '!$C$6:$C$195=$B$16&"*"&TRIM($A22)),'Data E2059 '!$AE$6:$AE$195)) -> 19736.06193 | G22: 0.06676228073 | H22: =LOOKUP(2,1/('Data E2059 '!$A$6:$A$457&"*"&'Data E2059 '!$C$6:$C$457=$B16&"*"&TRIM($A22)),'Data E2059 '!$X$6:$X$457) -> 49.82963821 | I22: =LOOKUP(2,1/('Data E2059 '!$A$6:$A$457&"*"&'Data E2059 '!$C$6:$C$457=$B16&"*"&TRIM($A22)),'Data E2059 '!$AF$6:$AF$457) -> 46.09052181 | J22: 94.26398538 | K22: 0.08112549525 | L22: =LOOKUP(2,1/('Data E2059 '!$A$6:$A$457&"*"&'Data E2059 '!$C$6:$C$457=$B16&"*"&TRIM($A22)),'Data E2059 '!$Y$6:$Y$457) -> 24155.72609 | M22: =LOOKUP(2,1/('Data E2059 '!$A$6:$A$457&"*"&'Data E2059 '!$C$6:$C$457=$B16&"*"&TRIM($A22)),'Data E2059 '!$AG$6:$AG$457) -> 23716.63053 | N22: 0.01851424735 | O22: =LOOKUP(2,1/('Data E2059 '!$A$6:$A$457&"*"&'Data E2059 '!$C$6:$C$457=$B$16&"*"&TRIM($A22)),'Data E2059 '!$AA$6:$AA$457)/100 -> 0.0575457513 | P22: =LOOKUP(2,1/('Data E2059 '!$A$6:$A$457&"*"&'Data E2059 '!$C$6:$C$457=$B$16&"*"&TRIM($A22)),'Data E2059 '!$AI$6:$AI$457)/100 -> 0.0586515005 | Q22: -0.1105749198 | R22: -0.01885287143
A23: 23:00-01:00 | B23: =LOOKUP(2,1/('Data E2059 '!$A$6:$A$457&"*"&'Data E2059 '!$C$6:$C$457=$B16&"*"&TRIM($A23)),'Data E2059 '!$T$6:$T$457) -> 0.17933305 | C23: =LOOKUP(2,1/('Data E2059 '!$A$6:$A$457&"*"&'Data E2059 '!$C$6:$C$457=$B16&"*"&TRIM($A23)),'Data E2059 '!$AB$6:$AB$457) -> 0.201956378 | D23: -0.1120208641 | E23: =(LOOKUP(2,1/('Data E2059 '!$A$6:$A$195&"*"&'Data E2059 '!$C$6:$C$195=$B$16&"*"&TRIM($A23)),'Data E2059 '!$Y$6:$Y$195))/(LOOKUP(2,1/('Data E2059 '!$A$6:$A$195&"*"&'Data E2059 '!$C$6:$C$195=$B$16&"*"&TRIM($A23)),'Data E2059 '!$W$6:$W$195)) -> 16933.73291 | F23: =(LOOKUP(2,1/('Data E2059 '!$A$6:$A$195&"*"&'Data E2059 '!$C$6:$C$195=$B$16&"*"&TRIM($A23)),'Data E2059 '!$AG$6:$AG$195))/(LOOKUP(2,1/('Data E2059 '!$A$6:$A$195&"*"&'Data E2059 '!$C$6:$C$195=$B$16&"*"&TRIM($A23)),'Data E2059 '!$AE$6:$AE$195)) -> 12493.09998 | G23: 0.3554468421 | H23: =LOOKUP(2,1/('Data E2059 '!$A$6:$A$457&"*"&'Data E2059 '!$C$6:$C$457=$B16&"*"&TRIM($A23)),'Data E2059 '!$X$6:$X$457) -> 40.0785766 | I23: =LOOKUP(2,1/('Data E2059 '!$A$6:$A$457&"*"&'Data E2059 '!$C$6:$C$457=$B16&"*"&TRIM($A23)),'Data E2059 '!$AF$6:$AF$457) -> 29.17570379 | J23: 128.0715599 | K23: 0.3736969941 | L23: =LOOKUP(2,1/('Data E2059 '!$A$6:$A$457&"*"&'Data E2059 '!$C$6:$C$457=$B16&"*"&TRIM($A23)),'Data E2059 '!$Y$6:$Y$457) -> 7187.413382 | M23: =LOOKUP(2,1/('Data E2059 '!$A$6:$A$457&"*"&'Data E2059 '!$C$6:$C$457=$B16&"*"&TRIM($A23)),'Data E2059 '!$AG$6:$AG$457) -> 5892.219463 | N23: 0.2198142699 | O23: =LOOKUP(2,1/('Data E2059 '!$A$6:$A$457&"*"&'Data E2059 '!$C$6:$C$457=$B$16&"*"&TRIM($A23)),'Data E2059 '!$AA$6:$AA$457)/100 -> 0.04350644549 | P23: =LOOKUP(2,1/('Data E2059 '!$A$6:$A$457&"*"&'Data E2059 '!$C$6:$C$457=$B$16&"*"&TRIM($A23)),'Data E2059 '!$AI$6:$AI$457)/100 -> 0.04569284869 | Q23: -0.2186403202 | R23: -0.04785000858
B24: ProSieben
A25: 03:00-03:00 | B25: =LOOKUP(2,1/('Data E2059 '!$A$6:$A$457&"*"&'Data E2059 '!$C$6:$C$457=$B24&"*"&TRIM($A25)),'Data E2059 '!$T$6:$T$457) -> 0.1895637963 | C25: =LOOKUP(2,1/('Data E2059 '!$A$6:$A$457&"*"&'Data E2059 '!$C$6:$C$457=$B24&"*"&TRIM($A25)),'Data E2059 '!$AB$6:$AB$457) -> 0.2299348208 | D25: =IF(C25="k V","k V",(B25-C25)/C25) -> -0.1755759495 | E25: =(LOOKUP(2,1/('Data E2059 '!$A$6:$A$195&"*"&'Data E2059 '!$C$6:$C$195=$B$24&"*"&TRIM($A25)),'Data E2059 '!$Y$6:$Y$195))/(LOOKUP(2,1/('Data E2059 '!$A$6:$A$195&"*"&'Data E2059 '!$C$6:$C$195=$B$24&"*"&TRIM($A25)),'Data E2059 '!$W$6:$W$195)) -> 18834.18987 | F25: =(LOOKUP(2,1/('Data E2059 '!$A$6:$A$195&"*"&'Data E2059 '!$C$6:$C$195=$B$24&"*"&TRIM($A25)),'Data E2059 '!$AG$6:$AG$195))/(LOOKUP(2,1/('Data E2059 '!$A$6:$A$195&"*"&'Data E2059 '!$C$6:$C$195=$B$24&"*"&TRIM($A25)),'Data E2059 '!$AE$6:$AE$195)) -> 17314.31789 | G25: =IF(F25="k V","k V",(E25-F25)/F25) -> 0.08778122139 | H25: =LOOKUP(2,1/('Data E2059 '!$A$6:$A$457&"*"&'Data E2059 '!$C$6:$C$457=$B24&"*"&TRIM($A25)),'Data E2059 '!$X$6:$X$457) -> 44.57655764 | I25: =LOOKUP(2,1/('Data E2059 '!$A$6:$A$457&"*"&'Data E2059 '!$C$6:$C$457=$B24&"*"&TRIM($A25)),'Data E2059 '!$AF$6:$AF$457) -> 40.43491296 | J25: =H25*100/H33 -> 120.3712269 | K25: =IF(I25="k V","k V",(H25-I25)/I25) -> 0.1024274414 | L25: =LOOKUP(2,1/('Data E2059 '!$A$6:$A$457&"*"&'Data E2059 '!$C$6:$C$457=$B24&"*"&TRIM($A25)),'Data E2059 '!$Y$6:$Y$457) -> 8450.101493 | M25: =LOOKUP(2,1/('Data E2059 '!$A$6:$A$457&"*"&'Data E2059 '!$C$6:$C$457=$B24&"*"&TRIM($A25)),'Data E2059 '!$AG$6:$AG$457) -> 9297.394466 | N25: =IF(M25="k V","k V",(L25-M25)/M25) -> -0.09113230335 | O25: =LOOKUP(2,1/('Data E2059 '!$A$6:$A$457&"*"&'Data E2059 '!$C$6:$C$457=$B$24&"*"&TRIM($A25)),'Data E2059 '!$AA$6:$AA$457)/100 -> 0.04915919765 | P25: =LOOKUP(2,1/('Data E2059 '!$A$6:$A$457&"*"&'Data E2059 '!$C$6:$C$457=$B$24&"*"&TRIM($A25)),'Data E2059 '!$AI$6:$AI$457)/100 -> 0.05232016523 | Q25: =(O25-P25)*100 -> -0.3160967582 | R25: =Q25/P25/100 -> -0.06041585626
A26: 06:00-09:00 | B26: =LOOKUP(2,1/('Data E2059 '!$A$6:$A$457&"*"&'Data E2059 '!$C$6:$C$457=$B24&"*"&TRIM($A26)),'Data E2059 '!$T$6:$T$457) -> 0.04491082219 | C26: =LOOKUP(2,1/('Data E2059 '!$A$6:$A$457&"*"&'Data E2059 '!$C$6:$C$457=$B24&"*"&TRIM($A26)),'Data E2059 '!$AB$6:$AB$457) -> 0.06211296856 | D26: -0.2769493517 | E26: =(LOOKUP(2,1/('Data E2059 '!$A$6:$A$195&"*"&'Data E2059 '!$C$6:$C$195=$B$24&"*"&TRIM($A26)),'Data E2059 '!$Y$6:$Y$195))/(LOOKUP(2,1/('Data E2059 '!$A$6:$A$195&"*"&'Data E2059 '!$C$6:$C$195=$B$24&"*"&TRIM($A26)),'Data E2059 '!$W$6:$W$195)) -> 15475.57658 | F26: =(LOOKUP(2,1/('Data E2059 '!$A$6:$A$195&"*"&'Data E2059 '!$C$6:$C$195=$B$24&"*"&TRIM($A26)),'Data E2059 '!$AG$6:$AG$195))/(LOOKUP(2,1/('Data E2059 '!$A$6:$A$195&"*"&'Data E2059 '!$C$6:$C$195=$B$24&"*"&TRIM($A26)),'Data E2059 '!$AE$6:$AE$195)) -> 11820.98162 | G26: 0.3091617165 | H26: =LOOKUP(2,1/('Data E2059 '!$A$6:$A$457&"*"&'Data E2059 '!$C$6:$C$457=$B24&"*"&TRIM($A26)),'Data E2059 '!$X$6:$X$457) -> 36.62742791 | I26: =LOOKUP(2,1/('Data E2059 '!$A$6:$A$457&"*"&'Data E2059 '!$C$6:$C$457=$B24&"*"&TRIM($A26)),'Data E2059 '!$AF$6:$AF$457) -> 27.60607525 | J26: =H26*100/H34 -> 139.8596996 | K26: 0.3267886714 | L26: =LOOKUP(2,1/('Data E2059 '!$A$6:$A$457&"*"&'Data E2059 '!$C$6:$C$457=$B24&"*"&TRIM($A26)),'Data E2059 '!$Y$6:$Y$457) -> 1644.967902 | M26: =LOOKUP(2,1/('Data E2059 '!$A$6:$A$457&"*"&'Data E2059 '!$C$6:$C$457=$B24&"*"&TRIM($A26)),'Data E2059 '!$AG$6:$AG$457) -> 1714.695284 | N26: -0.04066459097 | O26: =LOOKUP(2,1/('Data E2059 '!$A$6:$A$457&"*"&'Data E2059 '!$C$6:$C$457=$B$24&"*"&TRIM($A26)),'Data E2059 '!$AA$6:$AA$457)/100 -> 0.02838929562 | P26: =LOOKUP(2,1/('Data E2059 '!$A$6:$A$457&"*"&'Data E2059 '!$C$6:$C$457=$B$24&"*"&TRIM($A26)),'Data E2059 '!$AI$6:$AI$457)/100 -> 0.03611854043 | Q26: -0.7729244811 | R26: -0.2139965989
